Workbook

Sheet Instructions
A1: EQL INVESTMENT NPV TOOL
AF2: NPV Analysis - Process
AF3: 1 | AG3: Use EB RIN 3.6.2 Energy Not Supplied (ENS) Data
B4: FUNCTIONALITY | AF4: 2 | AG4: Select UNPLANNED Outages only
B5: The NPV tool performs NPV analysis on base cash flows and sensitivity analysis by monte carlo simulation | AF5: 3 | AG5: Identify outages on Urban Feeders that are longer than 4 hours
AF6: 4 | AG6: Identify outages on Short Rural Feeders that are longer than 6 hours
B7: Cells which have a pale green background | I7: require user input, either freeform or via a drop down list | AF7: 5 | AG7: Verify total ENS for UR>4hrs, SR>6hrs
B8: Input cells can be found on the following sheets | AF8: 6 | AG8: Estimate the improvement of total ENS recorded in step [5] applying 5% improvement
B9: - | C9: Parameters | E9: Includes: | F9: Project Name; Evaluation Year; Evaluation Term; Final Year; Scenario Titles; Weighted Result Percentages of Scenarios; Number of Monte Carlo Iterations per Scenario (if required); Options Descriptions | AF9: 7 | AG9: Calculate the MWh improvement from step [6]
B10: - | C10: Costs | E10: Includes: | F10: Cost Component Names, Descriptions, Types and Expected Useful Lives; Mode (expected) Capex and Opex Costs; Lower and Higher Bound Capex and Opex Costs (required for Monte Carlo Analysis only) | AF10: 8 | AG10: Multiple MWh improvement by the VR=$42,000
B11: - | C11: Scenario* | E11: Includes: | F11: Cost Component Selection; Decommissioned Asset Information (if required); Component timing for each Option where applicable (where * = A, B, C, D, E as applicable) | AF11: 9 | AG11: Spread benefits considering year of purchasing -e.g. max benefit is at the end of the regulatory period 2030 when all units are in service
B12: - | C12: Benefits* | E12: Includes: | F12: Benefit Values | AF12: 10 | AG12: Diminishing return – to demonstrate chosen number is optimal, show that the return of further generators starts to get less and less over time. E.g. from 2031 reduce annualy benefits by 1% (at 2040 by 10%)
B16: GENERAL PARAMETERS AND OPTION SET UP: | AF16: NPV Analysis EGX - EB RIN 3.6.2 - ENS Data and Results (Year 2021/2022)
B17: - | C17: On the "Parameters" worksheet: | AI17: No of events | AJ17: Outage duration (hrs) | AK17: 5% of running hours | AL17: ENS (MWh) | AM17: 3% ENS Improvement (MWh) | AN17: VCR ($/MWh) | AO17: VCR Improvement ($) in 2030 (all units in operations)
C18: 1. Enter the evaluation year (start) in cell C4 | AF18: a | AG18: ENS/VCR UR>4hrs | AI18: 137 | AJ18: 1193 | AK18: =0.05*AJ18 -> 59.65 | AL18: 547.7 | AM18: =0.03*AL18 -> 16.431 | AN18: 42000 | AO18: =AM18*AN18 -> 690102
C19: 2. Enter the evaluation term (years) in cell C5 | AF19: b | AG19: ENS/VCR SR>6hrs | AI19: 47 | AJ19: 688 | AK19: =0.05*AJ19 -> 34.4 | AL19: 659.4 | AM19: =0.03*AL19 -> 19.782 | AN19: 42000 | AO19: =AM19*AN19 -> 830844
C20: 3. If applicable, enter any demand scenarios into cells B14 to C18 (eg. extra load growth etc.) (Note: minimum number of scenarios is 1, maximum is 5) | AG20: Total | AI20: =SUM(AI18:AI19) -> 184 | AJ20: =SUM(AJ18:AJ19) -> 1881 | AK20: =0.025*AJ20 -> 47.025 | AL20: =SUM(AL18:AL19) -> 1207.1 | AM20: =SUM(AM18:AM19) -> 36.213 | AN20: 42000 | AO20: =SUM(AO18:AO19) -> 1520946
C21: 4. Enter probability weighting for scenarios into cells C14 to C18 (if one scenario, enter 100%)
C22: 5. Enter option descriptions into cells B26 to B25 (Note: minimum number of options is 1, maximum is 10)
C23: 6. Worksheets for unused scenarios can be hidden (or unhidden) by using the buttons
B27: CONSTRUCTION OF THE BASE CASH FLOWS: | AF27: Running Cost (RC, $)
B28: - | C28: On the "Costs" worksheet: | AF28: a | AG28: Consumption at peak load (litres / hour) | AK28: 150
C29: 1. Include cost components (capex and opex) for all potential components (Note: these could relate to any or all options) | AF29: b | AG29: Cost of diesel ($/litre) | AK29: 2
D30: If monte carlo analysis is not required, then costs only need to be entered in columns E and H (mode capex and mode opex) | AF30: c | AG30: RC: "ENS Improved" (AL19) x 200 l/hour x $2/l | AK30: =AM20*AK28*AK29 -> 10863.9
C31: The capex cost is deemed to occur in full in the year selected (phasing of the cash flows over a number of years considered to not affect relative NPVs materially if mid-point for costs of multi-year project selected)
C32: The opex cost occurs for every year of the asset's useful life, unless curtailed by the asset being decommissioned
B34: - | C34: On the "Scenario*" worksheet: (where * = A, B, C, D, E as applicable)
C35: 1. Select the applicable cost component from the populated list in Column D | AF35: GSL Benefit
C36: 2. Enter the respective timing for each option as appropriate | AF36: 1 | AG36: Contact Customer Delivery (Amy Kemp-Paton, or Caroline Sargent) on GLS payments 2017-2022 (on feeder category)
C37: 3. If assets will be decommissioned within their expected useful life, the decommissioning value and timing needs to be entered on the appropriate cost component line | AF37: 2 | AG37: Summarise payments related to GLS category "Reliability Duration"
AF38: 3 | AG38: Total GLS payments 2017-2022 is $10,174,008
C39: Hiding unwanted columns: | AF39: 4 | AG39: Average annual payment is $1,695,668
C40: - | D40: In each "Scenario*" worksheet there is the ability to hide or unhide columns | AF40: 5 | AG40: Apply 10% of annual GLS payment as a benefit ($1,695,668*.01=%169,567) in 2030
C41: - | D41: Columns E and F relating to decommissioned assets can be hidden/unhidden by checking/unchecking the box in Cell D6 in each "Scenario*" worksheet. | AF41: 6 | AG41: In 2026 apply 0.5, as half of Pegasus will be pruchased in 2026
C42: - | D42: Columns relating to options can be hidden/unhidden by selecting the option number in Cell B2 in each "Scenario*" worksheet and pressing the relevant button - this will also hide/unhide the corresponding Option columns in the respective "BaseCF*" worksheet. | AF42: 7 | AG42: Due to more connected customers, increase annual benefits by 1%
B46: CONSTRUCTION OF THE BENEFITS CASH FLOWS:
B47: - | C47: On the "Benefits*" worksheet: (where * = A, B, C, D, E as applicable)
C48: 1. Enter the benefits (in $) in the appropriate years for each option (Note: there is functionality for up to 3 benefit types)
C49: Once the inputs have been finalised, the resulting total cash flows can be viewed in the "BenefitsCF*" worksheet for each scenario.
B53: PRODUCING BASE CASH FLOWS AND THEIR RESULTING NPVs:
B54: - | C54: On the "Parameters" worksheet:
C55: 1. The NPV for base cash flows can be generated by pressing the "Run NPV for Base Cash Flows" button
C56: 2. Input Boxes will appear on screen asking for confirmation of the number of scenarios and options
C57: 3. Base Cash Flows (and their respective NPVs) are detailed on the "BaseCF*" worksheets for each scenario and option selected.
B59: - | C59: On the "Results" worksheet:
C60: Summary and weighted average NPV results are produced
C61: Tables and rows for unused scenarios and options can be hidden
B65: PRODUCING MONTE CARLO ANALYSIS AND THEIR RESULTING NPVs:
C66: Note: Monte Carlo Analysis should be performed after generation of the Base Cash Flows NPVs - since that procedure sets the WACC, evaluation year, number of scenarios and number of options.
B68: - | C68: On the "Costs" worksheet:
C69: 1. Enter lower and upper bound capex and opex values for components in Columns F, G, I and J
B71: - | C71: On the "Parameters" worksheet:
C72: 1. Enter the number of monte carlo iterations required for each scenario in cells D14 to D18
C73: 2. The Monte Carlo analysis can then be generated by pressing the "Run Monte Carlo Analysis" button
C75: The random iterations for Capex and Opex are output into the "CapexMonte" and "OpexMonte" worksheets based on the maximum number of iterations required
C76: The NPVs are generated for each iteration using the random Capex and Opex cash flows for that iteration applied to the specified WACC (i.e. the WACC isn't randomised).
C77: The NPVs are output into the "MCresults*" worksheets where the average, maximum and minimum NPVs are calculated for each option, plus the percentage of times the option has the best or worst NPV.
B79: - | C79: On the "MonteR" worksheet:
C80: The monte carlo analysis NPV results are collated and summarised
C81: Tables and rows for unused scenarios and options can be hidden
C82: At the foot of the worksheet there is a graph which generates the spread of NPV outcomes for each option across multiple scenarios

Sheet Results
A1: BASE CASH FLOWS NPV ANALYSIS
A2: PROJECT: | B2: =Project_Name -> ENERGEX - AER2025-2030 - NEW MOBILE GENERATORS
A3: Results displayed in $000s
A4: WEIGHTED AVERAGE RESULT ACROSS ALL SCENARIOS
A5: AVERAGE Option | B5: Option Name | C5: Rank | D5: Net NPV | E5: Capex NPV | F5: Opex NPV | G5: Benefits NPV
A6: 1 | B6: =Parameters!B$26 -> Purchase 2 Pegasus and 12 LV mobile generators | C6: =IFERROR(RANK(D6,D6:D15,0),"") -> 1 | D6: =IF(A6>Option_Count,"",SUM(E6:G6)) -> 3085.781778 | E6: =E19*Prob_A+E32*Prob_B+E45*Prob_C+E58*Prob_D+E71*Prob_E -> -7086.347267 | F6: -30167.10334 | G6: 40339.23238 | I6: Notes:
A7: 2 | B7: =Parameters!B$27 -> Hire 2 Pegasus and 12 LV Mobile generators | C7: =IFERROR(RANK(D7,D6:D15,0),"") -> 2 | D7: 304.2265733 | E7: 0 | F7: -40035.00581 | G7: 40339.23238
A8: 3 | B8: =Parameters!B$28 -> Counterfact - keep using existing mobile generators | C8: =IFERROR(RANK(D8,D6:D15,0),"") -> 3 | D8: 0 | E8: 0 | F8: 0 | G8: 0
A9: 4 | B9: =Parameters!B$29 -> 0 | C9: =IFERROR(RANK(D9,D6:D15,0),"") ->  | E9: 0 | F9: 0 | G9: 0
A10: 5 | B10: =Parameters!B$30 -> 0 | C10: =IFERROR(RANK(D10,D6:D15,0),"") ->  | E10: 0 | F10: 0 | G10: 0
A11: 6 | B11: =Parameters!B$31 -> 0 | C11: =IFERROR(RANK(D11,D6:D15,0),"") ->  | E11: 0 | F11: 0 | G11: 0
A12: 7 | B12: =Parameters!B$32 -> 0 | C12: =IFERROR(RANK(D12,D6:D15,0),"") ->  | E12: 0 | F12: 0 | G12: 0
A13: 8 | B13: =Parameters!B$33 -> 0 | C13: =IFERROR(RANK(D13,D6:D15,0),"") ->  | E13: 0 | F13: 0 | G13: 0
A14: 9 | B14: =Parameters!B$34 -> 0 | C14: =IFERROR(RANK(D14,D6:D15,0),"") ->  | E14: 0 | F14: 0 | G14: 0
A15: 10 | B15: =Parameters!B$35 -> 0 | C15: =IFERROR(RANK(D15,D6:D15,0),"") ->  | E15: 0 | F15: 0 | G15: 0
A18: SCENARIO A Option | B18: Option Name | C18: Rank | D18: Net NPV | E18: Capex NPV | F18: Opex NPV | G18: Benefits NPV | I18: No Customer Benefits Added
A19: 1 | B19: =Parameters!B$26 -> Purchase 2 Pegasus and 12 LV mobile generators | C19: =IFERROR(RANK(D19,D19:D28,0),"") -> 2 | D19: =IF(A19>Option_Count,"",SUM(E19:G19)) -> -9288.883371 | E19: =BaseCFA!C$2/1000 -> -7086.347267 | F19: =BaseCFA!D$2/1000 -> -2202.536104 | G19: =BaseCFA!C$3/1000 -> 0
A20: 2 | B20: =Parameters!B$27 -> Hire 2 Pegasus and 12 LV Mobile generators | C20: =IFERROR(RANK(D20,D19:D28,0),"") -> 3 | D20: -12070.43858 | E20: =BaseCFA!E$2/1000 -> 0 | F20: =BaseCFA!F$2/1000 -> -12070.43858 | G20: =BaseCFA!E$3/1000 -> 0
A21: 3 | B21: =Parameters!B$28 -> Counterfact - keep using existing mobile generators | C21: =IFERROR(RANK(D21,D19:D28,0),"") -> 1 | D21: 0 | E21: =BaseCFA!G$2/1000 -> 0 | F21: =BaseCFA!H$2/1000 -> 0 | G21: =BaseCFA!G$3/1000 -> 0
A22: 4 | B22: =Parameters!B$29 -> 0 | C22: =IFERROR(RANK(D22,D19:D28,0),"") ->  | E22: =BaseCFA!I$2/1000 -> 0 | F22: =BaseCFA!J$2/1000 -> 0 | G22: =BaseCFA!I$3/1000 -> 0
A23: 5 | B23: =Parameters!B$30 -> 0 | C23: =IFERROR(RANK(D23,D19:D28,0),"") ->  | E23: =BaseCFA!K$2/1000 -> 0 | F23: =BaseCFA!L$2/1000 -> 0 | G23: =BaseCFA!K$3/1000 -> 0
A24: 6 | B24: =Parameters!B$31 -> 0 | C24: =IFERROR(RANK(D24,D19:D28,0),"") ->  | E24: =BaseCFA!M$2/1000 -> 0 | F24: =BaseCFA!N$2/1000 -> 0 | G24: =BaseCFA!M$3/1000 -> 0
A25: 7 | B25: =Parameters!B$32 -> 0 | C25: =IFERROR(RANK(D25,D19:D28,0),"") ->  | E25: =BaseCFA!O$2/1000 -> 0 | F25: =BaseCFA!P$2/1000 -> 0 | G25: =BaseCFA!O$3/1000 -> 0
A26: 8 | B26: =Parameters!B$33 -> 0 | C26: =IFERROR(RANK(D26,D19:D28,0),"") ->  | E26: =BaseCFA!Q$2/1000 -> 0 | F26: =BaseCFA!R$2/1000 -> 0 | G26: =BaseCFA!Q$3/1000 -> 0
A27: 9 | B27: =Parameters!B$34 -> 0 | C27: =IFERROR(RANK(D27,D19:D28,0),"") ->  | E27: =BaseCFA!S$2/1000 -> 0 | F27: =BaseCFA!T$2/1000 -> 0 | G27: =BaseCFA!S$3/1000 -> 0
A28: 10 | B28: =Parameters!B$35 -> 0 | C28: =IFERROR(RANK(D28,D19:D28,0),"") ->  | E28: =BaseCFA!U$2/1000 -> 0 | F28: =BaseCFA!V$2/1000 -> 0 | G28: =BaseCFA!U$3/1000 -> 0
A31: SCENARIO B Option | B31: Option Name | C31: Rank | D31: Net NPV | E31: Capex NPV | F31: Opex NPV | G31: Benefits NPV | I31: Planned and Unplanned Customer benefits & fuel
A32: 1 | B32: =Parameters!B$26 -> Purchase 2 Pegasus and 12 LV mobile generators | C32: =IFERROR(RANK(D32,D32:D41,0),"") -> 1 | D32: =IF(A32>Option_Count,"",SUM(E32:G32)) -> 3243.18839 | E32: =BaseCFB!C$2/1000 -> -7086.347267 | F32: =BaseCFB!D$2/1000 -> -67306.3597 | G32: =BaseCFB!C$3/1000 -> 77635.89536
A33: 2 | B33: =Parameters!B$27 -> Hire 2 Pegasus and 12 LV Mobile generators | C33: =IFERROR(RANK(D33,D32:D41,0),"") -> 2 | D33: 461.6331853 | E33: =BaseCFB!E$2/1000 -> 0 | F33: =BaseCFB!F$2/1000 -> -77174.26218 | G33: =BaseCFB!E$3/1000 -> 77635.89536
A34: 3 | B34: =Parameters!B$28 -> Counterfact - keep using existing mobile generators | C34: =IFERROR(RANK(D34,D32:D41,0),"") -> 3 | D34: 0 | E34: =BaseCFB!G$2/1000 -> 0 | F34: =BaseCFB!H$2/1000 -> 0 | G34: =BaseCFB!G$3/1000 -> 0
A35: 4 | B35: =Parameters!B$29 -> 0 | C35: =IFERROR(RANK(D35,D32:D41,0),"") ->  | E35: =BaseCFB!I$2/1000 -> 0 | F35: =BaseCFB!J$2/1000 -> 0 | G35: =BaseCFB!I$3/1000 -> 0
A36: 5 | B36: =Parameters!B$30 -> 0 | C36: =IFERROR(RANK(D36,D32:D41,0),"") ->  | E36: =BaseCFB!K$2/1000 -> 0 | F36: =BaseCFB!L$2/1000 -> 0 | G36: =BaseCFB!K$3/1000 -> 0
A37: 6 | B37: =Parameters!B$31 -> 0 | C37: =IFERROR(RANK(D37,D32:D41,0),"") ->  | E37: =BaseCFB!M$2/1000 -> 0 | F37: =BaseCFB!N$2/1000 -> 0 | G37: =BaseCFB!M$3/1000 -> 0
A38: 7 | B38: =Parameters!B$32 -> 0 | C38: =IFERROR(RANK(D38,D32:D41,0),"") ->  | E38: =BaseCFB!O$2/1000 -> 0 | F38: =BaseCFB!P$2/1000 -> 0 | G38: =BaseCFB!O$3/1000 -> 0
A39: 8 | B39: =Parameters!B$33 -> 0 | C39: =IFERROR(RANK(D39,D32:D41,0),"") ->  | E39: =BaseCFB!Q$2/1000 -> 0 | F39: =BaseCFB!R$2/1000 -> 0 | G39: =BaseCFB!Q$3/1000 -> 0
A40: 9 | B40: =Parameters!B$34 -> 0 | C40: =IFERROR(RANK(D40,D32:D41,0),"") ->  | E40: =BaseCFB!S$2/1000 -> 0 | F40: =BaseCFB!T$2/1000 -> 0 | G40: =BaseCFB!S$3/1000 -> 0
A41: 10 | B41: =Parameters!B$35 -> 0 | C41: =IFERROR(RANK(D41,D32:D41,0),"") ->  | E41: =BaseCFB!U$2/1000 -> 0 | F41: =BaseCFB!V$2/1000 -> 0 | G41: =BaseCFB!U$3/1000 -> 0
A44: SCENARIO C Option | B44: Option Name | C44: Rank | D44: Net NPV | E44: Capex NPV | F44: Opex NPV | G44: Benefits NPV | I44: ONLY Unplanned Customer benefits & fuel
A45: 1 | B45: =Parameters!B$26 -> Purchase 2 Pegasus and 12 LV mobile generators | C45: =IFERROR(RANK(D45,D45:D54,0),"") -> 1 | D45: =IF(A45>Option_Count,"",SUM(E45:G45)) -> 15678.03017 | E45: =BaseCFC!C$2/1000 -> -7086.347267 | F45: =BaseCFC!D$2/1000 -> -21839.82534 | G45: =BaseCFC!C$3/1000 -> 44604.20278
A46: 2 | B46: =Parameters!B$27 -> Hire 2 Pegasus and 12 LV Mobile generators | C46: =IFERROR(RANK(D46,D45:D54,0),"") -> 2 | D46: 12896.47496 | E46: =BaseCFC!E$2/1000 -> 0 | F46: =BaseCFC!F$2/1000 -> -31707.72781 | G46: =BaseCFC!E$3/1000 -> 44604.20278
A47: 3 | B47: =Parameters!B$28 -> Counterfact - keep using existing mobile generators | C47: =IFERROR(RANK(D47,D45:D54,0),"") -> 3 | D47: 0 | E47: =BaseCFC!G$2/1000 -> 0 | F47: =BaseCFC!H$2/1000 -> 0 | G47: =BaseCFC!G$3/1000 -> 0
A48: 4 | B48: =Parameters!B$29 -> 0 | C48: =IFERROR(RANK(D48,D45:D54,0),"") ->  | E48: =BaseCFC!I$2/1000 -> 0 | F48: =BaseCFC!J$2/1000 -> 0 | G48: =BaseCFC!I$3/1000 -> 0
A49: 5 | B49: =Parameters!B$30 -> 0 | C49: =IFERROR(RANK(D49,D45:D54,0),"") ->  | E49: =BaseCFC!K$2/1000 -> 0 | F49: =BaseCFC!L$2/1000 -> 0 | G49: =BaseCFC!K$3/1000 -> 0
A50: 6 | B50: =Parameters!B$31 -> 0 | C50: =IFERROR(RANK(D50,D45:D54,0),"") ->  | E50: =BaseCFC!M$2/1000 -> 0 | F50: =BaseCFC!N$2/1000 -> 0 | G50: =BaseCFC!M$3/1000 -> 0
A51: 7 | B51: =Parameters!B$32 -> 0 | C51: =IFERROR(RANK(D51,D45:D54,0),"") ->  | E51: =BaseCFC!O$2/1000 -> 0 | F51: =BaseCFC!P$2/1000 -> 0 | G51: =BaseCFC!O$3/1000 -> 0
A52: 8 | B52: =Parameters!B$33 -> 0 | C52: =IFERROR(RANK(D52,D45:D54,0),"") ->  | E52: =BaseCFC!Q$2/1000 -> 0 | F52: =BaseCFC!R$2/1000 -> 0 | G52: =BaseCFC!Q$3/1000 -> 0
A53: 9 | B53: =Parameters!B$34 -> 0 | C53: =IFERROR(RANK(D53,D45:D54,0),"") ->  | E53: =BaseCFC!S$2/1000 -> 0 | F53: =BaseCFC!T$2/1000 -> 0 | G53: =BaseCFC!S$3/1000 -> 0
A54: 10 | B54: =Parameters!B$35 -> 0 | C54: =IFERROR(RANK(D54,D45:D54,0),"") ->  | E54: =BaseCFC!U$2/1000 -> 0 | F54: =BaseCFC!V$2/1000 -> 0 | G54: =BaseCFC!U$3/1000 -> 0
A57: SCENARIO D Option | B57: Option Name | C57: Rank | D57: Net NPV | E57: Capex NPV | F57: Opex NPV | G57: Benefits NPV
A58: 1 | B58: 0 | C58: =IFERROR(RANK(D58,D58:D67,0),"") -> 1 | D58: =IF(A58>Option_Count,"",SUM(E58:G58)) -> 0 | E58: =BaseCFD!C$2/1000 -> 0 | F58: =BaseCFD!D$2/1000 -> 0 | G58: =BaseCFD!C$3/1000 -> 0
A59: 2 | B59: 0 | C59: =IFERROR(RANK(D59,D58:D67,0),"") -> 1 | D59: 0 | E59: =BaseCFD!E$2/1000 -> 0 | F59: =BaseCFD!F$2/1000 -> 0 | G59: =BaseCFD!E$3/1000 -> 0
A60: 3 | B60: 0 | C60: =IFERROR(RANK(D60,D58:D67,0),"") -> 1 | D60: 0 | E60: =BaseCFD!G$2/1000 -> 0 | F60: =BaseCFD!H$2/1000 -> 0 | G60: =BaseCFD!G$3/1000 -> 0
A61: 4 | B61: =Parameters!B$29 -> 0 | C61: =IFERROR(RANK(D61,D58:D67,0),"") ->  | E61: =BaseCFD!I$2/1000 -> 0 | F61: =BaseCFD!J$2/1000 -> 0 | G61: =BaseCFD!I$3/1000 -> 0
A62: 5 | B62: =Parameters!B$30 -> 0 | C62: =IFERROR(RANK(D62,D58:D67,0),"") ->  | E62: =BaseCFD!K$2/1000 -> 0 | F62: =BaseCFD!L$2/1000 -> 0 | G62: =BaseCFD!K$3/1000 -> 0
A63: 6 | B63: =Parameters!B$31 -> 0 | C63: =IFERROR(RANK(D63,D58:D67,0),"") ->  | E63: =BaseCFD!M$2/1000 -> 0 | F63: =BaseCFD!N$2/1000 -> 0 | G63: =BaseCFD!M$3/1000 -> 0
A64: 7 | B64: =Parameters!B$32 -> 0 | C64: =IFERROR(RANK(D64,D58:D67,0),"") ->  | E64: =BaseCFD!O$2/1000 -> 0 | F64: =BaseCFD!P$2/1000 -> 0 | G64: =BaseCFD!O$3/1000 -> 0
A65: 8 | B65: =Parameters!B$33 -> 0 | C65: =IFERROR(RANK(D65,D58:D67,0),"") ->  | E65: =BaseCFD!Q$2/1000 -> 0 | F65: =BaseCFD!R$2/1000 -> 0 | G65: =BaseCFD!Q$3/1000 -> 0
A66: 9 | B66: =Parameters!B$34 -> 0 | C66: =IFERROR(RANK(D66,D58:D67,0),"") ->  | E66: =BaseCFD!S$2/1000 -> 0 | F66: =BaseCFD!T$2/1000 -> 0 | G66: =BaseCFD!S$3/1000 -> 0
A67: 10 | B67: =Parameters!B$35 -> 0 | C67: =IFERROR(RANK(D67,D58:D67,0),"") ->  | E67: =BaseCFD!U$2/1000 -> 0 | F67: =BaseCFD!V$2/1000 -> 0 | G67: =BaseCFD!U$3/1000 -> 0
A70: SCENARIO E Option | B70: Option Name | C70: Rank | D70: Net NPV | E70: Capex NPV | F70: Opex NPV | G70: Benefits NPV
A71: 1 | B71: 0 | C71: =IFERROR(RANK(D71,D71:D80,0),"") -> 1 | D71: =IF(A71>Option_Count,"",SUM(E71:G71)) -> 0 | E71: =BaseCFE!C$2/1000 -> 0 | F71: =BaseCFE!D$2/1000 -> 0 | G71: =BaseCFE!C$3/1000 -> 0
A72: 2 | B72: 0 | C72: =IFERROR(RANK(D72,D71:D80,0),"") -> 1 | D72: 0 | E72: =BaseCFE!E$2/1000 -> 0 | F72: =BaseCFE!F$2/1000 -> 0 | G72: =BaseCFE!E$3/1000 -> 0
A73: 3 | B73: 0 | C73: =IFERROR(RANK(D73,D71:D80,0),"") -> 1 | D73: 0 | E73: =BaseCFE!G$2/1000 -> 0 | F73: =BaseCFE!H$2/1000 -> 0 | G73: =BaseCFE!G$3/1000 -> 0
A74: 4 | B74: =Parameters!B$29 -> 0 | C74: =IFERROR(RANK(D74,D71:D80,0),"") ->  | E74: =BaseCFE!I$2/1000 -> 0 | F74: =BaseCFE!J$2/1000 -> 0 | G74: =BaseCFE!I$3/1000 -> 0
A75: 5 | B75: =Parameters!B$30 -> 0 | C75: =IFERROR(RANK(D75,D71:D80,0),"") ->  | E75: =BaseCFE!K$2/1000 -> 0 | F75: =BaseCFE!L$2/1000 -> 0 | G75: =BaseCFE!K$3/1000 -> 0
A76: 6 | B76: =Parameters!B$31 -> 0 | C76: =IFERROR(RANK(D76,D71:D80,0),"") ->  | E76: =BaseCFE!M$2/1000 -> 0 | F76: =BaseCFE!N$2/1000 -> 0 | G76: =BaseCFE!M$3/1000 -> 0
A77: 7 | B77: =Parameters!B$32 -> 0 | C77: =IFERROR(RANK(D77,D71:D80,0),"") ->  | E77: =BaseCFE!O$2/1000 -> 0 | F77: =BaseCFE!P$2/1000 -> 0 | G77: =BaseCFE!O$3/1000 -> 0
A78: 8 | B78: =Parameters!B$33 -> 0 | C78: =IFERROR(RANK(D78,D71:D80,0),"") ->  | E78: =BaseCFE!Q$2/1000 -> 0 | F78: =BaseCFE!R$2/1000 -> 0 | G78: =BaseCFE!Q$3/1000 -> 0
A79: 9 | B79: =Parameters!B$34 -> 0 | C79: =IFERROR(RANK(D79,D71:D80,0),"") ->  | E79: =BaseCFE!S$2/1000 -> 0 | F79: =BaseCFE!T$2/1000 -> 0 | G79: =BaseCFE!S$3/1000 -> 0
A80: 10 | B80: =Parameters!B$35 -> 0 | C80: =IFERROR(RANK(D80,D71:D80,0),"") ->  | E80: =BaseCFE!U$2/1000 -> 0 | F80: =BaseCFE!V$2/1000 -> 0 | G80: =BaseCFE!U$3/1000 -> 0

Sheet MonteR
A1: MONTE CARLO NPV ANALYSIS
A2: PROJECT: | B2: =Project_Name -> ENERGEX - AER2025-2030 - NEW MOBILE GENERATORS
A3: Results displayed in $000s
A4: COMBINED RESULTS ACROSS ALL SCENARIOS
A5: COMBINED Option | B5: Option Name | C5: Rank | D5: Average NPV | E5: Maximum NPV | F5: Minimum NPV | G5: Best NPV | H5: Worst NPV
A6: 1 | B6: =Parameters!B$26 -> Purchase 2 Pegasus and 12 LV mobile generators | C6: =IFERROR(RANK(D6,D6:D15,0),"") ->  | D6: =IFERROR(IF($A6>Option_Count,"",(D19*Iteration1+D32*Iteration2+D45*Iteration3+D58*Iteration4+D71*Iteration5)/Iteration_Total),"") ->  | E6: =IF($A6>Option_Count,"",MAX(E19,E32,E45,E58,E71)) -> 0 | F6: =IF($A6>Option_Count,"",MIN(F19,F32,F45,F58,F71)) -> 0 | G6: =IFERROR((G19*Iteration1+G32*Iteration2+G45*Iteration3+G58*Iteration4+G71*Iteration5)/Iteration_Total,"") -> 
A7: 2 | B7: =Parameters!B$27 -> Hire 2 Pegasus and 12 LV Mobile generators | C7: =IFERROR(RANK(D7,D6:D15,0),"") ->  | E7: 0 | F7: 0
A8: 3 | B8: =Parameters!B$28 -> Counterfact - keep using existing mobile generators | C8: =IFERROR(RANK(D8,D6:D15,0),"") ->  | E8: 0 | F8: 0
A9: 4 | B9: =Parameters!B$29 -> 0 | C9: =IFERROR(RANK(D9,D6:D15,0),"") -> 
A10: 5 | B10: =Parameters!B$30 -> 0 | C10: =IFERROR(RANK(D10,D6:D15,0),"") -> 
A11: 6 | B11: =Parameters!B$31 -> 0 | C11: =IFERROR(RANK(D11,D6:D15,0),"") -> 
A12: 7 | B12: =Parameters!B$32 -> 0 | C12: =IFERROR(RANK(D12,D6:D15,0),"") -> 
A13: 8 | B13: =Parameters!B$33 -> 0 | C13: =IFERROR(RANK(D13,D6:D15,0),"") -> 
A14: 9 | B14: =Parameters!B$34 -> 0 | C14: =IFERROR(RANK(D14,D6:D15,0),"") -> 
A15: 10 | B15: =Parameters!B$35 -> 0 | C15: =IFERROR(RANK(D15,D6:D15,0),"") -> 
A18: SCENARIO A Option | B18: Option Name | C18: Rank | D18: Average NPV | E18: Maximum NPV | F18: Minimum NPV | G18: Best NPV | H18: Worst NPV
A19: 1 | B19: =Parameters!B$26 -> Purchase 2 Pegasus and 12 LV mobile generators | C19: =IFERROR(RANK(D19,D19:D28,0),"") -> 1 | D19: =IF($A19>Option_Count,"",MCresultsA!$B$3/1000) -> 0 | E19: =IF($A19>Option_Count,"",MCresultsA!$B$4/1000) -> 0 | F19: =IF($A19>Option_Count,"",MCresultsA!$B$5/1000) -> 0 | G19: =IF($A19>Option_Count,"",MCresultsA!$B$6) -> 0 | H19: =IF($A19>Option_Count,"",MCresultsA!$B$7) -> 0
A20: 2 | B20: =Parameters!B$27 -> Hire 2 Pegasus and 12 LV Mobile generators | C20: =IFERROR(RANK(D20,D19:D28,0),"") -> 1 | D20: =IF($A20>Option_Count,"",MCresultsA!$C$3/1000) -> 0 | E20: =IF($A20>Option_Count,"",MCresultsA!$C$4/1000) -> 0 | F20: =IF($A20>Option_Count,"",MCresultsA!$C$5/1000) -> 0 | G20: =IF($A20>Option_Count,"",MCresultsA!$C$6) -> 0 | H20: =IF($A20>Option_Count,"",MCresultsA!$C$7) -> 0
A21: 3 | B21: =Parameters!B$28 -> Counterfact - keep using existing mobile generators | C21: =IFERROR(RANK(D21,D19:D28,0),"") -> 1 | D21: =IF($A21>Option_Count,"",MCresultsA!$D$3/1000) -> 0 | E21: =IF($A21>Option_Count,"",MCresultsA!$D$4/1000) -> 0 | F21: =IF($A21>Option_Count,"",MCresultsA!$D$5/1000) -> 0 | G21: =IF($A21>Option_Count,"",MCresultsA!$D$6) -> 0 | H21: =IF($A21>Option_Count,"",MCresultsA!$D$7) -> 0
A22: 4 | B22: =Parameters!B$29 -> 0 | C22: =IFERROR(RANK(D22,D19:D28,0),"") ->  | D22: =IF($A22>Option_Count,"",MCresultsA!$E$3/1000) ->  | E22: =IF($A22>Option_Count,"",MCresultsA!$E$4/1000) ->  | F22: =IF($A22>Option_Count,"",MCresultsA!$E$5/1000) ->  | G22: =IF($A22>Option_Count,"",MCresultsA!$E$6) ->  | H22: =IF($A22>Option_Count,"",MCresultsA!$E$7) -> 
A23: 5 | B23: =Parameters!B$30 -> 0 | C23: =IFERROR(RANK(D23,D19:D28,0),"") ->  | D23: =IF($A23>Option_Count,"",MCresultsA!$F$3/1000) ->  | E23: =IF($A23>Option_Count,"",MCresultsA!$F$4/1000) ->  | F23: =IF($A23>Option_Count,"",MCresultsA!$F$5/1000) ->  | G23: =IF($A23>Option_Count,"",MCresultsA!$F$6) ->  | H23: =IF($A23>Option_Count,"",MCresultsA!$F$7) -> 
A24: 6 | B24: =Parameters!B$31 -> 0 | C24: =IFERROR(RANK(D24,D19:D28,0),"") ->  | D24: =IF($A24>Option_Count,"",MCresultsA!$G$3/1000) ->  | E24: =IF($A24>Option_Count,"",MCresultsA!$G$4/1000) ->  | F24: =IF($A24>Option_Count,"",MCresultsA!$G$5/1000) ->  | G24: =IF($A24>Option_Count,"",MCresultsA!$G$6) ->  | H24: =IF($A24>Option_Count,"",MCresultsA!$G$7) -> 
A25: 7 | B25: =Parameters!B$32 -> 0 | C25: =IFERROR(RANK(D25,D19:D28,0),"") ->  | D25: =IF($A25>Option_Count,"",MCresultsA!$H$3/1000) ->  | E25: =IF($A25>Option_Count,"",MCresultsA!$H$4/1000) ->  | F25: =IF($A25>Option_Count,"",MCresultsA!$H$5/1000) ->  | G25: =IF($A25>Option_Count,"",MCresultsA!$H$6) ->  | H25: =IF($A25>Option_Count,"",MCresultsA!$H$7) -> 
A26: 8 | B26: =Parameters!B$33 -> 0 | C26: =IFERROR(RANK(D26,D19:D28,0),"") ->  | D26: =IF($A26>Option_Count,"",MCresultsA!$I$3/1000) ->  | E26: =IF($A26>Option_Count,"",MCresultsA!$I$4/1000) ->  | F26: =IF($A26>Option_Count,"",MCresultsA!$I$5/1000) ->  | G26: =IF($A26>Option_Count,"",MCresultsA!$I$6) ->  | H26: =IF($A26>Option_Count,"",MCresultsA!$I$7) -> 
A27: 9 | B27: =Parameters!B$34 -> 0 | C27: =IFERROR(RANK(D27,D19:D28,0),"") ->  | D27: =IF($A27>Option_Count,"",MCresultsA!$J$3/1000) ->  | E27: =IF($A27>Option_Count,"",MCresultsA!$J$4/1000) ->  | F27: =IF($A27>Option_Count,"",MCresultsA!$J$5/1000) ->  | G27: =IF($A27>Option_Count,"",MCresultsA!$J$6) ->  | H27: =IF($A27>Option_Count,"",MCresultsA!$J$7) -> 
A28: 10 | B28: =Parameters!B$35 -> 0 | C28: =IFERROR(RANK(D28,D19:D28,0),"") ->  | D28: =IF($A28>Option_Count,"",MCresultsA!$K$3/1000) ->  | E28: =IF($A28>Option_Count,"",MCresultsA!$K$4/1000) ->  | F28: =IF($A28>Option_Count,"",MCresultsA!$K$5/1000) ->  | G28: =IF($A28>Option_Count,"",MCresultsA!$K$6) ->  | H28: =IF($A28>Option_Count,"",MCresultsA!$K$7) -> 
A29: =Iteration1 -> 0 | B29: Iteration Numbers
A31: SCENARIO B Option | B31: Option Name | C31: Rank | D31: Average NPV | E31: Maximum NPV | F31: Minimum NPV | G31: Best NPV | H31: Worst NPV
A32: 1 | B32: =Parameters!B$26 -> Purchase 2 Pegasus and 12 LV mobile generators | C32: =IFERROR(RANK(D32,D32:D41,0),"") -> 1 | D32: =IF($A32>Option_Count,"",MCresultsB!$B$3/1000) -> 0 | E32: =IF(Scenario_Count<2,"",IF($A32>Option_Count,"",MCresultsB!$B$4/1000)) -> 0 | F32: =IF(Scenario_Count<2,"",IF($A32>Option_Count,"",MCresultsB!$B$5/1000)) -> 0 | G32: =IF($A32>Option_Count,"",MCresultsB!$B$6) -> 0 | H32: =IF($A32>Option_Count,"",MCresultsB!$B$7) -> 0
A33: 2 | B33: =Parameters!B$27 -> Hire 2 Pegasus and 12 LV Mobile generators | C33: =IFERROR(RANK(D33,D32:D41,0),"") -> 1 | D33: =IF($A33>Option_Count,"",MCresultsB!$C$3/1000) -> 0 | E33: =IF(Scenario_Count<2,"",IF($A33>Option_Count,"",MCresultsB!$C$4/1000)) -> 0 | F33: =IF(Scenario_Count<2,"",IF($A33>Option_Count,"",MCresultsB!$C$5/1000)) -> 0 | G33: =IF($A33>Option_Count,"",MCresultsB!$C$6) -> 0 | H33: =IF($A33>Option_Count,"",MCresultsB!$C$7) -> 0
A34: 3 | B34: =Parameters!B$28 -> Counterfact - keep using existing mobile generators | C34: =IFERROR(RANK(D34,D32:D41,0),"") -> 1 | D34: =IF($A34>Option_Count,"",MCresultsB!$D$3/1000) -> 0 | E34: =IF(Scenario_Count<2,"",IF($A34>Option_Count,"",MCresultsB!$D$4/1000)) -> 0 | F34: =IF(Scenario_Count<2,"",IF($A34>Option_Count,"",MCresultsB!$D$5/1000)) -> 0 | G34: =IF($A34>Option_Count,"",MCresultsB!$D$6) -> 0 | H34: =IF($A34>Option_Count,"",MCresultsB!$D$7) -> 0
A35: 4 | B35: =Parameters!B$29 -> 0 | C35: =IFERROR(RANK(D35,D32:D41,0),"") ->  | D35: =IF($A35>Option_Count,"",MCresultsB!$E$3/1000) ->  | E35: =IF(Scenario_Count<2,"",IF($A35>Option_Count,"",MCresultsB!$E$4/1000)) ->  | F35: =IF(Scenario_Count<2,"",IF($A35>Option_Count,"",MCresultsB!$E$5/1000)) ->  | G35: =IF($A35>Option_Count,"",MCresultsB!$E$6) ->  | H35: =IF($A35>Option_Count,"",MCresultsB!$E$7) -> 
A36: 5 | B36: =Parameters!B$30 -> 0 | C36: =IFERROR(RANK(D36,D32:D41,0),"") ->  | D36: =IF($A36>Option_Count,"",MCresultsB!$F$3/1000) ->  | E36: =IF(Scenario_Count<2,"",IF($A36>Option_Count,"",MCresultsB!$F$4/1000)) ->  | F36: =IF(Scenario_Count<2,"",IF($A36>Option_Count,"",MCresultsB!$F$5/1000)) ->  | G36: =IF($A36>Option_Count,"",MCresultsB!$F$6) ->  | H36: =IF($A36>Option_Count,"",MCresultsB!$F$7) -> 
A37: 6 | B37: =Parameters!B$31 -> 0 | C37: =IFERROR(RANK(D37,D32:D41,0),"") ->  | D37: =IF($A37>Option_Count,"",MCresultsB!$G$3/1000) ->  | E37: =IF(Scenario_Count<2,"",IF($A37>Option_Count,"",MCresultsB!$G$4/1000)) ->  | F37: =IF(Scenario_Count<2,"",IF($A37>Option_Count,"",MCresultsB!$G$5/1000)) ->  | G37: =IF($A37>Option_Count,"",MCresultsB!$G$6) ->  | H37: =IF($A37>Option_Count,"",MCresultsB!$G$7) -> 
A38: 7 | B38: =Parameters!B$32 -> 0 | C38: =IFERROR(RANK(D38,D32:D41,0),"") ->  | D38: =IF($A38>Option_Count,"",MCresultsB!$H$3/1000) ->  | E38: =IF(Scenario_Count<2,"",IF($A38>Option_Count,"",MCresultsB!$H$4/1000)) ->  | F38: =IF(Scenario_Count<2,"",IF($A38>Option_Count,"",MCresultsB!$H$5/1000)) ->  | G38: =IF($A38>Option_Count,"",MCresultsB!$H$6) ->  | H38: =IF($A38>Option_Count,"",MCresultsB!$H$7) -> 
A39: 8 | B39: =Parameters!B$33 -> 0 | C39: =IFERROR(RANK(D39,D32:D41,0),"") ->  | D39: =IF($A39>Option_Count,"",MCresultsB!$I$3/1000) ->  | E39: =IF(Scenario_Count<2,"",IF($A39>Option_Count,"",MCresultsB!$I$4/1000)) ->  | F39: =IF(Scenario_Count<2,"",IF($A39>Option_Count,"",MCresultsB!$I$5/1000)) ->  | G39: =IF($A39>Option_Count,"",MCresultsB!$I$6) ->  | H39: =IF($A39>Option_Count,"",MCresultsB!$I$7) -> 
A40: 9 | B40: =Parameters!B$34 -> 0 | C40: =IFERROR(RANK(D40,D32:D41,0),"") ->  | D40: =IF($A40>Option_Count,"",MCresultsB!$J$3/1000) ->  | E40: =IF(Scenario_Count<2,"",IF($A40>Option_Count,"",MCresultsB!$J$4/1000)) ->  | F40: =IF(Scenario_Count<2,"",IF($A40>Option_Count,"",MCresultsB!$J$5/1000)) ->  | G40: =IF($A40>Option_Count,"",MCresultsB!$J$6) ->  | H40: =IF($A40>Option_Count,"",MCresultsB!$J$7) -> 
A41: 10 | B41: =Parameters!B$35 -> 0 | C41: =IFERROR(RANK(D41,D32:D41,0),"") ->  | D41: =IF($A41>Option_Count,"",MCresultsB!$K$3/1000) ->  | E41: =IF(Scenario_Count<2,"",IF($A41>Option_Count,"",MCresultsB!$K$4/1000)) ->  | F41: =IF(Scenario_Count<2,"",IF($A41>Option_Count,"",MCresultsB!$K$5/1000)) ->  | G41: =IF($A41>Option_Count,"",MCresultsB!$K$6) ->  | H41: =IF($A41>Option_Count,"",MCresultsB!$K$7) -> 
A42: =Iteration2 -> 0 | B42: Iteration Numbers
A44: SCENARIO C Option | B44: Option Name | C44: Rank | D44: Average NPV | E44: Maximum NPV | F44: Minimum NPV | G44: Best NPV | H44: Worst NPV
A45: 1 | B45: =Parameters!B$26 -> Purchase 2 Pegasus and 12 LV mobile generators | C45: =IFERROR(RANK(D45,D45:D54,0),"") -> 1 | D45: =IF($A45>Option_Count,"",MCresultsC!$B$3/1000) -> 0 | E45: =IF(Scenario_Count<3,"",IF($A45>Option_Count,"",MCresultsC!$B$4/1000)) -> 0 | F45: =IF(Scenario_Count<3,"",IF($A45>Option_Count,"",MCresultsC!$B$5/1000)) -> 0 | G45: =IF($A45>Option_Count,"",MCresultsC!$B$6) -> 0 | H45: =IF($A45>Option_Count,"",MCresultsC!$B$7) -> 0
A46: 2 | B46: =Parameters!B$27 -> Hire 2 Pegasus and 12 LV Mobile generators | C46: =IFERROR(RANK(D46,D45:D54,0),"") -> 1 | D46: =IF($A46>Option_Count,"",MCresultsC!$C$3/1000) -> 0 | E46: =IF(Scenario_Count<3,"",IF($A46>Option_Count,"",MCresultsC!$C$4/1000)) -> 0 | F46: =IF(Scenario_Count<3,"",IF($A46>Option_Count,"",MCresultsC!$C$5/1000)) -> 0 | G46: =IF($A46>Option_Count,"",MCresultsC!$C$6) -> 0 | H46: =IF($A46>Option_Count,"",MCresultsC!$C$7) -> 0
A47: 3 | B47: =Parameters!B$28 -> Counterfact - keep using existing mobile generators | C47: =IFERROR(RANK(D47,D45:D54,0),"") -> 1 | D47: =IF($A47>Option_Count,"",MCresultsC!$D$3/1000) -> 0 | E47: =IF(Scenario_Count<3,"",IF($A47>Option_Count,"",MCresultsC!$D$4/1000)) -> 0 | F47: =IF(Scenario_Count<3,"",IF($A47>Option_Count,"",MCresultsC!$D$5/1000)) -> 0 | G47: =IF($A47>Option_Count,"",MCresultsC!$D$6) -> 0 | H47: =IF($A47>Option_Count,"",MCresultsC!$D$7) -> 0
A48: 4 | B48: =Parameters!B$29 -> 0 | C48: =IFERROR(RANK(D48,D45:D54,0),"") ->  | D48: =IF($A48>Option_Count,"",MCresultsC!$E$3/1000) ->  | E48: =IF(Scenario_Count<3,"",IF($A48>Option_Count,"",MCresultsC!$E$4/1000)) ->  | F48: =IF(Scenario_Count<3,"",IF($A48>Option_Count,"",MCresultsC!$E$5/1000)) ->  | G48: =IF($A48>Option_Count,"",MCresultsC!$E$6) ->  | H48: =IF($A48>Option_Count,"",MCresultsC!$E$7) -> 
A49: 5 | B49: =Parameters!B$30 -> 0 | C49: =IFERROR(RANK(D49,D45:D54,0),"") ->  | D49: =IF($A49>Option_Count,"",MCresultsC!$F$3/1000) ->  | E49: =IF(Scenario_Count<3,"",IF($A49>Option_Count,"",MCresultsC!$F$4/1000)) ->  | F49: =IF(Scenario_Count<3,"",IF($A49>Option_Count,"",MCresultsC!$F$5/1000)) ->  | G49: =IF($A49>Option_Count,"",MCresultsC!$F$6) ->  | H49: =IF($A49>Option_Count,"",MCresultsC!$F$7) -> 
A50: 6 | B50: =Parameters!B$31 -> 0 | C50: =IFERROR(RANK(D50,D45:D54,0),"") ->  | D50: =IF($A50>Option_Count,"",MCresultsC!$G$3/1000) ->  | E50: =IF(Scenario_Count<3,"",IF($A50>Option_Count,"",MCresultsC!$G$4/1000)) ->  | F50: =IF(Scenario_Count<3,"",IF($A50>Option_Count,"",MCresultsC!$G$5/1000)) ->  | G50: =IF($A50>Option_Count,"",MCresultsC!$G$6) ->  | H50: =IF($A50>Option_Count,"",MCresultsC!$G$7) -> 
A51: 7 | B51: =Parameters!B$32 -> 0 | C51: =IFERROR(RANK(D51,D45:D54,0),"") ->  | D51: =IF($A51>Option_Count,"",MCresultsC!$H$3/1000) ->  | E51: =IF(Scenario_Count<3,"",IF($A51>Option_Count,"",MCresultsC!$H$4/1000)) ->  | F51: =IF(Scenario_Count<3,"",IF($A51>Option_Count,"",MCresultsC!$H$5/1000)) ->  | G51: =IF($A51>Option_Count,"",MCresultsC!$H$6) ->  | H51: =IF($A51>Option_Count,"",MCresultsC!$H$7) -> 
A52: 8 | B52: =Parameters!B$33 -> 0 | C52: =IFERROR(RANK(D52,D45:D54,0),"") ->  | D52: =IF($A52>Option_Count,"",MCresultsC!$I$3/1000) ->  | E52: =IF(Scenario_Count<3,"",IF($A52>Option_Count,"",MCresultsC!$I$4/1000)) ->  | F52: =IF(Scenario_Count<3,"",IF($A52>Option_Count,"",MCresultsC!$I$5/1000)) ->  | G52: =IF($A52>Option_Count,"",MCresultsC!$I$6) ->  | H52: =IF($A52>Option_Count,"",MCresultsC!$I$7) -> 
A53: 9 | B53: =Parameters!B$34 -> 0 | C53: =IFERROR(RANK(D53,D45:D54,0),"") ->  | D53: =IF($A53>Option_Count,"",MCresultsC!$J$3/1000) ->  | E53: =IF(Scenario_Count<3,"",IF($A53>Option_Count,"",MCresultsC!$J$4/1000)) ->  | F53: =IF(Scenario_Count<3,"",IF($A53>Option_Count,"",MCresultsC!$J$5/1000)) ->  | G53: =IF($A53>Option_Count,"",MCresultsC!$J$6) ->  | H53: =IF($A53>Option_Count,"",MCresultsC!$J$7) -> 
A54: 10 | B54: =Parameters!B$35 -> 0 | C54: =IFERROR(RANK(D54,D45:D54,0),"") ->  | D54: =IF($A54>Option_Count,"",MCresultsC!$K$3/1000) ->  | E54: =IF(Scenario_Count<3,"",IF($A54>Option_Count,"",MCresultsC!$K$4/1000)) ->  | F54: =IF(Scenario_Count<3,"",IF($A54>Option_Count,"",MCresultsC!$K$5/1000)) ->  | G54: =IF($A54>Option_Count,"",MCresultsC!$K$6) ->  | H54: =IF($A54>Option_Count,"",MCresultsC!$K$7) -> 
A55: =Iteration3 -> 0 | B55: Iteration Numbers
A57: SCENARIO D Option | B57: Option Name | C57: Rank | D57: Average NPV | E57: Maximum NPV | F57: Minimum NPV | G57: Best NPV | H57: Worst NPV
A58: 1 | B58: =Parameters!B$26 -> Purchase 2 Pegasus and 12 LV mobile generators | C58: =IFERROR(RANK(D58,D58:D67,0),"") -> 1 | D58: =IF($A58>Option_Count,"",MCresultsD!$B$3/1000) -> 0 | E58: =IF(Scenario_Count<4,"",IF($A58>Option_Count,"",MCresultsD!$B$4/1000)) ->  | F58: =IF(Scenario_Count<4,"",IF($A58>Option_Count,"",MCresultsD!$B$5/1000)) ->  | G58: =IF($A58>Option_Count,"",MCresultsD!$B$6) -> 0 | H58: =IF($A58>Option_Count,"",MCresultsD!$B$7) -> 0
A59: 2 | B59: =Parameters!B$27 -> Hire 2 Pegasus and 12 LV Mobile generators | C59: =IFERROR(RANK(D59,D58:D67,0),"") -> 1 | D59: =IF($A59>Option_Count,"",MCresultsD!$C$3/1000) -> 0 | E59: =IF(Scenario_Count<4,"",IF($A59>Option_Count,"",MCresultsD!$C$4/1000)) ->  | F59: =IF(Scenario_Count<4,"",IF($A59>Option_Count,"",MCresultsD!$C$5/1000)) ->  | G59: =IF($A59>Option_Count,"",MCresultsD!$C$6) -> 0 | H59: =IF($A59>Option_Count,"",MCresultsD!$C$7) -> 0
A60: 3 | B60: =Parameters!B$28 -> Counterfact - keep using existing mobile generators | C60: =IFERROR(RANK(D60,D58:D67,0),"") -> 1 | D60: =IF($A60>Option_Count,"",MCresultsD!$D$3/1000) -> 0 | E60: =IF(Scenario_Count<4,"",IF($A60>Option_Count,"",MCresultsD!$D$4/1000)) ->  | F60: =IF(Scenario_Count<4,"",IF($A60>Option_Count,"",MCresultsD!$D$5/1000)) ->  | G60: =IF($A60>Option_Count,"",MCresultsD!$D$6) -> 0 | H60: =IF($A60>Option_Count,"",MCresultsD!$D$7) -> 0
A61: 4 | B61: =Parameters!B$29 -> 0 | C61: =IFERROR(RANK(D61,D58:D67,0),"") ->  | D61: =IF($A61>Option_Count,"",MCresultsD!$E$3/1000) ->  | E61: =IF(Scenario_Count<4,"",IF($A61>Option_Count,"",MCresultsD!$E$4/1000)) ->  | F61: =IF(Scenario_Count<4,"",IF($A61>Option_Count,"",MCresultsD!$E$5/1000)) ->  | G61: =IF($A61>Option_Count,"",MCresultsD!$E$6) ->  | H61: =IF($A61>Option_Count,"",MCresultsD!$E$7) -> 
A62: 5 | B62: =Parameters!B$30 -> 0 | C62: =IFERROR(RANK(D62,D58:D67,0),"") ->  | D62: =IF($A62>Option_Count,"",MCresultsD!$F$3/1000) ->  | E62: =IF(Scenario_Count<4,"",IF($A62>Option_Count,"",MCresultsD!$F$4/1000)) ->  | F62: =IF(Scenario_Count<4,"",IF($A62>Option_Count,"",MCresultsD!$F$5/1000)) ->  | G62: =IF($A62>Option_Count,"",MCresultsD!$F$6) ->  | H62: =IF($A62>Option_Count,"",MCresultsD!$F$7) -> 
A63: 6 | B63: =Parameters!B$31 -> 0 | C63: =IFERROR(RANK(D63,D58:D67,0),"") ->  | D63: =IF($A63>Option_Count,"",MCresultsD!$G$3/1000) ->  | E63: =IF(Scenario_Count<4,"",IF($A63>Option_Count,"",MCresultsD!$G$4/1000)) ->  | F63: =IF(Scenario_Count<4,"",IF($A63>Option_Count,"",MCresultsD!$G$5/1000)) ->  | G63: =IF($A63>Option_Count,"",MCresultsD!$G$6) ->  | H63: =IF($A63>Option_Count,"",MCresultsD!$G$7) -> 
A64: 7 | B64: =Parameters!B$32 -> 0 | C64: =IFERROR(RANK(D64,D58:D67,0),"") ->  | D64: =IF($A64>Option_Count,"",MCresultsD!$H$3/1000) ->  | E64: =IF(Scenario_Count<4,"",IF($A64>Option_Count,"",MCresultsD!$H$4/1000)) ->  | F64: =IF(Scenario_Count<4,"",IF($A64>Option_Count,"",MCresultsD!$H$5/1000)) ->  | G64: =IF($A64>Option_Count,"",MCresultsD!$H$6) ->  | H64: =IF($A64>Option_Count,"",MCresultsD!$H$7) -> 
A65: 8 | B65: =Parameters!B$33 -> 0 | C65: =IFERROR(RANK(D65,D58:D67,0),"") ->  | D65: =IF($A65>Option_Count,"",MCresultsD!$I$3/1000) ->  | E65: =IF(Scenario_Count<4,"",IF($A65>Option_Count,"",MCresultsD!$I$4/1000)) ->  | F65: =IF(Scenario_Count<4,"",IF($A65>Option_Count,"",MCresultsD!$I$5/1000)) ->  | G65: =IF($A65>Option_Count,"",MCresultsD!$I$6) ->  | H65: =IF($A65>Option_Count,"",MCresultsD!$I$7) -> 
A66: 9 | B66: =Parameters!B$34 -> 0 | C66: =IFERROR(RANK(D66,D58:D67,0),"") ->  | D66: =IF($A66>Option_Count,"",MCresultsD!$J$3/1000) ->  | E66: =IF(Scenario_Count<4,"",IF($A66>Option_Count,"",MCresultsD!$J$4/1000)) ->  | F66: =IF(Scenario_Count<4,"",IF($A66>Option_Count,"",MCresultsD!$J$5/1000)) ->  | G66: =IF($A66>Option_Count,"",MCresultsD!$J$6) ->  | H66: =IF($A66>Option_Count,"",MCresultsD!$J$7) -> 
A67: 10 | B67: =Parameters!B$35 -> 0 | C67: =IFERROR(RANK(D67,D58:D67,0),"") ->  | D67: =IF($A67>Option_Count,"",MCresultsD!$K$3/1000) ->  | E67: =IF(Scenario_Count<4,"",IF($A67>Option_Count,"",MCresultsD!$K$4/1000)) ->  | F67: =IF(Scenario_Count<4,"",IF($A67>Option_Count,"",MCresultsD!$K$5/1000)) ->  | G67: =IF($A67>Option_Count,"",MCresultsD!$K$6) ->  | H67: =IF($A67>Option_Count,"",MCresultsD!$K$7) -> 
A68: =Iteration4 -> 0 | B68: Iteration Numbers
A70: SCENARIO E Option | B70: Option Name | C70: Rank | D70: Average NPV | E70: Maximum NPV | F70: Minimum NPV | G70: Best NPV | H70: Worst NPV
A71: 1 | B71: =Parameters!B$26 -> Purchase 2 Pegasus and 12 LV mobile generators | C71: =IFERROR(RANK(D71,D71:D80,0),"") -> 1 | D71: =IF($A71>Option_Count,"",MCresultsE!$B$3/1000) -> 0 | E71: =IF(Scenario_Count<5,"",IF($A71>Option_Count,"",MCresultsE!$B$4/1000)) ->  | F71: =IF(Scenario_Count<5,"",IF($A71>Option_Count,"",MCresultsE!$B$5/1000)) ->  | G71: =IF($A71>Option_Count,"",MCresultsE!$B$6) -> 0 | H71: =IF($A71>Option_Count,"",MCresultsE!$B$7) -> 0
A72: 2 | B72: =Parameters!B$27 -> Hire 2 Pegasus and 12 LV Mobile generators | C72: =IFERROR(RANK(D72,D71:D80,0),"") -> 1 | D72: =IF($A72>Option_Count,"",MCresultsE!$C$3/1000) -> 0 | E72: =IF(Scenario_Count<5,"",IF($A72>Option_Count,"",MCresultsE!$C$4/1000)) ->  | F72: =IF(Scenario_Count<5,"",IF($A72>Option_Count,"",MCresultsE!$C$5/1000)) ->  | G72: =IF($A72>Option_Count,"",MCresultsE!$C$6) -> 0 | H72: =IF($A72>Option_Count,"",MCresultsE!$C$7) -> 0
A73: 3 | B73: =Parameters!B$28 -> Counterfact - keep using existing mobile generators | C73: =IFERROR(RANK(D73,D71:D80,0),"") -> 1 | D73: =IF($A73>Option_Count,"",MCresultsE!$D$3/1000) -> 0 | E73: =IF(Scenario_Count<5,"",IF($A73>Option_Count,"",MCresultsE!$D$4/1000)) ->  | F73: =IF(Scenario_Count<5,"",IF($A73>Option_Count,"",MCresultsE!$D$5/1000)) ->  | G73: =IF($A73>Option_Count,"",MCresultsE!$D$6) -> 0 | H73: =IF($A73>Option_Count,"",MCresultsE!$D$7) -> 0
A74: 4 | B74: =Parameters!B$29 -> 0 | C74: =IFERROR(RANK(D74,D71:D80,0),"") ->  | D74: =IF($A74>Option_Count,"",MCresultsE!$E$3/1000) ->  | E74: =IF(Scenario_Count<5,"",IF($A74>Option_Count,"",MCresultsE!$E$4/1000)) ->  | F74: =IF(Scenario_Count<5,"",IF($A74>Option_Count,"",MCresultsE!$E$5/1000)) ->  | G74: =IF($A74>Option_Count,"",MCresultsE!$E$6) ->  | H74: =IF($A74>Option_Count,"",MCresultsE!$E$7) -> 
A75: 5 | B75: =Parameters!B$30 -> 0 | C75: =IFERROR(RANK(D75,D71:D80,0),"") ->  | D75: =IF($A75>Option_Count,"",MCresultsE!$F$3/1000) ->  | E75: =IF(Scenario_Count<5,"",IF($A75>Option_Count,"",MCresultsE!$F$4/1000)) ->  | F75: =IF(Scenario_Count<5,"",IF($A75>Option_Count,"",MCresultsE!$F$5/1000)) ->  | G75: =IF($A75>Option_Count,"",MCresultsE!$F$6) ->  | H75: =IF($A75>Option_Count,"",MCresultsE!$F$7) -> 
A76: 6 | B76: =Parameters!B$31 -> 0 | C76: =IFERROR(RANK(D76,D71:D80,0),"") ->  | D76: =IF($A76>Option_Count,"",MCresultsE!$G$3/1000) ->  | E76: =IF(Scenario_Count<5,"",IF($A76>Option_Count,"",MCresultsE!$G$4/1000)) ->  | F76: =IF(Scenario_Count<5,"",IF($A76>Option_Count,"",MCresultsE!$G$5/1000)) ->  | G76: =IF($A76>Option_Count,"",MCresultsE!$G$6) ->  | H76: =IF($A76>Option_Count,"",MCresultsE!$G$7) -> 
A77: 7 | B77: =Parameters!B$32 -> 0 | C77: =IFERROR(RANK(D77,D71:D80,0),"") ->  | D77: =IF($A77>Option_Count,"",MCresultsE!$H$3/1000) ->  | E77: =IF(Scenario_Count<5,"",IF($A77>Option_Count,"",MCresultsE!$H$4/1000)) ->  | F77: =IF(Scenario_Count<5,"",IF($A77>Option_Count,"",MCresultsE!$H$5/1000)) ->  | G77: =IF($A77>Option_Count,"",MCresultsE!$H$6) ->  | H77: =IF($A77>Option_Count,"",MCresultsE!$H$7) -> 
A78: 8 | B78: =Parameters!B$33 -> 0 | C78: =IFERROR(RANK(D78,D71:D80,0),"") ->  | D78: =IF($A78>Option_Count,"",MCresultsE!$I$3/1000) ->  | E78: =IF(Scenario_Count<5,"",IF($A78>Option_Count,"",MCresultsE!$I$4/1000)) ->  | F78: =IF(Scenario_Count<5,"",IF($A78>Option_Count,"",MCresultsE!$I$5/1000)) ->  | G78: =IF($A78>Option_Count,"",MCresultsE!$I$6) ->  | H78: =IF($A78>Option_Count,"",MCresultsE!$I$7) -> 
A79: 9 | B79: =Parameters!B$34 -> 0 | C79: =IFERROR(RANK(D79,D71:D80,0),"") ->  | D79: =IF($A79>Option_Count,"",MCresultsE!$J$3/1000) ->  | E79: =IF(Scenario_Count<5,"",IF($A79>Option_Count,"",MCresultsE!$J$4/1000)) ->  | F79: =IF(Scenario_Count<5,"",IF($A79>Option_Count,"",MCresultsE!$J$5/1000)) ->  | G79: =IF($A79>Option_Count,"",MCresultsE!$J$6) ->  | H79: =IF($A79>Option_Count,"",MCresultsE!$J$7) -> 
A80: 10 | B80: =Parameters!B$35 -> 0 | C80: =IFERROR(RANK(D80,D71:D80,0),"") ->  | D80: =IF($A80>Option_Count,"",MCresultsE!$K$3/1000) ->  | E80: =IF(Scenario_Count<5,"",IF($A80>Option_Count,"",MCresultsE!$K$4/1000)) ->  | F80: =IF(Scenario_Count<5,"",IF($A80>Option_Count,"",MCresultsE!$K$5/1000)) ->  | G80: =IF($A80>Option_Count,"",MCresultsE!$K$6) ->  | H80: =IF($A80>Option_Count,"",MCresultsE!$K$7) -> 
A81: =Iteration5 -> 0 | B81: Iteration Numbers

Sheet Parameters
A1: MODELLING PARAMETERS AND ASSUMPTIONS
A2: PROJECT | B2: ENERGEX - AER2025-2030 - NEW MOBILE GENERATORS
A4: Start | B4: Evaluation Year | C4: 2025
A5: Term | B5: Evaluation Term (years) | C5: 15
A6: Final | B6: Final Year (of evaluation cash flows) | C6: =Year_Zero+Year_Term -> 2040
A8: DISCOUNT RATES
A9: No. | B9: Discount Rate Description | C9: Rate
A10: Selection | B10: Regulated Real Pre-Tax WACC | C10: 0.035
A12: SCENARIOS
A13: Scenario | B13: Demand Scenario Title | C13: Probability Weighting | D13: Monte Carlo Iterations
A14: A | B14: No Customer Benefits Added | C14: 0.34
A15: B | B15: Planned and Unplanned Customer benefits & fuel | C15: 0.33
A16: C | B16: ONLY Unplanned Customer benefits & fuel | C16: 0.33
A17: D | C17: 0
A18: E | C18: 0
B19: Sum of Scenarios (must equal 100%) | C19: =SUM(C14:C18) -> 1 | D19: =IF(C19<>100%,"NEEDS TO BALANCE TO 100%","OK") -> OK
A20: =COUNTA(B14:B18) -> 3 | B20: Number of Scenarios | C20: 3
B21: Maximum Iterations - Monte Carlo Analysis | C21: 50
B22: Total Iterations | C22: =SUM(D14:D18) -> 0
A24: OPTIONS
A25: Option | B25: Option Description
A26: 1 | B26: Purchase 2 Pegasus and 12 LV mobile generators
A27: 2 | B27: Hire 2 Pegasus and 12 LV Mobile generators
A28: 3 | B28: Counterfact - keep using existing mobile generators
A29: 4
A30: 5
A31: 6
A32: 7
A33: 8
A34: 9
A35: 10
A36: =COUNTA(B26:B35) -> 3 | B36: Number of Options | C36: 3

Sheet Costs
A1: Component ID | B1: Component Description | C1: Component Type | D1: Useful Life (years) | E1: Mode CAPEX ($ real) (Option 1) | F1: Lower Bound CAPEX ($ real) | G1: Upper Bound CAPEX ($ real) | H1: Mode OPEX ($) | I1: Lower Bound OPEX ($) | J1: Upper Bound OPEX ($) | K1: Annual Maintenance | L1: Mode CAPEX ($ real) (Option 1) | M1: Lower Bound CAPEX ($ real) | N1: Upper Bound CAPEX ($ real) | O1: Mode OPEX ($) | P1: Lower Bound OPEX ($) | Q1: Upper Bound OPEX ($) | T1: Purchase price
A2: 1 | B2: HV Pegasus (1 units) | D2: 15 | E2: =S2 -> 1388431 | F2: =E2*0.85 -> 1180166.35 | G2: =E2*1.15 -> 1596695.65 | H2: =E2*0.025 -> 34710.775 | I2: =H2*0.85 -> 29504.15875 | J2: =H2*1.15 -> 39917.39125 | K2: =H2*2 -> 69421.55 | L2: =2*4165293 -> 8330586 | M2: =L2*0.85 -> 7080998.1 | N2: =L2*1.15 -> 9580173.9 | O2: =L2*0.025 -> 208264.65 | P2: =O2*0.85 -> 177024.9525 | Q2: =O2*1.15 -> 239504.3475 | S2: 1388431 | T2: 1,500kVA Pegasus
A3: 2 | B3: LV 500kVA MG (2 units) | D3: 15 | E3: =S3*R3 -> 812092 | F3: =E3*0.85 -> 690278.2 | G3: =E3*1.15 -> 933905.8 | H3: =E3*0.025 -> 20302.3 | I3: =H3*0.85 -> 17256.955 | J3: =H3*1.15 -> 23347.645 | K3: =H3*6 -> 121813.8 | L3: =4*396046+40000 -> 1624184 | M3: =L3*0.85 -> 1380556.4 | N3: =L3*1.15 -> 1867811.6 | O3: =L3*0.025 -> 40604.6 | P3: =O3*0.85 -> 34513.91 | Q3: =O3*1.15 -> 46695.29 | R3: 2 | S3: 406046 | T3: 500kVA Mobile Generator | W3: Total | X3: Average | Y3: EPSA | Z3: Total Gen Aust | AA3: Aggreko
A4: 3 | B4: HV Pegasus (1 units) Daily hire | D4: 1 | H4: =O4 -> 1996.333333 | I4: =P4 -> 1421 | J4: =Q4 -> 2755 | K4: =K3+K2 -> 191235.35 | O4: =W4 -> 1996.333333 | P4: =Z4+Z6 -> 1421 | Q4: =AA4+AA6 -> 2755 | S4: 91 | U4: Days of hire | W4: =X4+X6 -> 1996.333333 | X4: =AVERAGE(Y4:AA4) -> 1348.666667 | Y4: 1161 | Z4: 1009 | AA4: 1876 | AB4: 1,250kVA Generator Hire
A5: 4 | B5: LV 500kVA MG (1 units) Daily hire | D5: 1 | H5: =O5 -> 627 | I5: 438 | J5: 848 | K5: =5*K4 -> 956176.75 | O5: 627 | P5: 438 | Q5: 848 | S5: 91 | U5: Days of hire | X5: =AVERAGE(Y5:AA5) -> 627 | Y5: 595 | Z5: 438 | AA5: 848 | AB5: 500kVA Generator Hire
A6: 5 | B6: HV Pegasus (2 units) Daily hire - Annual Cost | D6: 1 | H6: =O8 -> 363332.6667 | I6: =P8 -> 258622 | J6: 501410 | O6: =O4*$S4 -> 181666.3333 | P6: =P4*$S4 -> 129311 | Q6: 250705 | S6: 1 * HV Pegasus Gen Hire (91 days) | X6: =AVERAGE(Y6:AA6) -> 647.6666667 | Y6: 652 | Z6: 412 | AA6: 879 | AB6: 415V-11KV 1.25MVA Transformer
A7: 6 | B7: LV 500kVA MG (6 units) Daily hire - Annual Cost | D7: 1 | H7: =O9 -> 342342 | I7: 239148 | J7: 463008 | O7: =O5*$S5 -> 57057 | P7: 39858 | Q7: 77168 | S7: 1 * 500KVA Mobile Gen Hire (91 days)
A8: 7 | B8: Annual fuel for Unplanned | D8: 1 | H8: 1705009 | O8: =O6*$R8 -> 363332.6667 | P8: =P6*$R8 -> 258622 | Q8: 501410 | R8: 2 | S8: 2 * HV Pegasus Gen Hire (91 days)
A9: 8 | B9: Annual for Planned | D9: 1 | H9: 3947635 | O9: =O7*$R9 -> 342342 | P9: =P7*$R9 -> 239148 | Q9: 463008 | R9: 6 | S9: 6 * 500KVA Mobile Gen Hire (91 days)
A10: 9 | O10: =O9*2+O8 -> 1048016.667 | P10: Annual hire charges (91 days)
A11: 10 | O11: =O10*5 -> 5240083.333 | S11: It is most cost effective to purchase a generator when the business needs to hire the generator more than this many days.
A12: 11
A13: 12
A14: 13
A15: 14
A16: 15
A17: 16
A18: 17
A19: 18
A20: 19
A21: 20
A22: 21
A23: 22
A24: 23
A25: 24
A26: 25
A27: 26
A28: 27
A29: 28
A30: 29
A31: 30
A32: 31
A33: 32
A34: 33
A35: 34
A36: 35
A37: 36
A38: 37
A39: 38
A40: 39
A41: 40
A42: 41
A43: 42
A44: 43
A45: 44
A46: 45
A47: 46
A48: 47
A49: 48
A50: 49
A51: 50
A52: 51
A53: 52
A54: 53
A55: 54
A56: 55
A57: 56
A58: 57
A59: 58
A60: 59
A61: 60
A62: 61
A63: 62
A64: 63
A65: 64
A66: 65
A67: 66
A68: 67
A69: 68
A70: 69
A71: 70
A72: 71
A73: 72
A74: 73
A75: 74
A76: 75
A77: 76
A78: 77
A79: 78
A80: 79
A81: 80
A82: 81
A83: 82
A84: 83
A85: 84
A86: 85
A87: 86
A88: 87
A89: 88
A90: 89
A91: 90
A92: 91
A93: 92
A94: 93
A95: 94
A96: 95
A97: 96
A98: 97
A99: 98
A100: 99
A101: 100
A102: 101
A103: 102
A104: 103
A105: 104
A106: 105
A107: 106
A108: 107
A109: 108
A110: 109
A111: 110
A112: 111
A113: 112
A114: 113
A115: 114
A116: 115
A117: 116
A118: 117
A119: 118
A120: 119
A121: 120
A122: 121
A123: 122
A124: 123
A125: 124
A126: 125
A127: 126
A128: 127
A129: 128
A130: 129
A131: 130
A132: 131
A133: 132
A134: 133
A135: 134
A136: 135
A137: 136
A138: 137
A139: 138
A140: 139
A141: 140
A142: 141
A143: 142
A144: 143
A145: 144
A146: 145
A147: 146
A148: 147
A149: 148
A150: 149
A151: 150
A152: 151
A153: 152
A154: 153
A155: 154
A156: 155
A157: 156
A158: 157
A159: 158
A160: 159
A161: 160
A162: 161
A163: 162
A164: 163
A165: 164
A166: 165
A167: 166
A168: 167
A169: 168
A170: 169
A171: 170
A172: 171
A173: 172
A174: 173
A175: 174
A176: 175
A177: 176
A178: 177
A179: 178
A180: 179
A181: 180
A182: 181
A183: 182
A184: 183
A185: 184
A186: 185
A187: 186
A188: 187
A189: 188
A190: 189
A191: 190
A192: 191
A193: 192
A194: 193
A195: 194
A196: 195
A197: 196
A198: 197
A199: 198
A200: 199
... 1 more rows

Sheet ScenarioA
A1: SCENARIO A | D1: =Parameters!B14 -> No Customer Benefits Added | G1: 1 | H1: 2 | I1: 3 | J1: 4 | K1: 5 | L1: 6 | M1: 7 | N1: 8 | O1: 9 | P1: 10
A2: Option: | B2: 1 | D2: =IFERROR(OFFSET(Parameters!$B$25,MATCH(Opt_No1,Parameters!$A$26:$A$35,0),0),"") -> Purchase 2 Pegasus and 12 LV mobile generators | G2: Option 1 | H2: Option 2 | I2: Option 3 | J2: Option 4 | K2: Option 5 | L2: Option 6 | M2: Option 7 | N2: Option 8 | O2: Option 9 | P2: Option 10
D3: NPV Ranking | G3: =IFERROR(RANK(G4,$G$4:$P$4,0),"") -> 2 | H3: =IFERROR(RANK(H4,$G$4:$P$4,0),"") -> 3 | I3: 1
D4: Net NPV | G4: =IF(G$1>Option_Count,"",BaseCFA!C4) -> -9288883.371 | H4: =IF(H$1>Option_Count,"",BaseCFA!E4) -> -12070438.58 | I4: =IF(I$1>Option_Count,"",BaseCFA!G4) -> 0 | J4: =IF(J$1>Option_Count,"",BaseCFA!I4) ->  | K4: =IF(K$1>Option_Count,"",BaseCFA!K4) ->  | L4: =IF(L$1>Option_Count,"",BaseCFA!M4) ->  | M4: =IF(M$1>Option_Count,"",BaseCFA!O4) ->  | N4: =IF(N$1>Option_Count,"",BaseCFA!Q4) ->  | O4: =IF(O$1>Option_Count,"",BaseCFA!S4) ->  | P4: =IF(P$1>Option_Count,"",BaseCFA!U4) -> 
D5: Component Count | G5: =COUNTA(G8:G57) -> 8 | H5: =COUNTA(H8:H57) -> 40 | I5: 0 | J5: 0 | K5: 0 | L5: 0 | M5: 0 | N5: 0 | O5: 0 | P5: 0
B6: TRUE | D6: Hide Decommissioned Assets | E6: Decommissioned Assets
A7: ID | B7: Life | C7: Network Limitation | D7: Component Title Selection | E7: Recovery Date | F7: Recovery Value $ Real | G7: Stage Timing Option 1 | H7: Stage Timing Option 2 | I7: Stage Timing Option 3 | J7: Stage Timing Option 4 | K7: Stage Timing Option 5 | L7: Stage Timing Option 6 | M7: Stage Timing Option 7 | N7: Stage Timing Option 8 | O7: Stage Timing Option 9 | P7: Stage Timing Option 10
A8: 1 | B8: =IFERROR(OFFSET(Costs!$D$1,$A8,0),"") -> 15 | C8: Restoration of supply during planned and unplanned outages | D8: HV Pegasus (1 units) | G8: 2026
A9: 1 | B9: =IFERROR(OFFSET(Costs!$D$1,$A9,0),"") -> 15 | C9: Restoration of supply during planned and unplanned outages | D9: HV Pegasus (1 units) | G9: 2026
A10: 2 | B10: =IFERROR(OFFSET(Costs!$D$1,$A10,0),"") -> 15 | C10: Restoration of supply during planned and unplanned outages | D10: LV 500kVA MG (2 units) | G10: 2026
A11: 2 | B11: =IFERROR(OFFSET(Costs!$D$1,$A11,0),"") -> 15 | C11: Restoration of supply during planned and unplanned outages | D11: LV 500kVA MG (2 units) | G11: 2026
A12: 2 | B12: =IFERROR(OFFSET(Costs!$D$1,$A12,0),"") -> 15 | C12: Restoration of supply during planned and unplanned outages | D12: LV 500kVA MG (2 units) | G12: 2026
A13: 2 | B13: =IFERROR(OFFSET(Costs!$D$1,$A13,0),"") -> 15 | C13: Restoration of supply during planned and unplanned outages | D13: LV 500kVA MG (2 units) | G13: 2026
A14: 2 | B14: =IFERROR(OFFSET(Costs!$D$1,$A14,0),"") -> 15 | C14: Restoration of supply during planned and unplanned outages | D14: LV 500kVA MG (2 units) | G14: 2026
A15: 2 | B15: =IFERROR(OFFSET(Costs!$D$1,$A15,0),"") -> 15 | C15: Restoration of supply during planned and unplanned outages | D15: LV 500kVA MG (2 units) | G15: 2026
A16: 5 | B16: =IFERROR(OFFSET(Costs!$D$1,$A16,0),"") -> 1 | D16: HV Pegasus (2 units) Daily hire - Annual Cost | H16: 2026
A17: 5 | B17: =IFERROR(OFFSET(Costs!$D$1,$A17,0),"") -> 1 | D17: HV Pegasus (2 units) Daily hire - Annual Cost | H17: 2027
A18: 5 | B18: =IFERROR(OFFSET(Costs!$D$1,$A18,0),"") -> 1 | D18: HV Pegasus (2 units) Daily hire - Annual Cost | H18: 2028
A19: 5 | B19: =IFERROR(OFFSET(Costs!$D$1,$A19,0),"") -> 1 | D19: HV Pegasus (2 units) Daily hire - Annual Cost | H19: 2029
A20: 5 | B20: =IFERROR(OFFSET(Costs!$D$1,$A20,0),"") -> 1 | D20: HV Pegasus (2 units) Daily hire - Annual Cost | H20: 2030
A21: =IFERROR(MATCH($D21,Costs!$B$2:$B$201,0),"") -> 5 | B21: =IFERROR(OFFSET(Costs!$D$1,$A21,0),"") -> 1 | D21: HV Pegasus (2 units) Daily hire - Annual Cost | H21: 2031
A22: =IFERROR(MATCH($D22,Costs!$B$2:$B$201,0),"") -> 5 | B22: =IFERROR(OFFSET(Costs!$D$1,$A22,0),"") -> 1 | D22: HV Pegasus (2 units) Daily hire - Annual Cost | H22: 2032
A23: =IFERROR(MATCH($D23,Costs!$B$2:$B$201,0),"") -> 5 | B23: =IFERROR(OFFSET(Costs!$D$1,$A23,0),"") -> 1 | D23: HV Pegasus (2 units) Daily hire - Annual Cost | H23: 2033
A24: =IFERROR(MATCH($D24,Costs!$B$2:$B$201,0),"") -> 5 | B24: =IFERROR(OFFSET(Costs!$D$1,$A24,0),"") -> 1 | D24: HV Pegasus (2 units) Daily hire - Annual Cost | H24: 2034
A25: =IFERROR(MATCH($D25,Costs!$B$2:$B$201,0),"") -> 5 | B25: =IFERROR(OFFSET(Costs!$D$1,$A25,0),"") -> 1 | D25: HV Pegasus (2 units) Daily hire - Annual Cost | H25: 2035
A26: =IFERROR(MATCH($D26,Costs!$B$2:$B$201,0),"") -> 5 | B26: =IFERROR(OFFSET(Costs!$D$1,$A26,0),"") -> 1 | D26: HV Pegasus (2 units) Daily hire - Annual Cost | H26: 2036
A27: =IFERROR(MATCH($D27,Costs!$B$2:$B$201,0),"") -> 5 | B27: =IFERROR(OFFSET(Costs!$D$1,$A27,0),"") -> 1 | D27: HV Pegasus (2 units) Daily hire - Annual Cost | H27: 2037
A28: =IFERROR(MATCH($D28,Costs!$B$2:$B$201,0),"") -> 5 | B28: =IFERROR(OFFSET(Costs!$D$1,$A28,0),"") -> 1 | D28: HV Pegasus (2 units) Daily hire - Annual Cost | H28: 2038
A29: =IFERROR(MATCH($D29,Costs!$B$2:$B$201,0),"") -> 5 | B29: =IFERROR(OFFSET(Costs!$D$1,$A29,0),"") -> 1 | D29: HV Pegasus (2 units) Daily hire - Annual Cost | H29: 2039
A30: =IFERROR(MATCH($D30,Costs!$B$2:$B$201,0),"") -> 5 | B30: =IFERROR(OFFSET(Costs!$D$1,$A30,0),"") -> 1 | D30: HV Pegasus (2 units) Daily hire - Annual Cost | H30: 2040
A31: =IFERROR(MATCH($D31,Costs!$B$2:$B$201,0),"") ->  | B31: =IFERROR(OFFSET(Costs!$D$1,$A31,0),"") -> 
A32: =IFERROR(MATCH($D32,Costs!$B$2:$B$201,0),"") -> 6 | B32: =IFERROR(OFFSET(Costs!$D$1,$A32,0),"") -> 1 | D32: LV 500kVA MG (6 units) Daily hire - Annual Cost | H32: 2026
A33: =IFERROR(MATCH($D33,Costs!$B$2:$B$201,0),"") -> 6 | B33: =IFERROR(OFFSET(Costs!$D$1,$A33,0),"") -> 1 | D33: LV 500kVA MG (6 units) Daily hire - Annual Cost | H33: 2027
A34: =IFERROR(MATCH($D34,Costs!$B$2:$B$201,0),"") -> 6 | B34: =IFERROR(OFFSET(Costs!$D$1,$A34,0),"") -> 1 | D34: LV 500kVA MG (6 units) Daily hire - Annual Cost | H34: 2028
A35: =IFERROR(MATCH($D35,Costs!$B$2:$B$201,0),"") -> 6 | B35: =IFERROR(OFFSET(Costs!$D$1,$A35,0),"") -> 1 | D35: LV 500kVA MG (6 units) Daily hire - Annual Cost | H35: 2029
A36: =IFERROR(MATCH($D36,Costs!$B$2:$B$201,0),"") -> 6 | B36: =IFERROR(OFFSET(Costs!$D$1,$A36,0),"") -> 1 | D36: LV 500kVA MG (6 units) Daily hire - Annual Cost | H36: 2030
A37: =IFERROR(MATCH($D37,Costs!$B$2:$B$201,0),"") -> 6 | B37: =IFERROR(OFFSET(Costs!$D$1,$A37,0),"") -> 1 | D37: LV 500kVA MG (6 units) Daily hire - Annual Cost | H37: 2031
A38: =IFERROR(MATCH($D38,Costs!$B$2:$B$201,0),"") -> 6 | B38: =IFERROR(OFFSET(Costs!$D$1,$A38,0),"") -> 1 | D38: LV 500kVA MG (6 units) Daily hire - Annual Cost | H38: 2032
A39: =IFERROR(MATCH($D39,Costs!$B$2:$B$201,0),"") -> 6 | B39: =IFERROR(OFFSET(Costs!$D$1,$A39,0),"") -> 1 | D39: LV 500kVA MG (6 units) Daily hire - Annual Cost | H39: 2033
A40: =IFERROR(MATCH($D40,Costs!$B$2:$B$201,0),"") -> 6 | B40: =IFERROR(OFFSET(Costs!$D$1,$A40,0),"") -> 1 | D40: LV 500kVA MG (6 units) Daily hire - Annual Cost | H40: 2034
A41: =IFERROR(MATCH($D41,Costs!$B$2:$B$201,0),"") -> 6 | B41: =IFERROR(OFFSET(Costs!$D$1,$A41,0),"") -> 1 | D41: LV 500kVA MG (6 units) Daily hire - Annual Cost | H41: 2035
A42: =IFERROR(MATCH($D42,Costs!$B$2:$B$201,0),"") -> 6 | B42: =IFERROR(OFFSET(Costs!$D$1,$A42,0),"") -> 1 | D42: LV 500kVA MG (6 units) Daily hire - Annual Cost | H42: 2036
A43: =IFERROR(MATCH($D43,Costs!$B$2:$B$201,0),"") -> 6 | B43: =IFERROR(OFFSET(Costs!$D$1,$A43,0),"") -> 1 | D43: LV 500kVA MG (6 units) Daily hire - Annual Cost | H43: 2037
A44: =IFERROR(MATCH($D44,Costs!$B$2:$B$201,0),"") -> 6 | B44: =IFERROR(OFFSET(Costs!$D$1,$A44,0),"") -> 1 | D44: LV 500kVA MG (6 units) Daily hire - Annual Cost | H44: 2038
A45: =IFERROR(MATCH($D45,Costs!$B$2:$B$201,0),"") -> 6 | B45: =IFERROR(OFFSET(Costs!$D$1,$A45,0),"") -> 1 | D45: LV 500kVA MG (6 units) Daily hire - Annual Cost | H45: 2039
A46: =IFERROR(MATCH($D46,Costs!$B$2:$B$201,0),"") -> 6 | B46: =IFERROR(OFFSET(Costs!$D$1,$A46,0),"") -> 1 | D46: LV 500kVA MG (6 units) Daily hire - Annual Cost | H46: 2040
A47: =IFERROR(MATCH($D47,Costs!$B$2:$B$201,0),"") ->  | B47: =IFERROR(OFFSET(Costs!$D$1,$A47,0),"") -> 
A48: =IFERROR(MATCH($D48,Costs!$B$2:$B$201,0),"") -> 6 | B48: =IFERROR(OFFSET(Costs!$D$1,$A48,0),"") -> 1 | D48: LV 500kVA MG (6 units) Daily hire - Annual Cost | H48: 2026
A49: =IFERROR(MATCH($D49,Costs!$B$2:$B$201,0),"") -> 6 | B49: =IFERROR(OFFSET(Costs!$D$1,$A49,0),"") -> 1 | D49: LV 500kVA MG (6 units) Daily hire - Annual Cost | H49: 2027
A50: =IFERROR(MATCH($D50,Costs!$B$2:$B$201,0),"") -> 6 | B50: =IFERROR(OFFSET(Costs!$D$1,$A50,0),"") -> 1 | D50: LV 500kVA MG (6 units) Daily hire - Annual Cost | H50: 2028
A51: =IFERROR(MATCH($D51,Costs!$B$2:$B$201,0),"") -> 6 | B51: =IFERROR(OFFSET(Costs!$D$1,$A51,0),"") -> 1 | D51: LV 500kVA MG (6 units) Daily hire - Annual Cost | H51: 2029
A52: =IFERROR(MATCH($D52,Costs!$B$2:$B$201,0),"") -> 6 | B52: =IFERROR(OFFSET(Costs!$D$1,$A52,0),"") -> 1 | D52: LV 500kVA MG (6 units) Daily hire - Annual Cost | H52: 2030
A53: =IFERROR(MATCH($D53,Costs!$B$2:$B$201,0),"") -> 6 | B53: =IFERROR(OFFSET(Costs!$D$1,$A53,0),"") -> 1 | D53: LV 500kVA MG (6 units) Daily hire - Annual Cost | H53: 2031
A54: =IFERROR(MATCH($D54,Costs!$B$2:$B$201,0),"") -> 6 | B54: =IFERROR(OFFSET(Costs!$D$1,$A54,0),"") -> 1 | D54: LV 500kVA MG (6 units) Daily hire - Annual Cost | H54: 2032
A55: =IFERROR(MATCH($D55,Costs!$B$2:$B$201,0),"") -> 6 | B55: =IFERROR(OFFSET(Costs!$D$1,$A55,0),"") -> 1 | D55: LV 500kVA MG (6 units) Daily hire - Annual Cost | H55: 2033
A56: =IFERROR(MATCH($D56,Costs!$B$2:$B$201,0),"") -> 6 | B56: =IFERROR(OFFSET(Costs!$D$1,$A56,0),"") -> 1 | D56: LV 500kVA MG (6 units) Daily hire - Annual Cost | H56: 2034
A57: =IFERROR(MATCH($D57,Costs!$B$2:$B$201,0),"") -> 6 | B57: =IFERROR(OFFSET(Costs!$D$1,$A57,0),"") -> 1 | D57: LV 500kVA MG (6 units) Daily hire - Annual Cost | H57: 2035
A58: =IFERROR(MATCH($D58,Costs!$B$2:$B$201,0),"") -> 6 | B58: =IFERROR(OFFSET(Costs!$D$1,$A58,0),"") -> 1 | D58: LV 500kVA MG (6 units) Daily hire - Annual Cost | H58: 2036
A59: =IFERROR(MATCH($D59,Costs!$B$2:$B$201,0),"") -> 6 | B59: =IFERROR(OFFSET(Costs!$D$1,$A59,0),"") -> 1 | D59: LV 500kVA MG (6 units) Daily hire - Annual Cost | H59: 2037
A60: =IFERROR(MATCH($D60,Costs!$B$2:$B$201,0),"") -> 6 | B60: =IFERROR(OFFSET(Costs!$D$1,$A60,0),"") -> 1 | D60: LV 500kVA MG (6 units) Daily hire - Annual Cost | H60: 2038
A61: =IFERROR(MATCH($D61,Costs!$B$2:$B$201,0),"") -> 6 | B61: =IFERROR(OFFSET(Costs!$D$1,$A61,0),"") -> 1 | D61: LV 500kVA MG (6 units) Daily hire - Annual Cost | H61: 2039
A62: =IFERROR(MATCH($D62,Costs!$B$2:$B$201,0),"") -> 6 | B62: =IFERROR(OFFSET(Costs!$D$1,$A62,0),"") -> 1 | D62: LV 500kVA MG (6 units) Daily hire - Annual Cost | H62: 2040
A63: =IFERROR(MATCH($D63,Costs!$B$2:$B$201,0),"") ->  | B63: =IFERROR(OFFSET(Costs!$D$1,$A63,0),"") -> 
A64: =IFERROR(MATCH($D64,Costs!$B$2:$B$201,0),"") ->  | B64: =IFERROR(OFFSET(Costs!$D$1,$A64,0),"") -> 
A65: =IFERROR(MATCH($D65,Costs!$B$2:$B$201,0),"") ->  | B65: =IFERROR(OFFSET(Costs!$D$1,$A65,0),"") -> 
A66: =IFERROR(MATCH($D66,Costs!$B$2:$B$201,0),"") ->  | B66: =IFERROR(OFFSET(Costs!$D$1,$A66,0),"") -> 
A67: =IFERROR(MATCH($D67,Costs!$B$2:$B$201,0),"") ->  | B67: =IFERROR(OFFSET(Costs!$D$1,$A67,0),"") -> 
A68: =IFERROR(MATCH($D68,Costs!$B$2:$B$201,0),"") ->  | B68: =IFERROR(OFFSET(Costs!$D$1,$A68,0),"") -> 
A69: =IFERROR(MATCH($D69,Costs!$B$2:$B$201,0),"") ->  | B69: =IFERROR(OFFSET(Costs!$D$1,$A69,0),"") -> 
A70: =IFERROR(MATCH($D70,Costs!$B$2:$B$201,0),"") ->  | B70: =IFERROR(OFFSET(Costs!$D$1,$A70,0),"") -> 
A71: =IFERROR(MATCH($D71,Costs!$B$2:$B$201,0),"") ->  | B71: =IFERROR(OFFSET(Costs!$D$1,$A71,0),"") -> 
A72: =IFERROR(MATCH($D72,Costs!$B$2:$B$201,0),"") ->  | B72: =IFERROR(OFFSET(Costs!$D$1,$A72,0),"") -> 
A73: =IFERROR(MATCH($D73,Costs!$B$2:$B$201,0),"") ->  | B73: =IFERROR(OFFSET(Costs!$D$1,$A73,0),"") -> 
A74: =IFERROR(MATCH($D74,Costs!$B$2:$B$201,0),"") ->  | B74: =IFERROR(OFFSET(Costs!$D$1,$A74,0),"") -> 
A75: =IFERROR(MATCH($D75,Costs!$B$2:$B$201,0),"") ->  | B75: =IFERROR(OFFSET(Costs!$D$1,$A75,0),"") -> 
A76: =IFERROR(MATCH($D76,Costs!$B$2:$B$201,0),"") ->  | B76: =IFERROR(OFFSET(Costs!$D$1,$A76,0),"") -> 
A77: =IFERROR(MATCH($D77,Costs!$B$2:$B$201,0),"") ->  | B77: =IFERROR(OFFSET(Costs!$D$1,$A77,0),"") -> 
A78: =IFERROR(MATCH($D78,Costs!$B$2:$B$201,0),"") ->  | B78: =IFERROR(OFFSET(Costs!$D$1,$A78,0),"") -> 
A79: =IFERROR(MATCH($D79,Costs!$B$2:$B$201,0),"") ->  | B79: =IFERROR(OFFSET(Costs!$D$1,$A79,0),"") -> 
A80: =IFERROR(MATCH($D80,Costs!$B$2:$B$201,0),"") ->  | B80: =IFERROR(OFFSET(Costs!$D$1,$A80,0),"") -> 
A81: =IFERROR(MATCH($D81,Costs!$B$2:$B$201,0),"") ->  | B81: =IFERROR(OFFSET(Costs!$D$1,$A81,0),"") -> 
A82: =IFERROR(MATCH($D82,Costs!$B$2:$B$201,0),"") ->  | B82: =IFERROR(OFFSET(Costs!$D$1,$A82,0),"") -> 
A83: =IFERROR(MATCH($D83,Costs!$B$2:$B$201,0),"") ->  | B83: =IFERROR(OFFSET(Costs!$D$1,$A83,0),"") -> 
A84: =IFERROR(MATCH($D84,Costs!$B$2:$B$201,0),"") ->  | B84: =IFERROR(OFFSET(Costs!$D$1,$A84,0),"") -> 
A85: =IFERROR(MATCH($D85,Costs!$B$2:$B$201,0),"") ->  | B85: =IFERROR(OFFSET(Costs!$D$1,$A85,0),"") -> 
A86: =IFERROR(MATCH($D86,Costs!$B$2:$B$201,0),"") ->  | B86: =IFERROR(OFFSET(Costs!$D$1,$A86,0),"") -> 
A87: =IFERROR(MATCH($D87,Costs!$B$2:$B$201,0),"") ->  | B87: =IFERROR(OFFSET(Costs!$D$1,$A87,0),"") -> 
A88: =IFERROR(MATCH($D88,Costs!$B$2:$B$201,0),"") ->  | B88: =IFERROR(OFFSET(Costs!$D$1,$A88,0),"") -> 
A89: =IFERROR(MATCH($D89,Costs!$B$2:$B$201,0),"") ->  | B89: =IFERROR(OFFSET(Costs!$D$1,$A89,0),"") -> 
A90: =IFERROR(MATCH($D90,Costs!$B$2:$B$201,0),"") ->  | B90: =IFERROR(OFFSET(Costs!$D$1,$A90,0),"") -> 
A91: =IFERROR(MATCH($D91,Costs!$B$2:$B$201,0),"") ->  | B91: =IFERROR(OFFSET(Costs!$D$1,$A91,0),"") -> 
A92: =IFERROR(MATCH($D92,Costs!$B$2:$B$201,0),"") ->  | B92: =IFERROR(OFFSET(Costs!$D$1,$A92,0),"") -> 
A93: =IFERROR(MATCH($D93,Costs!$B$2:$B$201,0),"") ->  | B93: =IFERROR(OFFSET(Costs!$D$1,$A93,0),"") -> 
A94: =IFERROR(MATCH($D94,Costs!$B$2:$B$201,0),"") ->  | B94: =IFERROR(OFFSET(Costs!$D$1,$A94,0),"") -> 
A95: =IFERROR(MATCH($D95,Costs!$B$2:$B$201,0),"") ->  | B95: =IFERROR(OFFSET(Costs!$D$1,$A95,0),"") -> 
A96: =IFERROR(MATCH($D96,Costs!$B$2:$B$201,0),"") ->  | B96: =IFERROR(OFFSET(Costs!$D$1,$A96,0),"") -> 
A97: =IFERROR(MATCH($D97,Costs!$B$2:$B$201,0),"") ->  | B97: =IFERROR(OFFSET(Costs!$D$1,$A97,0),"") -> 
A98: =IFERROR(MATCH($D98,Costs!$B$2:$B$201,0),"") ->  | B98: =IFERROR(OFFSET(Costs!$D$1,$A98,0),"") -> 
A99: =IFERROR(MATCH($D99,Costs!$B$2:$B$201,0),"") ->  | B99: =IFERROR(OFFSET(Costs!$D$1,$A99,0),"") -> 
A100: =IFERROR(MATCH($D100,Costs!$B$2:$B$201,0),"") ->  | B100: =IFERROR(OFFSET(Costs!$D$1,$A100,0),"") -> 
A101: =IFERROR(MATCH($D101,Costs!$B$2:$B$201,0),"") ->  | B101: =IFERROR(OFFSET(Costs!$D$1,$A101,0),"") -> 
A102: =IFERROR(MATCH($D102,Costs!$B$2:$B$201,0),"") ->  | B102: =IFERROR(OFFSET(Costs!$D$1,$A102,0),"") -> 
A103: =IFERROR(MATCH($D103,Costs!$B$2:$B$201,0),"") ->  | B103: =IFERROR(OFFSET(Costs!$D$1,$A103,0),"") -> 
A104: =IFERROR(MATCH($D104,Costs!$B$2:$B$201,0),"") ->  | B104: =IFERROR(OFFSET(Costs!$D$1,$A104,0),"") -> 
A105: =IFERROR(MATCH($D105,Costs!$B$2:$B$201,0),"") ->  | B105: =IFERROR(OFFSET(Costs!$D$1,$A105,0),"") -> 
A106: =IFERROR(MATCH($D106,Costs!$B$2:$B$201,0),"") ->  | B106: =IFERROR(OFFSET(Costs!$D$1,$A106,0),"") -> 
A107: =IFERROR(MATCH($D107,Costs!$B$2:$B$201,0),"") ->  | B107: =IFERROR(OFFSET(Costs!$D$1,$A107,0),"") -> 
A108: =IFERROR(MATCH($D108,Costs!$B$2:$B$201,0),"") ->  | B108: =IFERROR(OFFSET(Costs!$D$1,$A108,0),"") -> 
A109: =IFERROR(MATCH($D109,Costs!$B$2:$B$201,0),"") ->  | B109: =IFERROR(OFFSET(Costs!$D$1,$A109,0),"") -> 
A110: =IFERROR(MATCH($D110,Costs!$B$2:$B$201,0),"") ->  | B110: =IFERROR(OFFSET(Costs!$D$1,$A110,0),"") -> 
A111: =IFERROR(MATCH($D111,Costs!$B$2:$B$201,0),"") ->  | B111: =IFERROR(OFFSET(Costs!$D$1,$A111,0),"") -> 
A112: =IFERROR(MATCH($D112,Costs!$B$2:$B$201,0),"") ->  | B112: =IFERROR(OFFSET(Costs!$D$1,$A112,0),"") -> 
A113: =IFERROR(MATCH($D113,Costs!$B$2:$B$201,0),"") ->  | B113: =IFERROR(OFFSET(Costs!$D$1,$A113,0),"") -> 
A114: =IFERROR(MATCH($D114,Costs!$B$2:$B$201,0),"") ->  | B114: =IFERROR(OFFSET(Costs!$D$1,$A114,0),"") -> 
A115: =IFERROR(MATCH($D115,Costs!$B$2:$B$201,0),"") ->  | B115: =IFERROR(OFFSET(Costs!$D$1,$A115,0),"") -> 
A116: =IFERROR(MATCH($D116,Costs!$B$2:$B$201,0),"") ->  | B116: =IFERROR(OFFSET(Costs!$D$1,$A116,0),"") -> 
A117: =IFERROR(MATCH($D117,Costs!$B$2:$B$201,0),"") ->  | B117: =IFERROR(OFFSET(Costs!$D$1,$A117,0),"") -> 
A118: =IFERROR(MATCH($D118,Costs!$B$2:$B$201,0),"") ->  | B118: =IFERROR(OFFSET(Costs!$D$1,$A118,0),"") -> 
A119: =IFERROR(MATCH($D119,Costs!$B$2:$B$201,0),"") ->  | B119: =IFERROR(OFFSET(Costs!$D$1,$A119,0),"") -> 
A120: =IFERROR(MATCH($D120,Costs!$B$2:$B$201,0),"") ->  | B120: =IFERROR(OFFSET(Costs!$D$1,$A120,0),"") -> 
A121: =IFERROR(MATCH($D121,Costs!$B$2:$B$201,0),"") ->  | B121: =IFERROR(OFFSET(Costs!$D$1,$A121,0),"") -> 
A122: =IFERROR(MATCH($D122,Costs!$B$2:$B$201,0),"") ->  | B122: =IFERROR(OFFSET(Costs!$D$1,$A122,0),"") -> 
A123: =IFERROR(MATCH($D123,Costs!$B$2:$B$201,0),"") ->  | B123: =IFERROR(OFFSET(Costs!$D$1,$A123,0),"") -> 
A124: =IFERROR(MATCH($D124,Costs!$B$2:$B$201,0),"") ->  | B124: =IFERROR(OFFSET(Costs!$D$1,$A124,0),"") -> 
A125: =IFERROR(MATCH($D125,Costs!$B$2:$B$201,0),"") ->  | B125: =IFERROR(OFFSET(Costs!$D$1,$A125,0),"") -> 
A126: =IFERROR(MATCH($D126,Costs!$B$2:$B$201,0),"") ->  | B126: =IFERROR(OFFSET(Costs!$D$1,$A126,0),"") -> 
A127: =IFERROR(MATCH($D127,Costs!$B$2:$B$201,0),"") ->  | B127: =IFERROR(OFFSET(Costs!$D$1,$A127,0),"") -> 
A128: =IFERROR(MATCH($D128,Costs!$B$2:$B$201,0),"") ->  | B128: =IFERROR(OFFSET(Costs!$D$1,$A128,0),"") -> 
A129: =IFERROR(MATCH($D129,Costs!$B$2:$B$201,0),"") ->  | B129: =IFERROR(OFFSET(Costs!$D$1,$A129,0),"") -> 
A130: =IFERROR(MATCH($D130,Costs!$B$2:$B$201,0),"") ->  | B130: =IFERROR(OFFSET(Costs!$D$1,$A130,0),"") -> 
A131: =IFERROR(MATCH($D131,Costs!$B$2:$B$201,0),"") ->  | B131: =IFERROR(OFFSET(Costs!$D$1,$A131,0),"") -> 
A132: =IFERROR(MATCH($D132,Costs!$B$2:$B$201,0),"") ->  | B132: =IFERROR(OFFSET(Costs!$D$1,$A132,0),"") -> 
A133: =IFERROR(MATCH($D133,Costs!$B$2:$B$201,0),"") ->  | B133: =IFERROR(OFFSET(Costs!$D$1,$A133,0),"") -> 
A134: =IFERROR(MATCH($D134,Costs!$B$2:$B$201,0),"") ->  | B134: =IFERROR(OFFSET(Costs!$D$1,$A134,0),"") -> 
A135: =IFERROR(MATCH($D135,Costs!$B$2:$B$201,0),"") ->  | B135: =IFERROR(OFFSET(Costs!$D$1,$A135,0),"") -> 
A136: =IFERROR(MATCH($D136,Costs!$B$2:$B$201,0),"") ->  | B136: =IFERROR(OFFSET(Costs!$D$1,$A136,0),"") -> 
A137: =IFERROR(MATCH($D137,Costs!$B$2:$B$201,0),"") ->  | B137: =IFERROR(OFFSET(Costs!$D$1,$A137,0),"") -> 
A138: =IFERROR(MATCH($D138,Costs!$B$2:$B$201,0),"") ->  | B138: =IFERROR(OFFSET(Costs!$D$1,$A138,0),"") -> 
A139: =IFERROR(MATCH($D139,Costs!$B$2:$B$201,0),"") ->  | B139: =IFERROR(OFFSET(Costs!$D$1,$A139,0),"") -> 
A140: =IFERROR(MATCH($D140,Costs!$B$2:$B$201,0),"") ->  | B140: =IFERROR(OFFSET(Costs!$D$1,$A140,0),"") -> 
A141: =IFERROR(MATCH($D141,Costs!$B$2:$B$201,0),"") ->  | B141: =IFERROR(OFFSET(Costs!$D$1,$A141,0),"") -> 
A142: =IFERROR(MATCH($D142,Costs!$B$2:$B$201,0),"") ->  | B142: =IFERROR(OFFSET(Costs!$D$1,$A142,0),"") -> 
A143: =IFERROR(MATCH($D143,Costs!$B$2:$B$201,0),"") ->  | B143: =IFERROR(OFFSET(Costs!$D$1,$A143,0),"") -> 
A144: =IFERROR(MATCH($D144,Costs!$B$2:$B$201,0),"") ->  | B144: =IFERROR(OFFSET(Costs!$D$1,$A144,0),"") -> 
A145: =IFERROR(MATCH($D145,Costs!$B$2:$B$201,0),"") ->  | B145: =IFERROR(OFFSET(Costs!$D$1,$A145,0),"") -> 
A146: =IFERROR(MATCH($D146,Costs!$B$2:$B$201,0),"") ->  | B146: =IFERROR(OFFSET(Costs!$D$1,$A146,0),"") -> 
A147: =IFERROR(MATCH($D147,Costs!$B$2:$B$201,0),"") ->  | B147: =IFERROR(OFFSET(Costs!$D$1,$A147,0),"") -> 
A148: =IFERROR(MATCH($D148,Costs!$B$2:$B$201,0),"") ->  | B148: =IFERROR(OFFSET(Costs!$D$1,$A148,0),"") -> 
A149: =IFERROR(MATCH($D149,Costs!$B$2:$B$201,0),"") ->  | B149: =IFERROR(OFFSET(Costs!$D$1,$A149,0),"") -> 
A150: =IFERROR(MATCH($D150,Costs!$B$2:$B$201,0),"") ->  | B150: =IFERROR(OFFSET(Costs!$D$1,$A150,0),"") -> 
A151: =IFERROR(MATCH($D151,Costs!$B$2:$B$201,0),"") ->  | B151: =IFERROR(OFFSET(Costs!$D$1,$A151,0),"") -> 
A152: =IFERROR(MATCH($D152,Costs!$B$2:$B$201,0),"") ->  | B152: =IFERROR(OFFSET(Costs!$D$1,$A152,0),"") -> 
A153: =IFERROR(MATCH($D153,Costs!$B$2:$B$201,0),"") ->  | B153: =IFERROR(OFFSET(Costs!$D$1,$A153,0),"") -> 
A154: =IFERROR(MATCH($D154,Costs!$B$2:$B$201,0),"") ->  | B154: =IFERROR(OFFSET(Costs!$D$1,$A154,0),"") -> 
A155: =IFERROR(MATCH($D155,Costs!$B$2:$B$201,0),"") ->  | B155: =IFERROR(OFFSET(Costs!$D$1,$A155,0),"") -> 
A156: =IFERROR(MATCH($D156,Costs!$B$2:$B$201,0),"") ->  | B156: =IFERROR(OFFSET(Costs!$D$1,$A156,0),"") -> 
A157: =IFERROR(MATCH($D157,Costs!$B$2:$B$201,0),"") ->  | B157: =IFERROR(OFFSET(Costs!$D$1,$A157,0),"") -> 
A158: =IFERROR(MATCH($D158,Costs!$B$2:$B$201,0),"") ->  | B158: =IFERROR(OFFSET(Costs!$D$1,$A158,0),"") -> 
A159: =IFERROR(MATCH($D159,Costs!$B$2:$B$201,0),"") ->  | B159: =IFERROR(OFFSET(Costs!$D$1,$A159,0),"") -> 
A160: =IFERROR(MATCH($D160,Costs!$B$2:$B$201,0),"") ->  | B160: =IFERROR(OFFSET(Costs!$D$1,$A160,0),"") -> 
A161: =IFERROR(MATCH($D161,Costs!$B$2:$B$201,0),"") ->  | B161: =IFERROR(OFFSET(Costs!$D$1,$A161,0),"") -> 
A162: =IFERROR(MATCH($D162,Costs!$B$2:$B$201,0),"") ->  | B162: =IFERROR(OFFSET(Costs!$D$1,$A162,0),"") -> 
A163: =IFERROR(MATCH($D163,Costs!$B$2:$B$201,0),"") ->  | B163: =IFERROR(OFFSET(Costs!$D$1,$A163,0),"") -> 
A164: =IFERROR(MATCH($D164,Costs!$B$2:$B$201,0),"") ->  | B164: =IFERROR(OFFSET(Costs!$D$1,$A164,0),"") -> 
A165: =IFERROR(MATCH($D165,Costs!$B$2:$B$201,0),"") ->  | B165: =IFERROR(OFFSET(Costs!$D$1,$A165,0),"") -> 
A166: =IFERROR(MATCH($D166,Costs!$B$2:$B$201,0),"") ->  | B166: =IFERROR(OFFSET(Costs!$D$1,$A166,0),"") -> 
A167: =IFERROR(MATCH($D167,Costs!$B$2:$B$201,0),"") ->  | B167: =IFERROR(OFFSET(Costs!$D$1,$A167,0),"") -> 
A168: =IFERROR(MATCH($D168,Costs!$B$2:$B$201,0),"") ->  | B168: =IFERROR(OFFSET(Costs!$D$1,$A168,0),"") -> 
A169: =IFERROR(MATCH($D169,Costs!$B$2:$B$201,0),"") ->  | B169: =IFERROR(OFFSET(Costs!$D$1,$A169,0),"") -> 
A170: =IFERROR(MATCH($D170,Costs!$B$2:$B$201,0),"") ->  | B170: =IFERROR(OFFSET(Costs!$D$1,$A170,0),"") -> 
A171: =IFERROR(MATCH($D171,Costs!$B$2:$B$201,0),"") ->  | B171: =IFERROR(OFFSET(Costs!$D$1,$A171,0),"") -> 
A172: =IFERROR(MATCH($D172,Costs!$B$2:$B$201,0),"") ->  | B172: =IFERROR(OFFSET(Costs!$D$1,$A172,0),"") -> 
A173: =IFERROR(MATCH($D173,Costs!$B$2:$B$201,0),"") ->  | B173: =IFERROR(OFFSET(Costs!$D$1,$A173,0),"") -> 
A174: =IFERROR(MATCH($D174,Costs!$B$2:$B$201,0),"") ->  | B174: =IFERROR(OFFSET(Costs!$D$1,$A174,0),"") -> 
A175: =IFERROR(MATCH($D175,Costs!$B$2:$B$201,0),"") ->  | B175: =IFERROR(OFFSET(Costs!$D$1,$A175,0),"") -> 
A176: =IFERROR(MATCH($D176,Costs!$B$2:$B$201,0),"") ->  | B176: =IFERROR(OFFSET(Costs!$D$1,$A176,0),"") -> 
A177: =IFERROR(MATCH($D177,Costs!$B$2:$B$201,0),"") ->  | B177: =IFERROR(OFFSET(Costs!$D$1,$A177,0),"") -> 
A178: =IFERROR(MATCH($D178,Costs!$B$2:$B$201,0),"") ->  | B178: =IFERROR(OFFSET(Costs!$D$1,$A178,0),"") -> 
A179: =IFERROR(MATCH($D179,Costs!$B$2:$B$201,0),"") ->  | B179: =IFERROR(OFFSET(Costs!$D$1,$A179,0),"") -> 
A180: =IFERROR(MATCH($D180,Costs!$B$2:$B$201,0),"") ->  | B180: =IFERROR(OFFSET(Costs!$D$1,$A180,0),"") -> 
A181: =IFERROR(MATCH($D181,Costs!$B$2:$B$201,0),"") ->  | B181: =IFERROR(OFFSET(Costs!$D$1,$A181,0),"") -> 
A182: =IFERROR(MATCH($D182,Costs!$B$2:$B$201,0),"") ->  | B182: =IFERROR(OFFSET(Costs!$D$1,$A182,0),"") -> 
A183: =IFERROR(MATCH($D183,Costs!$B$2:$B$201,0),"") ->  | B183: =IFERROR(OFFSET(Costs!$D$1,$A183,0),"") -> 
A184: =IFERROR(MATCH($D184,Costs!$B$2:$B$201,0),"") ->  | B184: =IFERROR(OFFSET(Costs!$D$1,$A184,0),"") -> 
A185: =IFERROR(MATCH($D185,Costs!$B$2:$B$201,0),"") ->  | B185: =IFERROR(OFFSET(Costs!$D$1,$A185,0),"") -> 
A186: =IFERROR(MATCH($D186,Costs!$B$2:$B$201,0),"") ->  | B186: =IFERROR(OFFSET(Costs!$D$1,$A186,0),"") -> 
A187: =IFERROR(MATCH($D187,Costs!$B$2:$B$201,0),"") ->  | B187: =IFERROR(OFFSET(Costs!$D$1,$A187,0),"") -> 
A188: =IFERROR(MATCH($D188,Costs!$B$2:$B$201,0),"") ->  | B188: =IFERROR(OFFSET(Costs!$D$1,$A188,0),"") -> 
A189: =IFERROR(MATCH($D189,Costs!$B$2:$B$201,0),"") ->  | B189: =IFERROR(OFFSET(Costs!$D$1,$A189,0),"") -> 
A190: =IFERROR(MATCH($D190,Costs!$B$2:$B$201,0),"") ->  | B190: =IFERROR(OFFSET(Costs!$D$1,$A190,0),"") -> 
A191: =IFERROR(MATCH($D191,Costs!$B$2:$B$201,0),"") ->  | B191: =IFERROR(OFFSET(Costs!$D$1,$A191,0),"") -> 
A192: =IFERROR(MATCH($D192,Costs!$B$2:$B$201,0),"") ->  | B192: =IFERROR(OFFSET(Costs!$D$1,$A192,0),"") -> 
A193: =IFERROR(MATCH($D193,Costs!$B$2:$B$201,0),"") ->  | B193: =IFERROR(OFFSET(Costs!$D$1,$A193,0),"") -> 
A194: =IFERROR(MATCH($D194,Costs!$B$2:$B$201,0),"") ->  | B194: =IFERROR(OFFSET(Costs!$D$1,$A194,0),"") -> 
A195: =IFERROR(MATCH($D195,Costs!$B$2:$B$201,0),"") ->  | B195: =IFERROR(OFFSET(Costs!$D$1,$A195,0),"") -> 
A196: =IFERROR(MATCH($D196,Costs!$B$2:$B$201,0),"") ->  | B196: =IFERROR(OFFSET(Costs!$D$1,$A196,0),"") -> 
A197: =IFERROR(MATCH($D197,Costs!$B$2:$B$201,0),"") ->  | B197: =IFERROR(OFFSET(Costs!$D$1,$A197,0),"") -> 
A198: =IFERROR(MATCH($D198,Costs!$B$2:$B$201,0),"") ->  | B198: =IFERROR(OFFSET(Costs!$D$1,$A198,0),"") -> 
A199: =IFERROR(MATCH($D199,Costs!$B$2:$B$201,0),"") ->  | B199: =IFERROR(OFFSET(Costs!$D$1,$A199,0),"") -> 
A200: =IFERROR(MATCH($D200,Costs!$B$2:$B$201,0),"") ->  | B200: =IFERROR(OFFSET(Costs!$D$1,$A200,0),"") -> 
... 7 more rows

Sheet BenefitsA
A1: SCENARIO A BENEFITS | D1: Option 1 - 6 Pegasus … (Preferred) | G1: Option 2 - 12 Pegasus … | J1: Option 3 - Countarfactual | M1: Option 4 | P1: Option 5 | S1: Option 6 | V1: Option 7 | Y1: Option 8 | AB1: Option 9 | AE1: Option 10
A2: Period | B2: Date | C2: Benefit Type 1 $ | D2: Benefit Type 2 $ | E2: Benefit Type 3 $ | F2: Benefit Type 1 $ | G2: Benefit Type 2 $ | H2: Benefit Type 3 $ | I2: Benefit Type 1 $ | J2: Benefit Type 2 $ | K2: Benefit Type 3 $ | L2: Benefit Type 1 $ | M2: Benefit Type 2 $ | N2: Benefit Type 3 $ | O2: Benefit Type 1 $ | P2: Benefit Type 2 $ | Q2: Benefit Type 3 $ | R2: Benefit Type 1 $ | S2: Benefit Type 2 $ | T2: Benefit Type 3 $ | U2: Benefit Type 1 $ | V2: Benefit Type 2 $ | W2: Benefit Type 3 $ | X2: Benefit Type 1 $ | Y2: Benefit Type 2 $ | Z2: Benefit Type 3 $ | AA2: Benefit Type 1 $ | AB2: Benefit Type 2 $ | AC2: Benefit Type 3 $ | AD2: Benefit Type 1 $ | AE2: Benefit Type 2 $ | AF2: Benefit Type 3 $
A3: 0 | B3: =Year_Zero -> 2025 | C3: 0 | D3: 0 | E3: 0 | F3: =2*C3 -> 0 | G3: =2*D3 -> 0 | H3: =2*E3 -> 0 | I3: 0 | J3: 0 | K3: 0
A4: 1 | B4: =B3+1 -> 2026 | C4: 0 | D4: 0 | F4: =C4 -> 0 | G4: =D4*2 -> 0
A5: 2 | B5: =B4+1 -> 2027 | C5: 0 | D5: 0 | F5: =C5 -> 0 | G5: =D5*2 -> 0
A6: 3 | B6: 2028 | C6: 0 | D6: 0 | F6: 0 | G6: 0
A7: 4 | B7: 2029 | C7: 0 | D7: 0 | F7: 0 | G7: 0
A8: 5 | B8: 2030 | C8: 0 | D8: 0 | F8: 0 | G8: 0
A9: 6 | B9: 2031 | C9: 0 | D9: 0 | F9: 0 | G9: 0
A10: 7 | B10: 2032 | C10: 0 | D10: 0 | F10: 0 | G10: 0
A11: 8 | B11: 2033 | C11: 0 | D11: 0 | F11: 0 | G11: 0
A12: 9 | B12: 2034 | C12: 0 | D12: 0 | F12: 0 | G12: 0
A13: 10 | B13: 2035 | C13: 0 | D13: 0 | F13: 0 | G13: 0
A14: 11 | B14: 2036 | C14: 0 | D14: 0 | F14: 0 | G14: 0
A15: 12 | B15: 2037 | C15: 0 | D15: 0 | F15: 0 | G15: 0
A16: 13 | B16: 2038 | C16: 0 | D16: 0 | F16: 0 | G16: 0
A17: 14 | B17: 2039 | C17: 0 | D17: 0 | F17: 0 | G17: 0
A18: 15 | B18: 2040 | C18: 0 | D18: 0 | F18: 0 | G18: 0
A19: 16 | B19: 2041
A20: 17 | B20: 2042
A21: 18 | B21: 2043
A22: 19 | B22: 2044
A23: 20 | B23: 2045
A24: 21 | B24: 2046
A25: 22 | B25: 2047
A26: 23 | B26: 2048
A27: 24 | B27: 2049
A28: 25 | B28: 2050
A29: 26 | B29: 2051
A30: 27 | B30: 2052
A31: 28 | B31: 2053
A32: 29 | B32: 2054
A33: 30 | B33: 2055
A34: 31 | B34: 2056
A35: 32 | B35: 2057
A36: 33 | B36: 2058
A37: 34 | B37: 2059
A38: 35 | B38: =B37+1 -> 2060
A39: 36 | B39: 2061
A40: 37 | B40: 2062
A41: 38 | B41: 2063
A42: 39 | B42: 2064
A43: 40 | B43: 2065
A44: 41 | B44: 2066
A45: 42 | B45: 2067
A46: 43 | B46: 2068
A47: 44 | B47: 2069
A48: 45 | B48: 2070
A49: 46 | B49: 2071
A50: 47 | B50: 2072
A51: 48 | B51: 2073
A52: 49 | B52: 2074
A53: 50 | B53: 2075
A54: 51 | B54: 2076
A55: 52 | B55: 2077
A56: 53 | B56: 2078
A57: 54 | B57: 2079
A58: 55 | B58: 2080
A59: 56 | B59: 2081
A60: 57 | B60: 2082
A61: 58 | B61: 2083
A62: 59 | B62: 2084
A63: 60 | B63: 2085

Sheet BenefitsCFA
A1: SCENARIO A BENEFITS CASH FLOWS | C1: Option 1 | G1: Option 2 | K1: Option 3 | O1: Option 4 | S1: Option 5 | W1: Option 6 | AA1: Option 7 | AE1: Option 8 | AI1: Option 9 | AM1: Option 10
A2: Period | B2: Date | C2: Benefit Type 1 $ | D2: Benefit Type 2 $ | E2: Benefit Type 3 $ | F2: Option Total $ | G2: Benefit Type 1 $ | H2: Benefit Type 2 $ | I2: Benefit Type 3 $ | J2: Option Total $ | K2: Benefit Type 1 $ | L2: Benefit Type 2 $ | M2: Benefit Type 3 $ | N2: Option Total $ | O2: Benefit Type 1 $ | P2: Benefit Type 2 $ | Q2: Benefit Type 3 $ | R2: Option Total $ | S2: Benefit Type 1 $ | T2: Benefit Type 2 $ | U2: Benefit Type 3 $ | V2: Option Total $ | W2: Benefit Type 1 $ | X2: Benefit Type 2 $ | Y2: Benefit Type 3 $ | Z2: Option Total $ | AA2: Benefit Type 1 $ | AB2: Benefit Type 2 $ | AC2: Benefit Type 3 $ | AD2: Option Total $ | AE2: Benefit Type 1 $ | AF2: Benefit Type 2 $ | AG2: Benefit Type 3 $ | AH2: Option Total $ | AI2: Benefit Type 1 $ | AJ2: Benefit Type 2 $ | AK2: Benefit Type 3 $ | AL2: Option Total $ | AM2: Benefit Type 1 $ | AN2: Benefit Type 2 $ | AO2: Benefit Type 3 $ | AP2: Option Total $
A3: 0 | B3: =Year_Zero -> 2025 | C3: =IF($A3>Year_Term,0,BenefitsA!C3) -> 0 | D3: =IF($A3>Year_Term,0,BenefitsA!D3) -> 0 | E3: =IF($A3>Year_Term,0,BenefitsA!E3) -> 0 | F3: =IF($A3>Year_Term,0,SUM(C3:E3)) -> 0 | G3: =IF($A3>Year_Term,0,BenefitsA!F3) -> 0 | H3: =IF($A3>Year_Term,0,BenefitsA!G3) -> 0 | I3: =IF($A3>Year_Term,0,BenefitsA!H3) -> 0 | J3: =IF($A3>Year_Term,0,SUM(G3:I3)) -> 0 | K3: =IF($A3>Year_Term,0,BenefitsA!I3) -> 0 | L3: =IF($A3>Year_Term,0,BenefitsA!J3) -> 0 | M3: =IF($A3>Year_Term,0,BenefitsA!K3) -> 0 | N3: =IF($A3>Year_Term,0,SUM(K3:M3)) -> 0 | O3: =IF($A3>Year_Term,0,BenefitsA!L3) -> 0 | P3: =IF($A3>Year_Term,0,BenefitsA!M3) -> 0 | Q3: =IF($A3>Year_Term,0,BenefitsA!N3) -> 0 | R3: =IF($A3>Year_Term,0,SUM(O3:Q3)) -> 0 | S3: =IF($A3>Year_Term,0,BenefitsA!O3) -> 0 | T3: =IF($A3>Year_Term,0,BenefitsA!P3) -> 0 | U3: =IF($A3>Year_Term,0,BenefitsA!Q3) -> 0 | V3: =IF($A3>Year_Term,0,SUM(S3:U3)) -> 0 | W3: =IF($A3>Year_Term,0,BenefitsA!R3) -> 0 | X3: =IF($A3>Year_Term,0,BenefitsA!S3) -> 0 | Y3: =IF($A3>Year_Term,0,BenefitsA!T3) -> 0 | Z3: =IF($A3>Year_Term,0,SUM(W3:Y3)) -> 0 | AA3: =IF($A3>Year_Term,0,BenefitsA!U3) -> 0 | AB3: =IF($A3>Year_Term,0,BenefitsA!V3) -> 0 | AC3: =IF($A3>Year_Term,0,BenefitsA!W3) -> 0 | AD3: =IF($A3>Year_Term,0,SUM(AA3:AC3)) -> 0 | AE3: =IF($A3>Year_Term,0,BenefitsA!X3) -> 0 | AF3: =IF($A3>Year_Term,0,BenefitsA!Y3) -> 0 | AG3: =IF($A3>Year_Term,0,BenefitsA!Z3) -> 0 | AH3: =IF($A3>Year_Term,0,SUM(AE3:AG3)) -> 0 | AI3: =IF($A3>Year_Term,0,BenefitsA!AA3) -> 0 | AJ3: =IF($A3>Year_Term,0,BenefitsA!AB3) -> 0 | AK3: =IF($A3>Year_Term,0,BenefitsA!AC3) -> 0 | AL3: =IF($A3>Year_Term,0,SUM(AI3:AK3)) -> 0 | AM3: =IF($A3>Year_Term,0,BenefitsA!AD3) -> 0 | AN3: =IF($A3>Year_Term,0,BenefitsA!AE3) -> 0 | AO3: =IF($A3>Year_Term,0,BenefitsA!AF3) -> 0 | AP3: =IF($A3>Year_Term,0,SUM(AM3:AO3)) -> 0
A4: 1 | B4: =B3+1 -> 2026 | C4: =IF($A4>Year_Term,0,BenefitsA!C4) -> 0 | D4: =IF($A4>Year_Term,0,BenefitsA!D4) -> 0 | E4: =IF($A4>Year_Term,0,BenefitsA!E4) -> 0 | F4: =IF($A4>Year_Term,0,SUM(C4:E4)) -> 0 | G4: =IF($A4>Year_Term,0,BenefitsA!F4) -> 0 | H4: =IF($A4>Year_Term,0,BenefitsA!G4) -> 0 | I4: =IF($A4>Year_Term,0,BenefitsA!H4) -> 0 | J4: =IF($A4>Year_Term,0,SUM(G4:I4)) -> 0 | K4: =IF($A4>Year_Term,0,BenefitsA!I4) -> 0 | L4: =IF($A4>Year_Term,0,BenefitsA!J4) -> 0 | M4: =IF($A4>Year_Term,0,BenefitsA!K4) -> 0 | N4: =IF($A4>Year_Term,0,SUM(K4:M4)) -> 0 | O4: =IF($A4>Year_Term,0,BenefitsA!L4) -> 0 | P4: =IF($A4>Year_Term,0,BenefitsA!M4) -> 0 | Q4: =IF($A4>Year_Term,0,BenefitsA!N4) -> 0 | R4: =IF($A4>Year_Term,0,SUM(O4:Q4)) -> 0 | S4: =IF($A4>Year_Term,0,BenefitsA!O4) -> 0 | T4: =IF($A4>Year_Term,0,BenefitsA!P4) -> 0 | U4: =IF($A4>Year_Term,0,BenefitsA!Q4) -> 0 | V4: =IF($A4>Year_Term,0,SUM(S4:U4)) -> 0 | W4: =IF($A4>Year_Term,0,BenefitsA!R4) -> 0 | X4: =IF($A4>Year_Term,0,BenefitsA!S4) -> 0 | Y4: =IF($A4>Year_Term,0,BenefitsA!T4) -> 0 | Z4: =IF($A4>Year_Term,0,SUM(W4:Y4)) -> 0 | AA4: =IF($A4>Year_Term,0,BenefitsA!U4) -> 0 | AB4: =IF($A4>Year_Term,0,BenefitsA!V4) -> 0 | AC4: =IF($A4>Year_Term,0,BenefitsA!W4) -> 0 | AD4: =IF($A4>Year_Term,0,SUM(AA4:AC4)) -> 0 | AE4: =IF($A4>Year_Term,0,BenefitsA!X4) -> 0 | AF4: =IF($A4>Year_Term,0,BenefitsA!Y4) -> 0 | AG4: =IF($A4>Year_Term,0,BenefitsA!Z4) -> 0 | AH4: =IF($A4>Year_Term,0,SUM(AE4:AG4)) -> 0 | AI4: =IF($A4>Year_Term,0,BenefitsA!AA4) -> 0 | AJ4: =IF($A4>Year_Term,0,BenefitsA!AB4) -> 0 | AK4: =IF($A4>Year_Term,0,BenefitsA!AC4) -> 0 | AL4: =IF($A4>Year_Term,0,SUM(AI4:AK4)) -> 0 | AM4: =IF($A4>Year_Term,0,BenefitsA!AD4) -> 0 | AN4: =IF($A4>Year_Term,0,BenefitsA!AE4) -> 0 | AO4: =IF($A4>Year_Term,0,BenefitsA!AF4) -> 0 | AP4: =IF($A4>Year_Term,0,SUM(AM4:AO4)) -> 0
A5: 2 | B5: =B4+1 -> 2027 | C5: =IF($A5>Year_Term,0,BenefitsA!C5) -> 0 | D5: =IF($A5>Year_Term,0,BenefitsA!D5) -> 0 | E5: =IF($A5>Year_Term,0,BenefitsA!E5) -> 0 | F5: 0 | G5: =IF($A5>Year_Term,0,BenefitsA!F5) -> 0 | H5: =IF($A5>Year_Term,0,BenefitsA!G5) -> 0 | I5: =IF($A5>Year_Term,0,BenefitsA!H5) -> 0 | J5: 0 | K5: =IF($A5>Year_Term,0,BenefitsA!I5) -> 0 | L5: =IF($A5>Year_Term,0,BenefitsA!J5) -> 0 | M5: =IF($A5>Year_Term,0,BenefitsA!K5) -> 0 | N5: 0 | O5: =IF($A5>Year_Term,0,BenefitsA!L5) -> 0 | P5: =IF($A5>Year_Term,0,BenefitsA!M5) -> 0 | Q5: =IF($A5>Year_Term,0,BenefitsA!N5) -> 0 | R5: 0 | S5: =IF($A5>Year_Term,0,BenefitsA!O5) -> 0 | T5: =IF($A5>Year_Term,0,BenefitsA!P5) -> 0 | U5: =IF($A5>Year_Term,0,BenefitsA!Q5) -> 0 | V5: 0 | W5: =IF($A5>Year_Term,0,BenefitsA!R5) -> 0 | X5: =IF($A5>Year_Term,0,BenefitsA!S5) -> 0 | Y5: =IF($A5>Year_Term,0,BenefitsA!T5) -> 0 | Z5: 0 | AA5: =IF($A5>Year_Term,0,BenefitsA!U5) -> 0 | AB5: =IF($A5>Year_Term,0,BenefitsA!V5) -> 0 | AC5: =IF($A5>Year_Term,0,BenefitsA!W5) -> 0 | AD5: 0 | AE5: =IF($A5>Year_Term,0,BenefitsA!X5) -> 0 | AF5: =IF($A5>Year_Term,0,BenefitsA!Y5) -> 0 | AG5: =IF($A5>Year_Term,0,BenefitsA!Z5) -> 0 | AH5: 0 | AI5: =IF($A5>Year_Term,0,BenefitsA!AA5) -> 0 | AJ5: =IF($A5>Year_Term,0,BenefitsA!AB5) -> 0 | AK5: =IF($A5>Year_Term,0,BenefitsA!AC5) -> 0 | AL5: 0 | AM5: =IF($A5>Year_Term,0,BenefitsA!AD5) -> 0 | AN5: =IF($A5>Year_Term,0,BenefitsA!AE5) -> 0 | AO5: =IF($A5>Year_Term,0,BenefitsA!AF5) -> 0 | AP5: 0
A6: 3 | B6: 2028 | C6: =IF($A6>Year_Term,0,BenefitsA!C6) -> 0 | D6: =IF($A6>Year_Term,0,BenefitsA!D6) -> 0 | E6: =IF($A6>Year_Term,0,BenefitsA!E6) -> 0 | F6: 0 | G6: =IF($A6>Year_Term,0,BenefitsA!F6) -> 0 | H6: =IF($A6>Year_Term,0,BenefitsA!G6) -> 0 | I6: =IF($A6>Year_Term,0,BenefitsA!H6) -> 0 | J6: 0 | K6: =IF($A6>Year_Term,0,BenefitsA!I6) -> 0 | L6: =IF($A6>Year_Term,0,BenefitsA!J6) -> 0 | M6: =IF($A6>Year_Term,0,BenefitsA!K6) -> 0 | N6: 0 | O6: =IF($A6>Year_Term,0,BenefitsA!L6) -> 0 | P6: =IF($A6>Year_Term,0,BenefitsA!M6) -> 0 | Q6: =IF($A6>Year_Term,0,BenefitsA!N6) -> 0 | R6: 0 | S6: =IF($A6>Year_Term,0,BenefitsA!O6) -> 0 | T6: =IF($A6>Year_Term,0,BenefitsA!P6) -> 0 | U6: =IF($A6>Year_Term,0,BenefitsA!Q6) -> 0 | V6: 0 | W6: =IF($A6>Year_Term,0,BenefitsA!R6) -> 0 | X6: =IF($A6>Year_Term,0,BenefitsA!S6) -> 0 | Y6: =IF($A6>Year_Term,0,BenefitsA!T6) -> 0 | Z6: 0 | AA6: =IF($A6>Year_Term,0,BenefitsA!U6) -> 0 | AB6: =IF($A6>Year_Term,0,BenefitsA!V6) -> 0 | AC6: =IF($A6>Year_Term,0,BenefitsA!W6) -> 0 | AD6: 0 | AE6: =IF($A6>Year_Term,0,BenefitsA!X6) -> 0 | AF6: =IF($A6>Year_Term,0,BenefitsA!Y6) -> 0 | AG6: =IF($A6>Year_Term,0,BenefitsA!Z6) -> 0 | AH6: 0 | AI6: =IF($A6>Year_Term,0,BenefitsA!AA6) -> 0 | AJ6: =IF($A6>Year_Term,0,BenefitsA!AB6) -> 0 | AK6: =IF($A6>Year_Term,0,BenefitsA!AC6) -> 0 | AL6: 0 | AM6: =IF($A6>Year_Term,0,BenefitsA!AD6) -> 0 | AN6: =IF($A6>Year_Term,0,BenefitsA!AE6) -> 0 | AO6: =IF($A6>Year_Term,0,BenefitsA!AF6) -> 0 | AP6: 0
A7: 4 | B7: 2029 | C7: =IF($A7>Year_Term,0,BenefitsA!C7) -> 0 | D7: =IF($A7>Year_Term,0,BenefitsA!D7) -> 0 | E7: =IF($A7>Year_Term,0,BenefitsA!E7) -> 0 | F7: 0 | G7: =IF($A7>Year_Term,0,BenefitsA!F7) -> 0 | H7: =IF($A7>Year_Term,0,BenefitsA!G7) -> 0 | I7: =IF($A7>Year_Term,0,BenefitsA!H7) -> 0 | J7: 0 | K7: =IF($A7>Year_Term,0,BenefitsA!I7) -> 0 | L7: =IF($A7>Year_Term,0,BenefitsA!J7) -> 0 | M7: =IF($A7>Year_Term,0,BenefitsA!K7) -> 0 | N7: 0 | O7: =IF($A7>Year_Term,0,BenefitsA!L7) -> 0 | P7: =IF($A7>Year_Term,0,BenefitsA!M7) -> 0 | Q7: =IF($A7>Year_Term,0,BenefitsA!N7) -> 0 | R7: 0 | S7: =IF($A7>Year_Term,0,BenefitsA!O7) -> 0 | T7: =IF($A7>Year_Term,0,BenefitsA!P7) -> 0 | U7: =IF($A7>Year_Term,0,BenefitsA!Q7) -> 0 | V7: 0 | W7: =IF($A7>Year_Term,0,BenefitsA!R7) -> 0 | X7: =IF($A7>Year_Term,0,BenefitsA!S7) -> 0 | Y7: =IF($A7>Year_Term,0,BenefitsA!T7) -> 0 | Z7: 0 | AA7: =IF($A7>Year_Term,0,BenefitsA!U7) -> 0 | AB7: =IF($A7>Year_Term,0,BenefitsA!V7) -> 0 | AC7: =IF($A7>Year_Term,0,BenefitsA!W7) -> 0 | AD7: 0 | AE7: =IF($A7>Year_Term,0,BenefitsA!X7) -> 0 | AF7: =IF($A7>Year_Term,0,BenefitsA!Y7) -> 0 | AG7: =IF($A7>Year_Term,0,BenefitsA!Z7) -> 0 | AH7: 0 | AI7: =IF($A7>Year_Term,0,BenefitsA!AA7) -> 0 | AJ7: =IF($A7>Year_Term,0,BenefitsA!AB7) -> 0 | AK7: =IF($A7>Year_Term,0,BenefitsA!AC7) -> 0 | AL7: 0 | AM7: =IF($A7>Year_Term,0,BenefitsA!AD7) -> 0 | AN7: =IF($A7>Year_Term,0,BenefitsA!AE7) -> 0 | AO7: =IF($A7>Year_Term,0,BenefitsA!AF7) -> 0 | AP7: 0
A8: 5 | B8: 2030 | C8: =IF($A8>Year_Term,0,BenefitsA!C8) -> 0 | D8: =IF($A8>Year_Term,0,BenefitsA!D8) -> 0 | E8: =IF($A8>Year_Term,0,BenefitsA!E8) -> 0 | F8: 0 | G8: =IF($A8>Year_Term,0,BenefitsA!F8) -> 0 | H8: =IF($A8>Year_Term,0,BenefitsA!G8) -> 0 | I8: =IF($A8>Year_Term,0,BenefitsA!H8) -> 0 | J8: 0 | K8: =IF($A8>Year_Term,0,BenefitsA!I8) -> 0 | L8: =IF($A8>Year_Term,0,BenefitsA!J8) -> 0 | M8: =IF($A8>Year_Term,0,BenefitsA!K8) -> 0 | N8: 0 | O8: =IF($A8>Year_Term,0,BenefitsA!L8) -> 0 | P8: =IF($A8>Year_Term,0,BenefitsA!M8) -> 0 | Q8: =IF($A8>Year_Term,0,BenefitsA!N8) -> 0 | R8: 0 | S8: =IF($A8>Year_Term,0,BenefitsA!O8) -> 0 | T8: =IF($A8>Year_Term,0,BenefitsA!P8) -> 0 | U8: =IF($A8>Year_Term,0,BenefitsA!Q8) -> 0 | V8: 0 | W8: =IF($A8>Year_Term,0,BenefitsA!R8) -> 0 | X8: =IF($A8>Year_Term,0,BenefitsA!S8) -> 0 | Y8: =IF($A8>Year_Term,0,BenefitsA!T8) -> 0 | Z8: 0 | AA8: =IF($A8>Year_Term,0,BenefitsA!U8) -> 0 | AB8: =IF($A8>Year_Term,0,BenefitsA!V8) -> 0 | AC8: =IF($A8>Year_Term,0,BenefitsA!W8) -> 0 | AD8: 0 | AE8: =IF($A8>Year_Term,0,BenefitsA!X8) -> 0 | AF8: =IF($A8>Year_Term,0,BenefitsA!Y8) -> 0 | AG8: =IF($A8>Year_Term,0,BenefitsA!Z8) -> 0 | AH8: 0 | AI8: =IF($A8>Year_Term,0,BenefitsA!AA8) -> 0 | AJ8: =IF($A8>Year_Term,0,BenefitsA!AB8) -> 0 | AK8: =IF($A8>Year_Term,0,BenefitsA!AC8) -> 0 | AL8: 0 | AM8: =IF($A8>Year_Term,0,BenefitsA!AD8) -> 0 | AN8: =IF($A8>Year_Term,0,BenefitsA!AE8) -> 0 | AO8: =IF($A8>Year_Term,0,BenefitsA!AF8) -> 0 | AP8: 0
A9: 6 | B9: 2031 | C9: =IF($A9>Year_Term,0,BenefitsA!C9) -> 0 | D9: =IF($A9>Year_Term,0,BenefitsA!D9) -> 0 | E9: =IF($A9>Year_Term,0,BenefitsA!E9) -> 0 | F9: 0 | G9: =IF($A9>Year_Term,0,BenefitsA!F9) -> 0 | H9: =IF($A9>Year_Term,0,BenefitsA!G9) -> 0 | I9: =IF($A9>Year_Term,0,BenefitsA!H9) -> 0 | J9: 0 | K9: =IF($A9>Year_Term,0,BenefitsA!I9) -> 0 | L9: =IF($A9>Year_Term,0,BenefitsA!J9) -> 0 | M9: =IF($A9>Year_Term,0,BenefitsA!K9) -> 0 | N9: 0 | O9: =IF($A9>Year_Term,0,BenefitsA!L9) -> 0 | P9: =IF($A9>Year_Term,0,BenefitsA!M9) -> 0 | Q9: =IF($A9>Year_Term,0,BenefitsA!N9) -> 0 | R9: 0 | S9: =IF($A9>Year_Term,0,BenefitsA!O9) -> 0 | T9: =IF($A9>Year_Term,0,BenefitsA!P9) -> 0 | U9: =IF($A9>Year_Term,0,BenefitsA!Q9) -> 0 | V9: 0 | W9: =IF($A9>Year_Term,0,BenefitsA!R9) -> 0 | X9: =IF($A9>Year_Term,0,BenefitsA!S9) -> 0 | Y9: =IF($A9>Year_Term,0,BenefitsA!T9) -> 0 | Z9: 0 | AA9: =IF($A9>Year_Term,0,BenefitsA!U9) -> 0 | AB9: =IF($A9>Year_Term,0,BenefitsA!V9) -> 0 | AC9: =IF($A9>Year_Term,0,BenefitsA!W9) -> 0 | AD9: 0 | AE9: =IF($A9>Year_Term,0,BenefitsA!X9) -> 0 | AF9: =IF($A9>Year_Term,0,BenefitsA!Y9) -> 0 | AG9: =IF($A9>Year_Term,0,BenefitsA!Z9) -> 0 | AH9: 0 | AI9: =IF($A9>Year_Term,0,BenefitsA!AA9) -> 0 | AJ9: =IF($A9>Year_Term,0,BenefitsA!AB9) -> 0 | AK9: =IF($A9>Year_Term,0,BenefitsA!AC9) -> 0 | AL9: 0 | AM9: =IF($A9>Year_Term,0,BenefitsA!AD9) -> 0 | AN9: =IF($A9>Year_Term,0,BenefitsA!AE9) -> 0 | AO9: =IF($A9>Year_Term,0,BenefitsA!AF9) -> 0 | AP9: 0
A10: 7 | B10: 2032 | C10: =IF($A10>Year_Term,0,BenefitsA!C10) -> 0 | D10: =IF($A10>Year_Term,0,BenefitsA!D10) -> 0 | E10: =IF($A10>Year_Term,0,BenefitsA!E10) -> 0 | F10: 0 | G10: =IF($A10>Year_Term,0,BenefitsA!F10) -> 0 | H10: =IF($A10>Year_Term,0,BenefitsA!G10) -> 0 | I10: =IF($A10>Year_Term,0,BenefitsA!H10) -> 0 | J10: 0 | K10: =IF($A10>Year_Term,0,BenefitsA!I10) -> 0 | L10: =IF($A10>Year_Term,0,BenefitsA!J10) -> 0 | M10: =IF($A10>Year_Term,0,BenefitsA!K10) -> 0 | N10: 0 | O10: =IF($A10>Year_Term,0,BenefitsA!L10) -> 0 | P10: =IF($A10>Year_Term,0,BenefitsA!M10) -> 0 | Q10: =IF($A10>Year_Term,0,BenefitsA!N10) -> 0 | R10: 0 | S10: =IF($A10>Year_Term,0,BenefitsA!O10) -> 0 | T10: =IF($A10>Year_Term,0,BenefitsA!P10) -> 0 | U10: =IF($A10>Year_Term,0,BenefitsA!Q10) -> 0 | V10: 0 | W10: =IF($A10>Year_Term,0,BenefitsA!R10) -> 0 | X10: =IF($A10>Year_Term,0,BenefitsA!S10) -> 0 | Y10: =IF($A10>Year_Term,0,BenefitsA!T10) -> 0 | Z10: 0 | AA10: =IF($A10>Year_Term,0,BenefitsA!U10) -> 0 | AB10: =IF($A10>Year_Term,0,BenefitsA!V10) -> 0 | AC10: =IF($A10>Year_Term,0,BenefitsA!W10) -> 0 | AD10: 0 | AE10: =IF($A10>Year_Term,0,BenefitsA!X10) -> 0 | AF10: =IF($A10>Year_Term,0,BenefitsA!Y10) -> 0 | AG10: =IF($A10>Year_Term,0,BenefitsA!Z10) -> 0 | AH10: 0 | AI10: =IF($A10>Year_Term,0,BenefitsA!AA10) -> 0 | AJ10: =IF($A10>Year_Term,0,BenefitsA!AB10) -> 0 | AK10: =IF($A10>Year_Term,0,BenefitsA!AC10) -> 0 | AL10: 0 | AM10: =IF($A10>Year_Term,0,BenefitsA!AD10) -> 0 | AN10: =IF($A10>Year_Term,0,BenefitsA!AE10) -> 0 | AO10: =IF($A10>Year_Term,0,BenefitsA!AF10) -> 0 | AP10: 0
A11: 8 | B11: 2033 | C11: =IF($A11>Year_Term,0,BenefitsA!C11) -> 0 | D11: =IF($A11>Year_Term,0,BenefitsA!D11) -> 0 | E11: =IF($A11>Year_Term,0,BenefitsA!E11) -> 0 | F11: 0 | G11: =IF($A11>Year_Term,0,BenefitsA!F11) -> 0 | H11: =IF($A11>Year_Term,0,BenefitsA!G11) -> 0 | I11: =IF($A11>Year_Term,0,BenefitsA!H11) -> 0 | J11: 0 | K11: =IF($A11>Year_Term,0,BenefitsA!I11) -> 0 | L11: =IF($A11>Year_Term,0,BenefitsA!J11) -> 0 | M11: =IF($A11>Year_Term,0,BenefitsA!K11) -> 0 | N11: 0 | O11: =IF($A11>Year_Term,0,BenefitsA!L11) -> 0 | P11: =IF($A11>Year_Term,0,BenefitsA!M11) -> 0 | Q11: =IF($A11>Year_Term,0,BenefitsA!N11) -> 0 | R11: 0 | S11: =IF($A11>Year_Term,0,BenefitsA!O11) -> 0 | T11: =IF($A11>Year_Term,0,BenefitsA!P11) -> 0 | U11: =IF($A11>Year_Term,0,BenefitsA!Q11) -> 0 | V11: 0 | W11: =IF($A11>Year_Term,0,BenefitsA!R11) -> 0 | X11: =IF($A11>Year_Term,0,BenefitsA!S11) -> 0 | Y11: =IF($A11>Year_Term,0,BenefitsA!T11) -> 0 | Z11: 0 | AA11: =IF($A11>Year_Term,0,BenefitsA!U11) -> 0 | AB11: =IF($A11>Year_Term,0,BenefitsA!V11) -> 0 | AC11: =IF($A11>Year_Term,0,BenefitsA!W11) -> 0 | AD11: 0 | AE11: =IF($A11>Year_Term,0,BenefitsA!X11) -> 0 | AF11: =IF($A11>Year_Term,0,BenefitsA!Y11) -> 0 | AG11: =IF($A11>Year_Term,0,BenefitsA!Z11) -> 0 | AH11: 0 | AI11: =IF($A11>Year_Term,0,BenefitsA!AA11) -> 0 | AJ11: =IF($A11>Year_Term,0,BenefitsA!AB11) -> 0 | AK11: =IF($A11>Year_Term,0,BenefitsA!AC11) -> 0 | AL11: 0 | AM11: =IF($A11>Year_Term,0,BenefitsA!AD11) -> 0 | AN11: =IF($A11>Year_Term,0,BenefitsA!AE11) -> 0 | AO11: =IF($A11>Year_Term,0,BenefitsA!AF11) -> 0 | AP11: 0
A12: 9 | B12: 2034 | C12: =IF($A12>Year_Term,0,BenefitsA!C12) -> 0 | D12: =IF($A12>Year_Term,0,BenefitsA!D12) -> 0 | E12: =IF($A12>Year_Term,0,BenefitsA!E12) -> 0 | F12: 0 | G12: =IF($A12>Year_Term,0,BenefitsA!F12) -> 0 | H12: =IF($A12>Year_Term,0,BenefitsA!G12) -> 0 | I12: =IF($A12>Year_Term,0,BenefitsA!H12) -> 0 | J12: 0 | K12: =IF($A12>Year_Term,0,BenefitsA!I12) -> 0 | L12: =IF($A12>Year_Term,0,BenefitsA!J12) -> 0 | M12: =IF($A12>Year_Term,0,BenefitsA!K12) -> 0 | N12: 0 | O12: =IF($A12>Year_Term,0,BenefitsA!L12) -> 0 | P12: =IF($A12>Year_Term,0,BenefitsA!M12) -> 0 | Q12: =IF($A12>Year_Term,0,BenefitsA!N12) -> 0 | R12: 0 | S12: =IF($A12>Year_Term,0,BenefitsA!O12) -> 0 | T12: =IF($A12>Year_Term,0,BenefitsA!P12) -> 0 | U12: =IF($A12>Year_Term,0,BenefitsA!Q12) -> 0 | V12: 0 | W12: =IF($A12>Year_Term,0,BenefitsA!R12) -> 0 | X12: =IF($A12>Year_Term,0,BenefitsA!S12) -> 0 | Y12: =IF($A12>Year_Term,0,BenefitsA!T12) -> 0 | Z12: 0 | AA12: =IF($A12>Year_Term,0,BenefitsA!U12) -> 0 | AB12: =IF($A12>Year_Term,0,BenefitsA!V12) -> 0 | AC12: =IF($A12>Year_Term,0,BenefitsA!W12) -> 0 | AD12: 0 | AE12: =IF($A12>Year_Term,0,BenefitsA!X12) -> 0 | AF12: =IF($A12>Year_Term,0,BenefitsA!Y12) -> 0 | AG12: =IF($A12>Year_Term,0,BenefitsA!Z12) -> 0 | AH12: 0 | AI12: =IF($A12>Year_Term,0,BenefitsA!AA12) -> 0 | AJ12: =IF($A12>Year_Term,0,BenefitsA!AB12) -> 0 | AK12: =IF($A12>Year_Term,0,BenefitsA!AC12) -> 0 | AL12: 0 | AM12: =IF($A12>Year_Term,0,BenefitsA!AD12) -> 0 | AN12: =IF($A12>Year_Term,0,BenefitsA!AE12) -> 0 | AO12: =IF($A12>Year_Term,0,BenefitsA!AF12) -> 0 | AP12: 0
A13: 10 | B13: 2035 | C13: =IF($A13>Year_Term,0,BenefitsA!C13) -> 0 | D13: =IF($A13>Year_Term,0,BenefitsA!D13) -> 0 | E13: =IF($A13>Year_Term,0,BenefitsA!E13) -> 0 | F13: =IF($A13>Year_Term,0,SUM(C13:E13)) -> 0 | G13: =IF($A13>Year_Term,0,BenefitsA!F13) -> 0 | H13: =IF($A13>Year_Term,0,BenefitsA!G13) -> 0 | I13: =IF($A13>Year_Term,0,BenefitsA!H13) -> 0 | J13: =IF($A13>Year_Term,0,SUM(G13:I13)) -> 0 | K13: =IF($A13>Year_Term,0,BenefitsA!I13) -> 0 | L13: =IF($A13>Year_Term,0,BenefitsA!J13) -> 0 | M13: =IF($A13>Year_Term,0,BenefitsA!K13) -> 0 | N13: =IF($A13>Year_Term,0,SUM(K13:M13)) -> 0 | O13: =IF($A13>Year_Term,0,BenefitsA!L13) -> 0 | P13: =IF($A13>Year_Term,0,BenefitsA!M13) -> 0 | Q13: =IF($A13>Year_Term,0,BenefitsA!N13) -> 0 | R13: =IF($A13>Year_Term,0,SUM(O13:Q13)) -> 0 | S13: =IF($A13>Year_Term,0,BenefitsA!O13) -> 0 | T13: =IF($A13>Year_Term,0,BenefitsA!P13) -> 0 | U13: =IF($A13>Year_Term,0,BenefitsA!Q13) -> 0 | V13: =IF($A13>Year_Term,0,SUM(S13:U13)) -> 0 | W13: =IF($A13>Year_Term,0,BenefitsA!R13) -> 0 | X13: =IF($A13>Year_Term,0,BenefitsA!S13) -> 0 | Y13: =IF($A13>Year_Term,0,BenefitsA!T13) -> 0 | Z13: =IF($A13>Year_Term,0,SUM(W13:Y13)) -> 0 | AA13: =IF($A13>Year_Term,0,BenefitsA!U13) -> 0 | AB13: =IF($A13>Year_Term,0,BenefitsA!V13) -> 0 | AC13: =IF($A13>Year_Term,0,BenefitsA!W13) -> 0 | AD13: =IF($A13>Year_Term,0,SUM(AA13:AC13)) -> 0 | AE13: =IF($A13>Year_Term,0,BenefitsA!X13) -> 0 | AF13: =IF($A13>Year_Term,0,BenefitsA!Y13) -> 0 | AG13: =IF($A13>Year_Term,0,BenefitsA!Z13) -> 0 | AH13: =IF($A13>Year_Term,0,SUM(AE13:AG13)) -> 0 | AI13: =IF($A13>Year_Term,0,BenefitsA!AA13) -> 0 | AJ13: =IF($A13>Year_Term,0,BenefitsA!AB13) -> 0 | AK13: =IF($A13>Year_Term,0,BenefitsA!AC13) -> 0 | AL13: =IF($A13>Year_Term,0,SUM(AI13:AK13)) -> 0 | AM13: =IF($A13>Year_Term,0,BenefitsA!AD13) -> 0 | AN13: =IF($A13>Year_Term,0,BenefitsA!AE13) -> 0 | AO13: =IF($A13>Year_Term,0,BenefitsA!AF13) -> 0 | AP13: =IF($A13>Year_Term,0,SUM(AM13:AO13)) -> 0
A14: 11 | B14: 2036 | C14: =IF($A14>Year_Term,0,BenefitsA!C14) -> 0 | D14: =IF($A14>Year_Term,0,BenefitsA!D14) -> 0 | E14: =IF($A14>Year_Term,0,BenefitsA!E14) -> 0 | F14: 0 | G14: =IF($A14>Year_Term,0,BenefitsA!F14) -> 0 | H14: =IF($A14>Year_Term,0,BenefitsA!G14) -> 0 | I14: =IF($A14>Year_Term,0,BenefitsA!H14) -> 0 | J14: 0 | K14: =IF($A14>Year_Term,0,BenefitsA!I14) -> 0 | L14: =IF($A14>Year_Term,0,BenefitsA!J14) -> 0 | M14: =IF($A14>Year_Term,0,BenefitsA!K14) -> 0 | N14: 0 | O14: =IF($A14>Year_Term,0,BenefitsA!L14) -> 0 | P14: =IF($A14>Year_Term,0,BenefitsA!M14) -> 0 | Q14: =IF($A14>Year_Term,0,BenefitsA!N14) -> 0 | R14: 0 | S14: =IF($A14>Year_Term,0,BenefitsA!O14) -> 0 | T14: =IF($A14>Year_Term,0,BenefitsA!P14) -> 0 | U14: =IF($A14>Year_Term,0,BenefitsA!Q14) -> 0 | V14: 0 | W14: =IF($A14>Year_Term,0,BenefitsA!R14) -> 0 | X14: =IF($A14>Year_Term,0,BenefitsA!S14) -> 0 | Y14: =IF($A14>Year_Term,0,BenefitsA!T14) -> 0 | Z14: 0 | AA14: =IF($A14>Year_Term,0,BenefitsA!U14) -> 0 | AB14: =IF($A14>Year_Term,0,BenefitsA!V14) -> 0 | AC14: =IF($A14>Year_Term,0,BenefitsA!W14) -> 0 | AD14: 0 | AE14: =IF($A14>Year_Term,0,BenefitsA!X14) -> 0 | AF14: =IF($A14>Year_Term,0,BenefitsA!Y14) -> 0 | AG14: =IF($A14>Year_Term,0,BenefitsA!Z14) -> 0 | AH14: 0 | AI14: =IF($A14>Year_Term,0,BenefitsA!AA14) -> 0 | AJ14: =IF($A14>Year_Term,0,BenefitsA!AB14) -> 0 | AK14: =IF($A14>Year_Term,0,BenefitsA!AC14) -> 0 | AL14: 0 | AM14: =IF($A14>Year_Term,0,BenefitsA!AD14) -> 0 | AN14: =IF($A14>Year_Term,0,BenefitsA!AE14) -> 0 | AO14: =IF($A14>Year_Term,0,BenefitsA!AF14) -> 0 | AP14: 0
A15: 12 | B15: 2037 | C15: =IF($A15>Year_Term,0,BenefitsA!C15) -> 0 | D15: =IF($A15>Year_Term,0,BenefitsA!D15) -> 0 | E15: =IF($A15>Year_Term,0,BenefitsA!E15) -> 0 | F15: 0 | G15: =IF($A15>Year_Term,0,BenefitsA!F15) -> 0 | H15: =IF($A15>Year_Term,0,BenefitsA!G15) -> 0 | I15: =IF($A15>Year_Term,0,BenefitsA!H15) -> 0 | J15: 0 | K15: =IF($A15>Year_Term,0,BenefitsA!I15) -> 0 | L15: =IF($A15>Year_Term,0,BenefitsA!J15) -> 0 | M15: =IF($A15>Year_Term,0,BenefitsA!K15) -> 0 | N15: 0 | O15: =IF($A15>Year_Term,0,BenefitsA!L15) -> 0 | P15: =IF($A15>Year_Term,0,BenefitsA!M15) -> 0 | Q15: =IF($A15>Year_Term,0,BenefitsA!N15) -> 0 | R15: 0 | S15: =IF($A15>Year_Term,0,BenefitsA!O15) -> 0 | T15: =IF($A15>Year_Term,0,BenefitsA!P15) -> 0 | U15: =IF($A15>Year_Term,0,BenefitsA!Q15) -> 0 | V15: 0 | W15: =IF($A15>Year_Term,0,BenefitsA!R15) -> 0 | X15: =IF($A15>Year_Term,0,BenefitsA!S15) -> 0 | Y15: =IF($A15>Year_Term,0,BenefitsA!T15) -> 0 | Z15: 0 | AA15: =IF($A15>Year_Term,0,BenefitsA!U15) -> 0 | AB15: =IF($A15>Year_Term,0,BenefitsA!V15) -> 0 | AC15: =IF($A15>Year_Term,0,BenefitsA!W15) -> 0 | AD15: 0 | AE15: =IF($A15>Year_Term,0,BenefitsA!X15) -> 0 | AF15: =IF($A15>Year_Term,0,BenefitsA!Y15) -> 0 | AG15: =IF($A15>Year_Term,0,BenefitsA!Z15) -> 0 | AH15: 0 | AI15: =IF($A15>Year_Term,0,BenefitsA!AA15) -> 0 | AJ15: =IF($A15>Year_Term,0,BenefitsA!AB15) -> 0 | AK15: =IF($A15>Year_Term,0,BenefitsA!AC15) -> 0 | AL15: 0 | AM15: =IF($A15>Year_Term,0,BenefitsA!AD15) -> 0 | AN15: =IF($A15>Year_Term,0,BenefitsA!AE15) -> 0 | AO15: =IF($A15>Year_Term,0,BenefitsA!AF15) -> 0 | AP15: 0
A16: 13 | B16: 2038 | C16: =IF($A16>Year_Term,0,BenefitsA!C16) -> 0 | D16: =IF($A16>Year_Term,0,BenefitsA!D16) -> 0 | E16: =IF($A16>Year_Term,0,BenefitsA!E16) -> 0 | F16: 0 | G16: =IF($A16>Year_Term,0,BenefitsA!F16) -> 0 | H16: =IF($A16>Year_Term,0,BenefitsA!G16) -> 0 | I16: =IF($A16>Year_Term,0,BenefitsA!H16) -> 0 | J16: 0 | K16: =IF($A16>Year_Term,0,BenefitsA!I16) -> 0 | L16: =IF($A16>Year_Term,0,BenefitsA!J16) -> 0 | M16: =IF($A16>Year_Term,0,BenefitsA!K16) -> 0 | N16: 0 | O16: =IF($A16>Year_Term,0,BenefitsA!L16) -> 0 | P16: =IF($A16>Year_Term,0,BenefitsA!M16) -> 0 | Q16: =IF($A16>Year_Term,0,BenefitsA!N16) -> 0 | R16: 0 | S16: =IF($A16>Year_Term,0,BenefitsA!O16) -> 0 | T16: =IF($A16>Year_Term,0,BenefitsA!P16) -> 0 | U16: =IF($A16>Year_Term,0,BenefitsA!Q16) -> 0 | V16: 0 | W16: =IF($A16>Year_Term,0,BenefitsA!R16) -> 0 | X16: =IF($A16>Year_Term,0,BenefitsA!S16) -> 0 | Y16: =IF($A16>Year_Term,0,BenefitsA!T16) -> 0 | Z16: 0 | AA16: =IF($A16>Year_Term,0,BenefitsA!U16) -> 0 | AB16: =IF($A16>Year_Term,0,BenefitsA!V16) -> 0 | AC16: =IF($A16>Year_Term,0,BenefitsA!W16) -> 0 | AD16: 0 | AE16: =IF($A16>Year_Term,0,BenefitsA!X16) -> 0 | AF16: =IF($A16>Year_Term,0,BenefitsA!Y16) -> 0 | AG16: =IF($A16>Year_Term,0,BenefitsA!Z16) -> 0 | AH16: 0 | AI16: =IF($A16>Year_Term,0,BenefitsA!AA16) -> 0 | AJ16: =IF($A16>Year_Term,0,BenefitsA!AB16) -> 0 | AK16: =IF($A16>Year_Term,0,BenefitsA!AC16) -> 0 | AL16: 0 | AM16: =IF($A16>Year_Term,0,BenefitsA!AD16) -> 0 | AN16: =IF($A16>Year_Term,0,BenefitsA!AE16) -> 0 | AO16: =IF($A16>Year_Term,0,BenefitsA!AF16) -> 0 | AP16: 0
A17: 14 | B17: 2039 | C17: =IF($A17>Year_Term,0,BenefitsA!C17) -> 0 | D17: =IF($A17>Year_Term,0,BenefitsA!D17) -> 0 | E17: =IF($A17>Year_Term,0,BenefitsA!E17) -> 0 | F17: 0 | G17: =IF($A17>Year_Term,0,BenefitsA!F17) -> 0 | H17: =IF($A17>Year_Term,0,BenefitsA!G17) -> 0 | I17: =IF($A17>Year_Term,0,BenefitsA!H17) -> 0 | J17: 0 | K17: =IF($A17>Year_Term,0,BenefitsA!I17) -> 0 | L17: =IF($A17>Year_Term,0,BenefitsA!J17) -> 0 | M17: =IF($A17>Year_Term,0,BenefitsA!K17) -> 0 | N17: 0 | O17: =IF($A17>Year_Term,0,BenefitsA!L17) -> 0 | P17: =IF($A17>Year_Term,0,BenefitsA!M17) -> 0 | Q17: =IF($A17>Year_Term,0,BenefitsA!N17) -> 0 | R17: 0 | S17: =IF($A17>Year_Term,0,BenefitsA!O17) -> 0 | T17: =IF($A17>Year_Term,0,BenefitsA!P17) -> 0 | U17: =IF($A17>Year_Term,0,BenefitsA!Q17) -> 0 | V17: 0 | W17: =IF($A17>Year_Term,0,BenefitsA!R17) -> 0 | X17: =IF($A17>Year_Term,0,BenefitsA!S17) -> 0 | Y17: =IF($A17>Year_Term,0,BenefitsA!T17) -> 0 | Z17: 0 | AA17: =IF($A17>Year_Term,0,BenefitsA!U17) -> 0 | AB17: =IF($A17>Year_Term,0,BenefitsA!V17) -> 0 | AC17: =IF($A17>Year_Term,0,BenefitsA!W17) -> 0 | AD17: 0 | AE17: =IF($A17>Year_Term,0,BenefitsA!X17) -> 0 | AF17: =IF($A17>Year_Term,0,BenefitsA!Y17) -> 0 | AG17: =IF($A17>Year_Term,0,BenefitsA!Z17) -> 0 | AH17: 0 | AI17: =IF($A17>Year_Term,0,BenefitsA!AA17) -> 0 | AJ17: =IF($A17>Year_Term,0,BenefitsA!AB17) -> 0 | AK17: =IF($A17>Year_Term,0,BenefitsA!AC17) -> 0 | AL17: 0 | AM17: =IF($A17>Year_Term,0,BenefitsA!AD17) -> 0 | AN17: =IF($A17>Year_Term,0,BenefitsA!AE17) -> 0 | AO17: =IF($A17>Year_Term,0,BenefitsA!AF17) -> 0 | AP17: 0
A18: 15 | B18: 2040 | C18: =IF($A18>Year_Term,0,BenefitsA!C18) -> 0 | D18: =IF($A18>Year_Term,0,BenefitsA!D18) -> 0 | E18: =IF($A18>Year_Term,0,BenefitsA!E18) -> 0 | F18: 0 | G18: =IF($A18>Year_Term,0,BenefitsA!F18) -> 0 | H18: =IF($A18>Year_Term,0,BenefitsA!G18) -> 0 | I18: =IF($A18>Year_Term,0,BenefitsA!H18) -> 0 | J18: 0 | K18: =IF($A18>Year_Term,0,BenefitsA!I18) -> 0 | L18: =IF($A18>Year_Term,0,BenefitsA!J18) -> 0 | M18: =IF($A18>Year_Term,0,BenefitsA!K18) -> 0 | N18: 0 | O18: =IF($A18>Year_Term,0,BenefitsA!L18) -> 0 | P18: =IF($A18>Year_Term,0,BenefitsA!M18) -> 0 | Q18: =IF($A18>Year_Term,0,BenefitsA!N18) -> 0 | R18: 0 | S18: =IF($A18>Year_Term,0,BenefitsA!O18) -> 0 | T18: =IF($A18>Year_Term,0,BenefitsA!P18) -> 0 | U18: =IF($A18>Year_Term,0,BenefitsA!Q18) -> 0 | V18: 0 | W18: =IF($A18>Year_Term,0,BenefitsA!R18) -> 0 | X18: =IF($A18>Year_Term,0,BenefitsA!S18) -> 0 | Y18: =IF($A18>Year_Term,0,BenefitsA!T18) -> 0 | Z18: 0 | AA18: =IF($A18>Year_Term,0,BenefitsA!U18) -> 0 | AB18: =IF($A18>Year_Term,0,BenefitsA!V18) -> 0 | AC18: =IF($A18>Year_Term,0,BenefitsA!W18) -> 0 | AD18: 0 | AE18: =IF($A18>Year_Term,0,BenefitsA!X18) -> 0 | AF18: =IF($A18>Year_Term,0,BenefitsA!Y18) -> 0 | AG18: =IF($A18>Year_Term,0,BenefitsA!Z18) -> 0 | AH18: 0 | AI18: =IF($A18>Year_Term,0,BenefitsA!AA18) -> 0 | AJ18: =IF($A18>Year_Term,0,BenefitsA!AB18) -> 0 | AK18: =IF($A18>Year_Term,0,BenefitsA!AC18) -> 0 | AL18: 0 | AM18: =IF($A18>Year_Term,0,BenefitsA!AD18) -> 0 | AN18: =IF($A18>Year_Term,0,BenefitsA!AE18) -> 0 | AO18: =IF($A18>Year_Term,0,BenefitsA!AF18) -> 0 | AP18: 0
A19: 16 | B19: 2041 | C19: =IF($A19>Year_Term,0,BenefitsA!C19) -> 0 | D19: =IF($A19>Year_Term,0,BenefitsA!D19) -> 0 | E19: =IF($A19>Year_Term,0,BenefitsA!E19) -> 0 | F19: 0 | G19: =IF($A19>Year_Term,0,BenefitsA!F19) -> 0 | H19: =IF($A19>Year_Term,0,BenefitsA!G19) -> 0 | I19: =IF($A19>Year_Term,0,BenefitsA!H19) -> 0 | J19: 0 | K19: =IF($A19>Year_Term,0,BenefitsA!I19) -> 0 | L19: =IF($A19>Year_Term,0,BenefitsA!J19) -> 0 | M19: =IF($A19>Year_Term,0,BenefitsA!K19) -> 0 | N19: 0 | O19: =IF($A19>Year_Term,0,BenefitsA!L19) -> 0 | P19: =IF($A19>Year_Term,0,BenefitsA!M19) -> 0 | Q19: =IF($A19>Year_Term,0,BenefitsA!N19) -> 0 | R19: 0 | S19: =IF($A19>Year_Term,0,BenefitsA!O19) -> 0 | T19: =IF($A19>Year_Term,0,BenefitsA!P19) -> 0 | U19: =IF($A19>Year_Term,0,BenefitsA!Q19) -> 0 | V19: 0 | W19: =IF($A19>Year_Term,0,BenefitsA!R19) -> 0 | X19: =IF($A19>Year_Term,0,BenefitsA!S19) -> 0 | Y19: =IF($A19>Year_Term,0,BenefitsA!T19) -> 0 | Z19: 0 | AA19: =IF($A19>Year_Term,0,BenefitsA!U19) -> 0 | AB19: =IF($A19>Year_Term,0,BenefitsA!V19) -> 0 | AC19: =IF($A19>Year_Term,0,BenefitsA!W19) -> 0 | AD19: 0 | AE19: =IF($A19>Year_Term,0,BenefitsA!X19) -> 0 | AF19: =IF($A19>Year_Term,0,BenefitsA!Y19) -> 0 | AG19: =IF($A19>Year_Term,0,BenefitsA!Z19) -> 0 | AH19: 0 | AI19: =IF($A19>Year_Term,0,BenefitsA!AA19) -> 0 | AJ19: =IF($A19>Year_Term,0,BenefitsA!AB19) -> 0 | AK19: =IF($A19>Year_Term,0,BenefitsA!AC19) -> 0 | AL19: 0 | AM19: =IF($A19>Year_Term,0,BenefitsA!AD19) -> 0 | AN19: =IF($A19>Year_Term,0,BenefitsA!AE19) -> 0 | AO19: =IF($A19>Year_Term,0,BenefitsA!AF19) -> 0 | AP19: 0
A20: 17 | B20: 2042 | C20: =IF($A20>Year_Term,0,BenefitsA!C20) -> 0 | D20: =IF($A20>Year_Term,0,BenefitsA!D20) -> 0 | E20: =IF($A20>Year_Term,0,BenefitsA!E20) -> 0 | F20: 0 | G20: =IF($A20>Year_Term,0,BenefitsA!F20) -> 0 | H20: =IF($A20>Year_Term,0,BenefitsA!G20) -> 0 | I20: =IF($A20>Year_Term,0,BenefitsA!H20) -> 0 | J20: 0 | K20: =IF($A20>Year_Term,0,BenefitsA!I20) -> 0 | L20: =IF($A20>Year_Term,0,BenefitsA!J20) -> 0 | M20: =IF($A20>Year_Term,0,BenefitsA!K20) -> 0 | N20: 0 | O20: =IF($A20>Year_Term,0,BenefitsA!L20) -> 0 | P20: =IF($A20>Year_Term,0,BenefitsA!M20) -> 0 | Q20: =IF($A20>Year_Term,0,BenefitsA!N20) -> 0 | R20: 0 | S20: =IF($A20>Year_Term,0,BenefitsA!O20) -> 0 | T20: =IF($A20>Year_Term,0,BenefitsA!P20) -> 0 | U20: =IF($A20>Year_Term,0,BenefitsA!Q20) -> 0 | V20: 0 | W20: =IF($A20>Year_Term,0,BenefitsA!R20) -> 0 | X20: =IF($A20>Year_Term,0,BenefitsA!S20) -> 0 | Y20: =IF($A20>Year_Term,0,BenefitsA!T20) -> 0 | Z20: 0 | AA20: =IF($A20>Year_Term,0,BenefitsA!U20) -> 0 | AB20: =IF($A20>Year_Term,0,BenefitsA!V20) -> 0 | AC20: =IF($A20>Year_Term,0,BenefitsA!W20) -> 0 | AD20: 0 | AE20: =IF($A20>Year_Term,0,BenefitsA!X20) -> 0 | AF20: =IF($A20>Year_Term,0,BenefitsA!Y20) -> 0 | AG20: =IF($A20>Year_Term,0,BenefitsA!Z20) -> 0 | AH20: 0 | AI20: =IF($A20>Year_Term,0,BenefitsA!AA20) -> 0 | AJ20: =IF($A20>Year_Term,0,BenefitsA!AB20) -> 0 | AK20: =IF($A20>Year_Term,0,BenefitsA!AC20) -> 0 | AL20: 0 | AM20: =IF($A20>Year_Term,0,BenefitsA!AD20) -> 0 | AN20: =IF($A20>Year_Term,0,BenefitsA!AE20) -> 0 | AO20: =IF($A20>Year_Term,0,BenefitsA!AF20) -> 0 | AP20: 0
A21: 18 | B21: 2043 | C21: =IF($A21>Year_Term,0,BenefitsA!C21) -> 0 | D21: =IF($A21>Year_Term,0,BenefitsA!D21) -> 0 | E21: =IF($A21>Year_Term,0,BenefitsA!E21) -> 0 | F21: 0 | G21: =IF($A21>Year_Term,0,BenefitsA!F21) -> 0 | H21: =IF($A21>Year_Term,0,BenefitsA!G21) -> 0 | I21: =IF($A21>Year_Term,0,BenefitsA!H21) -> 0 | J21: 0 | K21: =IF($A21>Year_Term,0,BenefitsA!I21) -> 0 | L21: =IF($A21>Year_Term,0,BenefitsA!J21) -> 0 | M21: =IF($A21>Year_Term,0,BenefitsA!K21) -> 0 | N21: 0 | O21: =IF($A21>Year_Term,0,BenefitsA!L21) -> 0 | P21: =IF($A21>Year_Term,0,BenefitsA!M21) -> 0 | Q21: =IF($A21>Year_Term,0,BenefitsA!N21) -> 0 | R21: 0 | S21: =IF($A21>Year_Term,0,BenefitsA!O21) -> 0 | T21: =IF($A21>Year_Term,0,BenefitsA!P21) -> 0 | U21: =IF($A21>Year_Term,0,BenefitsA!Q21) -> 0 | V21: 0 | W21: =IF($A21>Year_Term,0,BenefitsA!R21) -> 0 | X21: =IF($A21>Year_Term,0,BenefitsA!S21) -> 0 | Y21: =IF($A21>Year_Term,0,BenefitsA!T21) -> 0 | Z21: 0 | AA21: =IF($A21>Year_Term,0,BenefitsA!U21) -> 0 | AB21: =IF($A21>Year_Term,0,BenefitsA!V21) -> 0 | AC21: =IF($A21>Year_Term,0,BenefitsA!W21) -> 0 | AD21: 0 | AE21: =IF($A21>Year_Term,0,BenefitsA!X21) -> 0 | AF21: =IF($A21>Year_Term,0,BenefitsA!Y21) -> 0 | AG21: =IF($A21>Year_Term,0,BenefitsA!Z21) -> 0 | AH21: 0 | AI21: =IF($A21>Year_Term,0,BenefitsA!AA21) -> 0 | AJ21: =IF($A21>Year_Term,0,BenefitsA!AB21) -> 0 | AK21: =IF($A21>Year_Term,0,BenefitsA!AC21) -> 0 | AL21: 0 | AM21: =IF($A21>Year_Term,0,BenefitsA!AD21) -> 0 | AN21: =IF($A21>Year_Term,0,BenefitsA!AE21) -> 0 | AO21: =IF($A21>Year_Term,0,BenefitsA!AF21) -> 0 | AP21: 0
A22: 19 | B22: 2044 | C22: =IF($A22>Year_Term,0,BenefitsA!C22) -> 0 | D22: =IF($A22>Year_Term,0,BenefitsA!D22) -> 0 | E22: =IF($A22>Year_Term,0,BenefitsA!E22) -> 0 | F22: 0 | G22: =IF($A22>Year_Term,0,BenefitsA!F22) -> 0 | H22: =IF($A22>Year_Term,0,BenefitsA!G22) -> 0 | I22: =IF($A22>Year_Term,0,BenefitsA!H22) -> 0 | J22: 0 | K22: =IF($A22>Year_Term,0,BenefitsA!I22) -> 0 | L22: =IF($A22>Year_Term,0,BenefitsA!J22) -> 0 | M22: =IF($A22>Year_Term,0,BenefitsA!K22) -> 0 | N22: 0 | O22: =IF($A22>Year_Term,0,BenefitsA!L22) -> 0 | P22: =IF($A22>Year_Term,0,BenefitsA!M22) -> 0 | Q22: =IF($A22>Year_Term,0,BenefitsA!N22) -> 0 | R22: 0 | S22: =IF($A22>Year_Term,0,BenefitsA!O22) -> 0 | T22: =IF($A22>Year_Term,0,BenefitsA!P22) -> 0 | U22: =IF($A22>Year_Term,0,BenefitsA!Q22) -> 0 | V22: 0 | W22: =IF($A22>Year_Term,0,BenefitsA!R22) -> 0 | X22: =IF($A22>Year_Term,0,BenefitsA!S22) -> 0 | Y22: =IF($A22>Year_Term,0,BenefitsA!T22) -> 0 | Z22: 0 | AA22: =IF($A22>Year_Term,0,BenefitsA!U22) -> 0 | AB22: =IF($A22>Year_Term,0,BenefitsA!V22) -> 0 | AC22: =IF($A22>Year_Term,0,BenefitsA!W22) -> 0 | AD22: 0 | AE22: =IF($A22>Year_Term,0,BenefitsA!X22) -> 0 | AF22: =IF($A22>Year_Term,0,BenefitsA!Y22) -> 0 | AG22: =IF($A22>Year_Term,0,BenefitsA!Z22) -> 0 | AH22: 0 | AI22: =IF($A22>Year_Term,0,BenefitsA!AA22) -> 0 | AJ22: =IF($A22>Year_Term,0,BenefitsA!AB22) -> 0 | AK22: =IF($A22>Year_Term,0,BenefitsA!AC22) -> 0 | AL22: 0 | AM22: =IF($A22>Year_Term,0,BenefitsA!AD22) -> 0 | AN22: =IF($A22>Year_Term,0,BenefitsA!AE22) -> 0 | AO22: =IF($A22>Year_Term,0,BenefitsA!AF22) -> 0 | AP22: 0
A23: 20 | B23: 2045 | C23: =IF($A23>Year_Term,0,BenefitsA!C23) -> 0 | D23: =IF($A23>Year_Term,0,BenefitsA!D23) -> 0 | E23: =IF($A23>Year_Term,0,BenefitsA!E23) -> 0 | F23: 0 | G23: =IF($A23>Year_Term,0,BenefitsA!F23) -> 0 | H23: =IF($A23>Year_Term,0,BenefitsA!G23) -> 0 | I23: =IF($A23>Year_Term,0,BenefitsA!H23) -> 0 | J23: 0 | K23: =IF($A23>Year_Term,0,BenefitsA!I23) -> 0 | L23: =IF($A23>Year_Term,0,BenefitsA!J23) -> 0 | M23: =IF($A23>Year_Term,0,BenefitsA!K23) -> 0 | N23: 0 | O23: =IF($A23>Year_Term,0,BenefitsA!L23) -> 0 | P23: =IF($A23>Year_Term,0,BenefitsA!M23) -> 0 | Q23: =IF($A23>Year_Term,0,BenefitsA!N23) -> 0 | R23: 0 | S23: =IF($A23>Year_Term,0,BenefitsA!O23) -> 0 | T23: =IF($A23>Year_Term,0,BenefitsA!P23) -> 0 | U23: =IF($A23>Year_Term,0,BenefitsA!Q23) -> 0 | V23: 0 | W23: =IF($A23>Year_Term,0,BenefitsA!R23) -> 0 | X23: =IF($A23>Year_Term,0,BenefitsA!S23) -> 0 | Y23: =IF($A23>Year_Term,0,BenefitsA!T23) -> 0 | Z23: 0 | AA23: =IF($A23>Year_Term,0,BenefitsA!U23) -> 0 | AB23: =IF($A23>Year_Term,0,BenefitsA!V23) -> 0 | AC23: =IF($A23>Year_Term,0,BenefitsA!W23) -> 0 | AD23: 0 | AE23: =IF($A23>Year_Term,0,BenefitsA!X23) -> 0 | AF23: =IF($A23>Year_Term,0,BenefitsA!Y23) -> 0 | AG23: =IF($A23>Year_Term,0,BenefitsA!Z23) -> 0 | AH23: 0 | AI23: =IF($A23>Year_Term,0,BenefitsA!AA23) -> 0 | AJ23: =IF($A23>Year_Term,0,BenefitsA!AB23) -> 0 | AK23: =IF($A23>Year_Term,0,BenefitsA!AC23) -> 0 | AL23: 0 | AM23: =IF($A23>Year_Term,0,BenefitsA!AD23) -> 0 | AN23: =IF($A23>Year_Term,0,BenefitsA!AE23) -> 0 | AO23: =IF($A23>Year_Term,0,BenefitsA!AF23) -> 0 | AP23: 0
A24: 21 | B24: 2046 | C24: =IF($A24>Year_Term,0,BenefitsA!C24) -> 0 | D24: =IF($A24>Year_Term,0,BenefitsA!D24) -> 0 | E24: =IF($A24>Year_Term,0,BenefitsA!E24) -> 0 | F24: 0 | G24: =IF($A24>Year_Term,0,BenefitsA!F24) -> 0 | H24: =IF($A24>Year_Term,0,BenefitsA!G24) -> 0 | I24: =IF($A24>Year_Term,0,BenefitsA!H24) -> 0 | J24: 0 | K24: =IF($A24>Year_Term,0,BenefitsA!I24) -> 0 | L24: =IF($A24>Year_Term,0,BenefitsA!J24) -> 0 | M24: =IF($A24>Year_Term,0,BenefitsA!K24) -> 0 | N24: 0 | O24: =IF($A24>Year_Term,0,BenefitsA!L24) -> 0 | P24: =IF($A24>Year_Term,0,BenefitsA!M24) -> 0 | Q24: =IF($A24>Year_Term,0,BenefitsA!N24) -> 0 | R24: 0 | S24: =IF($A24>Year_Term,0,BenefitsA!O24) -> 0 | T24: =IF($A24>Year_Term,0,BenefitsA!P24) -> 0 | U24: =IF($A24>Year_Term,0,BenefitsA!Q24) -> 0 | V24: 0 | W24: =IF($A24>Year_Term,0,BenefitsA!R24) -> 0 | X24: =IF($A24>Year_Term,0,BenefitsA!S24) -> 0 | Y24: =IF($A24>Year_Term,0,BenefitsA!T24) -> 0 | Z24: 0 | AA24: =IF($A24>Year_Term,0,BenefitsA!U24) -> 0 | AB24: =IF($A24>Year_Term,0,BenefitsA!V24) -> 0 | AC24: =IF($A24>Year_Term,0,BenefitsA!W24) -> 0 | AD24: 0 | AE24: =IF($A24>Year_Term,0,BenefitsA!X24) -> 0 | AF24: =IF($A24>Year_Term,0,BenefitsA!Y24) -> 0 | AG24: =IF($A24>Year_Term,0,BenefitsA!Z24) -> 0 | AH24: 0 | AI24: =IF($A24>Year_Term,0,BenefitsA!AA24) -> 0 | AJ24: =IF($A24>Year_Term,0,BenefitsA!AB24) -> 0 | AK24: =IF($A24>Year_Term,0,BenefitsA!AC24) -> 0 | AL24: 0 | AM24: =IF($A24>Year_Term,0,BenefitsA!AD24) -> 0 | AN24: =IF($A24>Year_Term,0,BenefitsA!AE24) -> 0 | AO24: =IF($A24>Year_Term,0,BenefitsA!AF24) -> 0 | AP24: 0
A25: 22 | B25: 2047 | C25: =IF($A25>Year_Term,0,BenefitsA!C25) -> 0 | D25: =IF($A25>Year_Term,0,BenefitsA!D25) -> 0 | E25: =IF($A25>Year_Term,0,BenefitsA!E25) -> 0 | F25: 0 | G25: =IF($A25>Year_Term,0,BenefitsA!F25) -> 0 | H25: =IF($A25>Year_Term,0,BenefitsA!G25) -> 0 | I25: =IF($A25>Year_Term,0,BenefitsA!H25) -> 0 | J25: 0 | K25: =IF($A25>Year_Term,0,BenefitsA!I25) -> 0 | L25: =IF($A25>Year_Term,0,BenefitsA!J25) -> 0 | M25: =IF($A25>Year_Term,0,BenefitsA!K25) -> 0 | N25: 0 | O25: =IF($A25>Year_Term,0,BenefitsA!L25) -> 0 | P25: =IF($A25>Year_Term,0,BenefitsA!M25) -> 0 | Q25: =IF($A25>Year_Term,0,BenefitsA!N25) -> 0 | R25: 0 | S25: =IF($A25>Year_Term,0,BenefitsA!O25) -> 0 | T25: =IF($A25>Year_Term,0,BenefitsA!P25) -> 0 | U25: =IF($A25>Year_Term,0,BenefitsA!Q25) -> 0 | V25: 0 | W25: =IF($A25>Year_Term,0,BenefitsA!R25) -> 0 | X25: =IF($A25>Year_Term,0,BenefitsA!S25) -> 0 | Y25: =IF($A25>Year_Term,0,BenefitsA!T25) -> 0 | Z25: 0 | AA25: =IF($A25>Year_Term,0,BenefitsA!U25) -> 0 | AB25: =IF($A25>Year_Term,0,BenefitsA!V25) -> 0 | AC25: =IF($A25>Year_Term,0,BenefitsA!W25) -> 0 | AD25: 0 | AE25: =IF($A25>Year_Term,0,BenefitsA!X25) -> 0 | AF25: =IF($A25>Year_Term,0,BenefitsA!Y25) -> 0 | AG25: =IF($A25>Year_Term,0,BenefitsA!Z25) -> 0 | AH25: 0 | AI25: =IF($A25>Year_Term,0,BenefitsA!AA25) -> 0 | AJ25: =IF($A25>Year_Term,0,BenefitsA!AB25) -> 0 | AK25: =IF($A25>Year_Term,0,BenefitsA!AC25) -> 0 | AL25: 0 | AM25: =IF($A25>Year_Term,0,BenefitsA!AD25) -> 0 | AN25: =IF($A25>Year_Term,0,BenefitsA!AE25) -> 0 | AO25: =IF($A25>Year_Term,0,BenefitsA!AF25) -> 0 | AP25: 0
A26: 23 | B26: 2048 | C26: =IF($A26>Year_Term,0,BenefitsA!C26) -> 0 | D26: =IF($A26>Year_Term,0,BenefitsA!D26) -> 0 | E26: =IF($A26>Year_Term,0,BenefitsA!E26) -> 0 | F26: 0 | G26: =IF($A26>Year_Term,0,BenefitsA!F26) -> 0 | H26: =IF($A26>Year_Term,0,BenefitsA!G26) -> 0 | I26: =IF($A26>Year_Term,0,BenefitsA!H26) -> 0 | J26: 0 | K26: =IF($A26>Year_Term,0,BenefitsA!I26) -> 0 | L26: =IF($A26>Year_Term,0,BenefitsA!J26) -> 0 | M26: =IF($A26>Year_Term,0,BenefitsA!K26) -> 0 | N26: 0 | O26: =IF($A26>Year_Term,0,BenefitsA!L26) -> 0 | P26: =IF($A26>Year_Term,0,BenefitsA!M26) -> 0 | Q26: =IF($A26>Year_Term,0,BenefitsA!N26) -> 0 | R26: 0 | S26: =IF($A26>Year_Term,0,BenefitsA!O26) -> 0 | T26: =IF($A26>Year_Term,0,BenefitsA!P26) -> 0 | U26: =IF($A26>Year_Term,0,BenefitsA!Q26) -> 0 | V26: 0 | W26: =IF($A26>Year_Term,0,BenefitsA!R26) -> 0 | X26: =IF($A26>Year_Term,0,BenefitsA!S26) -> 0 | Y26: =IF($A26>Year_Term,0,BenefitsA!T26) -> 0 | Z26: 0 | AA26: =IF($A26>Year_Term,0,BenefitsA!U26) -> 0 | AB26: =IF($A26>Year_Term,0,BenefitsA!V26) -> 0 | AC26: =IF($A26>Year_Term,0,BenefitsA!W26) -> 0 | AD26: 0 | AE26: =IF($A26>Year_Term,0,BenefitsA!X26) -> 0 | AF26: =IF($A26>Year_Term,0,BenefitsA!Y26) -> 0 | AG26: =IF($A26>Year_Term,0,BenefitsA!Z26) -> 0 | AH26: 0 | AI26: =IF($A26>Year_Term,0,BenefitsA!AA26) -> 0 | AJ26: =IF($A26>Year_Term,0,BenefitsA!AB26) -> 0 | AK26: =IF($A26>Year_Term,0,BenefitsA!AC26) -> 0 | AL26: 0 | AM26: =IF($A26>Year_Term,0,BenefitsA!AD26) -> 0 | AN26: =IF($A26>Year_Term,0,BenefitsA!AE26) -> 0 | AO26: =IF($A26>Year_Term,0,BenefitsA!AF26) -> 0 | AP26: 0
A27: 24 | B27: 2049 | C27: =IF($A27>Year_Term,0,BenefitsA!C27) -> 0 | D27: =IF($A27>Year_Term,0,BenefitsA!D27) -> 0 | E27: =IF($A27>Year_Term,0,BenefitsA!E27) -> 0 | F27: 0 | G27: =IF($A27>Year_Term,0,BenefitsA!F27) -> 0 | H27: =IF($A27>Year_Term,0,BenefitsA!G27) -> 0 | I27: =IF($A27>Year_Term,0,BenefitsA!H27) -> 0 | J27: 0 | K27: =IF($A27>Year_Term,0,BenefitsA!I27) -> 0 | L27: =IF($A27>Year_Term,0,BenefitsA!J27) -> 0 | M27: =IF($A27>Year_Term,0,BenefitsA!K27) -> 0 | N27: 0 | O27: =IF($A27>Year_Term,0,BenefitsA!L27) -> 0 | P27: =IF($A27>Year_Term,0,BenefitsA!M27) -> 0 | Q27: =IF($A27>Year_Term,0,BenefitsA!N27) -> 0 | R27: 0 | S27: =IF($A27>Year_Term,0,BenefitsA!O27) -> 0 | T27: =IF($A27>Year_Term,0,BenefitsA!P27) -> 0 | U27: =IF($A27>Year_Term,0,BenefitsA!Q27) -> 0 | V27: 0 | W27: =IF($A27>Year_Term,0,BenefitsA!R27) -> 0 | X27: =IF($A27>Year_Term,0,BenefitsA!S27) -> 0 | Y27: =IF($A27>Year_Term,0,BenefitsA!T27) -> 0 | Z27: 0 | AA27: =IF($A27>Year_Term,0,BenefitsA!U27) -> 0 | AB27: =IF($A27>Year_Term,0,BenefitsA!V27) -> 0 | AC27: =IF($A27>Year_Term,0,BenefitsA!W27) -> 0 | AD27: 0 | AE27: =IF($A27>Year_Term,0,BenefitsA!X27) -> 0 | AF27: =IF($A27>Year_Term,0,BenefitsA!Y27) -> 0 | AG27: =IF($A27>Year_Term,0,BenefitsA!Z27) -> 0 | AH27: 0 | AI27: =IF($A27>Year_Term,0,BenefitsA!AA27) -> 0 | AJ27: =IF($A27>Year_Term,0,BenefitsA!AB27) -> 0 | AK27: =IF($A27>Year_Term,0,BenefitsA!AC27) -> 0 | AL27: 0 | AM27: =IF($A27>Year_Term,0,BenefitsA!AD27) -> 0 | AN27: =IF($A27>Year_Term,0,BenefitsA!AE27) -> 0 | AO27: =IF($A27>Year_Term,0,BenefitsA!AF27) -> 0 | AP27: 0
A28: 25 | B28: 2050 | C28: =IF($A28>Year_Term,0,BenefitsA!C28) -> 0 | D28: =IF($A28>Year_Term,0,BenefitsA!D28) -> 0 | E28: =IF($A28>Year_Term,0,BenefitsA!E28) -> 0 | F28: 0 | G28: =IF($A28>Year_Term,0,BenefitsA!F28) -> 0 | H28: =IF($A28>Year_Term,0,BenefitsA!G28) -> 0 | I28: =IF($A28>Year_Term,0,BenefitsA!H28) -> 0 | J28: 0 | K28: =IF($A28>Year_Term,0,BenefitsA!I28) -> 0 | L28: =IF($A28>Year_Term,0,BenefitsA!J28) -> 0 | M28: =IF($A28>Year_Term,0,BenefitsA!K28) -> 0 | N28: 0 | O28: =IF($A28>Year_Term,0,BenefitsA!L28) -> 0 | P28: =IF($A28>Year_Term,0,BenefitsA!M28) -> 0 | Q28: =IF($A28>Year_Term,0,BenefitsA!N28) -> 0 | R28: 0 | S28: =IF($A28>Year_Term,0,BenefitsA!O28) -> 0 | T28: =IF($A28>Year_Term,0,BenefitsA!P28) -> 0 | U28: =IF($A28>Year_Term,0,BenefitsA!Q28) -> 0 | V28: 0 | W28: =IF($A28>Year_Term,0,BenefitsA!R28) -> 0 | X28: =IF($A28>Year_Term,0,BenefitsA!S28) -> 0 | Y28: =IF($A28>Year_Term,0,BenefitsA!T28) -> 0 | Z28: 0 | AA28: =IF($A28>Year_Term,0,BenefitsA!U28) -> 0 | AB28: =IF($A28>Year_Term,0,BenefitsA!V28) -> 0 | AC28: =IF($A28>Year_Term,0,BenefitsA!W28) -> 0 | AD28: 0 | AE28: =IF($A28>Year_Term,0,BenefitsA!X28) -> 0 | AF28: =IF($A28>Year_Term,0,BenefitsA!Y28) -> 0 | AG28: =IF($A28>Year_Term,0,BenefitsA!Z28) -> 0 | AH28: 0 | AI28: =IF($A28>Year_Term,0,BenefitsA!AA28) -> 0 | AJ28: =IF($A28>Year_Term,0,BenefitsA!AB28) -> 0 | AK28: =IF($A28>Year_Term,0,BenefitsA!AC28) -> 0 | AL28: 0 | AM28: =IF($A28>Year_Term,0,BenefitsA!AD28) -> 0 | AN28: =IF($A28>Year_Term,0,BenefitsA!AE28) -> 0 | AO28: =IF($A28>Year_Term,0,BenefitsA!AF28) -> 0 | AP28: 0
A29: 26 | B29: 2051 | C29: =IF($A29>Year_Term,0,BenefitsA!C29) -> 0 | D29: =IF($A29>Year_Term,0,BenefitsA!D29) -> 0 | E29: =IF($A29>Year_Term,0,BenefitsA!E29) -> 0 | F29: 0 | G29: =IF($A29>Year_Term,0,BenefitsA!F29) -> 0 | H29: =IF($A29>Year_Term,0,BenefitsA!G29) -> 0 | I29: =IF($A29>Year_Term,0,BenefitsA!H29) -> 0 | J29: 0 | K29: =IF($A29>Year_Term,0,BenefitsA!I29) -> 0 | L29: =IF($A29>Year_Term,0,BenefitsA!J29) -> 0 | M29: =IF($A29>Year_Term,0,BenefitsA!K29) -> 0 | N29: 0 | O29: =IF($A29>Year_Term,0,BenefitsA!L29) -> 0 | P29: =IF($A29>Year_Term,0,BenefitsA!M29) -> 0 | Q29: =IF($A29>Year_Term,0,BenefitsA!N29) -> 0 | R29: 0 | S29: =IF($A29>Year_Term,0,BenefitsA!O29) -> 0 | T29: =IF($A29>Year_Term,0,BenefitsA!P29) -> 0 | U29: =IF($A29>Year_Term,0,BenefitsA!Q29) -> 0 | V29: 0 | W29: =IF($A29>Year_Term,0,BenefitsA!R29) -> 0 | X29: =IF($A29>Year_Term,0,BenefitsA!S29) -> 0 | Y29: =IF($A29>Year_Term,0,BenefitsA!T29) -> 0 | Z29: 0 | AA29: =IF($A29>Year_Term,0,BenefitsA!U29) -> 0 | AB29: =IF($A29>Year_Term,0,BenefitsA!V29) -> 0 | AC29: =IF($A29>Year_Term,0,BenefitsA!W29) -> 0 | AD29: 0 | AE29: =IF($A29>Year_Term,0,BenefitsA!X29) -> 0 | AF29: =IF($A29>Year_Term,0,BenefitsA!Y29) -> 0 | AG29: =IF($A29>Year_Term,0,BenefitsA!Z29) -> 0 | AH29: 0 | AI29: =IF($A29>Year_Term,0,BenefitsA!AA29) -> 0 | AJ29: =IF($A29>Year_Term,0,BenefitsA!AB29) -> 0 | AK29: =IF($A29>Year_Term,0,BenefitsA!AC29) -> 0 | AL29: 0 | AM29: =IF($A29>Year_Term,0,BenefitsA!AD29) -> 0 | AN29: =IF($A29>Year_Term,0,BenefitsA!AE29) -> 0 | AO29: =IF($A29>Year_Term,0,BenefitsA!AF29) -> 0 | AP29: 0
A30: 27 | B30: 2052 | C30: =IF($A30>Year_Term,0,BenefitsA!C30) -> 0 | D30: =IF($A30>Year_Term,0,BenefitsA!D30) -> 0 | E30: =IF($A30>Year_Term,0,BenefitsA!E30) -> 0 | F30: 0 | G30: =IF($A30>Year_Term,0,BenefitsA!F30) -> 0 | H30: =IF($A30>Year_Term,0,BenefitsA!G30) -> 0 | I30: =IF($A30>Year_Term,0,BenefitsA!H30) -> 0 | J30: 0 | K30: =IF($A30>Year_Term,0,BenefitsA!I30) -> 0 | L30: =IF($A30>Year_Term,0,BenefitsA!J30) -> 0 | M30: =IF($A30>Year_Term,0,BenefitsA!K30) -> 0 | N30: 0 | O30: =IF($A30>Year_Term,0,BenefitsA!L30) -> 0 | P30: =IF($A30>Year_Term,0,BenefitsA!M30) -> 0 | Q30: =IF($A30>Year_Term,0,BenefitsA!N30) -> 0 | R30: 0 | S30: =IF($A30>Year_Term,0,BenefitsA!O30) -> 0 | T30: =IF($A30>Year_Term,0,BenefitsA!P30) -> 0 | U30: =IF($A30>Year_Term,0,BenefitsA!Q30) -> 0 | V30: 0 | W30: =IF($A30>Year_Term,0,BenefitsA!R30) -> 0 | X30: =IF($A30>Year_Term,0,BenefitsA!S30) -> 0 | Y30: =IF($A30>Year_Term,0,BenefitsA!T30) -> 0 | Z30: 0 | AA30: =IF($A30>Year_Term,0,BenefitsA!U30) -> 0 | AB30: =IF($A30>Year_Term,0,BenefitsA!V30) -> 0 | AC30: =IF($A30>Year_Term,0,BenefitsA!W30) -> 0 | AD30: 0 | AE30: =IF($A30>Year_Term,0,BenefitsA!X30) -> 0 | AF30: =IF($A30>Year_Term,0,BenefitsA!Y30) -> 0 | AG30: =IF($A30>Year_Term,0,BenefitsA!Z30) -> 0 | AH30: 0 | AI30: =IF($A30>Year_Term,0,BenefitsA!AA30) -> 0 | AJ30: =IF($A30>Year_Term,0,BenefitsA!AB30) -> 0 | AK30: =IF($A30>Year_Term,0,BenefitsA!AC30) -> 0 | AL30: 0 | AM30: =IF($A30>Year_Term,0,BenefitsA!AD30) -> 0 | AN30: =IF($A30>Year_Term,0,BenefitsA!AE30) -> 0 | AO30: =IF($A30>Year_Term,0,BenefitsA!AF30) -> 0 | AP30: 0
A31: 28 | B31: 2053 | C31: =IF($A31>Year_Term,0,BenefitsA!C31) -> 0 | D31: =IF($A31>Year_Term,0,BenefitsA!D31) -> 0 | E31: =IF($A31>Year_Term,0,BenefitsA!E31) -> 0 | F31: 0 | G31: =IF($A31>Year_Term,0,BenefitsA!F31) -> 0 | H31: =IF($A31>Year_Term,0,BenefitsA!G31) -> 0 | I31: =IF($A31>Year_Term,0,BenefitsA!H31) -> 0 | J31: 0 | K31: =IF($A31>Year_Term,0,BenefitsA!I31) -> 0 | L31: =IF($A31>Year_Term,0,BenefitsA!J31) -> 0 | M31: =IF($A31>Year_Term,0,BenefitsA!K31) -> 0 | N31: 0 | O31: =IF($A31>Year_Term,0,BenefitsA!L31) -> 0 | P31: =IF($A31>Year_Term,0,BenefitsA!M31) -> 0 | Q31: =IF($A31>Year_Term,0,BenefitsA!N31) -> 0 | R31: 0 | S31: =IF($A31>Year_Term,0,BenefitsA!O31) -> 0 | T31: =IF($A31>Year_Term,0,BenefitsA!P31) -> 0 | U31: =IF($A31>Year_Term,0,BenefitsA!Q31) -> 0 | V31: 0 | W31: =IF($A31>Year_Term,0,BenefitsA!R31) -> 0 | X31: =IF($A31>Year_Term,0,BenefitsA!S31) -> 0 | Y31: =IF($A31>Year_Term,0,BenefitsA!T31) -> 0 | Z31: 0 | AA31: =IF($A31>Year_Term,0,BenefitsA!U31) -> 0 | AB31: =IF($A31>Year_Term,0,BenefitsA!V31) -> 0 | AC31: =IF($A31>Year_Term,0,BenefitsA!W31) -> 0 | AD31: 0 | AE31: =IF($A31>Year_Term,0,BenefitsA!X31) -> 0 | AF31: =IF($A31>Year_Term,0,BenefitsA!Y31) -> 0 | AG31: =IF($A31>Year_Term,0,BenefitsA!Z31) -> 0 | AH31: 0 | AI31: =IF($A31>Year_Term,0,BenefitsA!AA31) -> 0 | AJ31: =IF($A31>Year_Term,0,BenefitsA!AB31) -> 0 | AK31: =IF($A31>Year_Term,0,BenefitsA!AC31) -> 0 | AL31: 0 | AM31: =IF($A31>Year_Term,0,BenefitsA!AD31) -> 0 | AN31: =IF($A31>Year_Term,0,BenefitsA!AE31) -> 0 | AO31: =IF($A31>Year_Term,0,BenefitsA!AF31) -> 0 | AP31: 0
A32: 29 | B32: 2054 | C32: =IF($A32>Year_Term,0,BenefitsA!C32) -> 0 | D32: =IF($A32>Year_Term,0,BenefitsA!D32) -> 0 | E32: =IF($A32>Year_Term,0,BenefitsA!E32) -> 0 | F32: 0 | G32: =IF($A32>Year_Term,0,BenefitsA!F32) -> 0 | H32: =IF($A32>Year_Term,0,BenefitsA!G32) -> 0 | I32: =IF($A32>Year_Term,0,BenefitsA!H32) -> 0 | J32: 0 | K32: =IF($A32>Year_Term,0,BenefitsA!I32) -> 0 | L32: =IF($A32>Year_Term,0,BenefitsA!J32) -> 0 | M32: =IF($A32>Year_Term,0,BenefitsA!K32) -> 0 | N32: 0 | O32: =IF($A32>Year_Term,0,BenefitsA!L32) -> 0 | P32: =IF($A32>Year_Term,0,BenefitsA!M32) -> 0 | Q32: =IF($A32>Year_Term,0,BenefitsA!N32) -> 0 | R32: 0 | S32: =IF($A32>Year_Term,0,BenefitsA!O32) -> 0 | T32: =IF($A32>Year_Term,0,BenefitsA!P32) -> 0 | U32: =IF($A32>Year_Term,0,BenefitsA!Q32) -> 0 | V32: 0 | W32: =IF($A32>Year_Term,0,BenefitsA!R32) -> 0 | X32: =IF($A32>Year_Term,0,BenefitsA!S32) -> 0 | Y32: =IF($A32>Year_Term,0,BenefitsA!T32) -> 0 | Z32: 0 | AA32: =IF($A32>Year_Term,0,BenefitsA!U32) -> 0 | AB32: =IF($A32>Year_Term,0,BenefitsA!V32) -> 0 | AC32: =IF($A32>Year_Term,0,BenefitsA!W32) -> 0 | AD32: 0 | AE32: =IF($A32>Year_Term,0,BenefitsA!X32) -> 0 | AF32: =IF($A32>Year_Term,0,BenefitsA!Y32) -> 0 | AG32: =IF($A32>Year_Term,0,BenefitsA!Z32) -> 0 | AH32: 0 | AI32: =IF($A32>Year_Term,0,BenefitsA!AA32) -> 0 | AJ32: =IF($A32>Year_Term,0,BenefitsA!AB32) -> 0 | AK32: =IF($A32>Year_Term,0,BenefitsA!AC32) -> 0 | AL32: 0 | AM32: =IF($A32>Year_Term,0,BenefitsA!AD32) -> 0 | AN32: =IF($A32>Year_Term,0,BenefitsA!AE32) -> 0 | AO32: =IF($A32>Year_Term,0,BenefitsA!AF32) -> 0 | AP32: 0
A33: 30 | B33: 2055 | C33: =IF($A33>Year_Term,0,BenefitsA!C33) -> 0 | D33: =IF($A33>Year_Term,0,BenefitsA!D33) -> 0 | E33: =IF($A33>Year_Term,0,BenefitsA!E33) -> 0 | F33: 0 | G33: =IF($A33>Year_Term,0,BenefitsA!F33) -> 0 | H33: =IF($A33>Year_Term,0,BenefitsA!G33) -> 0 | I33: =IF($A33>Year_Term,0,BenefitsA!H33) -> 0 | J33: 0 | K33: =IF($A33>Year_Term,0,BenefitsA!I33) -> 0 | L33: =IF($A33>Year_Term,0,BenefitsA!J33) -> 0 | M33: =IF($A33>Year_Term,0,BenefitsA!K33) -> 0 | N33: 0 | O33: =IF($A33>Year_Term,0,BenefitsA!L33) -> 0 | P33: =IF($A33>Year_Term,0,BenefitsA!M33) -> 0 | Q33: =IF($A33>Year_Term,0,BenefitsA!N33) -> 0 | R33: 0 | S33: =IF($A33>Year_Term,0,BenefitsA!O33) -> 0 | T33: =IF($A33>Year_Term,0,BenefitsA!P33) -> 0 | U33: =IF($A33>Year_Term,0,BenefitsA!Q33) -> 0 | V33: 0 | W33: =IF($A33>Year_Term,0,BenefitsA!R33) -> 0 | X33: =IF($A33>Year_Term,0,BenefitsA!S33) -> 0 | Y33: =IF($A33>Year_Term,0,BenefitsA!T33) -> 0 | Z33: 0 | AA33: =IF($A33>Year_Term,0,BenefitsA!U33) -> 0 | AB33: =IF($A33>Year_Term,0,BenefitsA!V33) -> 0 | AC33: =IF($A33>Year_Term,0,BenefitsA!W33) -> 0 | AD33: 0 | AE33: =IF($A33>Year_Term,0,BenefitsA!X33) -> 0 | AF33: =IF($A33>Year_Term,0,BenefitsA!Y33) -> 0 | AG33: =IF($A33>Year_Term,0,BenefitsA!Z33) -> 0 | AH33: 0 | AI33: =IF($A33>Year_Term,0,BenefitsA!AA33) -> 0 | AJ33: =IF($A33>Year_Term,0,BenefitsA!AB33) -> 0 | AK33: =IF($A33>Year_Term,0,BenefitsA!AC33) -> 0 | AL33: 0 | AM33: =IF($A33>Year_Term,0,BenefitsA!AD33) -> 0 | AN33: =IF($A33>Year_Term,0,BenefitsA!AE33) -> 0 | AO33: =IF($A33>Year_Term,0,BenefitsA!AF33) -> 0 | AP33: 0
A34: 31 | B34: 2056 | C34: =IF($A34>Year_Term,0,BenefitsA!C34) -> 0 | D34: =IF($A34>Year_Term,0,BenefitsA!D34) -> 0 | E34: =IF($A34>Year_Term,0,BenefitsA!E34) -> 0 | F34: 0 | G34: =IF($A34>Year_Term,0,BenefitsA!F34) -> 0 | H34: =IF($A34>Year_Term,0,BenefitsA!G34) -> 0 | I34: =IF($A34>Year_Term,0,BenefitsA!H34) -> 0 | J34: 0 | K34: =IF($A34>Year_Term,0,BenefitsA!I34) -> 0 | L34: =IF($A34>Year_Term,0,BenefitsA!J34) -> 0 | M34: =IF($A34>Year_Term,0,BenefitsA!K34) -> 0 | N34: 0 | O34: =IF($A34>Year_Term,0,BenefitsA!L34) -> 0 | P34: =IF($A34>Year_Term,0,BenefitsA!M34) -> 0 | Q34: =IF($A34>Year_Term,0,BenefitsA!N34) -> 0 | R34: 0 | S34: =IF($A34>Year_Term,0,BenefitsA!O34) -> 0 | T34: =IF($A34>Year_Term,0,BenefitsA!P34) -> 0 | U34: =IF($A34>Year_Term,0,BenefitsA!Q34) -> 0 | V34: 0 | W34: =IF($A34>Year_Term,0,BenefitsA!R34) -> 0 | X34: =IF($A34>Year_Term,0,BenefitsA!S34) -> 0 | Y34: =IF($A34>Year_Term,0,BenefitsA!T34) -> 0 | Z34: 0 | AA34: =IF($A34>Year_Term,0,BenefitsA!U34) -> 0 | AB34: =IF($A34>Year_Term,0,BenefitsA!V34) -> 0 | AC34: =IF($A34>Year_Term,0,BenefitsA!W34) -> 0 | AD34: 0 | AE34: =IF($A34>Year_Term,0,BenefitsA!X34) -> 0 | AF34: =IF($A34>Year_Term,0,BenefitsA!Y34) -> 0 | AG34: =IF($A34>Year_Term,0,BenefitsA!Z34) -> 0 | AH34: 0 | AI34: =IF($A34>Year_Term,0,BenefitsA!AA34) -> 0 | AJ34: =IF($A34>Year_Term,0,BenefitsA!AB34) -> 0 | AK34: =IF($A34>Year_Term,0,BenefitsA!AC34) -> 0 | AL34: 0 | AM34: =IF($A34>Year_Term,0,BenefitsA!AD34) -> 0 | AN34: =IF($A34>Year_Term,0,BenefitsA!AE34) -> 0 | AO34: =IF($A34>Year_Term,0,BenefitsA!AF34) -> 0 | AP34: 0
A35: 32 | B35: 2057 | C35: =IF($A35>Year_Term,0,BenefitsA!C35) -> 0 | D35: =IF($A35>Year_Term,0,BenefitsA!D35) -> 0 | E35: =IF($A35>Year_Term,0,BenefitsA!E35) -> 0 | F35: 0 | G35: =IF($A35>Year_Term,0,BenefitsA!F35) -> 0 | H35: =IF($A35>Year_Term,0,BenefitsA!G35) -> 0 | I35: =IF($A35>Year_Term,0,BenefitsA!H35) -> 0 | J35: 0 | K35: =IF($A35>Year_Term,0,BenefitsA!I35) -> 0 | L35: =IF($A35>Year_Term,0,BenefitsA!J35) -> 0 | M35: =IF($A35>Year_Term,0,BenefitsA!K35) -> 0 | N35: 0 | O35: =IF($A35>Year_Term,0,BenefitsA!L35) -> 0 | P35: =IF($A35>Year_Term,0,BenefitsA!M35) -> 0 | Q35: =IF($A35>Year_Term,0,BenefitsA!N35) -> 0 | R35: 0 | S35: =IF($A35>Year_Term,0,BenefitsA!O35) -> 0 | T35: =IF($A35>Year_Term,0,BenefitsA!P35) -> 0 | U35: =IF($A35>Year_Term,0,BenefitsA!Q35) -> 0 | V35: 0 | W35: =IF($A35>Year_Term,0,BenefitsA!R35) -> 0 | X35: =IF($A35>Year_Term,0,BenefitsA!S35) -> 0 | Y35: =IF($A35>Year_Term,0,BenefitsA!T35) -> 0 | Z35: 0 | AA35: =IF($A35>Year_Term,0,BenefitsA!U35) -> 0 | AB35: =IF($A35>Year_Term,0,BenefitsA!V35) -> 0 | AC35: =IF($A35>Year_Term,0,BenefitsA!W35) -> 0 | AD35: 0 | AE35: =IF($A35>Year_Term,0,BenefitsA!X35) -> 0 | AF35: =IF($A35>Year_Term,0,BenefitsA!Y35) -> 0 | AG35: =IF($A35>Year_Term,0,BenefitsA!Z35) -> 0 | AH35: 0 | AI35: =IF($A35>Year_Term,0,BenefitsA!AA35) -> 0 | AJ35: =IF($A35>Year_Term,0,BenefitsA!AB35) -> 0 | AK35: =IF($A35>Year_Term,0,BenefitsA!AC35) -> 0 | AL35: 0 | AM35: =IF($A35>Year_Term,0,BenefitsA!AD35) -> 0 | AN35: =IF($A35>Year_Term,0,BenefitsA!AE35) -> 0 | AO35: =IF($A35>Year_Term,0,BenefitsA!AF35) -> 0 | AP35: 0
A36: 33 | B36: 2058 | C36: =IF($A36>Year_Term,0,BenefitsA!C36) -> 0 | D36: =IF($A36>Year_Term,0,BenefitsA!D36) -> 0 | E36: =IF($A36>Year_Term,0,BenefitsA!E36) -> 0 | F36: 0 | G36: =IF($A36>Year_Term,0,BenefitsA!F36) -> 0 | H36: =IF($A36>Year_Term,0,BenefitsA!G36) -> 0 | I36: =IF($A36>Year_Term,0,BenefitsA!H36) -> 0 | J36: 0 | K36: =IF($A36>Year_Term,0,BenefitsA!I36) -> 0 | L36: =IF($A36>Year_Term,0,BenefitsA!J36) -> 0 | M36: =IF($A36>Year_Term,0,BenefitsA!K36) -> 0 | N36: 0 | O36: =IF($A36>Year_Term,0,BenefitsA!L36) -> 0 | P36: =IF($A36>Year_Term,0,BenefitsA!M36) -> 0 | Q36: =IF($A36>Year_Term,0,BenefitsA!N36) -> 0 | R36: 0 | S36: =IF($A36>Year_Term,0,BenefitsA!O36) -> 0 | T36: =IF($A36>Year_Term,0,BenefitsA!P36) -> 0 | U36: =IF($A36>Year_Term,0,BenefitsA!Q36) -> 0 | V36: 0 | W36: =IF($A36>Year_Term,0,BenefitsA!R36) -> 0 | X36: =IF($A36>Year_Term,0,BenefitsA!S36) -> 0 | Y36: =IF($A36>Year_Term,0,BenefitsA!T36) -> 0 | Z36: 0 | AA36: =IF($A36>Year_Term,0,BenefitsA!U36) -> 0 | AB36: =IF($A36>Year_Term,0,BenefitsA!V36) -> 0 | AC36: =IF($A36>Year_Term,0,BenefitsA!W36) -> 0 | AD36: 0 | AE36: =IF($A36>Year_Term,0,BenefitsA!X36) -> 0 | AF36: =IF($A36>Year_Term,0,BenefitsA!Y36) -> 0 | AG36: =IF($A36>Year_Term,0,BenefitsA!Z36) -> 0 | AH36: 0 | AI36: =IF($A36>Year_Term,0,BenefitsA!AA36) -> 0 | AJ36: =IF($A36>Year_Term,0,BenefitsA!AB36) -> 0 | AK36: =IF($A36>Year_Term,0,BenefitsA!AC36) -> 0 | AL36: 0 | AM36: =IF($A36>Year_Term,0,BenefitsA!AD36) -> 0 | AN36: =IF($A36>Year_Term,0,BenefitsA!AE36) -> 0 | AO36: =IF($A36>Year_Term,0,BenefitsA!AF36) -> 0 | AP36: 0
A37: 34 | B37: 2059 | C37: =IF($A37>Year_Term,0,BenefitsA!C37) -> 0 | D37: =IF($A37>Year_Term,0,BenefitsA!D37) -> 0 | E37: =IF($A37>Year_Term,0,BenefitsA!E37) -> 0 | F37: 0 | G37: =IF($A37>Year_Term,0,BenefitsA!F37) -> 0 | H37: =IF($A37>Year_Term,0,BenefitsA!G37) -> 0 | I37: =IF($A37>Year_Term,0,BenefitsA!H37) -> 0 | J37: 0 | K37: =IF($A37>Year_Term,0,BenefitsA!I37) -> 0 | L37: =IF($A37>Year_Term,0,BenefitsA!J37) -> 0 | M37: =IF($A37>Year_Term,0,BenefitsA!K37) -> 0 | N37: 0 | O37: =IF($A37>Year_Term,0,BenefitsA!L37) -> 0 | P37: =IF($A37>Year_Term,0,BenefitsA!M37) -> 0 | Q37: =IF($A37>Year_Term,0,BenefitsA!N37) -> 0 | R37: 0 | S37: =IF($A37>Year_Term,0,BenefitsA!O37) -> 0 | T37: =IF($A37>Year_Term,0,BenefitsA!P37) -> 0 | U37: =IF($A37>Year_Term,0,BenefitsA!Q37) -> 0 | V37: 0 | W37: =IF($A37>Year_Term,0,BenefitsA!R37) -> 0 | X37: =IF($A37>Year_Term,0,BenefitsA!S37) -> 0 | Y37: =IF($A37>Year_Term,0,BenefitsA!T37) -> 0 | Z37: 0 | AA37: =IF($A37>Year_Term,0,BenefitsA!U37) -> 0 | AB37: =IF($A37>Year_Term,0,BenefitsA!V37) -> 0 | AC37: =IF($A37>Year_Term,0,BenefitsA!W37) -> 0 | AD37: 0 | AE37: =IF($A37>Year_Term,0,BenefitsA!X37) -> 0 | AF37: =IF($A37>Year_Term,0,BenefitsA!Y37) -> 0 | AG37: =IF($A37>Year_Term,0,BenefitsA!Z37) -> 0 | AH37: 0 | AI37: =IF($A37>Year_Term,0,BenefitsA!AA37) -> 0 | AJ37: =IF($A37>Year_Term,0,BenefitsA!AB37) -> 0 | AK37: =IF($A37>Year_Term,0,BenefitsA!AC37) -> 0 | AL37: 0 | AM37: =IF($A37>Year_Term,0,BenefitsA!AD37) -> 0 | AN37: =IF($A37>Year_Term,0,BenefitsA!AE37) -> 0 | AO37: =IF($A37>Year_Term,0,BenefitsA!AF37) -> 0 | AP37: 0
A38: 35 | B38: =B37+1 -> 2060 | C38: =IF($A38>Year_Term,0,BenefitsA!C38) -> 0 | D38: =IF($A38>Year_Term,0,BenefitsA!D38) -> 0 | E38: =IF($A38>Year_Term,0,BenefitsA!E38) -> 0 | F38: 0 | G38: =IF($A38>Year_Term,0,BenefitsA!F38) -> 0 | H38: =IF($A38>Year_Term,0,BenefitsA!G38) -> 0 | I38: =IF($A38>Year_Term,0,BenefitsA!H38) -> 0 | J38: 0 | K38: =IF($A38>Year_Term,0,BenefitsA!I38) -> 0 | L38: =IF($A38>Year_Term,0,BenefitsA!J38) -> 0 | M38: =IF($A38>Year_Term,0,BenefitsA!K38) -> 0 | N38: 0 | O38: =IF($A38>Year_Term,0,BenefitsA!L38) -> 0 | P38: =IF($A38>Year_Term,0,BenefitsA!M38) -> 0 | Q38: =IF($A38>Year_Term,0,BenefitsA!N38) -> 0 | R38: 0 | S38: =IF($A38>Year_Term,0,BenefitsA!O38) -> 0 | T38: =IF($A38>Year_Term,0,BenefitsA!P38) -> 0 | U38: =IF($A38>Year_Term,0,BenefitsA!Q38) -> 0 | V38: 0 | W38: =IF($A38>Year_Term,0,BenefitsA!R38) -> 0 | X38: =IF($A38>Year_Term,0,BenefitsA!S38) -> 0 | Y38: =IF($A38>Year_Term,0,BenefitsA!T38) -> 0 | Z38: 0 | AA38: =IF($A38>Year_Term,0,BenefitsA!U38) -> 0 | AB38: =IF($A38>Year_Term,0,BenefitsA!V38) -> 0 | AC38: =IF($A38>Year_Term,0,BenefitsA!W38) -> 0 | AD38: 0 | AE38: =IF($A38>Year_Term,0,BenefitsA!X38) -> 0 | AF38: =IF($A38>Year_Term,0,BenefitsA!Y38) -> 0 | AG38: =IF($A38>Year_Term,0,BenefitsA!Z38) -> 0 | AH38: 0 | AI38: =IF($A38>Year_Term,0,BenefitsA!AA38) -> 0 | AJ38: =IF($A38>Year_Term,0,BenefitsA!AB38) -> 0 | AK38: =IF($A38>Year_Term,0,BenefitsA!AC38) -> 0 | AL38: 0 | AM38: =IF($A38>Year_Term,0,BenefitsA!AD38) -> 0 | AN38: =IF($A38>Year_Term,0,BenefitsA!AE38) -> 0 | AO38: =IF($A38>Year_Term,0,BenefitsA!AF38) -> 0 | AP38: 0
A39: 36 | B39: 2061 | C39: =IF($A39>Year_Term,0,BenefitsA!C39) -> 0 | D39: =IF($A39>Year_Term,0,BenefitsA!D39) -> 0 | E39: =IF($A39>Year_Term,0,BenefitsA!E39) -> 0 | F39: 0 | G39: =IF($A39>Year_Term,0,BenefitsA!F39) -> 0 | H39: =IF($A39>Year_Term,0,BenefitsA!G39) -> 0 | I39: =IF($A39>Year_Term,0,BenefitsA!H39) -> 0 | J39: 0 | K39: =IF($A39>Year_Term,0,BenefitsA!I39) -> 0 | L39: =IF($A39>Year_Term,0,BenefitsA!J39) -> 0 | M39: =IF($A39>Year_Term,0,BenefitsA!K39) -> 0 | N39: 0 | O39: =IF($A39>Year_Term,0,BenefitsA!L39) -> 0 | P39: =IF($A39>Year_Term,0,BenefitsA!M39) -> 0 | Q39: =IF($A39>Year_Term,0,BenefitsA!N39) -> 0 | R39: 0 | S39: =IF($A39>Year_Term,0,BenefitsA!O39) -> 0 | T39: =IF($A39>Year_Term,0,BenefitsA!P39) -> 0 | U39: =IF($A39>Year_Term,0,BenefitsA!Q39) -> 0 | V39: 0 | W39: =IF($A39>Year_Term,0,BenefitsA!R39) -> 0 | X39: =IF($A39>Year_Term,0,BenefitsA!S39) -> 0 | Y39: =IF($A39>Year_Term,0,BenefitsA!T39) -> 0 | Z39: 0 | AA39: =IF($A39>Year_Term,0,BenefitsA!U39) -> 0 | AB39: =IF($A39>Year_Term,0,BenefitsA!V39) -> 0 | AC39: =IF($A39>Year_Term,0,BenefitsA!W39) -> 0 | AD39: 0 | AE39: =IF($A39>Year_Term,0,BenefitsA!X39) -> 0 | AF39: =IF($A39>Year_Term,0,BenefitsA!Y39) -> 0 | AG39: =IF($A39>Year_Term,0,BenefitsA!Z39) -> 0 | AH39: 0 | AI39: =IF($A39>Year_Term,0,BenefitsA!AA39) -> 0 | AJ39: =IF($A39>Year_Term,0,BenefitsA!AB39) -> 0 | AK39: =IF($A39>Year_Term,0,BenefitsA!AC39) -> 0 | AL39: 0 | AM39: =IF($A39>Year_Term,0,BenefitsA!AD39) -> 0 | AN39: =IF($A39>Year_Term,0,BenefitsA!AE39) -> 0 | AO39: =IF($A39>Year_Term,0,BenefitsA!AF39) -> 0 | AP39: 0
A40: 37 | B40: 2062 | C40: =IF($A40>Year_Term,0,BenefitsA!C40) -> 0 | D40: =IF($A40>Year_Term,0,BenefitsA!D40) -> 0 | E40: =IF($A40>Year_Term,0,BenefitsA!E40) -> 0 | F40: 0 | G40: =IF($A40>Year_Term,0,BenefitsA!F40) -> 0 | H40: =IF($A40>Year_Term,0,BenefitsA!G40) -> 0 | I40: =IF($A40>Year_Term,0,BenefitsA!H40) -> 0 | J40: 0 | K40: =IF($A40>Year_Term,0,BenefitsA!I40) -> 0 | L40: =IF($A40>Year_Term,0,BenefitsA!J40) -> 0 | M40: =IF($A40>Year_Term,0,BenefitsA!K40) -> 0 | N40: 0 | O40: =IF($A40>Year_Term,0,BenefitsA!L40) -> 0 | P40: =IF($A40>Year_Term,0,BenefitsA!M40) -> 0 | Q40: =IF($A40>Year_Term,0,BenefitsA!N40) -> 0 | R40: 0 | S40: =IF($A40>Year_Term,0,BenefitsA!O40) -> 0 | T40: =IF($A40>Year_Term,0,BenefitsA!P40) -> 0 | U40: =IF($A40>Year_Term,0,BenefitsA!Q40) -> 0 | V40: 0 | W40: =IF($A40>Year_Term,0,BenefitsA!R40) -> 0 | X40: =IF($A40>Year_Term,0,BenefitsA!S40) -> 0 | Y40: =IF($A40>Year_Term,0,BenefitsA!T40) -> 0 | Z40: 0 | AA40: =IF($A40>Year_Term,0,BenefitsA!U40) -> 0 | AB40: =IF($A40>Year_Term,0,BenefitsA!V40) -> 0 | AC40: =IF($A40>Year_Term,0,BenefitsA!W40) -> 0 | AD40: 0 | AE40: =IF($A40>Year_Term,0,BenefitsA!X40) -> 0 | AF40: =IF($A40>Year_Term,0,BenefitsA!Y40) -> 0 | AG40: =IF($A40>Year_Term,0,BenefitsA!Z40) -> 0 | AH40: 0 | AI40: =IF($A40>Year_Term,0,BenefitsA!AA40) -> 0 | AJ40: =IF($A40>Year_Term,0,BenefitsA!AB40) -> 0 | AK40: =IF($A40>Year_Term,0,BenefitsA!AC40) -> 0 | AL40: 0 | AM40: =IF($A40>Year_Term,0,BenefitsA!AD40) -> 0 | AN40: =IF($A40>Year_Term,0,BenefitsA!AE40) -> 0 | AO40: =IF($A40>Year_Term,0,BenefitsA!AF40) -> 0 | AP40: 0
A41: 38 | B41: 2063 | C41: =IF($A41>Year_Term,0,BenefitsA!C41) -> 0 | D41: =IF($A41>Year_Term,0,BenefitsA!D41) -> 0 | E41: =IF($A41>Year_Term,0,BenefitsA!E41) -> 0 | F41: 0 | G41: =IF($A41>Year_Term,0,BenefitsA!F41) -> 0 | H41: =IF($A41>Year_Term,0,BenefitsA!G41) -> 0 | I41: =IF($A41>Year_Term,0,BenefitsA!H41) -> 0 | J41: 0 | K41: =IF($A41>Year_Term,0,BenefitsA!I41) -> 0 | L41: =IF($A41>Year_Term,0,BenefitsA!J41) -> 0 | M41: =IF($A41>Year_Term,0,BenefitsA!K41) -> 0 | N41: 0 | O41: =IF($A41>Year_Term,0,BenefitsA!L41) -> 0 | P41: =IF($A41>Year_Term,0,BenefitsA!M41) -> 0 | Q41: =IF($A41>Year_Term,0,BenefitsA!N41) -> 0 | R41: 0 | S41: =IF($A41>Year_Term,0,BenefitsA!O41) -> 0 | T41: =IF($A41>Year_Term,0,BenefitsA!P41) -> 0 | U41: =IF($A41>Year_Term,0,BenefitsA!Q41) -> 0 | V41: 0 | W41: =IF($A41>Year_Term,0,BenefitsA!R41) -> 0 | X41: =IF($A41>Year_Term,0,BenefitsA!S41) -> 0 | Y41: =IF($A41>Year_Term,0,BenefitsA!T41) -> 0 | Z41: 0 | AA41: =IF($A41>Year_Term,0,BenefitsA!U41) -> 0 | AB41: =IF($A41>Year_Term,0,BenefitsA!V41) -> 0 | AC41: =IF($A41>Year_Term,0,BenefitsA!W41) -> 0 | AD41: 0 | AE41: =IF($A41>Year_Term,0,BenefitsA!X41) -> 0 | AF41: =IF($A41>Year_Term,0,BenefitsA!Y41) -> 0 | AG41: =IF($A41>Year_Term,0,BenefitsA!Z41) -> 0 | AH41: 0 | AI41: =IF($A41>Year_Term,0,BenefitsA!AA41) -> 0 | AJ41: =IF($A41>Year_Term,0,BenefitsA!AB41) -> 0 | AK41: =IF($A41>Year_Term,0,BenefitsA!AC41) -> 0 | AL41: 0 | AM41: =IF($A41>Year_Term,0,BenefitsA!AD41) -> 0 | AN41: =IF($A41>Year_Term,0,BenefitsA!AE41) -> 0 | AO41: =IF($A41>Year_Term,0,BenefitsA!AF41) -> 0 | AP41: 0
A42: 39 | B42: 2064 | C42: =IF($A42>Year_Term,0,BenefitsA!C42) -> 0 | D42: =IF($A42>Year_Term,0,BenefitsA!D42) -> 0 | E42: =IF($A42>Year_Term,0,BenefitsA!E42) -> 0 | F42: 0 | G42: =IF($A42>Year_Term,0,BenefitsA!F42) -> 0 | H42: =IF($A42>Year_Term,0,BenefitsA!G42) -> 0 | I42: =IF($A42>Year_Term,0,BenefitsA!H42) -> 0 | J42: 0 | K42: =IF($A42>Year_Term,0,BenefitsA!I42) -> 0 | L42: =IF($A42>Year_Term,0,BenefitsA!J42) -> 0 | M42: =IF($A42>Year_Term,0,BenefitsA!K42) -> 0 | N42: 0 | O42: =IF($A42>Year_Term,0,BenefitsA!L42) -> 0 | P42: =IF($A42>Year_Term,0,BenefitsA!M42) -> 0 | Q42: =IF($A42>Year_Term,0,BenefitsA!N42) -> 0 | R42: 0 | S42: =IF($A42>Year_Term,0,BenefitsA!O42) -> 0 | T42: =IF($A42>Year_Term,0,BenefitsA!P42) -> 0 | U42: =IF($A42>Year_Term,0,BenefitsA!Q42) -> 0 | V42: 0 | W42: =IF($A42>Year_Term,0,BenefitsA!R42) -> 0 | X42: =IF($A42>Year_Term,0,BenefitsA!S42) -> 0 | Y42: =IF($A42>Year_Term,0,BenefitsA!T42) -> 0 | Z42: 0 | AA42: =IF($A42>Year_Term,0,BenefitsA!U42) -> 0 | AB42: =IF($A42>Year_Term,0,BenefitsA!V42) -> 0 | AC42: =IF($A42>Year_Term,0,BenefitsA!W42) -> 0 | AD42: 0 | AE42: =IF($A42>Year_Term,0,BenefitsA!X42) -> 0 | AF42: =IF($A42>Year_Term,0,BenefitsA!Y42) -> 0 | AG42: =IF($A42>Year_Term,0,BenefitsA!Z42) -> 0 | AH42: 0 | AI42: =IF($A42>Year_Term,0,BenefitsA!AA42) -> 0 | AJ42: =IF($A42>Year_Term,0,BenefitsA!AB42) -> 0 | AK42: =IF($A42>Year_Term,0,BenefitsA!AC42) -> 0 | AL42: 0 | AM42: =IF($A42>Year_Term,0,BenefitsA!AD42) -> 0 | AN42: =IF($A42>Year_Term,0,BenefitsA!AE42) -> 0 | AO42: =IF($A42>Year_Term,0,BenefitsA!AF42) -> 0 | AP42: 0
A43: 40 | B43: 2065 | C43: =IF($A43>Year_Term,0,BenefitsA!C43) -> 0 | D43: =IF($A43>Year_Term,0,BenefitsA!D43) -> 0 | E43: =IF($A43>Year_Term,0,BenefitsA!E43) -> 0 | F43: 0 | G43: =IF($A43>Year_Term,0,BenefitsA!F43) -> 0 | H43: =IF($A43>Year_Term,0,BenefitsA!G43) -> 0 | I43: =IF($A43>Year_Term,0,BenefitsA!H43) -> 0 | J43: 0 | K43: =IF($A43>Year_Term,0,BenefitsA!I43) -> 0 | L43: =IF($A43>Year_Term,0,BenefitsA!J43) -> 0 | M43: =IF($A43>Year_Term,0,BenefitsA!K43) -> 0 | N43: 0 | O43: =IF($A43>Year_Term,0,BenefitsA!L43) -> 0 | P43: =IF($A43>Year_Term,0,BenefitsA!M43) -> 0 | Q43: =IF($A43>Year_Term,0,BenefitsA!N43) -> 0 | R43: 0 | S43: =IF($A43>Year_Term,0,BenefitsA!O43) -> 0 | T43: =IF($A43>Year_Term,0,BenefitsA!P43) -> 0 | U43: =IF($A43>Year_Term,0,BenefitsA!Q43) -> 0 | V43: 0 | W43: =IF($A43>Year_Term,0,BenefitsA!R43) -> 0 | X43: =IF($A43>Year_Term,0,BenefitsA!S43) -> 0 | Y43: =IF($A43>Year_Term,0,BenefitsA!T43) -> 0 | Z43: 0 | AA43: =IF($A43>Year_Term,0,BenefitsA!U43) -> 0 | AB43: =IF($A43>Year_Term,0,BenefitsA!V43) -> 0 | AC43: =IF($A43>Year_Term,0,BenefitsA!W43) -> 0 | AD43: 0 | AE43: =IF($A43>Year_Term,0,BenefitsA!X43) -> 0 | AF43: =IF($A43>Year_Term,0,BenefitsA!Y43) -> 0 | AG43: =IF($A43>Year_Term,0,BenefitsA!Z43) -> 0 | AH43: 0 | AI43: =IF($A43>Year_Term,0,BenefitsA!AA43) -> 0 | AJ43: =IF($A43>Year_Term,0,BenefitsA!AB43) -> 0 | AK43: =IF($A43>Year_Term,0,BenefitsA!AC43) -> 0 | AL43: 0 | AM43: =IF($A43>Year_Term,0,BenefitsA!AD43) -> 0 | AN43: =IF($A43>Year_Term,0,BenefitsA!AE43) -> 0 | AO43: =IF($A43>Year_Term,0,BenefitsA!AF43) -> 0 | AP43: 0
A44: 41 | B44: 2066 | C44: =IF($A44>Year_Term,0,BenefitsA!C44) -> 0 | D44: =IF($A44>Year_Term,0,BenefitsA!D44) -> 0 | E44: =IF($A44>Year_Term,0,BenefitsA!E44) -> 0 | F44: 0 | G44: =IF($A44>Year_Term,0,BenefitsA!F44) -> 0 | H44: =IF($A44>Year_Term,0,BenefitsA!G44) -> 0 | I44: =IF($A44>Year_Term,0,BenefitsA!H44) -> 0 | J44: 0 | K44: =IF($A44>Year_Term,0,BenefitsA!I44) -> 0 | L44: =IF($A44>Year_Term,0,BenefitsA!J44) -> 0 | M44: =IF($A44>Year_Term,0,BenefitsA!K44) -> 0 | N44: 0 | O44: =IF($A44>Year_Term,0,BenefitsA!L44) -> 0 | P44: =IF($A44>Year_Term,0,BenefitsA!M44) -> 0 | Q44: =IF($A44>Year_Term,0,BenefitsA!N44) -> 0 | R44: 0 | S44: =IF($A44>Year_Term,0,BenefitsA!O44) -> 0 | T44: =IF($A44>Year_Term,0,BenefitsA!P44) -> 0 | U44: =IF($A44>Year_Term,0,BenefitsA!Q44) -> 0 | V44: 0 | W44: =IF($A44>Year_Term,0,BenefitsA!R44) -> 0 | X44: =IF($A44>Year_Term,0,BenefitsA!S44) -> 0 | Y44: =IF($A44>Year_Term,0,BenefitsA!T44) -> 0 | Z44: 0 | AA44: =IF($A44>Year_Term,0,BenefitsA!U44) -> 0 | AB44: =IF($A44>Year_Term,0,BenefitsA!V44) -> 0 | AC44: =IF($A44>Year_Term,0,BenefitsA!W44) -> 0 | AD44: 0 | AE44: =IF($A44>Year_Term,0,BenefitsA!X44) -> 0 | AF44: =IF($A44>Year_Term,0,BenefitsA!Y44) -> 0 | AG44: =IF($A44>Year_Term,0,BenefitsA!Z44) -> 0 | AH44: 0 | AI44: =IF($A44>Year_Term,0,BenefitsA!AA44) -> 0 | AJ44: =IF($A44>Year_Term,0,BenefitsA!AB44) -> 0 | AK44: =IF($A44>Year_Term,0,BenefitsA!AC44) -> 0 | AL44: 0 | AM44: =IF($A44>Year_Term,0,BenefitsA!AD44) -> 0 | AN44: =IF($A44>Year_Term,0,BenefitsA!AE44) -> 0 | AO44: =IF($A44>Year_Term,0,BenefitsA!AF44) -> 0 | AP44: 0
A45: 42 | B45: 2067 | C45: =IF($A45>Year_Term,0,BenefitsA!C45) -> 0 | D45: =IF($A45>Year_Term,0,BenefitsA!D45) -> 0 | E45: =IF($A45>Year_Term,0,BenefitsA!E45) -> 0 | F45: 0 | G45: =IF($A45>Year_Term,0,BenefitsA!F45) -> 0 | H45: =IF($A45>Year_Term,0,BenefitsA!G45) -> 0 | I45: =IF($A45>Year_Term,0,BenefitsA!H45) -> 0 | J45: 0 | K45: =IF($A45>Year_Term,0,BenefitsA!I45) -> 0 | L45: =IF($A45>Year_Term,0,BenefitsA!J45) -> 0 | M45: =IF($A45>Year_Term,0,BenefitsA!K45) -> 0 | N45: 0 | O45: =IF($A45>Year_Term,0,BenefitsA!L45) -> 0 | P45: =IF($A45>Year_Term,0,BenefitsA!M45) -> 0 | Q45: =IF($A45>Year_Term,0,BenefitsA!N45) -> 0 | R45: 0 | S45: =IF($A45>Year_Term,0,BenefitsA!O45) -> 0 | T45: =IF($A45>Year_Term,0,BenefitsA!P45) -> 0 | U45: =IF($A45>Year_Term,0,BenefitsA!Q45) -> 0 | V45: 0 | W45: =IF($A45>Year_Term,0,BenefitsA!R45) -> 0 | X45: =IF($A45>Year_Term,0,BenefitsA!S45) -> 0 | Y45: =IF($A45>Year_Term,0,BenefitsA!T45) -> 0 | Z45: 0 | AA45: =IF($A45>Year_Term,0,BenefitsA!U45) -> 0 | AB45: =IF($A45>Year_Term,0,BenefitsA!V45) -> 0 | AC45: =IF($A45>Year_Term,0,BenefitsA!W45) -> 0 | AD45: 0 | AE45: =IF($A45>Year_Term,0,BenefitsA!X45) -> 0 | AF45: =IF($A45>Year_Term,0,BenefitsA!Y45) -> 0 | AG45: =IF($A45>Year_Term,0,BenefitsA!Z45) -> 0 | AH45: 0 | AI45: =IF($A45>Year_Term,0,BenefitsA!AA45) -> 0 | AJ45: =IF($A45>Year_Term,0,BenefitsA!AB45) -> 0 | AK45: =IF($A45>Year_Term,0,BenefitsA!AC45) -> 0 | AL45: 0 | AM45: =IF($A45>Year_Term,0,BenefitsA!AD45) -> 0 | AN45: =IF($A45>Year_Term,0,BenefitsA!AE45) -> 0 | AO45: =IF($A45>Year_Term,0,BenefitsA!AF45) -> 0 | AP45: 0
A46: 43 | B46: 2068 | C46: =IF($A46>Year_Term,0,BenefitsA!C46) -> 0 | D46: =IF($A46>Year_Term,0,BenefitsA!D46) -> 0 | E46: =IF($A46>Year_Term,0,BenefitsA!E46) -> 0 | F46: 0 | G46: =IF($A46>Year_Term,0,BenefitsA!F46) -> 0 | H46: =IF($A46>Year_Term,0,BenefitsA!G46) -> 0 | I46: =IF($A46>Year_Term,0,BenefitsA!H46) -> 0 | J46: 0 | K46: =IF($A46>Year_Term,0,BenefitsA!I46) -> 0 | L46: =IF($A46>Year_Term,0,BenefitsA!J46) -> 0 | M46: =IF($A46>Year_Term,0,BenefitsA!K46) -> 0 | N46: 0 | O46: =IF($A46>Year_Term,0,BenefitsA!L46) -> 0 | P46: =IF($A46>Year_Term,0,BenefitsA!M46) -> 0 | Q46: =IF($A46>Year_Term,0,BenefitsA!N46) -> 0 | R46: 0 | S46: =IF($A46>Year_Term,0,BenefitsA!O46) -> 0 | T46: =IF($A46>Year_Term,0,BenefitsA!P46) -> 0 | U46: =IF($A46>Year_Term,0,BenefitsA!Q46) -> 0 | V46: 0 | W46: =IF($A46>Year_Term,0,BenefitsA!R46) -> 0 | X46: =IF($A46>Year_Term,0,BenefitsA!S46) -> 0 | Y46: =IF($A46>Year_Term,0,BenefitsA!T46) -> 0 | Z46: 0 | AA46: =IF($A46>Year_Term,0,BenefitsA!U46) -> 0 | AB46: =IF($A46>Year_Term,0,BenefitsA!V46) -> 0 | AC46: =IF($A46>Year_Term,0,BenefitsA!W46) -> 0 | AD46: 0 | AE46: =IF($A46>Year_Term,0,BenefitsA!X46) -> 0 | AF46: =IF($A46>Year_Term,0,BenefitsA!Y46) -> 0 | AG46: =IF($A46>Year_Term,0,BenefitsA!Z46) -> 0 | AH46: 0 | AI46: =IF($A46>Year_Term,0,BenefitsA!AA46) -> 0 | AJ46: =IF($A46>Year_Term,0,BenefitsA!AB46) -> 0 | AK46: =IF($A46>Year_Term,0,BenefitsA!AC46) -> 0 | AL46: 0 | AM46: =IF($A46>Year_Term,0,BenefitsA!AD46) -> 0 | AN46: =IF($A46>Year_Term,0,BenefitsA!AE46) -> 0 | AO46: =IF($A46>Year_Term,0,BenefitsA!AF46) -> 0 | AP46: 0
A47: 44 | B47: 2069 | C47: =IF($A47>Year_Term,0,BenefitsA!C47) -> 0 | D47: =IF($A47>Year_Term,0,BenefitsA!D47) -> 0 | E47: =IF($A47>Year_Term,0,BenefitsA!E47) -> 0 | F47: 0 | G47: =IF($A47>Year_Term,0,BenefitsA!F47) -> 0 | H47: =IF($A47>Year_Term,0,BenefitsA!G47) -> 0 | I47: =IF($A47>Year_Term,0,BenefitsA!H47) -> 0 | J47: 0 | K47: =IF($A47>Year_Term,0,BenefitsA!I47) -> 0 | L47: =IF($A47>Year_Term,0,BenefitsA!J47) -> 0 | M47: =IF($A47>Year_Term,0,BenefitsA!K47) -> 0 | N47: 0 | O47: =IF($A47>Year_Term,0,BenefitsA!L47) -> 0 | P47: =IF($A47>Year_Term,0,BenefitsA!M47) -> 0 | Q47: =IF($A47>Year_Term,0,BenefitsA!N47) -> 0 | R47: 0 | S47: =IF($A47>Year_Term,0,BenefitsA!O47) -> 0 | T47: =IF($A47>Year_Term,0,BenefitsA!P47) -> 0 | U47: =IF($A47>Year_Term,0,BenefitsA!Q47) -> 0 | V47: 0 | W47: =IF($A47>Year_Term,0,BenefitsA!R47) -> 0 | X47: =IF($A47>Year_Term,0,BenefitsA!S47) -> 0 | Y47: =IF($A47>Year_Term,0,BenefitsA!T47) -> 0 | Z47: 0 | AA47: =IF($A47>Year_Term,0,BenefitsA!U47) -> 0 | AB47: =IF($A47>Year_Term,0,BenefitsA!V47) -> 0 | AC47: =IF($A47>Year_Term,0,BenefitsA!W47) -> 0 | AD47: 0 | AE47: =IF($A47>Year_Term,0,BenefitsA!X47) -> 0 | AF47: =IF($A47>Year_Term,0,BenefitsA!Y47) -> 0 | AG47: =IF($A47>Year_Term,0,BenefitsA!Z47) -> 0 | AH47: 0 | AI47: =IF($A47>Year_Term,0,BenefitsA!AA47) -> 0 | AJ47: =IF($A47>Year_Term,0,BenefitsA!AB47) -> 0 | AK47: =IF($A47>Year_Term,0,BenefitsA!AC47) -> 0 | AL47: 0 | AM47: =IF($A47>Year_Term,0,BenefitsA!AD47) -> 0 | AN47: =IF($A47>Year_Term,0,BenefitsA!AE47) -> 0 | AO47: =IF($A47>Year_Term,0,BenefitsA!AF47) -> 0 | AP47: 0
A48: 45 | B48: 2070 | C48: =IF($A48>Year_Term,0,BenefitsA!C48) -> 0 | D48: =IF($A48>Year_Term,0,BenefitsA!D48) -> 0 | E48: =IF($A48>Year_Term,0,BenefitsA!E48) -> 0 | F48: 0 | G48: =IF($A48>Year_Term,0,BenefitsA!F48) -> 0 | H48: =IF($A48>Year_Term,0,BenefitsA!G48) -> 0 | I48: =IF($A48>Year_Term,0,BenefitsA!H48) -> 0 | J48: 0 | K48: =IF($A48>Year_Term,0,BenefitsA!I48) -> 0 | L48: =IF($A48>Year_Term,0,BenefitsA!J48) -> 0 | M48: =IF($A48>Year_Term,0,BenefitsA!K48) -> 0 | N48: 0 | O48: =IF($A48>Year_Term,0,BenefitsA!L48) -> 0 | P48: =IF($A48>Year_Term,0,BenefitsA!M48) -> 0 | Q48: =IF($A48>Year_Term,0,BenefitsA!N48) -> 0 | R48: 0 | S48: =IF($A48>Year_Term,0,BenefitsA!O48) -> 0 | T48: =IF($A48>Year_Term,0,BenefitsA!P48) -> 0 | U48: =IF($A48>Year_Term,0,BenefitsA!Q48) -> 0 | V48: 0 | W48: =IF($A48>Year_Term,0,BenefitsA!R48) -> 0 | X48: =IF($A48>Year_Term,0,BenefitsA!S48) -> 0 | Y48: =IF($A48>Year_Term,0,BenefitsA!T48) -> 0 | Z48: 0 | AA48: =IF($A48>Year_Term,0,BenefitsA!U48) -> 0 | AB48: =IF($A48>Year_Term,0,BenefitsA!V48) -> 0 | AC48: =IF($A48>Year_Term,0,BenefitsA!W48) -> 0 | AD48: 0 | AE48: =IF($A48>Year_Term,0,BenefitsA!X48) -> 0 | AF48: =IF($A48>Year_Term,0,BenefitsA!Y48) -> 0 | AG48: =IF($A48>Year_Term,0,BenefitsA!Z48) -> 0 | AH48: 0 | AI48: =IF($A48>Year_Term,0,BenefitsA!AA48) -> 0 | AJ48: =IF($A48>Year_Term,0,BenefitsA!AB48) -> 0 | AK48: =IF($A48>Year_Term,0,BenefitsA!AC48) -> 0 | AL48: 0 | AM48: =IF($A48>Year_Term,0,BenefitsA!AD48) -> 0 | AN48: =IF($A48>Year_Term,0,BenefitsA!AE48) -> 0 | AO48: =IF($A48>Year_Term,0,BenefitsA!AF48) -> 0 | AP48: 0
A49: 46 | B49: 2071 | C49: =IF($A49>Year_Term,0,BenefitsA!C49) -> 0 | D49: =IF($A49>Year_Term,0,BenefitsA!D49) -> 0 | E49: =IF($A49>Year_Term,0,BenefitsA!E49) -> 0 | F49: 0 | G49: =IF($A49>Year_Term,0,BenefitsA!F49) -> 0 | H49: =IF($A49>Year_Term,0,BenefitsA!G49) -> 0 | I49: =IF($A49>Year_Term,0,BenefitsA!H49) -> 0 | J49: 0 | K49: =IF($A49>Year_Term,0,BenefitsA!I49) -> 0 | L49: =IF($A49>Year_Term,0,BenefitsA!J49) -> 0 | M49: =IF($A49>Year_Term,0,BenefitsA!K49) -> 0 | N49: 0 | O49: =IF($A49>Year_Term,0,BenefitsA!L49) -> 0 | P49: =IF($A49>Year_Term,0,BenefitsA!M49) -> 0 | Q49: =IF($A49>Year_Term,0,BenefitsA!N49) -> 0 | R49: 0 | S49: =IF($A49>Year_Term,0,BenefitsA!O49) -> 0 | T49: =IF($A49>Year_Term,0,BenefitsA!P49) -> 0 | U49: =IF($A49>Year_Term,0,BenefitsA!Q49) -> 0 | V49: 0 | W49: =IF($A49>Year_Term,0,BenefitsA!R49) -> 0 | X49: =IF($A49>Year_Term,0,BenefitsA!S49) -> 0 | Y49: =IF($A49>Year_Term,0,BenefitsA!T49) -> 0 | Z49: 0 | AA49: =IF($A49>Year_Term,0,BenefitsA!U49) -> 0 | AB49: =IF($A49>Year_Term,0,BenefitsA!V49) -> 0 | AC49: =IF($A49>Year_Term,0,BenefitsA!W49) -> 0 | AD49: 0 | AE49: =IF($A49>Year_Term,0,BenefitsA!X49) -> 0 | AF49: =IF($A49>Year_Term,0,BenefitsA!Y49) -> 0 | AG49: =IF($A49>Year_Term,0,BenefitsA!Z49) -> 0 | AH49: 0 | AI49: =IF($A49>Year_Term,0,BenefitsA!AA49) -> 0 | AJ49: =IF($A49>Year_Term,0,BenefitsA!AB49) -> 0 | AK49: =IF($A49>Year_Term,0,BenefitsA!AC49) -> 0 | AL49: 0 | AM49: =IF($A49>Year_Term,0,BenefitsA!AD49) -> 0 | AN49: =IF($A49>Year_Term,0,BenefitsA!AE49) -> 0 | AO49: =IF($A49>Year_Term,0,BenefitsA!AF49) -> 0 | AP49: 0
A50: 47 | B50: 2072 | C50: =IF($A50>Year_Term,0,BenefitsA!C50) -> 0 | D50: =IF($A50>Year_Term,0,BenefitsA!D50) -> 0 | E50: =IF($A50>Year_Term,0,BenefitsA!E50) -> 0 | F50: 0 | G50: =IF($A50>Year_Term,0,BenefitsA!F50) -> 0 | H50: =IF($A50>Year_Term,0,BenefitsA!G50) -> 0 | I50: =IF($A50>Year_Term,0,BenefitsA!H50) -> 0 | J50: 0 | K50: =IF($A50>Year_Term,0,BenefitsA!I50) -> 0 | L50: =IF($A50>Year_Term,0,BenefitsA!J50) -> 0 | M50: =IF($A50>Year_Term,0,BenefitsA!K50) -> 0 | N50: 0 | O50: =IF($A50>Year_Term,0,BenefitsA!L50) -> 0 | P50: =IF($A50>Year_Term,0,BenefitsA!M50) -> 0 | Q50: =IF($A50>Year_Term,0,BenefitsA!N50) -> 0 | R50: 0 | S50: =IF($A50>Year_Term,0,BenefitsA!O50) -> 0 | T50: =IF($A50>Year_Term,0,BenefitsA!P50) -> 0 | U50: =IF($A50>Year_Term,0,BenefitsA!Q50) -> 0 | V50: 0 | W50: =IF($A50>Year_Term,0,BenefitsA!R50) -> 0 | X50: =IF($A50>Year_Term,0,BenefitsA!S50) -> 0 | Y50: =IF($A50>Year_Term,0,BenefitsA!T50) -> 0 | Z50: 0 | AA50: =IF($A50>Year_Term,0,BenefitsA!U50) -> 0 | AB50: =IF($A50>Year_Term,0,BenefitsA!V50) -> 0 | AC50: =IF($A50>Year_Term,0,BenefitsA!W50) -> 0 | AD50: 0 | AE50: =IF($A50>Year_Term,0,BenefitsA!X50) -> 0 | AF50: =IF($A50>Year_Term,0,BenefitsA!Y50) -> 0 | AG50: =IF($A50>Year_Term,0,BenefitsA!Z50) -> 0 | AH50: 0 | AI50: =IF($A50>Year_Term,0,BenefitsA!AA50) -> 0 | AJ50: =IF($A50>Year_Term,0,BenefitsA!AB50) -> 0 | AK50: =IF($A50>Year_Term,0,BenefitsA!AC50) -> 0 | AL50: 0 | AM50: =IF($A50>Year_Term,0,BenefitsA!AD50) -> 0 | AN50: =IF($A50>Year_Term,0,BenefitsA!AE50) -> 0 | AO50: =IF($A50>Year_Term,0,BenefitsA!AF50) -> 0 | AP50: 0
A51: 48 | B51: 2073 | C51: =IF($A51>Year_Term,0,BenefitsA!C51) -> 0 | D51: =IF($A51>Year_Term,0,BenefitsA!D51) -> 0 | E51: =IF($A51>Year_Term,0,BenefitsA!E51) -> 0 | F51: 0 | G51: =IF($A51>Year_Term,0,BenefitsA!F51) -> 0 | H51: =IF($A51>Year_Term,0,BenefitsA!G51) -> 0 | I51: =IF($A51>Year_Term,0,BenefitsA!H51) -> 0 | J51: 0 | K51: =IF($A51>Year_Term,0,BenefitsA!I51) -> 0 | L51: =IF($A51>Year_Term,0,BenefitsA!J51) -> 0 | M51: =IF($A51>Year_Term,0,BenefitsA!K51) -> 0 | N51: 0 | O51: =IF($A51>Year_Term,0,BenefitsA!L51) -> 0 | P51: =IF($A51>Year_Term,0,BenefitsA!M51) -> 0 | Q51: =IF($A51>Year_Term,0,BenefitsA!N51) -> 0 | R51: 0 | S51: =IF($A51>Year_Term,0,BenefitsA!O51) -> 0 | T51: =IF($A51>Year_Term,0,BenefitsA!P51) -> 0 | U51: =IF($A51>Year_Term,0,BenefitsA!Q51) -> 0 | V51: 0 | W51: =IF($A51>Year_Term,0,BenefitsA!R51) -> 0 | X51: =IF($A51>Year_Term,0,BenefitsA!S51) -> 0 | Y51: =IF($A51>Year_Term,0,BenefitsA!T51) -> 0 | Z51: 0 | AA51: =IF($A51>Year_Term,0,BenefitsA!U51) -> 0 | AB51: =IF($A51>Year_Term,0,BenefitsA!V51) -> 0 | AC51: =IF($A51>Year_Term,0,BenefitsA!W51) -> 0 | AD51: 0 | AE51: =IF($A51>Year_Term,0,BenefitsA!X51) -> 0 | AF51: =IF($A51>Year_Term,0,BenefitsA!Y51) -> 0 | AG51: =IF($A51>Year_Term,0,BenefitsA!Z51) -> 0 | AH51: 0 | AI51: =IF($A51>Year_Term,0,BenefitsA!AA51) -> 0 | AJ51: =IF($A51>Year_Term,0,BenefitsA!AB51) -> 0 | AK51: =IF($A51>Year_Term,0,BenefitsA!AC51) -> 0 | AL51: 0 | AM51: =IF($A51>Year_Term,0,BenefitsA!AD51) -> 0 | AN51: =IF($A51>Year_Term,0,BenefitsA!AE51) -> 0 | AO51: =IF($A51>Year_Term,0,BenefitsA!AF51) -> 0 | AP51: 0
A52: 49 | B52: 2074 | C52: =IF($A52>Year_Term,0,BenefitsA!C52) -> 0 | D52: =IF($A52>Year_Term,0,BenefitsA!D52) -> 0 | E52: =IF($A52>Year_Term,0,BenefitsA!E52) -> 0 | F52: 0 | G52: =IF($A52>Year_Term,0,BenefitsA!F52) -> 0 | H52: =IF($A52>Year_Term,0,BenefitsA!G52) -> 0 | I52: =IF($A52>Year_Term,0,BenefitsA!H52) -> 0 | J52: 0 | K52: =IF($A52>Year_Term,0,BenefitsA!I52) -> 0 | L52: =IF($A52>Year_Term,0,BenefitsA!J52) -> 0 | M52: =IF($A52>Year_Term,0,BenefitsA!K52) -> 0 | N52: 0 | O52: =IF($A52>Year_Term,0,BenefitsA!L52) -> 0 | P52: =IF($A52>Year_Term,0,BenefitsA!M52) -> 0 | Q52: =IF($A52>Year_Term,0,BenefitsA!N52) -> 0 | R52: 0 | S52: =IF($A52>Year_Term,0,BenefitsA!O52) -> 0 | T52: =IF($A52>Year_Term,0,BenefitsA!P52) -> 0 | U52: =IF($A52>Year_Term,0,BenefitsA!Q52) -> 0 | V52: 0 | W52: =IF($A52>Year_Term,0,BenefitsA!R52) -> 0 | X52: =IF($A52>Year_Term,0,BenefitsA!S52) -> 0 | Y52: =IF($A52>Year_Term,0,BenefitsA!T52) -> 0 | Z52: 0 | AA52: =IF($A52>Year_Term,0,BenefitsA!U52) -> 0 | AB52: =IF($A52>Year_Term,0,BenefitsA!V52) -> 0 | AC52: =IF($A52>Year_Term,0,BenefitsA!W52) -> 0 | AD52: 0 | AE52: =IF($A52>Year_Term,0,BenefitsA!X52) -> 0 | AF52: =IF($A52>Year_Term,0,BenefitsA!Y52) -> 0 | AG52: =IF($A52>Year_Term,0,BenefitsA!Z52) -> 0 | AH52: 0 | AI52: =IF($A52>Year_Term,0,BenefitsA!AA52) -> 0 | AJ52: =IF($A52>Year_Term,0,BenefitsA!AB52) -> 0 | AK52: =IF($A52>Year_Term,0,BenefitsA!AC52) -> 0 | AL52: 0 | AM52: =IF($A52>Year_Term,0,BenefitsA!AD52) -> 0 | AN52: =IF($A52>Year_Term,0,BenefitsA!AE52) -> 0 | AO52: =IF($A52>Year_Term,0,BenefitsA!AF52) -> 0 | AP52: 0
A53: 50 | B53: 2075 | C53: =IF($A53>Year_Term,0,BenefitsA!C53) -> 0 | D53: =IF($A53>Year_Term,0,BenefitsA!D53) -> 0 | E53: =IF($A53>Year_Term,0,BenefitsA!E53) -> 0 | F53: 0 | G53: =IF($A53>Year_Term,0,BenefitsA!F53) -> 0 | H53: =IF($A53>Year_Term,0,BenefitsA!G53) -> 0 | I53: =IF($A53>Year_Term,0,BenefitsA!H53) -> 0 | J53: 0 | K53: =IF($A53>Year_Term,0,BenefitsA!I53) -> 0 | L53: =IF($A53>Year_Term,0,BenefitsA!J53) -> 0 | M53: =IF($A53>Year_Term,0,BenefitsA!K53) -> 0 | N53: 0 | O53: =IF($A53>Year_Term,0,BenefitsA!L53) -> 0 | P53: =IF($A53>Year_Term,0,BenefitsA!M53) -> 0 | Q53: =IF($A53>Year_Term,0,BenefitsA!N53) -> 0 | R53: 0 | S53: =IF($A53>Year_Term,0,BenefitsA!O53) -> 0 | T53: =IF($A53>Year_Term,0,BenefitsA!P53) -> 0 | U53: =IF($A53>Year_Term,0,BenefitsA!Q53) -> 0 | V53: 0 | W53: =IF($A53>Year_Term,0,BenefitsA!R53) -> 0 | X53: =IF($A53>Year_Term,0,BenefitsA!S53) -> 0 | Y53: =IF($A53>Year_Term,0,BenefitsA!T53) -> 0 | Z53: 0 | AA53: =IF($A53>Year_Term,0,BenefitsA!U53) -> 0 | AB53: =IF($A53>Year_Term,0,BenefitsA!V53) -> 0 | AC53: =IF($A53>Year_Term,0,BenefitsA!W53) -> 0 | AD53: 0 | AE53: =IF($A53>Year_Term,0,BenefitsA!X53) -> 0 | AF53: =IF($A53>Year_Term,0,BenefitsA!Y53) -> 0 | AG53: =IF($A53>Year_Term,0,BenefitsA!Z53) -> 0 | AH53: 0 | AI53: =IF($A53>Year_Term,0,BenefitsA!AA53) -> 0 | AJ53: =IF($A53>Year_Term,0,BenefitsA!AB53) -> 0 | AK53: =IF($A53>Year_Term,0,BenefitsA!AC53) -> 0 | AL53: 0 | AM53: =IF($A53>Year_Term,0,BenefitsA!AD53) -> 0 | AN53: =IF($A53>Year_Term,0,BenefitsA!AE53) -> 0 | AO53: =IF($A53>Year_Term,0,BenefitsA!AF53) -> 0 | AP53: 0
A54: 51 | B54: 2076 | C54: =IF($A54>Year_Term,0,BenefitsA!C54) -> 0 | D54: =IF($A54>Year_Term,0,BenefitsA!D54) -> 0 | E54: =IF($A54>Year_Term,0,BenefitsA!E54) -> 0 | F54: 0 | G54: =IF($A54>Year_Term,0,BenefitsA!F54) -> 0 | H54: =IF($A54>Year_Term,0,BenefitsA!G54) -> 0 | I54: =IF($A54>Year_Term,0,BenefitsA!H54) -> 0 | J54: 0 | K54: =IF($A54>Year_Term,0,BenefitsA!I54) -> 0 | L54: =IF($A54>Year_Term,0,BenefitsA!J54) -> 0 | M54: =IF($A54>Year_Term,0,BenefitsA!K54) -> 0 | N54: 0 | O54: =IF($A54>Year_Term,0,BenefitsA!L54) -> 0 | P54: =IF($A54>Year_Term,0,BenefitsA!M54) -> 0 | Q54: =IF($A54>Year_Term,0,BenefitsA!N54) -> 0 | R54: 0 | S54: =IF($A54>Year_Term,0,BenefitsA!O54) -> 0 | T54: =IF($A54>Year_Term,0,BenefitsA!P54) -> 0 | U54: =IF($A54>Year_Term,0,BenefitsA!Q54) -> 0 | V54: 0 | W54: =IF($A54>Year_Term,0,BenefitsA!R54) -> 0 | X54: =IF($A54>Year_Term,0,BenefitsA!S54) -> 0 | Y54: =IF($A54>Year_Term,0,BenefitsA!T54) -> 0 | Z54: 0 | AA54: =IF($A54>Year_Term,0,BenefitsA!U54) -> 0 | AB54: =IF($A54>Year_Term,0,BenefitsA!V54) -> 0 | AC54: =IF($A54>Year_Term,0,BenefitsA!W54) -> 0 | AD54: 0 | AE54: =IF($A54>Year_Term,0,BenefitsA!X54) -> 0 | AF54: =IF($A54>Year_Term,0,BenefitsA!Y54) -> 0 | AG54: =IF($A54>Year_Term,0,BenefitsA!Z54) -> 0 | AH54: 0 | AI54: =IF($A54>Year_Term,0,BenefitsA!AA54) -> 0 | AJ54: =IF($A54>Year_Term,0,BenefitsA!AB54) -> 0 | AK54: =IF($A54>Year_Term,0,BenefitsA!AC54) -> 0 | AL54: 0 | AM54: =IF($A54>Year_Term,0,BenefitsA!AD54) -> 0 | AN54: =IF($A54>Year_Term,0,BenefitsA!AE54) -> 0 | AO54: =IF($A54>Year_Term,0,BenefitsA!AF54) -> 0 | AP54: 0
A55: 52 | B55: 2077 | C55: =IF($A55>Year_Term,0,BenefitsA!C55) -> 0 | D55: =IF($A55>Year_Term,0,BenefitsA!D55) -> 0 | E55: =IF($A55>Year_Term,0,BenefitsA!E55) -> 0 | F55: 0 | G55: =IF($A55>Year_Term,0,BenefitsA!F55) -> 0 | H55: =IF($A55>Year_Term,0,BenefitsA!G55) -> 0 | I55: =IF($A55>Year_Term,0,BenefitsA!H55) -> 0 | J55: 0 | K55: =IF($A55>Year_Term,0,BenefitsA!I55) -> 0 | L55: =IF($A55>Year_Term,0,BenefitsA!J55) -> 0 | M55: =IF($A55>Year_Term,0,BenefitsA!K55) -> 0 | N55: 0 | O55: =IF($A55>Year_Term,0,BenefitsA!L55) -> 0 | P55: =IF($A55>Year_Term,0,BenefitsA!M55) -> 0 | Q55: =IF($A55>Year_Term,0,BenefitsA!N55) -> 0 | R55: 0 | S55: =IF($A55>Year_Term,0,BenefitsA!O55) -> 0 | T55: =IF($A55>Year_Term,0,BenefitsA!P55) -> 0 | U55: =IF($A55>Year_Term,0,BenefitsA!Q55) -> 0 | V55: 0 | W55: =IF($A55>Year_Term,0,BenefitsA!R55) -> 0 | X55: =IF($A55>Year_Term,0,BenefitsA!S55) -> 0 | Y55: =IF($A55>Year_Term,0,BenefitsA!T55) -> 0 | Z55: 0 | AA55: =IF($A55>Year_Term,0,BenefitsA!U55) -> 0 | AB55: =IF($A55>Year_Term,0,BenefitsA!V55) -> 0 | AC55: =IF($A55>Year_Term,0,BenefitsA!W55) -> 0 | AD55: 0 | AE55: =IF($A55>Year_Term,0,BenefitsA!X55) -> 0 | AF55: =IF($A55>Year_Term,0,BenefitsA!Y55) -> 0 | AG55: =IF($A55>Year_Term,0,BenefitsA!Z55) -> 0 | AH55: 0 | AI55: =IF($A55>Year_Term,0,BenefitsA!AA55) -> 0 | AJ55: =IF($A55>Year_Term,0,BenefitsA!AB55) -> 0 | AK55: =IF($A55>Year_Term,0,BenefitsA!AC55) -> 0 | AL55: 0 | AM55: =IF($A55>Year_Term,0,BenefitsA!AD55) -> 0 | AN55: =IF($A55>Year_Term,0,BenefitsA!AE55) -> 0 | AO55: =IF($A55>Year_Term,0,BenefitsA!AF55) -> 0 | AP55: 0
A56: 53 | B56: 2078 | C56: =IF($A56>Year_Term,0,BenefitsA!C56) -> 0 | D56: =IF($A56>Year_Term,0,BenefitsA!D56) -> 0 | E56: =IF($A56>Year_Term,0,BenefitsA!E56) -> 0 | F56: 0 | G56: =IF($A56>Year_Term,0,BenefitsA!F56) -> 0 | H56: =IF($A56>Year_Term,0,BenefitsA!G56) -> 0 | I56: =IF($A56>Year_Term,0,BenefitsA!H56) -> 0 | J56: 0 | K56: =IF($A56>Year_Term,0,BenefitsA!I56) -> 0 | L56: =IF($A56>Year_Term,0,BenefitsA!J56) -> 0 | M56: =IF($A56>Year_Term,0,BenefitsA!K56) -> 0 | N56: 0 | O56: =IF($A56>Year_Term,0,BenefitsA!L56) -> 0 | P56: =IF($A56>Year_Term,0,BenefitsA!M56) -> 0 | Q56: =IF($A56>Year_Term,0,BenefitsA!N56) -> 0 | R56: 0 | S56: =IF($A56>Year_Term,0,BenefitsA!O56) -> 0 | T56: =IF($A56>Year_Term,0,BenefitsA!P56) -> 0 | U56: =IF($A56>Year_Term,0,BenefitsA!Q56) -> 0 | V56: 0 | W56: =IF($A56>Year_Term,0,BenefitsA!R56) -> 0 | X56: =IF($A56>Year_Term,0,BenefitsA!S56) -> 0 | Y56: =IF($A56>Year_Term,0,BenefitsA!T56) -> 0 | Z56: 0 | AA56: =IF($A56>Year_Term,0,BenefitsA!U56) -> 0 | AB56: =IF($A56>Year_Term,0,BenefitsA!V56) -> 0 | AC56: =IF($A56>Year_Term,0,BenefitsA!W56) -> 0 | AD56: 0 | AE56: =IF($A56>Year_Term,0,BenefitsA!X56) -> 0 | AF56: =IF($A56>Year_Term,0,BenefitsA!Y56) -> 0 | AG56: =IF($A56>Year_Term,0,BenefitsA!Z56) -> 0 | AH56: 0 | AI56: =IF($A56>Year_Term,0,BenefitsA!AA56) -> 0 | AJ56: =IF($A56>Year_Term,0,BenefitsA!AB56) -> 0 | AK56: =IF($A56>Year_Term,0,BenefitsA!AC56) -> 0 | AL56: 0 | AM56: =IF($A56>Year_Term,0,BenefitsA!AD56) -> 0 | AN56: =IF($A56>Year_Term,0,BenefitsA!AE56) -> 0 | AO56: =IF($A56>Year_Term,0,BenefitsA!AF56) -> 0 | AP56: 0
A57: 54 | B57: 2079 | C57: =IF($A57>Year_Term,0,BenefitsA!C57) -> 0 | D57: =IF($A57>Year_Term,0,BenefitsA!D57) -> 0 | E57: =IF($A57>Year_Term,0,BenefitsA!E57) -> 0 | F57: 0 | G57: =IF($A57>Year_Term,0,BenefitsA!F57) -> 0 | H57: =IF($A57>Year_Term,0,BenefitsA!G57) -> 0 | I57: =IF($A57>Year_Term,0,BenefitsA!H57) -> 0 | J57: 0 | K57: =IF($A57>Year_Term,0,BenefitsA!I57) -> 0 | L57: =IF($A57>Year_Term,0,BenefitsA!J57) -> 0 | M57: =IF($A57>Year_Term,0,BenefitsA!K57) -> 0 | N57: 0 | O57: =IF($A57>Year_Term,0,BenefitsA!L57) -> 0 | P57: =IF($A57>Year_Term,0,BenefitsA!M57) -> 0 | Q57: =IF($A57>Year_Term,0,BenefitsA!N57) -> 0 | R57: 0 | S57: =IF($A57>Year_Term,0,BenefitsA!O57) -> 0 | T57: =IF($A57>Year_Term,0,BenefitsA!P57) -> 0 | U57: =IF($A57>Year_Term,0,BenefitsA!Q57) -> 0 | V57: 0 | W57: =IF($A57>Year_Term,0,BenefitsA!R57) -> 0 | X57: =IF($A57>Year_Term,0,BenefitsA!S57) -> 0 | Y57: =IF($A57>Year_Term,0,BenefitsA!T57) -> 0 | Z57: 0 | AA57: =IF($A57>Year_Term,0,BenefitsA!U57) -> 0 | AB57: =IF($A57>Year_Term,0,BenefitsA!V57) -> 0 | AC57: =IF($A57>Year_Term,0,BenefitsA!W57) -> 0 | AD57: 0 | AE57: =IF($A57>Year_Term,0,BenefitsA!X57) -> 0 | AF57: =IF($A57>Year_Term,0,BenefitsA!Y57) -> 0 | AG57: =IF($A57>Year_Term,0,BenefitsA!Z57) -> 0 | AH57: 0 | AI57: =IF($A57>Year_Term,0,BenefitsA!AA57) -> 0 | AJ57: =IF($A57>Year_Term,0,BenefitsA!AB57) -> 0 | AK57: =IF($A57>Year_Term,0,BenefitsA!AC57) -> 0 | AL57: 0 | AM57: =IF($A57>Year_Term,0,BenefitsA!AD57) -> 0 | AN57: =IF($A57>Year_Term,0,BenefitsA!AE57) -> 0 | AO57: =IF($A57>Year_Term,0,BenefitsA!AF57) -> 0 | AP57: 0
A58: 55 | B58: 2080 | C58: =IF($A58>Year_Term,0,BenefitsA!C58) -> 0 | D58: =IF($A58>Year_Term,0,BenefitsA!D58) -> 0 | E58: =IF($A58>Year_Term,0,BenefitsA!E58) -> 0 | F58: 0 | G58: =IF($A58>Year_Term,0,BenefitsA!F58) -> 0 | H58: =IF($A58>Year_Term,0,BenefitsA!G58) -> 0 | I58: =IF($A58>Year_Term,0,BenefitsA!H58) -> 0 | J58: 0 | K58: =IF($A58>Year_Term,0,BenefitsA!I58) -> 0 | L58: =IF($A58>Year_Term,0,BenefitsA!J58) -> 0 | M58: =IF($A58>Year_Term,0,BenefitsA!K58) -> 0 | N58: 0 | O58: =IF($A58>Year_Term,0,BenefitsA!L58) -> 0 | P58: =IF($A58>Year_Term,0,BenefitsA!M58) -> 0 | Q58: =IF($A58>Year_Term,0,BenefitsA!N58) -> 0 | R58: 0 | S58: =IF($A58>Year_Term,0,BenefitsA!O58) -> 0 | T58: =IF($A58>Year_Term,0,BenefitsA!P58) -> 0 | U58: =IF($A58>Year_Term,0,BenefitsA!Q58) -> 0 | V58: 0 | W58: =IF($A58>Year_Term,0,BenefitsA!R58) -> 0 | X58: =IF($A58>Year_Term,0,BenefitsA!S58) -> 0 | Y58: =IF($A58>Year_Term,0,BenefitsA!T58) -> 0 | Z58: 0 | AA58: =IF($A58>Year_Term,0,BenefitsA!U58) -> 0 | AB58: =IF($A58>Year_Term,0,BenefitsA!V58) -> 0 | AC58: =IF($A58>Year_Term,0,BenefitsA!W58) -> 0 | AD58: 0 | AE58: =IF($A58>Year_Term,0,BenefitsA!X58) -> 0 | AF58: =IF($A58>Year_Term,0,BenefitsA!Y58) -> 0 | AG58: =IF($A58>Year_Term,0,BenefitsA!Z58) -> 0 | AH58: 0 | AI58: =IF($A58>Year_Term,0,BenefitsA!AA58) -> 0 | AJ58: =IF($A58>Year_Term,0,BenefitsA!AB58) -> 0 | AK58: =IF($A58>Year_Term,0,BenefitsA!AC58) -> 0 | AL58: 0 | AM58: =IF($A58>Year_Term,0,BenefitsA!AD58) -> 0 | AN58: =IF($A58>Year_Term,0,BenefitsA!AE58) -> 0 | AO58: =IF($A58>Year_Term,0,BenefitsA!AF58) -> 0 | AP58: 0
A59: 56 | B59: 2081 | C59: =IF($A59>Year_Term,0,BenefitsA!C59) -> 0 | D59: =IF($A59>Year_Term,0,BenefitsA!D59) -> 0 | E59: =IF($A59>Year_Term,0,BenefitsA!E59) -> 0 | F59: 0 | G59: =IF($A59>Year_Term,0,BenefitsA!F59) -> 0 | H59: =IF($A59>Year_Term,0,BenefitsA!G59) -> 0 | I59: =IF($A59>Year_Term,0,BenefitsA!H59) -> 0 | J59: 0 | K59: =IF($A59>Year_Term,0,BenefitsA!I59) -> 0 | L59: =IF($A59>Year_Term,0,BenefitsA!J59) -> 0 | M59: =IF($A59>Year_Term,0,BenefitsA!K59) -> 0 | N59: 0 | O59: =IF($A59>Year_Term,0,BenefitsA!L59) -> 0 | P59: =IF($A59>Year_Term,0,BenefitsA!M59) -> 0 | Q59: =IF($A59>Year_Term,0,BenefitsA!N59) -> 0 | R59: 0 | S59: =IF($A59>Year_Term,0,BenefitsA!O59) -> 0 | T59: =IF($A59>Year_Term,0,BenefitsA!P59) -> 0 | U59: =IF($A59>Year_Term,0,BenefitsA!Q59) -> 0 | V59: 0 | W59: =IF($A59>Year_Term,0,BenefitsA!R59) -> 0 | X59: =IF($A59>Year_Term,0,BenefitsA!S59) -> 0 | Y59: =IF($A59>Year_Term,0,BenefitsA!T59) -> 0 | Z59: 0 | AA59: =IF($A59>Year_Term,0,BenefitsA!U59) -> 0 | AB59: =IF($A59>Year_Term,0,BenefitsA!V59) -> 0 | AC59: =IF($A59>Year_Term,0,BenefitsA!W59) -> 0 | AD59: 0 | AE59: =IF($A59>Year_Term,0,BenefitsA!X59) -> 0 | AF59: =IF($A59>Year_Term,0,BenefitsA!Y59) -> 0 | AG59: =IF($A59>Year_Term,0,BenefitsA!Z59) -> 0 | AH59: 0 | AI59: =IF($A59>Year_Term,0,BenefitsA!AA59) -> 0 | AJ59: =IF($A59>Year_Term,0,BenefitsA!AB59) -> 0 | AK59: =IF($A59>Year_Term,0,BenefitsA!AC59) -> 0 | AL59: 0 | AM59: =IF($A59>Year_Term,0,BenefitsA!AD59) -> 0 | AN59: =IF($A59>Year_Term,0,BenefitsA!AE59) -> 0 | AO59: =IF($A59>Year_Term,0,BenefitsA!AF59) -> 0 | AP59: 0
A60: 57 | B60: 2082 | C60: =IF($A60>Year_Term,0,BenefitsA!C60) -> 0 | D60: =IF($A60>Year_Term,0,BenefitsA!D60) -> 0 | E60: =IF($A60>Year_Term,0,BenefitsA!E60) -> 0 | F60: 0 | G60: =IF($A60>Year_Term,0,BenefitsA!F60) -> 0 | H60: =IF($A60>Year_Term,0,BenefitsA!G60) -> 0 | I60: =IF($A60>Year_Term,0,BenefitsA!H60) -> 0 | J60: 0 | K60: =IF($A60>Year_Term,0,BenefitsA!I60) -> 0 | L60: =IF($A60>Year_Term,0,BenefitsA!J60) -> 0 | M60: =IF($A60>Year_Term,0,BenefitsA!K60) -> 0 | N60: 0 | O60: =IF($A60>Year_Term,0,BenefitsA!L60) -> 0 | P60: =IF($A60>Year_Term,0,BenefitsA!M60) -> 0 | Q60: =IF($A60>Year_Term,0,BenefitsA!N60) -> 0 | R60: 0 | S60: =IF($A60>Year_Term,0,BenefitsA!O60) -> 0 | T60: =IF($A60>Year_Term,0,BenefitsA!P60) -> 0 | U60: =IF($A60>Year_Term,0,BenefitsA!Q60) -> 0 | V60: 0 | W60: =IF($A60>Year_Term,0,BenefitsA!R60) -> 0 | X60: =IF($A60>Year_Term,0,BenefitsA!S60) -> 0 | Y60: =IF($A60>Year_Term,0,BenefitsA!T60) -> 0 | Z60: 0 | AA60: =IF($A60>Year_Term,0,BenefitsA!U60) -> 0 | AB60: =IF($A60>Year_Term,0,BenefitsA!V60) -> 0 | AC60: =IF($A60>Year_Term,0,BenefitsA!W60) -> 0 | AD60: 0 | AE60: =IF($A60>Year_Term,0,BenefitsA!X60) -> 0 | AF60: =IF($A60>Year_Term,0,BenefitsA!Y60) -> 0 | AG60: =IF($A60>Year_Term,0,BenefitsA!Z60) -> 0 | AH60: 0 | AI60: =IF($A60>Year_Term,0,BenefitsA!AA60) -> 0 | AJ60: =IF($A60>Year_Term,0,BenefitsA!AB60) -> 0 | AK60: =IF($A60>Year_Term,0,BenefitsA!AC60) -> 0 | AL60: 0 | AM60: =IF($A60>Year_Term,0,BenefitsA!AD60) -> 0 | AN60: =IF($A60>Year_Term,0,BenefitsA!AE60) -> 0 | AO60: =IF($A60>Year_Term,0,BenefitsA!AF60) -> 0 | AP60: 0
A61: 58 | B61: 2083 | C61: =IF($A61>Year_Term,0,BenefitsA!C61) -> 0 | D61: =IF($A61>Year_Term,0,BenefitsA!D61) -> 0 | E61: =IF($A61>Year_Term,0,BenefitsA!E61) -> 0 | F61: 0 | G61: =IF($A61>Year_Term,0,BenefitsA!F61) -> 0 | H61: =IF($A61>Year_Term,0,BenefitsA!G61) -> 0 | I61: =IF($A61>Year_Term,0,BenefitsA!H61) -> 0 | J61: 0 | K61: =IF($A61>Year_Term,0,BenefitsA!I61) -> 0 | L61: =IF($A61>Year_Term,0,BenefitsA!J61) -> 0 | M61: =IF($A61>Year_Term,0,BenefitsA!K61) -> 0 | N61: 0 | O61: =IF($A61>Year_Term,0,BenefitsA!L61) -> 0 | P61: =IF($A61>Year_Term,0,BenefitsA!M61) -> 0 | Q61: =IF($A61>Year_Term,0,BenefitsA!N61) -> 0 | R61: 0 | S61: =IF($A61>Year_Term,0,BenefitsA!O61) -> 0 | T61: =IF($A61>Year_Term,0,BenefitsA!P61) -> 0 | U61: =IF($A61>Year_Term,0,BenefitsA!Q61) -> 0 | V61: 0 | W61: =IF($A61>Year_Term,0,BenefitsA!R61) -> 0 | X61: =IF($A61>Year_Term,0,BenefitsA!S61) -> 0 | Y61: =IF($A61>Year_Term,0,BenefitsA!T61) -> 0 | Z61: 0 | AA61: =IF($A61>Year_Term,0,BenefitsA!U61) -> 0 | AB61: =IF($A61>Year_Term,0,BenefitsA!V61) -> 0 | AC61: =IF($A61>Year_Term,0,BenefitsA!W61) -> 0 | AD61: 0 | AE61: =IF($A61>Year_Term,0,BenefitsA!X61) -> 0 | AF61: =IF($A61>Year_Term,0,BenefitsA!Y61) -> 0 | AG61: =IF($A61>Year_Term,0,BenefitsA!Z61) -> 0 | AH61: 0 | AI61: =IF($A61>Year_Term,0,BenefitsA!AA61) -> 0 | AJ61: =IF($A61>Year_Term,0,BenefitsA!AB61) -> 0 | AK61: =IF($A61>Year_Term,0,BenefitsA!AC61) -> 0 | AL61: 0 | AM61: =IF($A61>Year_Term,0,BenefitsA!AD61) -> 0 | AN61: =IF($A61>Year_Term,0,BenefitsA!AE61) -> 0 | AO61: =IF($A61>Year_Term,0,BenefitsA!AF61) -> 0 | AP61: 0
A62: 59 | B62: 2084 | C62: =IF($A62>Year_Term,0,BenefitsA!C62) -> 0 | D62: =IF($A62>Year_Term,0,BenefitsA!D62) -> 0 | E62: =IF($A62>Year_Term,0,BenefitsA!E62) -> 0 | F62: 0 | G62: =IF($A62>Year_Term,0,BenefitsA!F62) -> 0 | H62: =IF($A62>Year_Term,0,BenefitsA!G62) -> 0 | I62: =IF($A62>Year_Term,0,BenefitsA!H62) -> 0 | J62: 0 | K62: =IF($A62>Year_Term,0,BenefitsA!I62) -> 0 | L62: =IF($A62>Year_Term,0,BenefitsA!J62) -> 0 | M62: =IF($A62>Year_Term,0,BenefitsA!K62) -> 0 | N62: 0 | O62: =IF($A62>Year_Term,0,BenefitsA!L62) -> 0 | P62: =IF($A62>Year_Term,0,BenefitsA!M62) -> 0 | Q62: =IF($A62>Year_Term,0,BenefitsA!N62) -> 0 | R62: 0 | S62: =IF($A62>Year_Term,0,BenefitsA!O62) -> 0 | T62: =IF($A62>Year_Term,0,BenefitsA!P62) -> 0 | U62: =IF($A62>Year_Term,0,BenefitsA!Q62) -> 0 | V62: 0 | W62: =IF($A62>Year_Term,0,BenefitsA!R62) -> 0 | X62: =IF($A62>Year_Term,0,BenefitsA!S62) -> 0 | Y62: =IF($A62>Year_Term,0,BenefitsA!T62) -> 0 | Z62: 0 | AA62: =IF($A62>Year_Term,0,BenefitsA!U62) -> 0 | AB62: =IF($A62>Year_Term,0,BenefitsA!V62) -> 0 | AC62: =IF($A62>Year_Term,0,BenefitsA!W62) -> 0 | AD62: 0 | AE62: =IF($A62>Year_Term,0,BenefitsA!X62) -> 0 | AF62: =IF($A62>Year_Term,0,BenefitsA!Y62) -> 0 | AG62: =IF($A62>Year_Term,0,BenefitsA!Z62) -> 0 | AH62: 0 | AI62: =IF($A62>Year_Term,0,BenefitsA!AA62) -> 0 | AJ62: =IF($A62>Year_Term,0,BenefitsA!AB62) -> 0 | AK62: =IF($A62>Year_Term,0,BenefitsA!AC62) -> 0 | AL62: 0 | AM62: =IF($A62>Year_Term,0,BenefitsA!AD62) -> 0 | AN62: =IF($A62>Year_Term,0,BenefitsA!AE62) -> 0 | AO62: =IF($A62>Year_Term,0,BenefitsA!AF62) -> 0 | AP62: 0
A63: 60 | B63: 2085 | C63: =IF($A63>Year_Term,0,BenefitsA!C63) -> 0 | D63: =IF($A63>Year_Term,0,BenefitsA!D63) -> 0 | E63: =IF($A63>Year_Term,0,BenefitsA!E63) -> 0 | F63: 0 | G63: =IF($A63>Year_Term,0,BenefitsA!F63) -> 0 | H63: =IF($A63>Year_Term,0,BenefitsA!G63) -> 0 | I63: =IF($A63>Year_Term,0,BenefitsA!H63) -> 0 | J63: 0 | K63: =IF($A63>Year_Term,0,BenefitsA!I63) -> 0 | L63: =IF($A63>Year_Term,0,BenefitsA!J63) -> 0 | M63: =IF($A63>Year_Term,0,BenefitsA!K63) -> 0 | N63: 0 | O63: =IF($A63>Year_Term,0,BenefitsA!L63) -> 0 | P63: =IF($A63>Year_Term,0,BenefitsA!M63) -> 0 | Q63: =IF($A63>Year_Term,0,BenefitsA!N63) -> 0 | R63: 0 | S63: =IF($A63>Year_Term,0,BenefitsA!O63) -> 0 | T63: =IF($A63>Year_Term,0,BenefitsA!P63) -> 0 | U63: =IF($A63>Year_Term,0,BenefitsA!Q63) -> 0 | V63: 0 | W63: =IF($A63>Year_Term,0,BenefitsA!R63) -> 0 | X63: =IF($A63>Year_Term,0,BenefitsA!S63) -> 0 | Y63: =IF($A63>Year_Term,0,BenefitsA!T63) -> 0 | Z63: 0 | AA63: =IF($A63>Year_Term,0,BenefitsA!U63) -> 0 | AB63: =IF($A63>Year_Term,0,BenefitsA!V63) -> 0 | AC63: =IF($A63>Year_Term,0,BenefitsA!W63) -> 0 | AD63: 0 | AE63: =IF($A63>Year_Term,0,BenefitsA!X63) -> 0 | AF63: =IF($A63>Year_Term,0,BenefitsA!Y63) -> 0 | AG63: =IF($A63>Year_Term,0,BenefitsA!Z63) -> 0 | AH63: 0 | AI63: =IF($A63>Year_Term,0,BenefitsA!AA63) -> 0 | AJ63: =IF($A63>Year_Term,0,BenefitsA!AB63) -> 0 | AK63: =IF($A63>Year_Term,0,BenefitsA!AC63) -> 0 | AL63: 0 | AM63: =IF($A63>Year_Term,0,BenefitsA!AD63) -> 0 | AN63: =IF($A63>Year_Term,0,BenefitsA!AE63) -> 0 | AO63: =IF($A63>Year_Term,0,BenefitsA!AF63) -> 0 | AP63: 0

Sheet BaseCFA
A1: SCENARIO A BASE CASH FLOWS | C1: Option: 1 CAPEX | D1: Option: 1 OPEX | E1: Option: 2 CAPEX | F1: Option: 2 OPEX | G1: Option: 3 CAPEX | H1: Option: 3 OPEX | I1: Option: 4 CAPEX | J1: Option: 4 OPEX | K1: Option: 5 CAPEX | L1: Option: 5 OPEX | M1: Option: 6 CAPEX | N1: Option: 6 OPEX | O1: Option: 7 CAPEX | P1: Option: 7 OPEX | Q1: Option: 8 CAPEX | R1: Option: 8 OPEX | S1: Option: 9 CAPEX | T1: Option: 9 OPEX | U1: Option: 10 CAPEX | V1: Option: 10 OPEX
A2: NPV | C2: =-NPV(WACC_Select,C8:C67)-C7 -> -7086347.267 | D2: -2202536.104 | E2: 0 | F2: -12070438.58 | G2: 0 | H2: 0 | I2: 0 | J2: 0 | K2: 0 | L2: 0 | M2: 0 | N2: 0 | O2: 0 | P2: 0 | Q2: 0 | R2: 0 | S2: 0 | T2: 0 | U2: 0 | V2: 0
A3: Market Benefits NPV | C3: =NPV(WACC_Select,BenefitsCFA!$F$4:$F$63)+BenefitsCFA!$F$3 -> 0 | E3: =NPV(WACC_Select,BenefitsCFA!$J$4:$J$63)+BenefitsCFA!$J$3 -> 0 | G3: =NPV(WACC_Select,BenefitsCFA!$N$4:$N$63)+BenefitsCFA!$N$3 -> 0 | I3: =NPV(WACC_Select,BenefitsCFA!$R$4:$R$63)+BenefitsCFA!$R$3 -> 0 | K3: =NPV(WACC_Select,BenefitsCFA!$V$4:$V$63)+BenefitsCFA!$V$3 -> 0 | M3: =NPV(WACC_Select,BenefitsCFA!$Z$4:$Z$63)+BenefitsCFA!$Z$3 -> 0 | O3: =NPV(WACC_Select,BenefitsCFA!$AD$4:$AD$63)+BenefitsCFA!$AD$3 -> 0 | Q3: =NPV(WACC_Select,BenefitsCFA!$AH$4:$AH$63)+BenefitsCFA!$AH$3 -> 0 | S3: =NPV(WACC_Select,BenefitsCFA!$AL$4:$AL$63)+BenefitsCFA!$AL$3 -> 0 | U3: =NPV(WACC_Select,BenefitsCFA!$AP$4:$AP$63)+BenefitsCFA!$AP$3 -> 0
A4: Net NPV | C4: =C2+D2+C3 -> -9288883.371 | E4: =E2+F2+E3 -> -12070438.58 | G4: =G2+H2+G3 -> 0 | I4: =I2+J2+I3 -> 0 | K4: =K2+L2+K3 -> 0 | M4: =M2+N2+M3 -> 0 | O4: =O2+P2+O3 -> 0 | Q4: =Q2+R2+Q3 -> 0 | S4: =S2+T2+S3 -> 0 | U4: =U2+V2+U3 -> 0
A6: Period | B6: Date | C6: Option: 1 CAPEX Cash Flow | D6: Option: 1 OPEX Cash Flow | E6: Option: 2 CAPEX Cash Flow | F6: Option: 2 OPEX Cash Flow | G6: Option: 3 CAPEX Cash Flow | H6: Option: 3 OPEX Cash Flow | I6: Option: 4 CAPEX Cash Flow | J6: Option: 4 OPEX Cash Flow | K6: Option: 5 CAPEX Cash Flow | L6: Option: 5 OPEX Cash Flow | M6: Option: 6 CAPEX Cash Flow | N6: Option: 6 OPEX Cash Flow | O6: Option: 7 CAPEX Cash Flow | P6: Option: 7 OPEX Cash Flow | Q6: Option: 8 CAPEX Cash Flow | R6: Option: 8 OPEX Cash Flow | S6: Option: 9 CAPEX Cash Flow | T6: Option: 9 OPEX Cash Flow | U6: Option: 10 CAPEX Cash Flow | V6: Option: 10 OPEX Cash Flow
A7: 0 | B7: =Year_Zero -> 2025 | C7: 0 | D7: 0 | E7: 0 | F7: 0 | G7: 0 | H7: 0
A8: 1 | B8: =B7+1 -> 2026 | C8: 7649414 | D8: 191235.35 | E8: 0 | F8: 1048016.667 | G8: 0 | H8: 0
A9: 2 | B9: =B8+1 -> 2027 | C9: 0 | D9: 191235.35 | E9: 0 | F9: 1048016.667 | G9: 0 | H9: 0
A10: 3 | B10: 2028 | C10: 0 | D10: 191235.35 | E10: 0 | F10: 1048016.667 | G10: 0 | H10: 0
A11: 4 | B11: 2029 | C11: 0 | D11: 191235.35 | E11: 0 | F11: 1048016.667 | G11: 0 | H11: 0
A12: 5 | B12: 2030 | C12: 0 | D12: 191235.35 | E12: 0 | F12: 1048016.667 | G12: 0 | H12: 0
A13: 6 | B13: 2031 | C13: 0 | D13: 191235.35 | E13: 0 | F13: 1048016.667 | G13: 0 | H13: 0
A14: 7 | B14: 2032 | C14: 0 | D14: 191235.35 | E14: 0 | F14: 1048016.667 | G14: 0 | H14: 0
A15: 8 | B15: 2033 | C15: 0 | D15: 191235.35 | E15: 0 | F15: 1048016.667 | G15: 0 | H15: 0
A16: 9 | B16: 2034 | C16: 0 | D16: 191235.35 | E16: 0 | F16: 1048016.667 | G16: 0 | H16: 0
A17: 10 | B17: 2035 | C17: 0 | D17: 191235.35 | E17: 0 | F17: 1048016.667 | G17: 0 | H17: 0
A18: 11 | B18: 2036 | C18: 0 | D18: 191235.35 | E18: 0 | F18: 1048016.667 | G18: 0 | H18: 0
A19: 12 | B19: 2037 | C19: 0 | D19: 191235.35 | E19: 0 | F19: 1048016.667 | G19: 0 | H19: 0
A20: 13 | B20: 2038 | C20: 0 | D20: 191235.35 | E20: 0 | F20: 1048016.667 | G20: 0 | H20: 0
A21: 14 | B21: 2039 | C21: 0 | D21: 191235.35 | E21: 0 | F21: 1048016.667 | G21: 0 | H21: 0
A22: 15 | B22: 2040 | C22: -509960.9333 | D22: 191235.35 | E22: 0 | F22: 1048016.667 | G22: 0 | H22: 0
A23: 16 | B23: 2041 | C23: 0 | D23: 0 | E23: 0 | F23: 0 | G23: 0 | H23: 0
A24: 17 | B24: 2042 | C24: 0 | D24: 0 | E24: 0 | F24: 0 | G24: 0 | H24: 0
A25: 18 | B25: 2043 | C25: 0 | D25: 0 | E25: 0 | F25: 0 | G25: 0 | H25: 0
A26: 19 | B26: 2044 | C26: 0 | D26: 0 | E26: 0 | F26: 0 | G26: 0 | H26: 0
A27: 20 | B27: 2045 | C27: 0 | D27: 0 | E27: 0 | F27: 0 | G27: 0 | H27: 0
A28: 21 | B28: 2046 | C28: 0 | D28: 0 | E28: 0 | F28: 0 | G28: 0 | H28: 0
A29: 22 | B29: 2047 | C29: 0 | D29: 0 | E29: 0 | F29: 0 | G29: 0 | H29: 0
A30: 23 | B30: 2048 | C30: 0 | D30: 0 | E30: 0 | F30: 0 | G30: 0 | H30: 0
A31: 24 | B31: 2049 | C31: 0 | D31: 0 | E31: 0 | F31: 0 | G31: 0 | H31: 0
A32: 25 | B32: 2050 | C32: 0 | D32: 0 | E32: 0 | F32: 0 | G32: 0 | H32: 0
A33: 26 | B33: 2051 | C33: 0 | D33: 0 | E33: 0 | F33: 0 | G33: 0 | H33: 0
A34: 27 | B34: 2052 | C34: 0 | D34: 0 | E34: 0 | F34: 0 | G34: 0 | H34: 0
A35: 28 | B35: 2053 | C35: 0 | D35: 0 | E35: 0 | F35: 0 | G35: 0 | H35: 0
A36: 29 | B36: 2054 | C36: 0 | D36: 0 | E36: 0 | F36: 0 | G36: 0 | H36: 0
A37: 30 | B37: 2055 | C37: 0 | D37: 0 | E37: 0 | F37: 0 | G37: 0 | H37: 0
A38: 31 | B38: 2056 | C38: 0 | D38: 0 | E38: 0 | F38: 0 | G38: 0 | H38: 0
A39: 32 | B39: 2057 | C39: 0 | D39: 0 | E39: 0 | F39: 0 | G39: 0 | H39: 0
A40: 33 | B40: 2058 | C40: 0 | D40: 0 | E40: 0 | F40: 0 | G40: 0 | H40: 0
A41: 34 | B41: 2059 | C41: 0 | D41: 0 | E41: 0 | F41: 0 | G41: 0 | H41: 0
A42: 35 | B42: =B41+1 -> 2060 | C42: 0 | D42: 0 | E42: 0 | F42: 0 | G42: 0 | H42: 0
A43: 36 | B43: 2061 | C43: 0 | D43: 0 | E43: 0 | F43: 0 | G43: 0 | H43: 0
A44: 37 | B44: 2062 | C44: 0 | D44: 0 | E44: 0 | F44: 0 | G44: 0 | H44: 0
A45: 38 | B45: 2063 | C45: 0 | D45: 0 | E45: 0 | F45: 0 | G45: 0 | H45: 0
A46: 39 | B46: 2064 | C46: 0 | D46: 0 | E46: 0 | F46: 0 | G46: 0 | H46: 0
A47: 40 | B47: 2065 | C47: 0 | D47: 0 | E47: 0 | F47: 0 | G47: 0 | H47: 0
A48: 41 | B48: 2066 | C48: 0 | D48: 0 | E48: 0 | F48: 0 | G48: 0 | H48: 0
A49: 42 | B49: 2067 | C49: 0 | D49: 0 | E49: 0 | F49: 0 | G49: 0 | H49: 0
A50: 43 | B50: 2068 | C50: 0 | D50: 0 | E50: 0 | F50: 0 | G50: 0 | H50: 0
A51: 44 | B51: 2069 | C51: 0 | D51: 0 | E51: 0 | F51: 0 | G51: 0 | H51: 0
A52: 45 | B52: 2070 | C52: 0 | D52: 0 | E52: 0 | F52: 0 | G52: 0 | H52: 0
A53: 46 | B53: 2071 | C53: 0 | D53: 0 | E53: 0 | F53: 0 | G53: 0 | H53: 0
A54: 47 | B54: 2072 | C54: 0 | D54: 0 | E54: 0 | F54: 0 | G54: 0 | H54: 0
A55: 48 | B55: 2073 | C55: 0 | D55: 0 | E55: 0 | F55: 0 | G55: 0 | H55: 0
A56: 49 | B56: 2074 | C56: 0 | D56: 0 | E56: 0 | F56: 0 | G56: 0 | H56: 0
A57: 50 | B57: 2075 | C57: 0 | D57: 0 | E57: 0 | F57: 0 | G57: 0 | H57: 0
A58: 51 | B58: 2076 | C58: 0 | D58: 0 | E58: 0 | F58: 0 | G58: 0 | H58: 0
A59: 52 | B59: 2077 | C59: 0 | D59: 0 | E59: 0 | F59: 0 | G59: 0 | H59: 0
A60: 53 | B60: 2078 | C60: 0 | D60: 0 | E60: 0 | F60: 0 | G60: 0 | H60: 0
A61: 54 | B61: 2079 | C61: 0 | D61: 0 | E61: 0 | F61: 0 | G61: 0 | H61: 0
A62: 55 | B62: 2080 | C62: 0 | D62: 0 | E62: 0 | F62: 0 | G62: 0 | H62: 0
A63: 56 | B63: 2081 | C63: 0 | D63: 0 | E63: 0 | F63: 0 | G63: 0 | H63: 0
A64: 57 | B64: 2082 | C64: 0 | D64: 0 | E64: 0 | F64: 0 | G64: 0 | H64: 0
A65: 58 | B65: 2083 | C65: 0 | D65: 0 | E65: 0 | F65: 0 | G65: 0 | H65: 0
A66: 59 | B66: 2084 | C66: 0 | D66: 0 | E66: 0 | F66: 0 | G66: 0 | H66: 0
A67: 60 | B67: 2085 | C67: 0 | D67: 0 | E67: 0 | F67: 0 | G67: 0 | H67: 0

Sheet MCresultsA
A1: SCENARIO A | B1: OPTIONS MONTE CARLO NPV OUTCOMES
B2: 1 | C2: 2 | D2: 3 | E2: 4 | F2: 5 | G2: 6 | H2: 7 | I2: 8 | J2: 9 | K2: 10
A3: AVERAGE NPV
A4: MAX NPV
A5: MIN NPV
A6: MAX PERCENT
A7: MIN PERCENT
A8: Iterations

Sheet ScenarioB
A1: SCENARIO B | D1: =Parameters!B15 -> Planned and Unplanned Customer benefits & fuel | G1: 1 | H1: 2 | I1: 3 | J1: 4 | K1: 5 | L1: 6 | M1: 7 | N1: 8 | O1: 9 | P1: 10
A2: Option: | D2: =IFERROR(OFFSET(Parameters!$B$25,MATCH(Opt_No2,Parameters!$A$26:$A$35,0),0),"") ->  | G2: Option 1 | H2: Option 2 | I2: Option 3 | J2: Option 4 | K2: Option 5 | L2: Option 6 | M2: Option 7 | N2: Option 8 | O2: Option 9 | P2: Option 10
D3: NPV Ranking | G3: =IFERROR(RANK(G4,$G$4:$P$4,0),"") -> 1 | H3: =IFERROR(RANK(H4,$G$4:$P$4,0),"") -> 2 | I3: 3
D4: Net NPV | G4: =IF(G$1>Option_Count,"",BaseCFB!C4) -> 3243188.39 | H4: =IF(H$1>Option_Count,"",BaseCFB!E4) -> 461633.1853 | I4: =IF(I$1>Option_Count,"",BaseCFB!G4) -> 0 | J4: =IF(J$1>Option_Count,"",BaseCFB!I4) ->  | K4: =IF(K$1>Option_Count,"",BaseCFB!K4) ->  | L4: =IF(L$1>Option_Count,"",BaseCFB!M4) ->  | M4: =IF(M$1>Option_Count,"",BaseCFB!O4) ->  | N4: =IF(N$1>Option_Count,"",BaseCFB!Q4) ->  | O4: =IF(O$1>Option_Count,"",BaseCFB!S4) ->  | P4: =IF(P$1>Option_Count,"",BaseCFB!U4) -> 
D5: Component Count | G5: =COUNTA(G8:G57) -> 8 | H5: =COUNTA(H8:H57) -> 40 | I5: 0 | J5: 0 | K5: 0 | L5: 0 | M5: 0 | N5: 0 | O5: 0 | P5: 0
B6: FALSE | D6: Hide Decommissioned Assets | E6: Decommissioned Assets
A7: ID | B7: Life | C7: Network Limitation | D7: Component Title Selection | E7: Recovery Date | F7: Recovery Value $ Real | G7: Stage Timing Option 1 | H7: Stage Timing Option 2 | I7: Stage Timing Option 3 | J7: Stage Timing Option 4 | K7: Stage Timing Option 5 | L7: Stage Timing Option 6 | M7: Stage Timing Option 7 | N7: Stage Timing Option 8 | O7: Stage Timing Option 9 | P7: Stage Timing Option 10
A8: 1 | B8: =IFERROR(OFFSET(Costs!$D$1,$A8,0),"") -> 15 | C8: Restoration of supply during planned and unplanned outages | D8: HV Pegasus (1 units) | G8: 2026
A9: 1 | B9: =IFERROR(OFFSET(Costs!$D$1,$A9,0),"") -> 15 | C9: Restoration of supply during planned and unplanned outages | D9: HV Pegasus (1 units) | G9: 2026
A10: 2 | B10: =IFERROR(OFFSET(Costs!$D$1,$A10,0),"") -> 15 | C10: Restoration of supply during planned and unplanned outages | D10: LV 500kVA MG (2 units) | G10: 2026
A11: 2 | B11: =IFERROR(OFFSET(Costs!$D$1,$A11,0),"") -> 15 | C11: Restoration of supply during planned and unplanned outages | D11: LV 500kVA MG (2 units) | G11: 2026
A12: 2 | B12: =IFERROR(OFFSET(Costs!$D$1,$A12,0),"") -> 15 | C12: Restoration of supply during planned and unplanned outages | D12: LV 500kVA MG (2 units) | G12: 2026
A13: 2 | B13: =IFERROR(OFFSET(Costs!$D$1,$A13,0),"") -> 15 | C13: Restoration of supply during planned and unplanned outages | D13: LV 500kVA MG (2 units) | G13: 2026
A14: =IFERROR(MATCH($D14,Costs!$B$2:$B$201,0),"") -> 2 | B14: =IFERROR(OFFSET(Costs!$D$1,$A14,0),"") -> 15 | C14: Restoration of supply during planned and unplanned outages | D14: LV 500kVA MG (2 units) | G14: 2026
A15: =IFERROR(MATCH($D15,Costs!$B$2:$B$201,0),"") -> 2 | B15: =IFERROR(OFFSET(Costs!$D$1,$A15,0),"") -> 15 | C15: Restoration of supply during planned and unplanned outages | D15: LV 500kVA MG (2 units) | G15: 2026
A16: =IFERROR(MATCH($D16,Costs!$B$2:$B$201,0),"") -> 5 | B16: =IFERROR(OFFSET(Costs!$D$1,$A16,0),"") -> 1 | D16: HV Pegasus (2 units) Daily hire - Annual Cost | H16: 2026
A17: =IFERROR(MATCH($D17,Costs!$B$2:$B$201,0),"") -> 5 | B17: =IFERROR(OFFSET(Costs!$D$1,$A17,0),"") -> 1 | D17: HV Pegasus (2 units) Daily hire - Annual Cost | H17: 2027
A18: =IFERROR(MATCH($D18,Costs!$B$2:$B$201,0),"") -> 5 | B18: =IFERROR(OFFSET(Costs!$D$1,$A18,0),"") -> 1 | D18: HV Pegasus (2 units) Daily hire - Annual Cost | H18: 2028
A19: =IFERROR(MATCH($D19,Costs!$B$2:$B$201,0),"") -> 5 | B19: =IFERROR(OFFSET(Costs!$D$1,$A19,0),"") -> 1 | D19: HV Pegasus (2 units) Daily hire - Annual Cost | H19: 2029
A20: =IFERROR(MATCH($D20,Costs!$B$2:$B$201,0),"") -> 5 | B20: =IFERROR(OFFSET(Costs!$D$1,$A20,0),"") -> 1 | D20: HV Pegasus (2 units) Daily hire - Annual Cost | H20: 2030
A21: =IFERROR(MATCH($D21,Costs!$B$2:$B$201,0),"") -> 5 | B21: =IFERROR(OFFSET(Costs!$D$1,$A21,0),"") -> 1 | D21: HV Pegasus (2 units) Daily hire - Annual Cost | H21: 2031
A22: =IFERROR(MATCH($D22,Costs!$B$2:$B$201,0),"") -> 5 | B22: =IFERROR(OFFSET(Costs!$D$1,$A22,0),"") -> 1 | D22: HV Pegasus (2 units) Daily hire - Annual Cost | H22: 2032
A23: =IFERROR(MATCH($D23,Costs!$B$2:$B$201,0),"") -> 5 | B23: =IFERROR(OFFSET(Costs!$D$1,$A23,0),"") -> 1 | D23: HV Pegasus (2 units) Daily hire - Annual Cost | H23: 2033
A24: =IFERROR(MATCH($D24,Costs!$B$2:$B$201,0),"") -> 5 | B24: =IFERROR(OFFSET(Costs!$D$1,$A24,0),"") -> 1 | D24: HV Pegasus (2 units) Daily hire - Annual Cost | H24: 2034
A25: =IFERROR(MATCH($D25,Costs!$B$2:$B$201,0),"") -> 5 | B25: =IFERROR(OFFSET(Costs!$D$1,$A25,0),"") -> 1 | D25: HV Pegasus (2 units) Daily hire - Annual Cost | H25: 2035
A26: =IFERROR(MATCH($D26,Costs!$B$2:$B$201,0),"") -> 5 | B26: =IFERROR(OFFSET(Costs!$D$1,$A26,0),"") -> 1 | D26: HV Pegasus (2 units) Daily hire - Annual Cost | H26: 2036
A27: =IFERROR(MATCH($D27,Costs!$B$2:$B$201,0),"") -> 5 | B27: =IFERROR(OFFSET(Costs!$D$1,$A27,0),"") -> 1 | D27: HV Pegasus (2 units) Daily hire - Annual Cost | H27: 2037
A28: =IFERROR(MATCH($D28,Costs!$B$2:$B$201,0),"") -> 5 | B28: =IFERROR(OFFSET(Costs!$D$1,$A28,0),"") -> 1 | D28: HV Pegasus (2 units) Daily hire - Annual Cost | H28: 2038
A29: =IFERROR(MATCH($D29,Costs!$B$2:$B$201,0),"") -> 5 | B29: =IFERROR(OFFSET(Costs!$D$1,$A29,0),"") -> 1 | D29: HV Pegasus (2 units) Daily hire - Annual Cost | H29: 2039
A30: =IFERROR(MATCH($D30,Costs!$B$2:$B$201,0),"") -> 5 | B30: =IFERROR(OFFSET(Costs!$D$1,$A30,0),"") -> 1 | D30: HV Pegasus (2 units) Daily hire - Annual Cost | H30: 2040
A31: =IFERROR(MATCH($D31,Costs!$B$2:$B$201,0),"") ->  | B31: =IFERROR(OFFSET(Costs!$D$1,$A31,0),"") -> 
A32: =IFERROR(MATCH($D32,Costs!$B$2:$B$201,0),"") -> 6 | B32: =IFERROR(OFFSET(Costs!$D$1,$A32,0),"") -> 1 | D32: LV 500kVA MG (6 units) Daily hire - Annual Cost | H32: 2026
A33: =IFERROR(MATCH($D33,Costs!$B$2:$B$201,0),"") -> 6 | B33: =IFERROR(OFFSET(Costs!$D$1,$A33,0),"") -> 1 | D33: LV 500kVA MG (6 units) Daily hire - Annual Cost | H33: 2027
A34: =IFERROR(MATCH($D34,Costs!$B$2:$B$201,0),"") -> 6 | B34: =IFERROR(OFFSET(Costs!$D$1,$A34,0),"") -> 1 | D34: LV 500kVA MG (6 units) Daily hire - Annual Cost | H34: 2028
A35: =IFERROR(MATCH($D35,Costs!$B$2:$B$201,0),"") -> 6 | B35: =IFERROR(OFFSET(Costs!$D$1,$A35,0),"") -> 1 | D35: LV 500kVA MG (6 units) Daily hire - Annual Cost | H35: 2029
A36: =IFERROR(MATCH($D36,Costs!$B$2:$B$201,0),"") -> 6 | B36: =IFERROR(OFFSET(Costs!$D$1,$A36,0),"") -> 1 | D36: LV 500kVA MG (6 units) Daily hire - Annual Cost | H36: 2030
A37: =IFERROR(MATCH($D37,Costs!$B$2:$B$201,0),"") -> 6 | B37: =IFERROR(OFFSET(Costs!$D$1,$A37,0),"") -> 1 | D37: LV 500kVA MG (6 units) Daily hire - Annual Cost | H37: 2031
A38: =IFERROR(MATCH($D38,Costs!$B$2:$B$201,0),"") -> 6 | B38: =IFERROR(OFFSET(Costs!$D$1,$A38,0),"") -> 1 | D38: LV 500kVA MG (6 units) Daily hire - Annual Cost | H38: 2032
A39: =IFERROR(MATCH($D39,Costs!$B$2:$B$201,0),"") -> 6 | B39: =IFERROR(OFFSET(Costs!$D$1,$A39,0),"") -> 1 | D39: LV 500kVA MG (6 units) Daily hire - Annual Cost | H39: 2033
A40: =IFERROR(MATCH($D40,Costs!$B$2:$B$201,0),"") -> 6 | B40: =IFERROR(OFFSET(Costs!$D$1,$A40,0),"") -> 1 | D40: LV 500kVA MG (6 units) Daily hire - Annual Cost | H40: 2034
A41: =IFERROR(MATCH($D41,Costs!$B$2:$B$201,0),"") -> 6 | B41: =IFERROR(OFFSET(Costs!$D$1,$A41,0),"") -> 1 | D41: LV 500kVA MG (6 units) Daily hire - Annual Cost | H41: 2035
A42: =IFERROR(MATCH($D42,Costs!$B$2:$B$201,0),"") -> 6 | B42: =IFERROR(OFFSET(Costs!$D$1,$A42,0),"") -> 1 | D42: LV 500kVA MG (6 units) Daily hire - Annual Cost | H42: 2036
A43: =IFERROR(MATCH($D43,Costs!$B$2:$B$201,0),"") -> 6 | B43: =IFERROR(OFFSET(Costs!$D$1,$A43,0),"") -> 1 | D43: LV 500kVA MG (6 units) Daily hire - Annual Cost | H43: 2037
A44: =IFERROR(MATCH($D44,Costs!$B$2:$B$201,0),"") -> 6 | B44: =IFERROR(OFFSET(Costs!$D$1,$A44,0),"") -> 1 | D44: LV 500kVA MG (6 units) Daily hire - Annual Cost | H44: 2038
A45: =IFERROR(MATCH($D45,Costs!$B$2:$B$201,0),"") -> 6 | B45: =IFERROR(OFFSET(Costs!$D$1,$A45,0),"") -> 1 | D45: LV 500kVA MG (6 units) Daily hire - Annual Cost | H45: 2039
A46: =IFERROR(MATCH($D46,Costs!$B$2:$B$201,0),"") -> 6 | B46: =IFERROR(OFFSET(Costs!$D$1,$A46,0),"") -> 1 | D46: LV 500kVA MG (6 units) Daily hire - Annual Cost | H46: 2040
A47: =IFERROR(MATCH($D47,Costs!$B$2:$B$201,0),"") ->  | B47: =IFERROR(OFFSET(Costs!$D$1,$A47,0),"") -> 
A48: =IFERROR(MATCH($D48,Costs!$B$2:$B$201,0),"") -> 6 | B48: =IFERROR(OFFSET(Costs!$D$1,$A48,0),"") -> 1 | D48: LV 500kVA MG (6 units) Daily hire - Annual Cost | H48: 2026
A49: =IFERROR(MATCH($D49,Costs!$B$2:$B$201,0),"") -> 6 | B49: =IFERROR(OFFSET(Costs!$D$1,$A49,0),"") -> 1 | D49: LV 500kVA MG (6 units) Daily hire - Annual Cost | H49: 2027
A50: =IFERROR(MATCH($D50,Costs!$B$2:$B$201,0),"") -> 6 | B50: =IFERROR(OFFSET(Costs!$D$1,$A50,0),"") -> 1 | D50: LV 500kVA MG (6 units) Daily hire - Annual Cost | H50: 2028
A51: =IFERROR(MATCH($D51,Costs!$B$2:$B$201,0),"") -> 6 | B51: =IFERROR(OFFSET(Costs!$D$1,$A51,0),"") -> 1 | D51: LV 500kVA MG (6 units) Daily hire - Annual Cost | H51: 2029
A52: =IFERROR(MATCH($D52,Costs!$B$2:$B$201,0),"") -> 6 | B52: =IFERROR(OFFSET(Costs!$D$1,$A52,0),"") -> 1 | D52: LV 500kVA MG (6 units) Daily hire - Annual Cost | H52: 2030
A53: =IFERROR(MATCH($D53,Costs!$B$2:$B$201,0),"") -> 6 | B53: =IFERROR(OFFSET(Costs!$D$1,$A53,0),"") -> 1 | D53: LV 500kVA MG (6 units) Daily hire - Annual Cost | H53: 2031
A54: =IFERROR(MATCH($D54,Costs!$B$2:$B$201,0),"") -> 6 | B54: =IFERROR(OFFSET(Costs!$D$1,$A54,0),"") -> 1 | D54: LV 500kVA MG (6 units) Daily hire - Annual Cost | H54: 2032
A55: =IFERROR(MATCH($D55,Costs!$B$2:$B$201,0),"") -> 6 | B55: =IFERROR(OFFSET(Costs!$D$1,$A55,0),"") -> 1 | D55: LV 500kVA MG (6 units) Daily hire - Annual Cost | H55: 2033
A56: =IFERROR(MATCH($D56,Costs!$B$2:$B$201,0),"") -> 6 | B56: =IFERROR(OFFSET(Costs!$D$1,$A56,0),"") -> 1 | D56: LV 500kVA MG (6 units) Daily hire - Annual Cost | H56: 2034
A57: =IFERROR(MATCH($D57,Costs!$B$2:$B$201,0),"") -> 6 | B57: =IFERROR(OFFSET(Costs!$D$1,$A57,0),"") -> 1 | D57: LV 500kVA MG (6 units) Daily hire - Annual Cost | H57: 2035
A58: =IFERROR(MATCH($D58,Costs!$B$2:$B$201,0),"") -> 6 | B58: =IFERROR(OFFSET(Costs!$D$1,$A58,0),"") -> 1 | D58: LV 500kVA MG (6 units) Daily hire - Annual Cost | H58: 2036
A59: =IFERROR(MATCH($D59,Costs!$B$2:$B$201,0),"") -> 6 | B59: =IFERROR(OFFSET(Costs!$D$1,$A59,0),"") -> 1 | D59: LV 500kVA MG (6 units) Daily hire - Annual Cost | H59: 2037
A60: =IFERROR(MATCH($D60,Costs!$B$2:$B$201,0),"") -> 6 | B60: =IFERROR(OFFSET(Costs!$D$1,$A60,0),"") -> 1 | D60: LV 500kVA MG (6 units) Daily hire - Annual Cost | H60: 2038
A61: =IFERROR(MATCH($D61,Costs!$B$2:$B$201,0),"") -> 6 | B61: =IFERROR(OFFSET(Costs!$D$1,$A61,0),"") -> 1 | D61: LV 500kVA MG (6 units) Daily hire - Annual Cost | H61: 2039
A62: =IFERROR(MATCH($D62,Costs!$B$2:$B$201,0),"") -> 6 | B62: =IFERROR(OFFSET(Costs!$D$1,$A62,0),"") -> 1 | D62: LV 500kVA MG (6 units) Daily hire - Annual Cost | H62: 2040
A63: =IFERROR(MATCH($D63,Costs!$B$2:$B$201,0),"") ->  | B63: =IFERROR(OFFSET(Costs!$D$1,$A63,0),"") -> 
A64: =IFERROR(MATCH($D64,Costs!$B$2:$B$201,0),"") -> 7 | B64: =IFERROR(OFFSET(Costs!$D$1,$A64,0),"") -> 1 | D64: Annual fuel for Unplanned | G64: 2026 | H64: 2026
A65: =IFERROR(MATCH($D65,Costs!$B$2:$B$201,0),"") -> 7 | B65: =IFERROR(OFFSET(Costs!$D$1,$A65,0),"") -> 1 | D65: Annual fuel for Unplanned | G65: 2027 | H65: 2027
A66: =IFERROR(MATCH($D66,Costs!$B$2:$B$201,0),"") -> 7 | B66: =IFERROR(OFFSET(Costs!$D$1,$A66,0),"") -> 1 | D66: Annual fuel for Unplanned | G66: 2028 | H66: 2028
A67: =IFERROR(MATCH($D67,Costs!$B$2:$B$201,0),"") -> 7 | B67: =IFERROR(OFFSET(Costs!$D$1,$A67,0),"") -> 1 | D67: Annual fuel for Unplanned | G67: 2029 | H67: 2029
A68: =IFERROR(MATCH($D68,Costs!$B$2:$B$201,0),"") -> 7 | B68: =IFERROR(OFFSET(Costs!$D$1,$A68,0),"") -> 1 | D68: Annual fuel for Unplanned | G68: 2030 | H68: 2030
A69: =IFERROR(MATCH($D69,Costs!$B$2:$B$201,0),"") -> 7 | B69: =IFERROR(OFFSET(Costs!$D$1,$A69,0),"") -> 1 | D69: Annual fuel for Unplanned | G69: 2031 | H69: 2031
A70: =IFERROR(MATCH($D70,Costs!$B$2:$B$201,0),"") -> 7 | B70: =IFERROR(OFFSET(Costs!$D$1,$A70,0),"") -> 1 | D70: Annual fuel for Unplanned | G70: 2032 | H70: 2032
A71: =IFERROR(MATCH($D71,Costs!$B$2:$B$201,0),"") -> 7 | B71: =IFERROR(OFFSET(Costs!$D$1,$A71,0),"") -> 1 | D71: Annual fuel for Unplanned | G71: 2033 | H71: 2033
A72: =IFERROR(MATCH($D72,Costs!$B$2:$B$201,0),"") -> 7 | B72: =IFERROR(OFFSET(Costs!$D$1,$A72,0),"") -> 1 | D72: Annual fuel for Unplanned | G72: 2034 | H72: 2034
A73: =IFERROR(MATCH($D73,Costs!$B$2:$B$201,0),"") -> 7 | B73: =IFERROR(OFFSET(Costs!$D$1,$A73,0),"") -> 1 | D73: Annual fuel for Unplanned | G73: 2035 | H73: 2035
A74: =IFERROR(MATCH($D74,Costs!$B$2:$B$201,0),"") -> 7 | B74: =IFERROR(OFFSET(Costs!$D$1,$A74,0),"") -> 1 | D74: Annual fuel for Unplanned | G74: 2036 | H74: 2036
A75: =IFERROR(MATCH($D75,Costs!$B$2:$B$201,0),"") -> 7 | B75: =IFERROR(OFFSET(Costs!$D$1,$A75,0),"") -> 1 | D75: Annual fuel for Unplanned | G75: 2037 | H75: 2037
A76: =IFERROR(MATCH($D76,Costs!$B$2:$B$201,0),"") -> 7 | B76: =IFERROR(OFFSET(Costs!$D$1,$A76,0),"") -> 1 | D76: Annual fuel for Unplanned | G76: 2038 | H76: 2038
A77: =IFERROR(MATCH($D77,Costs!$B$2:$B$201,0),"") -> 7 | B77: =IFERROR(OFFSET(Costs!$D$1,$A77,0),"") -> 1 | D77: Annual fuel for Unplanned | G77: 2039 | H77: 2039
A78: =IFERROR(MATCH($D78,Costs!$B$2:$B$201,0),"") -> 7 | B78: =IFERROR(OFFSET(Costs!$D$1,$A78,0),"") -> 1 | D78: Annual fuel for Unplanned | G78: 2040 | H78: 2040
A79: =IFERROR(MATCH($D79,Costs!$B$2:$B$201,0),"") ->  | B79: =IFERROR(OFFSET(Costs!$D$1,$A79,0),"") -> 
A80: =IFERROR(MATCH($D80,Costs!$B$2:$B$201,0),"") -> 8 | B80: =IFERROR(OFFSET(Costs!$D$1,$A80,0),"") -> 1 | D80: Annual for Planned | G80: 2026 | H80: 2026
A81: =IFERROR(MATCH($D81,Costs!$B$2:$B$201,0),"") -> 8 | B81: =IFERROR(OFFSET(Costs!$D$1,$A81,0),"") -> 1 | D81: Annual for Planned | G81: 2027 | H81: 2027
A82: =IFERROR(MATCH($D82,Costs!$B$2:$B$201,0),"") -> 8 | B82: =IFERROR(OFFSET(Costs!$D$1,$A82,0),"") -> 1 | D82: Annual for Planned | G82: 2028 | H82: 2028
A83: =IFERROR(MATCH($D83,Costs!$B$2:$B$201,0),"") -> 8 | B83: =IFERROR(OFFSET(Costs!$D$1,$A83,0),"") -> 1 | D83: Annual for Planned | G83: 2029 | H83: 2029
A84: =IFERROR(MATCH($D84,Costs!$B$2:$B$201,0),"") -> 8 | B84: =IFERROR(OFFSET(Costs!$D$1,$A84,0),"") -> 1 | D84: Annual for Planned | G84: 2030 | H84: 2030
A85: =IFERROR(MATCH($D85,Costs!$B$2:$B$201,0),"") -> 8 | B85: =IFERROR(OFFSET(Costs!$D$1,$A85,0),"") -> 1 | D85: Annual for Planned | G85: 2031 | H85: 2031
A86: =IFERROR(MATCH($D86,Costs!$B$2:$B$201,0),"") -> 8 | B86: =IFERROR(OFFSET(Costs!$D$1,$A86,0),"") -> 1 | D86: Annual for Planned | G86: 2032 | H86: 2032
A87: =IFERROR(MATCH($D87,Costs!$B$2:$B$201,0),"") -> 8 | B87: =IFERROR(OFFSET(Costs!$D$1,$A87,0),"") -> 1 | D87: Annual for Planned | G87: 2033 | H87: 2033
A88: =IFERROR(MATCH($D88,Costs!$B$2:$B$201,0),"") -> 8 | B88: =IFERROR(OFFSET(Costs!$D$1,$A88,0),"") -> 1 | D88: Annual for Planned | G88: 2034 | H88: 2034
A89: =IFERROR(MATCH($D89,Costs!$B$2:$B$201,0),"") -> 8 | B89: =IFERROR(OFFSET(Costs!$D$1,$A89,0),"") -> 1 | D89: Annual for Planned | G89: 2035 | H89: 2035
A90: =IFERROR(MATCH($D90,Costs!$B$2:$B$201,0),"") -> 8 | B90: =IFERROR(OFFSET(Costs!$D$1,$A90,0),"") -> 1 | D90: Annual for Planned | G90: 2036 | H90: 2036
A91: =IFERROR(MATCH($D91,Costs!$B$2:$B$201,0),"") -> 8 | B91: =IFERROR(OFFSET(Costs!$D$1,$A91,0),"") -> 1 | D91: Annual for Planned | G91: 2037 | H91: 2037
A92: =IFERROR(MATCH($D92,Costs!$B$2:$B$201,0),"") -> 8 | B92: =IFERROR(OFFSET(Costs!$D$1,$A92,0),"") -> 1 | D92: Annual for Planned | G92: 2038 | H92: 2038
A93: =IFERROR(MATCH($D93,Costs!$B$2:$B$201,0),"") -> 8 | B93: =IFERROR(OFFSET(Costs!$D$1,$A93,0),"") -> 1 | D93: Annual for Planned | G93: 2039 | H93: 2039
A94: =IFERROR(MATCH($D94,Costs!$B$2:$B$201,0),"") -> 8 | B94: =IFERROR(OFFSET(Costs!$D$1,$A94,0),"") -> 1 | D94: Annual for Planned | G94: 2040 | H94: 2040
A95: =IFERROR(MATCH($D95,Costs!$B$2:$B$201,0),"") ->  | B95: =IFERROR(OFFSET(Costs!$D$1,$A95,0),"") -> 
A96: =IFERROR(MATCH($D96,Costs!$B$2:$B$201,0),"") ->  | B96: =IFERROR(OFFSET(Costs!$D$1,$A96,0),"") -> 
A97: =IFERROR(MATCH($D97,Costs!$B$2:$B$201,0),"") ->  | B97: =IFERROR(OFFSET(Costs!$D$1,$A97,0),"") -> 
A98: =IFERROR(MATCH($D98,Costs!$B$2:$B$201,0),"") ->  | B98: =IFERROR(OFFSET(Costs!$D$1,$A98,0),"") -> 
A99: =IFERROR(MATCH($D99,Costs!$B$2:$B$201,0),"") ->  | B99: =IFERROR(OFFSET(Costs!$D$1,$A99,0),"") -> 
A100: =IFERROR(MATCH($D100,Costs!$B$2:$B$201,0),"") ->  | B100: =IFERROR(OFFSET(Costs!$D$1,$A100,0),"") -> 
A101: =IFERROR(MATCH($D101,Costs!$B$2:$B$201,0),"") ->  | B101: =IFERROR(OFFSET(Costs!$D$1,$A101,0),"") -> 
A102: =IFERROR(MATCH($D102,Costs!$B$2:$B$201,0),"") ->  | B102: =IFERROR(OFFSET(Costs!$D$1,$A102,0),"") -> 
A103: =IFERROR(MATCH($D103,Costs!$B$2:$B$201,0),"") ->  | B103: =IFERROR(OFFSET(Costs!$D$1,$A103,0),"") -> 
A104: =IFERROR(MATCH($D104,Costs!$B$2:$B$201,0),"") ->  | B104: =IFERROR(OFFSET(Costs!$D$1,$A104,0),"") -> 
A105: =IFERROR(MATCH($D105,Costs!$B$2:$B$201,0),"") ->  | B105: =IFERROR(OFFSET(Costs!$D$1,$A105,0),"") -> 
A106: =IFERROR(MATCH($D106,Costs!$B$2:$B$201,0),"") ->  | B106: =IFERROR(OFFSET(Costs!$D$1,$A106,0),"") -> 
A107: =IFERROR(MATCH($D107,Costs!$B$2:$B$201,0),"") ->  | B107: =IFERROR(OFFSET(Costs!$D$1,$A107,0),"") -> 
A108: =IFERROR(MATCH($D108,Costs!$B$2:$B$201,0),"") ->  | B108: =IFERROR(OFFSET(Costs!$D$1,$A108,0),"") -> 
A109: =IFERROR(MATCH($D109,Costs!$B$2:$B$201,0),"") ->  | B109: =IFERROR(OFFSET(Costs!$D$1,$A109,0),"") -> 
A110: =IFERROR(MATCH($D110,Costs!$B$2:$B$201,0),"") ->  | B110: =IFERROR(OFFSET(Costs!$D$1,$A110,0),"") -> 
A111: =IFERROR(MATCH($D111,Costs!$B$2:$B$201,0),"") ->  | B111: =IFERROR(OFFSET(Costs!$D$1,$A111,0),"") -> 
A112: =IFERROR(MATCH($D112,Costs!$B$2:$B$201,0),"") ->  | B112: =IFERROR(OFFSET(Costs!$D$1,$A112,0),"") -> 
A113: =IFERROR(MATCH($D113,Costs!$B$2:$B$201,0),"") ->  | B113: =IFERROR(OFFSET(Costs!$D$1,$A113,0),"") -> 
A114: =IFERROR(MATCH($D114,Costs!$B$2:$B$201,0),"") ->  | B114: =IFERROR(OFFSET(Costs!$D$1,$A114,0),"") -> 
A115: =IFERROR(MATCH($D115,Costs!$B$2:$B$201,0),"") ->  | B115: =IFERROR(OFFSET(Costs!$D$1,$A115,0),"") -> 
A116: =IFERROR(MATCH($D116,Costs!$B$2:$B$201,0),"") ->  | B116: =IFERROR(OFFSET(Costs!$D$1,$A116,0),"") -> 
A117: =IFERROR(MATCH($D117,Costs!$B$2:$B$201,0),"") ->  | B117: =IFERROR(OFFSET(Costs!$D$1,$A117,0),"") -> 
A118: =IFERROR(MATCH($D118,Costs!$B$2:$B$201,0),"") ->  | B118: =IFERROR(OFFSET(Costs!$D$1,$A118,0),"") -> 
A119: =IFERROR(MATCH($D119,Costs!$B$2:$B$201,0),"") ->  | B119: =IFERROR(OFFSET(Costs!$D$1,$A119,0),"") -> 
A120: =IFERROR(MATCH($D120,Costs!$B$2:$B$201,0),"") ->  | B120: =IFERROR(OFFSET(Costs!$D$1,$A120,0),"") -> 
A121: =IFERROR(MATCH($D121,Costs!$B$2:$B$201,0),"") ->  | B121: =IFERROR(OFFSET(Costs!$D$1,$A121,0),"") -> 
A122: =IFERROR(MATCH($D122,Costs!$B$2:$B$201,0),"") ->  | B122: =IFERROR(OFFSET(Costs!$D$1,$A122,0),"") -> 
A123: =IFERROR(MATCH($D123,Costs!$B$2:$B$201,0),"") ->  | B123: =IFERROR(OFFSET(Costs!$D$1,$A123,0),"") -> 
A124: =IFERROR(MATCH($D124,Costs!$B$2:$B$201,0),"") ->  | B124: =IFERROR(OFFSET(Costs!$D$1,$A124,0),"") -> 
A125: =IFERROR(MATCH($D125,Costs!$B$2:$B$201,0),"") ->  | B125: =IFERROR(OFFSET(Costs!$D$1,$A125,0),"") -> 
A126: =IFERROR(MATCH($D126,Costs!$B$2:$B$201,0),"") ->  | B126: =IFERROR(OFFSET(Costs!$D$1,$A126,0),"") -> 
A127: =IFERROR(MATCH($D127,Costs!$B$2:$B$201,0),"") ->  | B127: =IFERROR(OFFSET(Costs!$D$1,$A127,0),"") -> 
A128: =IFERROR(MATCH($D128,Costs!$B$2:$B$201,0),"") ->  | B128: =IFERROR(OFFSET(Costs!$D$1,$A128,0),"") -> 
A129: =IFERROR(MATCH($D129,Costs!$B$2:$B$201,0),"") ->  | B129: =IFERROR(OFFSET(Costs!$D$1,$A129,0),"") -> 
A130: =IFERROR(MATCH($D130,Costs!$B$2:$B$201,0),"") ->  | B130: =IFERROR(OFFSET(Costs!$D$1,$A130,0),"") -> 
A131: =IFERROR(MATCH($D131,Costs!$B$2:$B$201,0),"") ->  | B131: =IFERROR(OFFSET(Costs!$D$1,$A131,0),"") -> 
A132: =IFERROR(MATCH($D132,Costs!$B$2:$B$201,0),"") ->  | B132: =IFERROR(OFFSET(Costs!$D$1,$A132,0),"") -> 
A133: =IFERROR(MATCH($D133,Costs!$B$2:$B$201,0),"") ->  | B133: =IFERROR(OFFSET(Costs!$D$1,$A133,0),"") -> 
A134: =IFERROR(MATCH($D134,Costs!$B$2:$B$201,0),"") ->  | B134: =IFERROR(OFFSET(Costs!$D$1,$A134,0),"") -> 
A135: =IFERROR(MATCH($D135,Costs!$B$2:$B$201,0),"") ->  | B135: =IFERROR(OFFSET(Costs!$D$1,$A135,0),"") -> 
A136: =IFERROR(MATCH($D136,Costs!$B$2:$B$201,0),"") ->  | B136: =IFERROR(OFFSET(Costs!$D$1,$A136,0),"") -> 
A137: =IFERROR(MATCH($D137,Costs!$B$2:$B$201,0),"") ->  | B137: =IFERROR(OFFSET(Costs!$D$1,$A137,0),"") -> 
A138: =IFERROR(MATCH($D138,Costs!$B$2:$B$201,0),"") ->  | B138: =IFERROR(OFFSET(Costs!$D$1,$A138,0),"") -> 
A139: =IFERROR(MATCH($D139,Costs!$B$2:$B$201,0),"") ->  | B139: =IFERROR(OFFSET(Costs!$D$1,$A139,0),"") -> 
A140: =IFERROR(MATCH($D140,Costs!$B$2:$B$201,0),"") ->  | B140: =IFERROR(OFFSET(Costs!$D$1,$A140,0),"") -> 
A141: =IFERROR(MATCH($D141,Costs!$B$2:$B$201,0),"") ->  | B141: =IFERROR(OFFSET(Costs!$D$1,$A141,0),"") -> 
A142: =IFERROR(MATCH($D142,Costs!$B$2:$B$201,0),"") ->  | B142: =IFERROR(OFFSET(Costs!$D$1,$A142,0),"") -> 
A143: =IFERROR(MATCH($D143,Costs!$B$2:$B$201,0),"") ->  | B143: =IFERROR(OFFSET(Costs!$D$1,$A143,0),"") -> 
A144: =IFERROR(MATCH($D144,Costs!$B$2:$B$201,0),"") ->  | B144: =IFERROR(OFFSET(Costs!$D$1,$A144,0),"") -> 
A145: =IFERROR(MATCH($D145,Costs!$B$2:$B$201,0),"") ->  | B145: =IFERROR(OFFSET(Costs!$D$1,$A145,0),"") -> 
A146: =IFERROR(MATCH($D146,Costs!$B$2:$B$201,0),"") ->  | B146: =IFERROR(OFFSET(Costs!$D$1,$A146,0),"") -> 
A147: =IFERROR(MATCH($D147,Costs!$B$2:$B$201,0),"") ->  | B147: =IFERROR(OFFSET(Costs!$D$1,$A147,0),"") -> 
A148: =IFERROR(MATCH($D148,Costs!$B$2:$B$201,0),"") ->  | B148: =IFERROR(OFFSET(Costs!$D$1,$A148,0),"") -> 
A149: =IFERROR(MATCH($D149,Costs!$B$2:$B$201,0),"") ->  | B149: =IFERROR(OFFSET(Costs!$D$1,$A149,0),"") -> 
A150: =IFERROR(MATCH($D150,Costs!$B$2:$B$201,0),"") ->  | B150: =IFERROR(OFFSET(Costs!$D$1,$A150,0),"") -> 
A151: =IFERROR(MATCH($D151,Costs!$B$2:$B$201,0),"") ->  | B151: =IFERROR(OFFSET(Costs!$D$1,$A151,0),"") -> 
A152: =IFERROR(MATCH($D152,Costs!$B$2:$B$201,0),"") ->  | B152: =IFERROR(OFFSET(Costs!$D$1,$A152,0),"") -> 
A153: =IFERROR(MATCH($D153,Costs!$B$2:$B$201,0),"") ->  | B153: =IFERROR(OFFSET(Costs!$D$1,$A153,0),"") -> 
A154: =IFERROR(MATCH($D154,Costs!$B$2:$B$201,0),"") ->  | B154: =IFERROR(OFFSET(Costs!$D$1,$A154,0),"") -> 
A155: =IFERROR(MATCH($D155,Costs!$B$2:$B$201,0),"") ->  | B155: =IFERROR(OFFSET(Costs!$D$1,$A155,0),"") -> 
A156: =IFERROR(MATCH($D156,Costs!$B$2:$B$201,0),"") ->  | B156: =IFERROR(OFFSET(Costs!$D$1,$A156,0),"") -> 
A157: =IFERROR(MATCH($D157,Costs!$B$2:$B$201,0),"") ->  | B157: =IFERROR(OFFSET(Costs!$D$1,$A157,0),"") -> 
A158: =IFERROR(MATCH($D158,Costs!$B$2:$B$201,0),"") ->  | B158: =IFERROR(OFFSET(Costs!$D$1,$A158,0),"") -> 
A159: =IFERROR(MATCH($D159,Costs!$B$2:$B$201,0),"") ->  | B159: =IFERROR(OFFSET(Costs!$D$1,$A159,0),"") -> 
A160: =IFERROR(MATCH($D160,Costs!$B$2:$B$201,0),"") ->  | B160: =IFERROR(OFFSET(Costs!$D$1,$A160,0),"") -> 
A161: =IFERROR(MATCH($D161,Costs!$B$2:$B$201,0),"") ->  | B161: =IFERROR(OFFSET(Costs!$D$1,$A161,0),"") -> 
A162: =IFERROR(MATCH($D162,Costs!$B$2:$B$201,0),"") ->  | B162: =IFERROR(OFFSET(Costs!$D$1,$A162,0),"") -> 
A163: =IFERROR(MATCH($D163,Costs!$B$2:$B$201,0),"") ->  | B163: =IFERROR(OFFSET(Costs!$D$1,$A163,0),"") -> 
A164: =IFERROR(MATCH($D164,Costs!$B$2:$B$201,0),"") ->  | B164: =IFERROR(OFFSET(Costs!$D$1,$A164,0),"") -> 
A165: =IFERROR(MATCH($D165,Costs!$B$2:$B$201,0),"") ->  | B165: =IFERROR(OFFSET(Costs!$D$1,$A165,0),"") -> 
A166: =IFERROR(MATCH($D166,Costs!$B$2:$B$201,0),"") ->  | B166: =IFERROR(OFFSET(Costs!$D$1,$A166,0),"") -> 
A167: =IFERROR(MATCH($D167,Costs!$B$2:$B$201,0),"") ->  | B167: =IFERROR(OFFSET(Costs!$D$1,$A167,0),"") -> 
A168: =IFERROR(MATCH($D168,Costs!$B$2:$B$201,0),"") ->  | B168: =IFERROR(OFFSET(Costs!$D$1,$A168,0),"") -> 
A169: =IFERROR(MATCH($D169,Costs!$B$2:$B$201,0),"") ->  | B169: =IFERROR(OFFSET(Costs!$D$1,$A169,0),"") -> 
A170: =IFERROR(MATCH($D170,Costs!$B$2:$B$201,0),"") ->  | B170: =IFERROR(OFFSET(Costs!$D$1,$A170,0),"") -> 
A171: =IFERROR(MATCH($D171,Costs!$B$2:$B$201,0),"") ->  | B171: =IFERROR(OFFSET(Costs!$D$1,$A171,0),"") -> 
A172: =IFERROR(MATCH($D172,Costs!$B$2:$B$201,0),"") ->  | B172: =IFERROR(OFFSET(Costs!$D$1,$A172,0),"") -> 
A173: =IFERROR(MATCH($D173,Costs!$B$2:$B$201,0),"") ->  | B173: =IFERROR(OFFSET(Costs!$D$1,$A173,0),"") -> 
A174: =IFERROR(MATCH($D174,Costs!$B$2:$B$201,0),"") ->  | B174: =IFERROR(OFFSET(Costs!$D$1,$A174,0),"") -> 
A175: =IFERROR(MATCH($D175,Costs!$B$2:$B$201,0),"") ->  | B175: =IFERROR(OFFSET(Costs!$D$1,$A175,0),"") -> 
A176: =IFERROR(MATCH($D176,Costs!$B$2:$B$201,0),"") ->  | B176: =IFERROR(OFFSET(Costs!$D$1,$A176,0),"") -> 
A177: =IFERROR(MATCH($D177,Costs!$B$2:$B$201,0),"") ->  | B177: =IFERROR(OFFSET(Costs!$D$1,$A177,0),"") -> 
A178: =IFERROR(MATCH($D178,Costs!$B$2:$B$201,0),"") ->  | B178: =IFERROR(OFFSET(Costs!$D$1,$A178,0),"") -> 
A179: =IFERROR(MATCH($D179,Costs!$B$2:$B$201,0),"") ->  | B179: =IFERROR(OFFSET(Costs!$D$1,$A179,0),"") -> 
A180: =IFERROR(MATCH($D180,Costs!$B$2:$B$201,0),"") ->  | B180: =IFERROR(OFFSET(Costs!$D$1,$A180,0),"") -> 
A181: =IFERROR(MATCH($D181,Costs!$B$2:$B$201,0),"") ->  | B181: =IFERROR(OFFSET(Costs!$D$1,$A181,0),"") -> 
A182: =IFERROR(MATCH($D182,Costs!$B$2:$B$201,0),"") ->  | B182: =IFERROR(OFFSET(Costs!$D$1,$A182,0),"") -> 
A183: =IFERROR(MATCH($D183,Costs!$B$2:$B$201,0),"") ->  | B183: =IFERROR(OFFSET(Costs!$D$1,$A183,0),"") -> 
A184: =IFERROR(MATCH($D184,Costs!$B$2:$B$201,0),"") ->  | B184: =IFERROR(OFFSET(Costs!$D$1,$A184,0),"") -> 
A185: =IFERROR(MATCH($D185,Costs!$B$2:$B$201,0),"") ->  | B185: =IFERROR(OFFSET(Costs!$D$1,$A185,0),"") -> 
A186: =IFERROR(MATCH($D186,Costs!$B$2:$B$201,0),"") ->  | B186: =IFERROR(OFFSET(Costs!$D$1,$A186,0),"") -> 
A187: =IFERROR(MATCH($D187,Costs!$B$2:$B$201,0),"") ->  | B187: =IFERROR(OFFSET(Costs!$D$1,$A187,0),"") -> 
A188: =IFERROR(MATCH($D188,Costs!$B$2:$B$201,0),"") ->  | B188: =IFERROR(OFFSET(Costs!$D$1,$A188,0),"") -> 
A189: =IFERROR(MATCH($D189,Costs!$B$2:$B$201,0),"") ->  | B189: =IFERROR(OFFSET(Costs!$D$1,$A189,0),"") -> 
A190: =IFERROR(MATCH($D190,Costs!$B$2:$B$201,0),"") ->  | B190: =IFERROR(OFFSET(Costs!$D$1,$A190,0),"") -> 
A191: =IFERROR(MATCH($D191,Costs!$B$2:$B$201,0),"") ->  | B191: =IFERROR(OFFSET(Costs!$D$1,$A191,0),"") -> 
A192: =IFERROR(MATCH($D192,Costs!$B$2:$B$201,0),"") ->  | B192: =IFERROR(OFFSET(Costs!$D$1,$A192,0),"") -> 
A193: =IFERROR(MATCH($D193,Costs!$B$2:$B$201,0),"") ->  | B193: =IFERROR(OFFSET(Costs!$D$1,$A193,0),"") -> 
A194: =IFERROR(MATCH($D194,Costs!$B$2:$B$201,0),"") ->  | B194: =IFERROR(OFFSET(Costs!$D$1,$A194,0),"") -> 
A195: =IFERROR(MATCH($D195,Costs!$B$2:$B$201,0),"") ->  | B195: =IFERROR(OFFSET(Costs!$D$1,$A195,0),"") -> 
A196: =IFERROR(MATCH($D196,Costs!$B$2:$B$201,0),"") ->  | B196: =IFERROR(OFFSET(Costs!$D$1,$A196,0),"") -> 
A197: =IFERROR(MATCH($D197,Costs!$B$2:$B$201,0),"") ->  | B197: =IFERROR(OFFSET(Costs!$D$1,$A197,0),"") -> 
A198: =IFERROR(MATCH($D198,Costs!$B$2:$B$201,0),"") ->  | B198: =IFERROR(OFFSET(Costs!$D$1,$A198,0),"") -> 
A199: =IFERROR(MATCH($D199,Costs!$B$2:$B$201,0),"") ->  | B199: =IFERROR(OFFSET(Costs!$D$1,$A199,0),"") -> 
A200: =IFERROR(MATCH($D200,Costs!$B$2:$B$201,0),"") ->  | B200: =IFERROR(OFFSET(Costs!$D$1,$A200,0),"") -> 
... 7 more rows

Sheet BenefitsB
A1: SCENARIO B BENEFITS | D1: Option 1 | G1: Option 2 | J1: Option 3 | M1: Option 4 | P1: Option 5 | S1: Option 6 | V1: Option 7 | Y1: Option 8 | AB1: Option 9 | AE1: Option 10
A2: Period | B2: Date | C2: Unplanned benefit from extra 9,000kW $ | D2: Added benefit from 9,000kW Planned | E2: Benefit Type 3 $ | F2: Unplanned benefit from extra 9,000kW $ | G2: Added benefit from 9,000kW Planned | H2: Benefit Type 3 $ | I2: Benefit Type 1 $ | J2: Benefit Type 2 $ | K2: Benefit Type 3 $ | L2: Benefit Type 1 $ | M2: Benefit Type 2 $ | N2: Benefit Type 3 $ | O2: Benefit Type 1 $ | P2: Benefit Type 2 $ | Q2: Benefit Type 3 $ | R2: Benefit Type 1 $ | S2: Benefit Type 2 $ | T2: Benefit Type 3 $ | U2: Benefit Type 1 $ | V2: Benefit Type 2 $ | W2: Benefit Type 3 $ | X2: Benefit Type 1 $ | Y2: Benefit Type 2 $ | Z2: Benefit Type 3 $ | AA2: Benefit Type 1 $ | AB2: Benefit Type 2 $ | AC2: Benefit Type 3 $ | AD2: Benefit Type 1 $ | AE2: Benefit Type 2 $ | AF2: Benefit Type 3 $
A3: 0 | B3: =Year_Zero -> 2025
A4: 1 | B4: =B3+1 -> 2026 | C4: 3872763 | D4: 2867979 | F4: =C4 -> 3872763 | G4: =D4 -> 2867979
A5: 2 | B5: =B4+1 -> 2027 | C5: =C4 -> 3872763 | D5: =D4 -> 2867979 | F5: =F4 -> 3872763 | G5: 2867979
A6: 3 | B6: 2028 | C6: =C5 -> 3872763 | D6: 2867979 | F6: 3872763 | G6: 2867979
A7: 4 | B7: 2029 | C7: 3872763 | D7: 2867979 | F7: 3872763 | G7: 2867979
A8: 5 | B8: 2030 | C8: 3872763 | D8: 2867979 | F8: 3872763 | G8: 2867979
A9: 6 | B9: 2031 | C9: 3872763 | D9: 2867979 | F9: 3872763 | G9: 2867979
A10: 7 | B10: 2032 | C10: 3872763 | D10: 2867979 | F10: 3872763 | G10: 2867979
A11: 8 | B11: 2033 | C11: 3872763 | D11: 2867979 | F11: 3872763 | G11: 2867979
A12: 9 | B12: 2034 | C12: 3872763 | D12: 2867979 | F12: 3872763 | G12: 2867979
A13: 10 | B13: 2035 | C13: 3872763 | D13: 2867979 | F13: 3872763 | G13: 2867979
A14: 11 | B14: 2036 | C14: 3872763 | D14: 2867979 | F14: 3872763 | G14: 2867979
A15: 12 | B15: 2037 | C15: 3872763 | D15: 2867979 | F15: 3872763 | G15: 2867979
A16: 13 | B16: 2038 | C16: 3872763 | D16: 2867979 | F16: 3872763 | G16: 2867979
A17: 14 | B17: 2039 | C17: 3872763 | D17: 2867979 | F17: 3872763 | G17: 2867979
A18: 15 | B18: 2040 | C18: 3872763 | D18: 2867979 | F18: 3872763 | G18: 2867979
A19: 16 | B19: 2041
A20: 17 | B20: 2042
A21: 18 | B21: 2043
A22: 19 | B22: 2044
A23: 20 | B23: 2045
A24: 21 | B24: 2046
A25: 22 | B25: 2047
A26: 23 | B26: 2048
A27: 24 | B27: 2049
A28: 25 | B28: 2050
A29: 26 | B29: 2051
A30: 27 | B30: 2052
A31: 28 | B31: 2053
A32: 29 | B32: 2054
A33: 30 | B33: 2055
A34: 31 | B34: 2056
A35: 32 | B35: 2057
A36: 33 | B36: 2058
A37: 34 | B37: 2059
A38: 35 | B38: =B37+1 -> 2060
A39: 36 | B39: 2061
A40: 37 | B40: 2062
A41: 38 | B41: 2063
A42: 39 | B42: 2064
A43: 40 | B43: 2065
A44: 41 | B44: 2066
A45: 42 | B45: 2067
A46: 43 | B46: 2068
A47: 44 | B47: 2069
A48: 45 | B48: 2070
A49: 46 | B49: 2071
A50: 47 | B50: 2072
A51: 48 | B51: 2073
A52: 49 | B52: 2074
A53: 50 | B53: 2075
A54: 51 | B54: 2076
A55: 52 | B55: 2077
A56: 53 | B56: 2078
A57: 54 | B57: 2079
A58: 55 | B58: 2080
A59: 56 | B59: 2081
A60: 57 | B60: 2082
A61: 58 | B61: 2083
A62: 59 | B62: 2084
A63: 60 | B63: 2085

Sheet BenefitsCFB
A1: SCENARIO B BENEFITS CASH FLOWS | C1: Option 1 | G1: Option 2 | K1: Option 3 | O1: Option 4 | S1: Option 5 | W1: Option 6 | AA1: Option 7 | AE1: Option 8 | AI1: Option 9 | AM1: Option 10
A2: Period | B2: Date | C2: Benefit Type 1 $ | D2: Benefit Type 2 $ | E2: Benefit Type 3 $ | F2: Option Total $ | G2: Benefit Type 1 $ | H2: Benefit Type 2 $ | I2: Benefit Type 3 $ | J2: Option Total $ | K2: Benefit Type 1 $ | L2: Benefit Type 2 $ | M2: Benefit Type 3 $ | N2: Option Total $ | O2: Benefit Type 1 $ | P2: Benefit Type 2 $ | Q2: Benefit Type 3 $ | R2: Option Total $ | S2: Benefit Type 1 $ | T2: Benefit Type 2 $ | U2: Benefit Type 3 $ | V2: Option Total $ | W2: Benefit Type 1 $ | X2: Benefit Type 2 $ | Y2: Benefit Type 3 $ | Z2: Option Total $ | AA2: Benefit Type 1 $ | AB2: Benefit Type 2 $ | AC2: Benefit Type 3 $ | AD2: Option Total $ | AE2: Benefit Type 1 $ | AF2: Benefit Type 2 $ | AG2: Benefit Type 3 $ | AH2: Option Total $ | AI2: Benefit Type 1 $ | AJ2: Benefit Type 2 $ | AK2: Benefit Type 3 $ | AL2: Option Total $ | AM2: Benefit Type 1 $ | AN2: Benefit Type 2 $ | AO2: Benefit Type 3 $ | AP2: Option Total $
A3: 0 | B3: =Year_Zero -> 2025 | C3: =IF($A3>Year_Term,0,BenefitsB!C3) -> 0 | D3: =IF($A3>Year_Term,0,BenefitsB!D3) -> 0 | E3: =IF($A3>Year_Term,0,BenefitsB!E3) -> 0 | F3: =IF($A3>Year_Term,0,SUM(C3:E3)) -> 0 | G3: =IF($A3>Year_Term,0,BenefitsB!F3) -> 0 | H3: =IF($A3>Year_Term,0,BenefitsB!G3) -> 0 | I3: =IF($A3>Year_Term,0,BenefitsB!H3) -> 0 | J3: =IF($A3>Year_Term,0,SUM(G3:I3)) -> 0 | K3: =IF($A3>Year_Term,0,BenefitsB!I3) -> 0 | L3: =IF($A3>Year_Term,0,BenefitsB!J3) -> 0 | M3: =IF($A3>Year_Term,0,BenefitsB!K3) -> 0 | N3: =IF($A3>Year_Term,0,SUM(K3:M3)) -> 0 | O3: =IF($A3>Year_Term,0,BenefitsB!L3) -> 0 | P3: =IF($A3>Year_Term,0,BenefitsB!M3) -> 0 | Q3: =IF($A3>Year_Term,0,BenefitsB!N3) -> 0 | R3: =IF($A3>Year_Term,0,SUM(O3:Q3)) -> 0 | S3: =IF($A3>Year_Term,0,BenefitsB!O3) -> 0 | T3: =IF($A3>Year_Term,0,BenefitsB!P3) -> 0 | U3: =IF($A3>Year_Term,0,BenefitsB!Q3) -> 0 | V3: =IF($A3>Year_Term,0,SUM(S3:U3)) -> 0 | W3: =IF($A3>Year_Term,0,BenefitsB!R3) -> 0 | X3: =IF($A3>Year_Term,0,BenefitsB!S3) -> 0 | Y3: =IF($A3>Year_Term,0,BenefitsB!T3) -> 0 | Z3: =IF($A3>Year_Term,0,SUM(W3:Y3)) -> 0 | AA3: =IF($A3>Year_Term,0,BenefitsB!U3) -> 0 | AB3: =IF($A3>Year_Term,0,BenefitsB!V3) -> 0 | AC3: =IF($A3>Year_Term,0,BenefitsB!W3) -> 0 | AD3: =IF($A3>Year_Term,0,SUM(AA3:AC3)) -> 0 | AE3: =IF($A3>Year_Term,0,BenefitsB!X3) -> 0 | AF3: =IF($A3>Year_Term,0,BenefitsB!Y3) -> 0 | AG3: =IF($A3>Year_Term,0,BenefitsB!Z3) -> 0 | AH3: =IF($A3>Year_Term,0,SUM(AE3:AG3)) -> 0 | AI3: =IF($A3>Year_Term,0,BenefitsB!AA3) -> 0 | AJ3: =IF($A3>Year_Term,0,BenefitsB!AB3) -> 0 | AK3: =IF($A3>Year_Term,0,BenefitsB!AC3) -> 0 | AL3: =IF($A3>Year_Term,0,SUM(AI3:AK3)) -> 0 | AM3: =IF($A3>Year_Term,0,BenefitsB!AD3) -> 0 | AN3: =IF($A3>Year_Term,0,BenefitsB!AE3) -> 0 | AO3: =IF($A3>Year_Term,0,BenefitsB!AF3) -> 0 | AP3: =IF($A3>Year_Term,0,SUM(AM3:AO3)) -> 0
A4: 1 | B4: =B3+1 -> 2026 | C4: =IF($A4>Year_Term,0,BenefitsB!C4) -> 3872763 | D4: =IF($A4>Year_Term,0,BenefitsB!D4) -> 2867979 | E4: =IF($A4>Year_Term,0,BenefitsB!E4) -> 0 | F4: 6740742 | G4: =IF($A4>Year_Term,0,BenefitsB!F4) -> 3872763 | H4: =IF($A4>Year_Term,0,BenefitsB!G4) -> 2867979 | I4: =IF($A4>Year_Term,0,BenefitsB!H4) -> 0 | J4: 6740742 | K4: =IF($A4>Year_Term,0,BenefitsB!I4) -> 0 | L4: =IF($A4>Year_Term,0,BenefitsB!J4) -> 0 | M4: =IF($A4>Year_Term,0,BenefitsB!K4) -> 0 | N4: 0 | O4: =IF($A4>Year_Term,0,BenefitsB!L4) -> 0 | P4: =IF($A4>Year_Term,0,BenefitsB!M4) -> 0 | Q4: =IF($A4>Year_Term,0,BenefitsB!N4) -> 0 | R4: 0 | S4: =IF($A4>Year_Term,0,BenefitsB!O4) -> 0 | T4: =IF($A4>Year_Term,0,BenefitsB!P4) -> 0 | U4: =IF($A4>Year_Term,0,BenefitsB!Q4) -> 0 | V4: 0 | W4: =IF($A4>Year_Term,0,BenefitsB!R4) -> 0 | X4: =IF($A4>Year_Term,0,BenefitsB!S4) -> 0 | Y4: =IF($A4>Year_Term,0,BenefitsB!T4) -> 0 | Z4: 0 | AA4: =IF($A4>Year_Term,0,BenefitsB!U4) -> 0 | AB4: =IF($A4>Year_Term,0,BenefitsB!V4) -> 0 | AC4: =IF($A4>Year_Term,0,BenefitsB!W4) -> 0 | AD4: 0 | AE4: =IF($A4>Year_Term,0,BenefitsB!X4) -> 0 | AF4: =IF($A4>Year_Term,0,BenefitsB!Y4) -> 0 | AG4: =IF($A4>Year_Term,0,BenefitsB!Z4) -> 0 | AH4: 0 | AI4: =IF($A4>Year_Term,0,BenefitsB!AA4) -> 0 | AJ4: =IF($A4>Year_Term,0,BenefitsB!AB4) -> 0 | AK4: =IF($A4>Year_Term,0,BenefitsB!AC4) -> 0 | AL4: 0 | AM4: =IF($A4>Year_Term,0,BenefitsB!AD4) -> 0 | AN4: =IF($A4>Year_Term,0,BenefitsB!AE4) -> 0 | AO4: =IF($A4>Year_Term,0,BenefitsB!AF4) -> 0 | AP4: 0
A5: 2 | B5: =B4+1 -> 2027 | C5: =IF($A5>Year_Term,0,BenefitsB!C5) -> 3872763 | D5: =IF($A5>Year_Term,0,BenefitsB!D5) -> 2867979 | E5: =IF($A5>Year_Term,0,BenefitsB!E5) -> 0 | F5: 6740742 | G5: =IF($A5>Year_Term,0,BenefitsB!F5) -> 3872763 | H5: =IF($A5>Year_Term,0,BenefitsB!G5) -> 2867979 | I5: =IF($A5>Year_Term,0,BenefitsB!H5) -> 0 | J5: 6740742 | K5: =IF($A5>Year_Term,0,BenefitsB!I5) -> 0 | L5: =IF($A5>Year_Term,0,BenefitsB!J5) -> 0 | M5: =IF($A5>Year_Term,0,BenefitsB!K5) -> 0 | N5: 0 | O5: =IF($A5>Year_Term,0,BenefitsB!L5) -> 0 | P5: =IF($A5>Year_Term,0,BenefitsB!M5) -> 0 | Q5: =IF($A5>Year_Term,0,BenefitsB!N5) -> 0 | R5: 0 | S5: =IF($A5>Year_Term,0,BenefitsB!O5) -> 0 | T5: =IF($A5>Year_Term,0,BenefitsB!P5) -> 0 | U5: =IF($A5>Year_Term,0,BenefitsB!Q5) -> 0 | V5: 0 | W5: =IF($A5>Year_Term,0,BenefitsB!R5) -> 0 | X5: =IF($A5>Year_Term,0,BenefitsB!S5) -> 0 | Y5: =IF($A5>Year_Term,0,BenefitsB!T5) -> 0 | Z5: 0 | AA5: =IF($A5>Year_Term,0,BenefitsB!U5) -> 0 | AB5: =IF($A5>Year_Term,0,BenefitsB!V5) -> 0 | AC5: =IF($A5>Year_Term,0,BenefitsB!W5) -> 0 | AD5: 0 | AE5: =IF($A5>Year_Term,0,BenefitsB!X5) -> 0 | AF5: =IF($A5>Year_Term,0,BenefitsB!Y5) -> 0 | AG5: =IF($A5>Year_Term,0,BenefitsB!Z5) -> 0 | AH5: 0 | AI5: =IF($A5>Year_Term,0,BenefitsB!AA5) -> 0 | AJ5: =IF($A5>Year_Term,0,BenefitsB!AB5) -> 0 | AK5: =IF($A5>Year_Term,0,BenefitsB!AC5) -> 0 | AL5: 0 | AM5: =IF($A5>Year_Term,0,BenefitsB!AD5) -> 0 | AN5: =IF($A5>Year_Term,0,BenefitsB!AE5) -> 0 | AO5: =IF($A5>Year_Term,0,BenefitsB!AF5) -> 0 | AP5: 0
A6: 3 | B6: 2028 | C6: =IF($A6>Year_Term,0,BenefitsB!C6) -> 3872763 | D6: =IF($A6>Year_Term,0,BenefitsB!D6) -> 2867979 | E6: =IF($A6>Year_Term,0,BenefitsB!E6) -> 0 | F6: 6740742 | G6: =IF($A6>Year_Term,0,BenefitsB!F6) -> 3872763 | H6: =IF($A6>Year_Term,0,BenefitsB!G6) -> 2867979 | I6: =IF($A6>Year_Term,0,BenefitsB!H6) -> 0 | J6: 6740742 | K6: =IF($A6>Year_Term,0,BenefitsB!I6) -> 0 | L6: =IF($A6>Year_Term,0,BenefitsB!J6) -> 0 | M6: =IF($A6>Year_Term,0,BenefitsB!K6) -> 0 | N6: 0 | O6: =IF($A6>Year_Term,0,BenefitsB!L6) -> 0 | P6: =IF($A6>Year_Term,0,BenefitsB!M6) -> 0 | Q6: =IF($A6>Year_Term,0,BenefitsB!N6) -> 0 | R6: 0 | S6: =IF($A6>Year_Term,0,BenefitsB!O6) -> 0 | T6: =IF($A6>Year_Term,0,BenefitsB!P6) -> 0 | U6: =IF($A6>Year_Term,0,BenefitsB!Q6) -> 0 | V6: 0 | W6: =IF($A6>Year_Term,0,BenefitsB!R6) -> 0 | X6: =IF($A6>Year_Term,0,BenefitsB!S6) -> 0 | Y6: =IF($A6>Year_Term,0,BenefitsB!T6) -> 0 | Z6: 0 | AA6: =IF($A6>Year_Term,0,BenefitsB!U6) -> 0 | AB6: =IF($A6>Year_Term,0,BenefitsB!V6) -> 0 | AC6: =IF($A6>Year_Term,0,BenefitsB!W6) -> 0 | AD6: 0 | AE6: =IF($A6>Year_Term,0,BenefitsB!X6) -> 0 | AF6: =IF($A6>Year_Term,0,BenefitsB!Y6) -> 0 | AG6: =IF($A6>Year_Term,0,BenefitsB!Z6) -> 0 | AH6: 0 | AI6: =IF($A6>Year_Term,0,BenefitsB!AA6) -> 0 | AJ6: =IF($A6>Year_Term,0,BenefitsB!AB6) -> 0 | AK6: =IF($A6>Year_Term,0,BenefitsB!AC6) -> 0 | AL6: 0 | AM6: =IF($A6>Year_Term,0,BenefitsB!AD6) -> 0 | AN6: =IF($A6>Year_Term,0,BenefitsB!AE6) -> 0 | AO6: =IF($A6>Year_Term,0,BenefitsB!AF6) -> 0 | AP6: 0
A7: 4 | B7: 2029 | C7: =IF($A7>Year_Term,0,BenefitsB!C7) -> 3872763 | D7: =IF($A7>Year_Term,0,BenefitsB!D7) -> 2867979 | E7: =IF($A7>Year_Term,0,BenefitsB!E7) -> 0 | F7: 6740742 | G7: =IF($A7>Year_Term,0,BenefitsB!F7) -> 3872763 | H7: =IF($A7>Year_Term,0,BenefitsB!G7) -> 2867979 | I7: =IF($A7>Year_Term,0,BenefitsB!H7) -> 0 | J7: 6740742 | K7: =IF($A7>Year_Term,0,BenefitsB!I7) -> 0 | L7: =IF($A7>Year_Term,0,BenefitsB!J7) -> 0 | M7: =IF($A7>Year_Term,0,BenefitsB!K7) -> 0 | N7: 0 | O7: =IF($A7>Year_Term,0,BenefitsB!L7) -> 0 | P7: =IF($A7>Year_Term,0,BenefitsB!M7) -> 0 | Q7: =IF($A7>Year_Term,0,BenefitsB!N7) -> 0 | R7: 0 | S7: =IF($A7>Year_Term,0,BenefitsB!O7) -> 0 | T7: =IF($A7>Year_Term,0,BenefitsB!P7) -> 0 | U7: =IF($A7>Year_Term,0,BenefitsB!Q7) -> 0 | V7: 0 | W7: =IF($A7>Year_Term,0,BenefitsB!R7) -> 0 | X7: =IF($A7>Year_Term,0,BenefitsB!S7) -> 0 | Y7: =IF($A7>Year_Term,0,BenefitsB!T7) -> 0 | Z7: 0 | AA7: =IF($A7>Year_Term,0,BenefitsB!U7) -> 0 | AB7: =IF($A7>Year_Term,0,BenefitsB!V7) -> 0 | AC7: =IF($A7>Year_Term,0,BenefitsB!W7) -> 0 | AD7: 0 | AE7: =IF($A7>Year_Term,0,BenefitsB!X7) -> 0 | AF7: =IF($A7>Year_Term,0,BenefitsB!Y7) -> 0 | AG7: =IF($A7>Year_Term,0,BenefitsB!Z7) -> 0 | AH7: 0 | AI7: =IF($A7>Year_Term,0,BenefitsB!AA7) -> 0 | AJ7: =IF($A7>Year_Term,0,BenefitsB!AB7) -> 0 | AK7: =IF($A7>Year_Term,0,BenefitsB!AC7) -> 0 | AL7: 0 | AM7: =IF($A7>Year_Term,0,BenefitsB!AD7) -> 0 | AN7: =IF($A7>Year_Term,0,BenefitsB!AE7) -> 0 | AO7: =IF($A7>Year_Term,0,BenefitsB!AF7) -> 0 | AP7: 0
A8: 5 | B8: 2030 | C8: =IF($A8>Year_Term,0,BenefitsB!C8) -> 3872763 | D8: =IF($A8>Year_Term,0,BenefitsB!D8) -> 2867979 | E8: =IF($A8>Year_Term,0,BenefitsB!E8) -> 0 | F8: 6740742 | G8: =IF($A8>Year_Term,0,BenefitsB!F8) -> 3872763 | H8: =IF($A8>Year_Term,0,BenefitsB!G8) -> 2867979 | I8: =IF($A8>Year_Term,0,BenefitsB!H8) -> 0 | J8: 6740742 | K8: =IF($A8>Year_Term,0,BenefitsB!I8) -> 0 | L8: =IF($A8>Year_Term,0,BenefitsB!J8) -> 0 | M8: =IF($A8>Year_Term,0,BenefitsB!K8) -> 0 | N8: 0 | O8: =IF($A8>Year_Term,0,BenefitsB!L8) -> 0 | P8: =IF($A8>Year_Term,0,BenefitsB!M8) -> 0 | Q8: =IF($A8>Year_Term,0,BenefitsB!N8) -> 0 | R8: 0 | S8: =IF($A8>Year_Term,0,BenefitsB!O8) -> 0 | T8: =IF($A8>Year_Term,0,BenefitsB!P8) -> 0 | U8: =IF($A8>Year_Term,0,BenefitsB!Q8) -> 0 | V8: 0 | W8: =IF($A8>Year_Term,0,BenefitsB!R8) -> 0 | X8: =IF($A8>Year_Term,0,BenefitsB!S8) -> 0 | Y8: =IF($A8>Year_Term,0,BenefitsB!T8) -> 0 | Z8: 0 | AA8: =IF($A8>Year_Term,0,BenefitsB!U8) -> 0 | AB8: =IF($A8>Year_Term,0,BenefitsB!V8) -> 0 | AC8: =IF($A8>Year_Term,0,BenefitsB!W8) -> 0 | AD8: 0 | AE8: =IF($A8>Year_Term,0,BenefitsB!X8) -> 0 | AF8: =IF($A8>Year_Term,0,BenefitsB!Y8) -> 0 | AG8: =IF($A8>Year_Term,0,BenefitsB!Z8) -> 0 | AH8: 0 | AI8: =IF($A8>Year_Term,0,BenefitsB!AA8) -> 0 | AJ8: =IF($A8>Year_Term,0,BenefitsB!AB8) -> 0 | AK8: =IF($A8>Year_Term,0,BenefitsB!AC8) -> 0 | AL8: 0 | AM8: =IF($A8>Year_Term,0,BenefitsB!AD8) -> 0 | AN8: =IF($A8>Year_Term,0,BenefitsB!AE8) -> 0 | AO8: =IF($A8>Year_Term,0,BenefitsB!AF8) -> 0 | AP8: 0
A9: 6 | B9: 2031 | C9: =IF($A9>Year_Term,0,BenefitsB!C9) -> 3872763 | D9: =IF($A9>Year_Term,0,BenefitsB!D9) -> 2867979 | E9: =IF($A9>Year_Term,0,BenefitsB!E9) -> 0 | F9: 6740742 | G9: =IF($A9>Year_Term,0,BenefitsB!F9) -> 3872763 | H9: =IF($A9>Year_Term,0,BenefitsB!G9) -> 2867979 | I9: =IF($A9>Year_Term,0,BenefitsB!H9) -> 0 | J9: 6740742 | K9: =IF($A9>Year_Term,0,BenefitsB!I9) -> 0 | L9: =IF($A9>Year_Term,0,BenefitsB!J9) -> 0 | M9: =IF($A9>Year_Term,0,BenefitsB!K9) -> 0 | N9: 0 | O9: =IF($A9>Year_Term,0,BenefitsB!L9) -> 0 | P9: =IF($A9>Year_Term,0,BenefitsB!M9) -> 0 | Q9: =IF($A9>Year_Term,0,BenefitsB!N9) -> 0 | R9: 0 | S9: =IF($A9>Year_Term,0,BenefitsB!O9) -> 0 | T9: =IF($A9>Year_Term,0,BenefitsB!P9) -> 0 | U9: =IF($A9>Year_Term,0,BenefitsB!Q9) -> 0 | V9: 0 | W9: =IF($A9>Year_Term,0,BenefitsB!R9) -> 0 | X9: =IF($A9>Year_Term,0,BenefitsB!S9) -> 0 | Y9: =IF($A9>Year_Term,0,BenefitsB!T9) -> 0 | Z9: 0 | AA9: =IF($A9>Year_Term,0,BenefitsB!U9) -> 0 | AB9: =IF($A9>Year_Term,0,BenefitsB!V9) -> 0 | AC9: =IF($A9>Year_Term,0,BenefitsB!W9) -> 0 | AD9: 0 | AE9: =IF($A9>Year_Term,0,BenefitsB!X9) -> 0 | AF9: =IF($A9>Year_Term,0,BenefitsB!Y9) -> 0 | AG9: =IF($A9>Year_Term,0,BenefitsB!Z9) -> 0 | AH9: 0 | AI9: =IF($A9>Year_Term,0,BenefitsB!AA9) -> 0 | AJ9: =IF($A9>Year_Term,0,BenefitsB!AB9) -> 0 | AK9: =IF($A9>Year_Term,0,BenefitsB!AC9) -> 0 | AL9: 0 | AM9: =IF($A9>Year_Term,0,BenefitsB!AD9) -> 0 | AN9: =IF($A9>Year_Term,0,BenefitsB!AE9) -> 0 | AO9: =IF($A9>Year_Term,0,BenefitsB!AF9) -> 0 | AP9: 0
A10: 7 | B10: 2032 | C10: =IF($A10>Year_Term,0,BenefitsB!C10) -> 3872763 | D10: =IF($A10>Year_Term,0,BenefitsB!D10) -> 2867979 | E10: =IF($A10>Year_Term,0,BenefitsB!E10) -> 0 | F10: 6740742 | G10: =IF($A10>Year_Term,0,BenefitsB!F10) -> 3872763 | H10: =IF($A10>Year_Term,0,BenefitsB!G10) -> 2867979 | I10: =IF($A10>Year_Term,0,BenefitsB!H10) -> 0 | J10: 6740742 | K10: =IF($A10>Year_Term,0,BenefitsB!I10) -> 0 | L10: =IF($A10>Year_Term,0,BenefitsB!J10) -> 0 | M10: =IF($A10>Year_Term,0,BenefitsB!K10) -> 0 | N10: 0 | O10: =IF($A10>Year_Term,0,BenefitsB!L10) -> 0 | P10: =IF($A10>Year_Term,0,BenefitsB!M10) -> 0 | Q10: =IF($A10>Year_Term,0,BenefitsB!N10) -> 0 | R10: 0 | S10: =IF($A10>Year_Term,0,BenefitsB!O10) -> 0 | T10: =IF($A10>Year_Term,0,BenefitsB!P10) -> 0 | U10: =IF($A10>Year_Term,0,BenefitsB!Q10) -> 0 | V10: 0 | W10: =IF($A10>Year_Term,0,BenefitsB!R10) -> 0 | X10: =IF($A10>Year_Term,0,BenefitsB!S10) -> 0 | Y10: =IF($A10>Year_Term,0,BenefitsB!T10) -> 0 | Z10: 0 | AA10: =IF($A10>Year_Term,0,BenefitsB!U10) -> 0 | AB10: =IF($A10>Year_Term,0,BenefitsB!V10) -> 0 | AC10: =IF($A10>Year_Term,0,BenefitsB!W10) -> 0 | AD10: 0 | AE10: =IF($A10>Year_Term,0,BenefitsB!X10) -> 0 | AF10: =IF($A10>Year_Term,0,BenefitsB!Y10) -> 0 | AG10: =IF($A10>Year_Term,0,BenefitsB!Z10) -> 0 | AH10: 0 | AI10: =IF($A10>Year_Term,0,BenefitsB!AA10) -> 0 | AJ10: =IF($A10>Year_Term,0,BenefitsB!AB10) -> 0 | AK10: =IF($A10>Year_Term,0,BenefitsB!AC10) -> 0 | AL10: 0 | AM10: =IF($A10>Year_Term,0,BenefitsB!AD10) -> 0 | AN10: =IF($A10>Year_Term,0,BenefitsB!AE10) -> 0 | AO10: =IF($A10>Year_Term,0,BenefitsB!AF10) -> 0 | AP10: 0
A11: 8 | B11: 2033 | C11: =IF($A11>Year_Term,0,BenefitsB!C11) -> 3872763 | D11: =IF($A11>Year_Term,0,BenefitsB!D11) -> 2867979 | E11: =IF($A11>Year_Term,0,BenefitsB!E11) -> 0 | F11: 6740742 | G11: =IF($A11>Year_Term,0,BenefitsB!F11) -> 3872763 | H11: =IF($A11>Year_Term,0,BenefitsB!G11) -> 2867979 | I11: =IF($A11>Year_Term,0,BenefitsB!H11) -> 0 | J11: 6740742 | K11: =IF($A11>Year_Term,0,BenefitsB!I11) -> 0 | L11: =IF($A11>Year_Term,0,BenefitsB!J11) -> 0 | M11: =IF($A11>Year_Term,0,BenefitsB!K11) -> 0 | N11: 0 | O11: =IF($A11>Year_Term,0,BenefitsB!L11) -> 0 | P11: =IF($A11>Year_Term,0,BenefitsB!M11) -> 0 | Q11: =IF($A11>Year_Term,0,BenefitsB!N11) -> 0 | R11: 0 | S11: =IF($A11>Year_Term,0,BenefitsB!O11) -> 0 | T11: =IF($A11>Year_Term,0,BenefitsB!P11) -> 0 | U11: =IF($A11>Year_Term,0,BenefitsB!Q11) -> 0 | V11: 0 | W11: =IF($A11>Year_Term,0,BenefitsB!R11) -> 0 | X11: =IF($A11>Year_Term,0,BenefitsB!S11) -> 0 | Y11: =IF($A11>Year_Term,0,BenefitsB!T11) -> 0 | Z11: 0 | AA11: =IF($A11>Year_Term,0,BenefitsB!U11) -> 0 | AB11: =IF($A11>Year_Term,0,BenefitsB!V11) -> 0 | AC11: =IF($A11>Year_Term,0,BenefitsB!W11) -> 0 | AD11: 0 | AE11: =IF($A11>Year_Term,0,BenefitsB!X11) -> 0 | AF11: =IF($A11>Year_Term,0,BenefitsB!Y11) -> 0 | AG11: =IF($A11>Year_Term,0,BenefitsB!Z11) -> 0 | AH11: 0 | AI11: =IF($A11>Year_Term,0,BenefitsB!AA11) -> 0 | AJ11: =IF($A11>Year_Term,0,BenefitsB!AB11) -> 0 | AK11: =IF($A11>Year_Term,0,BenefitsB!AC11) -> 0 | AL11: 0 | AM11: =IF($A11>Year_Term,0,BenefitsB!AD11) -> 0 | AN11: =IF($A11>Year_Term,0,BenefitsB!AE11) -> 0 | AO11: =IF($A11>Year_Term,0,BenefitsB!AF11) -> 0 | AP11: 0
A12: 9 | B12: 2034 | C12: =IF($A12>Year_Term,0,BenefitsB!C12) -> 3872763 | D12: =IF($A12>Year_Term,0,BenefitsB!D12) -> 2867979 | E12: =IF($A12>Year_Term,0,BenefitsB!E12) -> 0 | F12: 6740742 | G12: =IF($A12>Year_Term,0,BenefitsB!F12) -> 3872763 | H12: =IF($A12>Year_Term,0,BenefitsB!G12) -> 2867979 | I12: =IF($A12>Year_Term,0,BenefitsB!H12) -> 0 | J12: 6740742 | K12: =IF($A12>Year_Term,0,BenefitsB!I12) -> 0 | L12: =IF($A12>Year_Term,0,BenefitsB!J12) -> 0 | M12: =IF($A12>Year_Term,0,BenefitsB!K12) -> 0 | N12: 0 | O12: =IF($A12>Year_Term,0,BenefitsB!L12) -> 0 | P12: =IF($A12>Year_Term,0,BenefitsB!M12) -> 0 | Q12: =IF($A12>Year_Term,0,BenefitsB!N12) -> 0 | R12: 0 | S12: =IF($A12>Year_Term,0,BenefitsB!O12) -> 0 | T12: =IF($A12>Year_Term,0,BenefitsB!P12) -> 0 | U12: =IF($A12>Year_Term,0,BenefitsB!Q12) -> 0 | V12: 0 | W12: =IF($A12>Year_Term,0,BenefitsB!R12) -> 0 | X12: =IF($A12>Year_Term,0,BenefitsB!S12) -> 0 | Y12: =IF($A12>Year_Term,0,BenefitsB!T12) -> 0 | Z12: 0 | AA12: =IF($A12>Year_Term,0,BenefitsB!U12) -> 0 | AB12: =IF($A12>Year_Term,0,BenefitsB!V12) -> 0 | AC12: =IF($A12>Year_Term,0,BenefitsB!W12) -> 0 | AD12: 0 | AE12: =IF($A12>Year_Term,0,BenefitsB!X12) -> 0 | AF12: =IF($A12>Year_Term,0,BenefitsB!Y12) -> 0 | AG12: =IF($A12>Year_Term,0,BenefitsB!Z12) -> 0 | AH12: 0 | AI12: =IF($A12>Year_Term,0,BenefitsB!AA12) -> 0 | AJ12: =IF($A12>Year_Term,0,BenefitsB!AB12) -> 0 | AK12: =IF($A12>Year_Term,0,BenefitsB!AC12) -> 0 | AL12: 0 | AM12: =IF($A12>Year_Term,0,BenefitsB!AD12) -> 0 | AN12: =IF($A12>Year_Term,0,BenefitsB!AE12) -> 0 | AO12: =IF($A12>Year_Term,0,BenefitsB!AF12) -> 0 | AP12: 0
A13: 10 | B13: 2035 | C13: =IF($A13>Year_Term,0,BenefitsB!C13) -> 3872763 | D13: =IF($A13>Year_Term,0,BenefitsB!D13) -> 2867979 | E13: =IF($A13>Year_Term,0,BenefitsB!E13) -> 0 | F13: 6740742 | G13: =IF($A13>Year_Term,0,BenefitsB!F13) -> 3872763 | H13: =IF($A13>Year_Term,0,BenefitsB!G13) -> 2867979 | I13: =IF($A13>Year_Term,0,BenefitsB!H13) -> 0 | J13: 6740742 | K13: =IF($A13>Year_Term,0,BenefitsB!I13) -> 0 | L13: =IF($A13>Year_Term,0,BenefitsB!J13) -> 0 | M13: =IF($A13>Year_Term,0,BenefitsB!K13) -> 0 | N13: 0 | O13: =IF($A13>Year_Term,0,BenefitsB!L13) -> 0 | P13: =IF($A13>Year_Term,0,BenefitsB!M13) -> 0 | Q13: =IF($A13>Year_Term,0,BenefitsB!N13) -> 0 | R13: 0 | S13: =IF($A13>Year_Term,0,BenefitsB!O13) -> 0 | T13: =IF($A13>Year_Term,0,BenefitsB!P13) -> 0 | U13: =IF($A13>Year_Term,0,BenefitsB!Q13) -> 0 | V13: 0 | W13: =IF($A13>Year_Term,0,BenefitsB!R13) -> 0 | X13: =IF($A13>Year_Term,0,BenefitsB!S13) -> 0 | Y13: =IF($A13>Year_Term,0,BenefitsB!T13) -> 0 | Z13: 0 | AA13: =IF($A13>Year_Term,0,BenefitsB!U13) -> 0 | AB13: =IF($A13>Year_Term,0,BenefitsB!V13) -> 0 | AC13: =IF($A13>Year_Term,0,BenefitsB!W13) -> 0 | AD13: 0 | AE13: =IF($A13>Year_Term,0,BenefitsB!X13) -> 0 | AF13: =IF($A13>Year_Term,0,BenefitsB!Y13) -> 0 | AG13: =IF($A13>Year_Term,0,BenefitsB!Z13) -> 0 | AH13: 0 | AI13: =IF($A13>Year_Term,0,BenefitsB!AA13) -> 0 | AJ13: =IF($A13>Year_Term,0,BenefitsB!AB13) -> 0 | AK13: =IF($A13>Year_Term,0,BenefitsB!AC13) -> 0 | AL13: 0 | AM13: =IF($A13>Year_Term,0,BenefitsB!AD13) -> 0 | AN13: =IF($A13>Year_Term,0,BenefitsB!AE13) -> 0 | AO13: =IF($A13>Year_Term,0,BenefitsB!AF13) -> 0 | AP13: 0
A14: 11 | B14: 2036 | C14: =IF($A14>Year_Term,0,BenefitsB!C14) -> 3872763 | D14: =IF($A14>Year_Term,0,BenefitsB!D14) -> 2867979 | E14: =IF($A14>Year_Term,0,BenefitsB!E14) -> 0 | F14: 6740742 | G14: =IF($A14>Year_Term,0,BenefitsB!F14) -> 3872763 | H14: =IF($A14>Year_Term,0,BenefitsB!G14) -> 2867979 | I14: =IF($A14>Year_Term,0,BenefitsB!H14) -> 0 | J14: 6740742 | K14: =IF($A14>Year_Term,0,BenefitsB!I14) -> 0 | L14: =IF($A14>Year_Term,0,BenefitsB!J14) -> 0 | M14: =IF($A14>Year_Term,0,BenefitsB!K14) -> 0 | N14: 0 | O14: =IF($A14>Year_Term,0,BenefitsB!L14) -> 0 | P14: =IF($A14>Year_Term,0,BenefitsB!M14) -> 0 | Q14: =IF($A14>Year_Term,0,BenefitsB!N14) -> 0 | R14: 0 | S14: =IF($A14>Year_Term,0,BenefitsB!O14) -> 0 | T14: =IF($A14>Year_Term,0,BenefitsB!P14) -> 0 | U14: =IF($A14>Year_Term,0,BenefitsB!Q14) -> 0 | V14: 0 | W14: =IF($A14>Year_Term,0,BenefitsB!R14) -> 0 | X14: =IF($A14>Year_Term,0,BenefitsB!S14) -> 0 | Y14: =IF($A14>Year_Term,0,BenefitsB!T14) -> 0 | Z14: 0 | AA14: =IF($A14>Year_Term,0,BenefitsB!U14) -> 0 | AB14: =IF($A14>Year_Term,0,BenefitsB!V14) -> 0 | AC14: =IF($A14>Year_Term,0,BenefitsB!W14) -> 0 | AD14: 0 | AE14: =IF($A14>Year_Term,0,BenefitsB!X14) -> 0 | AF14: =IF($A14>Year_Term,0,BenefitsB!Y14) -> 0 | AG14: =IF($A14>Year_Term,0,BenefitsB!Z14) -> 0 | AH14: 0 | AI14: =IF($A14>Year_Term,0,BenefitsB!AA14) -> 0 | AJ14: =IF($A14>Year_Term,0,BenefitsB!AB14) -> 0 | AK14: =IF($A14>Year_Term,0,BenefitsB!AC14) -> 0 | AL14: 0 | AM14: =IF($A14>Year_Term,0,BenefitsB!AD14) -> 0 | AN14: =IF($A14>Year_Term,0,BenefitsB!AE14) -> 0 | AO14: =IF($A14>Year_Term,0,BenefitsB!AF14) -> 0 | AP14: 0
A15: 12 | B15: 2037 | C15: =IF($A15>Year_Term,0,BenefitsB!C15) -> 3872763 | D15: =IF($A15>Year_Term,0,BenefitsB!D15) -> 2867979 | E15: =IF($A15>Year_Term,0,BenefitsB!E15) -> 0 | F15: 6740742 | G15: =IF($A15>Year_Term,0,BenefitsB!F15) -> 3872763 | H15: =IF($A15>Year_Term,0,BenefitsB!G15) -> 2867979 | I15: =IF($A15>Year_Term,0,BenefitsB!H15) -> 0 | J15: 6740742 | K15: =IF($A15>Year_Term,0,BenefitsB!I15) -> 0 | L15: =IF($A15>Year_Term,0,BenefitsB!J15) -> 0 | M15: =IF($A15>Year_Term,0,BenefitsB!K15) -> 0 | N15: 0 | O15: =IF($A15>Year_Term,0,BenefitsB!L15) -> 0 | P15: =IF($A15>Year_Term,0,BenefitsB!M15) -> 0 | Q15: =IF($A15>Year_Term,0,BenefitsB!N15) -> 0 | R15: 0 | S15: =IF($A15>Year_Term,0,BenefitsB!O15) -> 0 | T15: =IF($A15>Year_Term,0,BenefitsB!P15) -> 0 | U15: =IF($A15>Year_Term,0,BenefitsB!Q15) -> 0 | V15: 0 | W15: =IF($A15>Year_Term,0,BenefitsB!R15) -> 0 | X15: =IF($A15>Year_Term,0,BenefitsB!S15) -> 0 | Y15: =IF($A15>Year_Term,0,BenefitsB!T15) -> 0 | Z15: 0 | AA15: =IF($A15>Year_Term,0,BenefitsB!U15) -> 0 | AB15: =IF($A15>Year_Term,0,BenefitsB!V15) -> 0 | AC15: =IF($A15>Year_Term,0,BenefitsB!W15) -> 0 | AD15: 0 | AE15: =IF($A15>Year_Term,0,BenefitsB!X15) -> 0 | AF15: =IF($A15>Year_Term,0,BenefitsB!Y15) -> 0 | AG15: =IF($A15>Year_Term,0,BenefitsB!Z15) -> 0 | AH15: 0 | AI15: =IF($A15>Year_Term,0,BenefitsB!AA15) -> 0 | AJ15: =IF($A15>Year_Term,0,BenefitsB!AB15) -> 0 | AK15: =IF($A15>Year_Term,0,BenefitsB!AC15) -> 0 | AL15: 0 | AM15: =IF($A15>Year_Term,0,BenefitsB!AD15) -> 0 | AN15: =IF($A15>Year_Term,0,BenefitsB!AE15) -> 0 | AO15: =IF($A15>Year_Term,0,BenefitsB!AF15) -> 0 | AP15: 0
A16: 13 | B16: 2038 | C16: =IF($A16>Year_Term,0,BenefitsB!C16) -> 3872763 | D16: =IF($A16>Year_Term,0,BenefitsB!D16) -> 2867979 | E16: =IF($A16>Year_Term,0,BenefitsB!E16) -> 0 | F16: 6740742 | G16: =IF($A16>Year_Term,0,BenefitsB!F16) -> 3872763 | H16: =IF($A16>Year_Term,0,BenefitsB!G16) -> 2867979 | I16: =IF($A16>Year_Term,0,BenefitsB!H16) -> 0 | J16: 6740742 | K16: =IF($A16>Year_Term,0,BenefitsB!I16) -> 0 | L16: =IF($A16>Year_Term,0,BenefitsB!J16) -> 0 | M16: =IF($A16>Year_Term,0,BenefitsB!K16) -> 0 | N16: 0 | O16: =IF($A16>Year_Term,0,BenefitsB!L16) -> 0 | P16: =IF($A16>Year_Term,0,BenefitsB!M16) -> 0 | Q16: =IF($A16>Year_Term,0,BenefitsB!N16) -> 0 | R16: 0 | S16: =IF($A16>Year_Term,0,BenefitsB!O16) -> 0 | T16: =IF($A16>Year_Term,0,BenefitsB!P16) -> 0 | U16: =IF($A16>Year_Term,0,BenefitsB!Q16) -> 0 | V16: 0 | W16: =IF($A16>Year_Term,0,BenefitsB!R16) -> 0 | X16: =IF($A16>Year_Term,0,BenefitsB!S16) -> 0 | Y16: =IF($A16>Year_Term,0,BenefitsB!T16) -> 0 | Z16: 0 | AA16: =IF($A16>Year_Term,0,BenefitsB!U16) -> 0 | AB16: =IF($A16>Year_Term,0,BenefitsB!V16) -> 0 | AC16: =IF($A16>Year_Term,0,BenefitsB!W16) -> 0 | AD16: 0 | AE16: =IF($A16>Year_Term,0,BenefitsB!X16) -> 0 | AF16: =IF($A16>Year_Term,0,BenefitsB!Y16) -> 0 | AG16: =IF($A16>Year_Term,0,BenefitsB!Z16) -> 0 | AH16: 0 | AI16: =IF($A16>Year_Term,0,BenefitsB!AA16) -> 0 | AJ16: =IF($A16>Year_Term,0,BenefitsB!AB16) -> 0 | AK16: =IF($A16>Year_Term,0,BenefitsB!AC16) -> 0 | AL16: 0 | AM16: =IF($A16>Year_Term,0,BenefitsB!AD16) -> 0 | AN16: =IF($A16>Year_Term,0,BenefitsB!AE16) -> 0 | AO16: =IF($A16>Year_Term,0,BenefitsB!AF16) -> 0 | AP16: 0
A17: 14 | B17: 2039 | C17: =IF($A17>Year_Term,0,BenefitsB!C17) -> 3872763 | D17: =IF($A17>Year_Term,0,BenefitsB!D17) -> 2867979 | E17: =IF($A17>Year_Term,0,BenefitsB!E17) -> 0 | F17: 6740742 | G17: =IF($A17>Year_Term,0,BenefitsB!F17) -> 3872763 | H17: =IF($A17>Year_Term,0,BenefitsB!G17) -> 2867979 | I17: =IF($A17>Year_Term,0,BenefitsB!H17) -> 0 | J17: 6740742 | K17: =IF($A17>Year_Term,0,BenefitsB!I17) -> 0 | L17: =IF($A17>Year_Term,0,BenefitsB!J17) -> 0 | M17: =IF($A17>Year_Term,0,BenefitsB!K17) -> 0 | N17: 0 | O17: =IF($A17>Year_Term,0,BenefitsB!L17) -> 0 | P17: =IF($A17>Year_Term,0,BenefitsB!M17) -> 0 | Q17: =IF($A17>Year_Term,0,BenefitsB!N17) -> 0 | R17: 0 | S17: =IF($A17>Year_Term,0,BenefitsB!O17) -> 0 | T17: =IF($A17>Year_Term,0,BenefitsB!P17) -> 0 | U17: =IF($A17>Year_Term,0,BenefitsB!Q17) -> 0 | V17: 0 | W17: =IF($A17>Year_Term,0,BenefitsB!R17) -> 0 | X17: =IF($A17>Year_Term,0,BenefitsB!S17) -> 0 | Y17: =IF($A17>Year_Term,0,BenefitsB!T17) -> 0 | Z17: 0 | AA17: =IF($A17>Year_Term,0,BenefitsB!U17) -> 0 | AB17: =IF($A17>Year_Term,0,BenefitsB!V17) -> 0 | AC17: =IF($A17>Year_Term,0,BenefitsB!W17) -> 0 | AD17: 0 | AE17: =IF($A17>Year_Term,0,BenefitsB!X17) -> 0 | AF17: =IF($A17>Year_Term,0,BenefitsB!Y17) -> 0 | AG17: =IF($A17>Year_Term,0,BenefitsB!Z17) -> 0 | AH17: 0 | AI17: =IF($A17>Year_Term,0,BenefitsB!AA17) -> 0 | AJ17: =IF($A17>Year_Term,0,BenefitsB!AB17) -> 0 | AK17: =IF($A17>Year_Term,0,BenefitsB!AC17) -> 0 | AL17: 0 | AM17: =IF($A17>Year_Term,0,BenefitsB!AD17) -> 0 | AN17: =IF($A17>Year_Term,0,BenefitsB!AE17) -> 0 | AO17: =IF($A17>Year_Term,0,BenefitsB!AF17) -> 0 | AP17: 0
A18: 15 | B18: 2040 | C18: =IF($A18>Year_Term,0,BenefitsB!C18) -> 3872763 | D18: =IF($A18>Year_Term,0,BenefitsB!D18) -> 2867979 | E18: =IF($A18>Year_Term,0,BenefitsB!E18) -> 0 | F18: 6740742 | G18: =IF($A18>Year_Term,0,BenefitsB!F18) -> 3872763 | H18: =IF($A18>Year_Term,0,BenefitsB!G18) -> 2867979 | I18: =IF($A18>Year_Term,0,BenefitsB!H18) -> 0 | J18: 6740742 | K18: =IF($A18>Year_Term,0,BenefitsB!I18) -> 0 | L18: =IF($A18>Year_Term,0,BenefitsB!J18) -> 0 | M18: =IF($A18>Year_Term,0,BenefitsB!K18) -> 0 | N18: 0 | O18: =IF($A18>Year_Term,0,BenefitsB!L18) -> 0 | P18: =IF($A18>Year_Term,0,BenefitsB!M18) -> 0 | Q18: =IF($A18>Year_Term,0,BenefitsB!N18) -> 0 | R18: 0 | S18: =IF($A18>Year_Term,0,BenefitsB!O18) -> 0 | T18: =IF($A18>Year_Term,0,BenefitsB!P18) -> 0 | U18: =IF($A18>Year_Term,0,BenefitsB!Q18) -> 0 | V18: 0 | W18: =IF($A18>Year_Term,0,BenefitsB!R18) -> 0 | X18: =IF($A18>Year_Term,0,BenefitsB!S18) -> 0 | Y18: =IF($A18>Year_Term,0,BenefitsB!T18) -> 0 | Z18: 0 | AA18: =IF($A18>Year_Term,0,BenefitsB!U18) -> 0 | AB18: =IF($A18>Year_Term,0,BenefitsB!V18) -> 0 | AC18: =IF($A18>Year_Term,0,BenefitsB!W18) -> 0 | AD18: 0 | AE18: =IF($A18>Year_Term,0,BenefitsB!X18) -> 0 | AF18: =IF($A18>Year_Term,0,BenefitsB!Y18) -> 0 | AG18: =IF($A18>Year_Term,0,BenefitsB!Z18) -> 0 | AH18: 0 | AI18: =IF($A18>Year_Term,0,BenefitsB!AA18) -> 0 | AJ18: =IF($A18>Year_Term,0,BenefitsB!AB18) -> 0 | AK18: =IF($A18>Year_Term,0,BenefitsB!AC18) -> 0 | AL18: 0 | AM18: =IF($A18>Year_Term,0,BenefitsB!AD18) -> 0 | AN18: =IF($A18>Year_Term,0,BenefitsB!AE18) -> 0 | AO18: =IF($A18>Year_Term,0,BenefitsB!AF18) -> 0 | AP18: 0
A19: 16 | B19: 2041 | C19: =IF($A19>Year_Term,0,BenefitsB!C19) -> 0 | D19: =IF($A19>Year_Term,0,BenefitsB!D19) -> 0 | E19: =IF($A19>Year_Term,0,BenefitsB!E19) -> 0 | F19: 0 | G19: =IF($A19>Year_Term,0,BenefitsB!F19) -> 0 | H19: =IF($A19>Year_Term,0,BenefitsB!G19) -> 0 | I19: =IF($A19>Year_Term,0,BenefitsB!H19) -> 0 | J19: 0 | K19: =IF($A19>Year_Term,0,BenefitsB!I19) -> 0 | L19: =IF($A19>Year_Term,0,BenefitsB!J19) -> 0 | M19: =IF($A19>Year_Term,0,BenefitsB!K19) -> 0 | N19: 0 | O19: =IF($A19>Year_Term,0,BenefitsB!L19) -> 0 | P19: =IF($A19>Year_Term,0,BenefitsB!M19) -> 0 | Q19: =IF($A19>Year_Term,0,BenefitsB!N19) -> 0 | R19: 0 | S19: =IF($A19>Year_Term,0,BenefitsB!O19) -> 0 | T19: =IF($A19>Year_Term,0,BenefitsB!P19) -> 0 | U19: =IF($A19>Year_Term,0,BenefitsB!Q19) -> 0 | V19: 0 | W19: =IF($A19>Year_Term,0,BenefitsB!R19) -> 0 | X19: =IF($A19>Year_Term,0,BenefitsB!S19) -> 0 | Y19: =IF($A19>Year_Term,0,BenefitsB!T19) -> 0 | Z19: 0 | AA19: =IF($A19>Year_Term,0,BenefitsB!U19) -> 0 | AB19: =IF($A19>Year_Term,0,BenefitsB!V19) -> 0 | AC19: =IF($A19>Year_Term,0,BenefitsB!W19) -> 0 | AD19: 0 | AE19: =IF($A19>Year_Term,0,BenefitsB!X19) -> 0 | AF19: =IF($A19>Year_Term,0,BenefitsB!Y19) -> 0 | AG19: =IF($A19>Year_Term,0,BenefitsB!Z19) -> 0 | AH19: 0 | AI19: =IF($A19>Year_Term,0,BenefitsB!AA19) -> 0 | AJ19: =IF($A19>Year_Term,0,BenefitsB!AB19) -> 0 | AK19: =IF($A19>Year_Term,0,BenefitsB!AC19) -> 0 | AL19: 0 | AM19: =IF($A19>Year_Term,0,BenefitsB!AD19) -> 0 | AN19: =IF($A19>Year_Term,0,BenefitsB!AE19) -> 0 | AO19: =IF($A19>Year_Term,0,BenefitsB!AF19) -> 0 | AP19: 0
A20: 17 | B20: 2042 | C20: =IF($A20>Year_Term,0,BenefitsB!C20) -> 0 | D20: =IF($A20>Year_Term,0,BenefitsB!D20) -> 0 | E20: =IF($A20>Year_Term,0,BenefitsB!E20) -> 0 | F20: 0 | G20: =IF($A20>Year_Term,0,BenefitsB!F20) -> 0 | H20: =IF($A20>Year_Term,0,BenefitsB!G20) -> 0 | I20: =IF($A20>Year_Term,0,BenefitsB!H20) -> 0 | J20: 0 | K20: =IF($A20>Year_Term,0,BenefitsB!I20) -> 0 | L20: =IF($A20>Year_Term,0,BenefitsB!J20) -> 0 | M20: =IF($A20>Year_Term,0,BenefitsB!K20) -> 0 | N20: 0 | O20: =IF($A20>Year_Term,0,BenefitsB!L20) -> 0 | P20: =IF($A20>Year_Term,0,BenefitsB!M20) -> 0 | Q20: =IF($A20>Year_Term,0,BenefitsB!N20) -> 0 | R20: 0 | S20: =IF($A20>Year_Term,0,BenefitsB!O20) -> 0 | T20: =IF($A20>Year_Term,0,BenefitsB!P20) -> 0 | U20: =IF($A20>Year_Term,0,BenefitsB!Q20) -> 0 | V20: 0 | W20: =IF($A20>Year_Term,0,BenefitsB!R20) -> 0 | X20: =IF($A20>Year_Term,0,BenefitsB!S20) -> 0 | Y20: =IF($A20>Year_Term,0,BenefitsB!T20) -> 0 | Z20: 0 | AA20: =IF($A20>Year_Term,0,BenefitsB!U20) -> 0 | AB20: =IF($A20>Year_Term,0,BenefitsB!V20) -> 0 | AC20: =IF($A20>Year_Term,0,BenefitsB!W20) -> 0 | AD20: 0 | AE20: =IF($A20>Year_Term,0,BenefitsB!X20) -> 0 | AF20: =IF($A20>Year_Term,0,BenefitsB!Y20) -> 0 | AG20: =IF($A20>Year_Term,0,BenefitsB!Z20) -> 0 | AH20: 0 | AI20: =IF($A20>Year_Term,0,BenefitsB!AA20) -> 0 | AJ20: =IF($A20>Year_Term,0,BenefitsB!AB20) -> 0 | AK20: =IF($A20>Year_Term,0,BenefitsB!AC20) -> 0 | AL20: 0 | AM20: =IF($A20>Year_Term,0,BenefitsB!AD20) -> 0 | AN20: =IF($A20>Year_Term,0,BenefitsB!AE20) -> 0 | AO20: =IF($A20>Year_Term,0,BenefitsB!AF20) -> 0 | AP20: 0
A21: 18 | B21: 2043 | C21: =IF($A21>Year_Term,0,BenefitsB!C21) -> 0 | D21: =IF($A21>Year_Term,0,BenefitsB!D21) -> 0 | E21: =IF($A21>Year_Term,0,BenefitsB!E21) -> 0 | F21: 0 | G21: =IF($A21>Year_Term,0,BenefitsB!F21) -> 0 | H21: =IF($A21>Year_Term,0,BenefitsB!G21) -> 0 | I21: =IF($A21>Year_Term,0,BenefitsB!H21) -> 0 | J21: 0 | K21: =IF($A21>Year_Term,0,BenefitsB!I21) -> 0 | L21: =IF($A21>Year_Term,0,BenefitsB!J21) -> 0 | M21: =IF($A21>Year_Term,0,BenefitsB!K21) -> 0 | N21: 0 | O21: =IF($A21>Year_Term,0,BenefitsB!L21) -> 0 | P21: =IF($A21>Year_Term,0,BenefitsB!M21) -> 0 | Q21: =IF($A21>Year_Term,0,BenefitsB!N21) -> 0 | R21: 0 | S21: =IF($A21>Year_Term,0,BenefitsB!O21) -> 0 | T21: =IF($A21>Year_Term,0,BenefitsB!P21) -> 0 | U21: =IF($A21>Year_Term,0,BenefitsB!Q21) -> 0 | V21: 0 | W21: =IF($A21>Year_Term,0,BenefitsB!R21) -> 0 | X21: =IF($A21>Year_Term,0,BenefitsB!S21) -> 0 | Y21: =IF($A21>Year_Term,0,BenefitsB!T21) -> 0 | Z21: 0 | AA21: =IF($A21>Year_Term,0,BenefitsB!U21) -> 0 | AB21: =IF($A21>Year_Term,0,BenefitsB!V21) -> 0 | AC21: =IF($A21>Year_Term,0,BenefitsB!W21) -> 0 | AD21: 0 | AE21: =IF($A21>Year_Term,0,BenefitsB!X21) -> 0 | AF21: =IF($A21>Year_Term,0,BenefitsB!Y21) -> 0 | AG21: =IF($A21>Year_Term,0,BenefitsB!Z21) -> 0 | AH21: 0 | AI21: =IF($A21>Year_Term,0,BenefitsB!AA21) -> 0 | AJ21: =IF($A21>Year_Term,0,BenefitsB!AB21) -> 0 | AK21: =IF($A21>Year_Term,0,BenefitsB!AC21) -> 0 | AL21: 0 | AM21: =IF($A21>Year_Term,0,BenefitsB!AD21) -> 0 | AN21: =IF($A21>Year_Term,0,BenefitsB!AE21) -> 0 | AO21: =IF($A21>Year_Term,0,BenefitsB!AF21) -> 0 | AP21: 0
A22: 19 | B22: 2044 | C22: =IF($A22>Year_Term,0,BenefitsB!C22) -> 0 | D22: =IF($A22>Year_Term,0,BenefitsB!D22) -> 0 | E22: =IF($A22>Year_Term,0,BenefitsB!E22) -> 0 | F22: 0 | G22: =IF($A22>Year_Term,0,BenefitsB!F22) -> 0 | H22: =IF($A22>Year_Term,0,BenefitsB!G22) -> 0 | I22: =IF($A22>Year_Term,0,BenefitsB!H22) -> 0 | J22: 0 | K22: =IF($A22>Year_Term,0,BenefitsB!I22) -> 0 | L22: =IF($A22>Year_Term,0,BenefitsB!J22) -> 0 | M22: =IF($A22>Year_Term,0,BenefitsB!K22) -> 0 | N22: 0 | O22: =IF($A22>Year_Term,0,BenefitsB!L22) -> 0 | P22: =IF($A22>Year_Term,0,BenefitsB!M22) -> 0 | Q22: =IF($A22>Year_Term,0,BenefitsB!N22) -> 0 | R22: 0 | S22: =IF($A22>Year_Term,0,BenefitsB!O22) -> 0 | T22: =IF($A22>Year_Term,0,BenefitsB!P22) -> 0 | U22: =IF($A22>Year_Term,0,BenefitsB!Q22) -> 0 | V22: 0 | W22: =IF($A22>Year_Term,0,BenefitsB!R22) -> 0 | X22: =IF($A22>Year_Term,0,BenefitsB!S22) -> 0 | Y22: =IF($A22>Year_Term,0,BenefitsB!T22) -> 0 | Z22: 0 | AA22: =IF($A22>Year_Term,0,BenefitsB!U22) -> 0 | AB22: =IF($A22>Year_Term,0,BenefitsB!V22) -> 0 | AC22: =IF($A22>Year_Term,0,BenefitsB!W22) -> 0 | AD22: 0 | AE22: =IF($A22>Year_Term,0,BenefitsB!X22) -> 0 | AF22: =IF($A22>Year_Term,0,BenefitsB!Y22) -> 0 | AG22: =IF($A22>Year_Term,0,BenefitsB!Z22) -> 0 | AH22: 0 | AI22: =IF($A22>Year_Term,0,BenefitsB!AA22) -> 0 | AJ22: =IF($A22>Year_Term,0,BenefitsB!AB22) -> 0 | AK22: =IF($A22>Year_Term,0,BenefitsB!AC22) -> 0 | AL22: 0 | AM22: =IF($A22>Year_Term,0,BenefitsB!AD22) -> 0 | AN22: =IF($A22>Year_Term,0,BenefitsB!AE22) -> 0 | AO22: =IF($A22>Year_Term,0,BenefitsB!AF22) -> 0 | AP22: 0
A23: 20 | B23: 2045 | C23: =IF($A23>Year_Term,0,BenefitsB!C23) -> 0 | D23: =IF($A23>Year_Term,0,BenefitsB!D23) -> 0 | E23: =IF($A23>Year_Term,0,BenefitsB!E23) -> 0 | F23: 0 | G23: =IF($A23>Year_Term,0,BenefitsB!F23) -> 0 | H23: =IF($A23>Year_Term,0,BenefitsB!G23) -> 0 | I23: =IF($A23>Year_Term,0,BenefitsB!H23) -> 0 | J23: 0 | K23: =IF($A23>Year_Term,0,BenefitsB!I23) -> 0 | L23: =IF($A23>Year_Term,0,BenefitsB!J23) -> 0 | M23: =IF($A23>Year_Term,0,BenefitsB!K23) -> 0 | N23: 0 | O23: =IF($A23>Year_Term,0,BenefitsB!L23) -> 0 | P23: =IF($A23>Year_Term,0,BenefitsB!M23) -> 0 | Q23: =IF($A23>Year_Term,0,BenefitsB!N23) -> 0 | R23: 0 | S23: =IF($A23>Year_Term,0,BenefitsB!O23) -> 0 | T23: =IF($A23>Year_Term,0,BenefitsB!P23) -> 0 | U23: =IF($A23>Year_Term,0,BenefitsB!Q23) -> 0 | V23: 0 | W23: =IF($A23>Year_Term,0,BenefitsB!R23) -> 0 | X23: =IF($A23>Year_Term,0,BenefitsB!S23) -> 0 | Y23: =IF($A23>Year_Term,0,BenefitsB!T23) -> 0 | Z23: 0 | AA23: =IF($A23>Year_Term,0,BenefitsB!U23) -> 0 | AB23: =IF($A23>Year_Term,0,BenefitsB!V23) -> 0 | AC23: =IF($A23>Year_Term,0,BenefitsB!W23) -> 0 | AD23: 0 | AE23: =IF($A23>Year_Term,0,BenefitsB!X23) -> 0 | AF23: =IF($A23>Year_Term,0,BenefitsB!Y23) -> 0 | AG23: =IF($A23>Year_Term,0,BenefitsB!Z23) -> 0 | AH23: 0 | AI23: =IF($A23>Year_Term,0,BenefitsB!AA23) -> 0 | AJ23: =IF($A23>Year_Term,0,BenefitsB!AB23) -> 0 | AK23: =IF($A23>Year_Term,0,BenefitsB!AC23) -> 0 | AL23: 0 | AM23: =IF($A23>Year_Term,0,BenefitsB!AD23) -> 0 | AN23: =IF($A23>Year_Term,0,BenefitsB!AE23) -> 0 | AO23: =IF($A23>Year_Term,0,BenefitsB!AF23) -> 0 | AP23: 0
A24: 21 | B24: 2046 | C24: =IF($A24>Year_Term,0,BenefitsB!C24) -> 0 | D24: =IF($A24>Year_Term,0,BenefitsB!D24) -> 0 | E24: =IF($A24>Year_Term,0,BenefitsB!E24) -> 0 | F24: 0 | G24: =IF($A24>Year_Term,0,BenefitsB!F24) -> 0 | H24: =IF($A24>Year_Term,0,BenefitsB!G24) -> 0 | I24: =IF($A24>Year_Term,0,BenefitsB!H24) -> 0 | J24: 0 | K24: =IF($A24>Year_Term,0,BenefitsB!I24) -> 0 | L24: =IF($A24>Year_Term,0,BenefitsB!J24) -> 0 | M24: =IF($A24>Year_Term,0,BenefitsB!K24) -> 0 | N24: 0 | O24: =IF($A24>Year_Term,0,BenefitsB!L24) -> 0 | P24: =IF($A24>Year_Term,0,BenefitsB!M24) -> 0 | Q24: =IF($A24>Year_Term,0,BenefitsB!N24) -> 0 | R24: 0 | S24: =IF($A24>Year_Term,0,BenefitsB!O24) -> 0 | T24: =IF($A24>Year_Term,0,BenefitsB!P24) -> 0 | U24: =IF($A24>Year_Term,0,BenefitsB!Q24) -> 0 | V24: 0 | W24: =IF($A24>Year_Term,0,BenefitsB!R24) -> 0 | X24: =IF($A24>Year_Term,0,BenefitsB!S24) -> 0 | Y24: =IF($A24>Year_Term,0,BenefitsB!T24) -> 0 | Z24: 0 | AA24: =IF($A24>Year_Term,0,BenefitsB!U24) -> 0 | AB24: =IF($A24>Year_Term,0,BenefitsB!V24) -> 0 | AC24: =IF($A24>Year_Term,0,BenefitsB!W24) -> 0 | AD24: 0 | AE24: =IF($A24>Year_Term,0,BenefitsB!X24) -> 0 | AF24: =IF($A24>Year_Term,0,BenefitsB!Y24) -> 0 | AG24: =IF($A24>Year_Term,0,BenefitsB!Z24) -> 0 | AH24: 0 | AI24: =IF($A24>Year_Term,0,BenefitsB!AA24) -> 0 | AJ24: =IF($A24>Year_Term,0,BenefitsB!AB24) -> 0 | AK24: =IF($A24>Year_Term,0,BenefitsB!AC24) -> 0 | AL24: 0 | AM24: =IF($A24>Year_Term,0,BenefitsB!AD24) -> 0 | AN24: =IF($A24>Year_Term,0,BenefitsB!AE24) -> 0 | AO24: =IF($A24>Year_Term,0,BenefitsB!AF24) -> 0 | AP24: 0
A25: 22 | B25: 2047 | C25: =IF($A25>Year_Term,0,BenefitsB!C25) -> 0 | D25: =IF($A25>Year_Term,0,BenefitsB!D25) -> 0 | E25: =IF($A25>Year_Term,0,BenefitsB!E25) -> 0 | F25: 0 | G25: =IF($A25>Year_Term,0,BenefitsB!F25) -> 0 | H25: =IF($A25>Year_Term,0,BenefitsB!G25) -> 0 | I25: =IF($A25>Year_Term,0,BenefitsB!H25) -> 0 | J25: 0 | K25: =IF($A25>Year_Term,0,BenefitsB!I25) -> 0 | L25: =IF($A25>Year_Term,0,BenefitsB!J25) -> 0 | M25: =IF($A25>Year_Term,0,BenefitsB!K25) -> 0 | N25: 0 | O25: =IF($A25>Year_Term,0,BenefitsB!L25) -> 0 | P25: =IF($A25>Year_Term,0,BenefitsB!M25) -> 0 | Q25: =IF($A25>Year_Term,0,BenefitsB!N25) -> 0 | R25: 0 | S25: =IF($A25>Year_Term,0,BenefitsB!O25) -> 0 | T25: =IF($A25>Year_Term,0,BenefitsB!P25) -> 0 | U25: =IF($A25>Year_Term,0,BenefitsB!Q25) -> 0 | V25: 0 | W25: =IF($A25>Year_Term,0,BenefitsB!R25) -> 0 | X25: =IF($A25>Year_Term,0,BenefitsB!S25) -> 0 | Y25: =IF($A25>Year_Term,0,BenefitsB!T25) -> 0 | Z25: 0 | AA25: =IF($A25>Year_Term,0,BenefitsB!U25) -> 0 | AB25: =IF($A25>Year_Term,0,BenefitsB!V25) -> 0 | AC25: =IF($A25>Year_Term,0,BenefitsB!W25) -> 0 | AD25: 0 | AE25: =IF($A25>Year_Term,0,BenefitsB!X25) -> 0 | AF25: =IF($A25>Year_Term,0,BenefitsB!Y25) -> 0 | AG25: =IF($A25>Year_Term,0,BenefitsB!Z25) -> 0 | AH25: 0 | AI25: =IF($A25>Year_Term,0,BenefitsB!AA25) -> 0 | AJ25: =IF($A25>Year_Term,0,BenefitsB!AB25) -> 0 | AK25: =IF($A25>Year_Term,0,BenefitsB!AC25) -> 0 | AL25: 0 | AM25: =IF($A25>Year_Term,0,BenefitsB!AD25) -> 0 | AN25: =IF($A25>Year_Term,0,BenefitsB!AE25) -> 0 | AO25: =IF($A25>Year_Term,0,BenefitsB!AF25) -> 0 | AP25: 0
A26: 23 | B26: 2048 | C26: =IF($A26>Year_Term,0,BenefitsB!C26) -> 0 | D26: =IF($A26>Year_Term,0,BenefitsB!D26) -> 0 | E26: =IF($A26>Year_Term,0,BenefitsB!E26) -> 0 | F26: 0 | G26: =IF($A26>Year_Term,0,BenefitsB!F26) -> 0 | H26: =IF($A26>Year_Term,0,BenefitsB!G26) -> 0 | I26: =IF($A26>Year_Term,0,BenefitsB!H26) -> 0 | J26: 0 | K26: =IF($A26>Year_Term,0,BenefitsB!I26) -> 0 | L26: =IF($A26>Year_Term,0,BenefitsB!J26) -> 0 | M26: =IF($A26>Year_Term,0,BenefitsB!K26) -> 0 | N26: 0 | O26: =IF($A26>Year_Term,0,BenefitsB!L26) -> 0 | P26: =IF($A26>Year_Term,0,BenefitsB!M26) -> 0 | Q26: =IF($A26>Year_Term,0,BenefitsB!N26) -> 0 | R26: 0 | S26: =IF($A26>Year_Term,0,BenefitsB!O26) -> 0 | T26: =IF($A26>Year_Term,0,BenefitsB!P26) -> 0 | U26: =IF($A26>Year_Term,0,BenefitsB!Q26) -> 0 | V26: 0 | W26: =IF($A26>Year_Term,0,BenefitsB!R26) -> 0 | X26: =IF($A26>Year_Term,0,BenefitsB!S26) -> 0 | Y26: =IF($A26>Year_Term,0,BenefitsB!T26) -> 0 | Z26: 0 | AA26: =IF($A26>Year_Term,0,BenefitsB!U26) -> 0 | AB26: =IF($A26>Year_Term,0,BenefitsB!V26) -> 0 | AC26: =IF($A26>Year_Term,0,BenefitsB!W26) -> 0 | AD26: 0 | AE26: =IF($A26>Year_Term,0,BenefitsB!X26) -> 0 | AF26: =IF($A26>Year_Term,0,BenefitsB!Y26) -> 0 | AG26: =IF($A26>Year_Term,0,BenefitsB!Z26) -> 0 | AH26: 0 | AI26: =IF($A26>Year_Term,0,BenefitsB!AA26) -> 0 | AJ26: =IF($A26>Year_Term,0,BenefitsB!AB26) -> 0 | AK26: =IF($A26>Year_Term,0,BenefitsB!AC26) -> 0 | AL26: 0 | AM26: =IF($A26>Year_Term,0,BenefitsB!AD26) -> 0 | AN26: =IF($A26>Year_Term,0,BenefitsB!AE26) -> 0 | AO26: =IF($A26>Year_Term,0,BenefitsB!AF26) -> 0 | AP26: 0
A27: 24 | B27: 2049 | C27: =IF($A27>Year_Term,0,BenefitsB!C27) -> 0 | D27: =IF($A27>Year_Term,0,BenefitsB!D27) -> 0 | E27: =IF($A27>Year_Term,0,BenefitsB!E27) -> 0 | F27: 0 | G27: =IF($A27>Year_Term,0,BenefitsB!F27) -> 0 | H27: =IF($A27>Year_Term,0,BenefitsB!G27) -> 0 | I27: =IF($A27>Year_Term,0,BenefitsB!H27) -> 0 | J27: 0 | K27: =IF($A27>Year_Term,0,BenefitsB!I27) -> 0 | L27: =IF($A27>Year_Term,0,BenefitsB!J27) -> 0 | M27: =IF($A27>Year_Term,0,BenefitsB!K27) -> 0 | N27: 0 | O27: =IF($A27>Year_Term,0,BenefitsB!L27) -> 0 | P27: =IF($A27>Year_Term,0,BenefitsB!M27) -> 0 | Q27: =IF($A27>Year_Term,0,BenefitsB!N27) -> 0 | R27: 0 | S27: =IF($A27>Year_Term,0,BenefitsB!O27) -> 0 | T27: =IF($A27>Year_Term,0,BenefitsB!P27) -> 0 | U27: =IF($A27>Year_Term,0,BenefitsB!Q27) -> 0 | V27: 0 | W27: =IF($A27>Year_Term,0,BenefitsB!R27) -> 0 | X27: =IF($A27>Year_Term,0,BenefitsB!S27) -> 0 | Y27: =IF($A27>Year_Term,0,BenefitsB!T27) -> 0 | Z27: 0 | AA27: =IF($A27>Year_Term,0,BenefitsB!U27) -> 0 | AB27: =IF($A27>Year_Term,0,BenefitsB!V27) -> 0 | AC27: =IF($A27>Year_Term,0,BenefitsB!W27) -> 0 | AD27: 0 | AE27: =IF($A27>Year_Term,0,BenefitsB!X27) -> 0 | AF27: =IF($A27>Year_Term,0,BenefitsB!Y27) -> 0 | AG27: =IF($A27>Year_Term,0,BenefitsB!Z27) -> 0 | AH27: 0 | AI27: =IF($A27>Year_Term,0,BenefitsB!AA27) -> 0 | AJ27: =IF($A27>Year_Term,0,BenefitsB!AB27) -> 0 | AK27: =IF($A27>Year_Term,0,BenefitsB!AC27) -> 0 | AL27: 0 | AM27: =IF($A27>Year_Term,0,BenefitsB!AD27) -> 0 | AN27: =IF($A27>Year_Term,0,BenefitsB!AE27) -> 0 | AO27: =IF($A27>Year_Term,0,BenefitsB!AF27) -> 0 | AP27: 0
A28: 25 | B28: 2050 | C28: =IF($A28>Year_Term,0,BenefitsB!C28) -> 0 | D28: =IF($A28>Year_Term,0,BenefitsB!D28) -> 0 | E28: =IF($A28>Year_Term,0,BenefitsB!E28) -> 0 | F28: 0 | G28: =IF($A28>Year_Term,0,BenefitsB!F28) -> 0 | H28: =IF($A28>Year_Term,0,BenefitsB!G28) -> 0 | I28: =IF($A28>Year_Term,0,BenefitsB!H28) -> 0 | J28: 0 | K28: =IF($A28>Year_Term,0,BenefitsB!I28) -> 0 | L28: =IF($A28>Year_Term,0,BenefitsB!J28) -> 0 | M28: =IF($A28>Year_Term,0,BenefitsB!K28) -> 0 | N28: 0 | O28: =IF($A28>Year_Term,0,BenefitsB!L28) -> 0 | P28: =IF($A28>Year_Term,0,BenefitsB!M28) -> 0 | Q28: =IF($A28>Year_Term,0,BenefitsB!N28) -> 0 | R28: 0 | S28: =IF($A28>Year_Term,0,BenefitsB!O28) -> 0 | T28: =IF($A28>Year_Term,0,BenefitsB!P28) -> 0 | U28: =IF($A28>Year_Term,0,BenefitsB!Q28) -> 0 | V28: 0 | W28: =IF($A28>Year_Term,0,BenefitsB!R28) -> 0 | X28: =IF($A28>Year_Term,0,BenefitsB!S28) -> 0 | Y28: =IF($A28>Year_Term,0,BenefitsB!T28) -> 0 | Z28: 0 | AA28: =IF($A28>Year_Term,0,BenefitsB!U28) -> 0 | AB28: =IF($A28>Year_Term,0,BenefitsB!V28) -> 0 | AC28: =IF($A28>Year_Term,0,BenefitsB!W28) -> 0 | AD28: 0 | AE28: =IF($A28>Year_Term,0,BenefitsB!X28) -> 0 | AF28: =IF($A28>Year_Term,0,BenefitsB!Y28) -> 0 | AG28: =IF($A28>Year_Term,0,BenefitsB!Z28) -> 0 | AH28: 0 | AI28: =IF($A28>Year_Term,0,BenefitsB!AA28) -> 0 | AJ28: =IF($A28>Year_Term,0,BenefitsB!AB28) -> 0 | AK28: =IF($A28>Year_Term,0,BenefitsB!AC28) -> 0 | AL28: 0 | AM28: =IF($A28>Year_Term,0,BenefitsB!AD28) -> 0 | AN28: =IF($A28>Year_Term,0,BenefitsB!AE28) -> 0 | AO28: =IF($A28>Year_Term,0,BenefitsB!AF28) -> 0 | AP28: 0
A29: 26 | B29: 2051 | C29: =IF($A29>Year_Term,0,BenefitsB!C29) -> 0 | D29: =IF($A29>Year_Term,0,BenefitsB!D29) -> 0 | E29: =IF($A29>Year_Term,0,BenefitsB!E29) -> 0 | F29: 0 | G29: =IF($A29>Year_Term,0,BenefitsB!F29) -> 0 | H29: =IF($A29>Year_Term,0,BenefitsB!G29) -> 0 | I29: =IF($A29>Year_Term,0,BenefitsB!H29) -> 0 | J29: 0 | K29: =IF($A29>Year_Term,0,BenefitsB!I29) -> 0 | L29: =IF($A29>Year_Term,0,BenefitsB!J29) -> 0 | M29: =IF($A29>Year_Term,0,BenefitsB!K29) -> 0 | N29: 0 | O29: =IF($A29>Year_Term,0,BenefitsB!L29) -> 0 | P29: =IF($A29>Year_Term,0,BenefitsB!M29) -> 0 | Q29: =IF($A29>Year_Term,0,BenefitsB!N29) -> 0 | R29: 0 | S29: =IF($A29>Year_Term,0,BenefitsB!O29) -> 0 | T29: =IF($A29>Year_Term,0,BenefitsB!P29) -> 0 | U29: =IF($A29>Year_Term,0,BenefitsB!Q29) -> 0 | V29: 0 | W29: =IF($A29>Year_Term,0,BenefitsB!R29) -> 0 | X29: =IF($A29>Year_Term,0,BenefitsB!S29) -> 0 | Y29: =IF($A29>Year_Term,0,BenefitsB!T29) -> 0 | Z29: 0 | AA29: =IF($A29>Year_Term,0,BenefitsB!U29) -> 0 | AB29: =IF($A29>Year_Term,0,BenefitsB!V29) -> 0 | AC29: =IF($A29>Year_Term,0,BenefitsB!W29) -> 0 | AD29: 0 | AE29: =IF($A29>Year_Term,0,BenefitsB!X29) -> 0 | AF29: =IF($A29>Year_Term,0,BenefitsB!Y29) -> 0 | AG29: =IF($A29>Year_Term,0,BenefitsB!Z29) -> 0 | AH29: 0 | AI29: =IF($A29>Year_Term,0,BenefitsB!AA29) -> 0 | AJ29: =IF($A29>Year_Term,0,BenefitsB!AB29) -> 0 | AK29: =IF($A29>Year_Term,0,BenefitsB!AC29) -> 0 | AL29: 0 | AM29: =IF($A29>Year_Term,0,BenefitsB!AD29) -> 0 | AN29: =IF($A29>Year_Term,0,BenefitsB!AE29) -> 0 | AO29: =IF($A29>Year_Term,0,BenefitsB!AF29) -> 0 | AP29: 0
A30: 27 | B30: 2052 | C30: =IF($A30>Year_Term,0,BenefitsB!C30) -> 0 | D30: =IF($A30>Year_Term,0,BenefitsB!D30) -> 0 | E30: =IF($A30>Year_Term,0,BenefitsB!E30) -> 0 | F30: 0 | G30: =IF($A30>Year_Term,0,BenefitsB!F30) -> 0 | H30: =IF($A30>Year_Term,0,BenefitsB!G30) -> 0 | I30: =IF($A30>Year_Term,0,BenefitsB!H30) -> 0 | J30: 0 | K30: =IF($A30>Year_Term,0,BenefitsB!I30) -> 0 | L30: =IF($A30>Year_Term,0,BenefitsB!J30) -> 0 | M30: =IF($A30>Year_Term,0,BenefitsB!K30) -> 0 | N30: 0 | O30: =IF($A30>Year_Term,0,BenefitsB!L30) -> 0 | P30: =IF($A30>Year_Term,0,BenefitsB!M30) -> 0 | Q30: =IF($A30>Year_Term,0,BenefitsB!N30) -> 0 | R30: 0 | S30: =IF($A30>Year_Term,0,BenefitsB!O30) -> 0 | T30: =IF($A30>Year_Term,0,BenefitsB!P30) -> 0 | U30: =IF($A30>Year_Term,0,BenefitsB!Q30) -> 0 | V30: 0 | W30: =IF($A30>Year_Term,0,BenefitsB!R30) -> 0 | X30: =IF($A30>Year_Term,0,BenefitsB!S30) -> 0 | Y30: =IF($A30>Year_Term,0,BenefitsB!T30) -> 0 | Z30: 0 | AA30: =IF($A30>Year_Term,0,BenefitsB!U30) -> 0 | AB30: =IF($A30>Year_Term,0,BenefitsB!V30) -> 0 | AC30: =IF($A30>Year_Term,0,BenefitsB!W30) -> 0 | AD30: 0 | AE30: =IF($A30>Year_Term,0,BenefitsB!X30) -> 0 | AF30: =IF($A30>Year_Term,0,BenefitsB!Y30) -> 0 | AG30: =IF($A30>Year_Term,0,BenefitsB!Z30) -> 0 | AH30: 0 | AI30: =IF($A30>Year_Term,0,BenefitsB!AA30) -> 0 | AJ30: =IF($A30>Year_Term,0,BenefitsB!AB30) -> 0 | AK30: =IF($A30>Year_Term,0,BenefitsB!AC30) -> 0 | AL30: 0 | AM30: =IF($A30>Year_Term,0,BenefitsB!AD30) -> 0 | AN30: =IF($A30>Year_Term,0,BenefitsB!AE30) -> 0 | AO30: =IF($A30>Year_Term,0,BenefitsB!AF30) -> 0 | AP30: 0
A31: 28 | B31: 2053 | C31: =IF($A31>Year_Term,0,BenefitsB!C31) -> 0 | D31: =IF($A31>Year_Term,0,BenefitsB!D31) -> 0 | E31: =IF($A31>Year_Term,0,BenefitsB!E31) -> 0 | F31: 0 | G31: =IF($A31>Year_Term,0,BenefitsB!F31) -> 0 | H31: =IF($A31>Year_Term,0,BenefitsB!G31) -> 0 | I31: =IF($A31>Year_Term,0,BenefitsB!H31) -> 0 | J31: 0 | K31: =IF($A31>Year_Term,0,BenefitsB!I31) -> 0 | L31: =IF($A31>Year_Term,0,BenefitsB!J31) -> 0 | M31: =IF($A31>Year_Term,0,BenefitsB!K31) -> 0 | N31: 0 | O31: =IF($A31>Year_Term,0,BenefitsB!L31) -> 0 | P31: =IF($A31>Year_Term,0,BenefitsB!M31) -> 0 | Q31: =IF($A31>Year_Term,0,BenefitsB!N31) -> 0 | R31: 0 | S31: =IF($A31>Year_Term,0,BenefitsB!O31) -> 0 | T31: =IF($A31>Year_Term,0,BenefitsB!P31) -> 0 | U31: =IF($A31>Year_Term,0,BenefitsB!Q31) -> 0 | V31: 0 | W31: =IF($A31>Year_Term,0,BenefitsB!R31) -> 0 | X31: =IF($A31>Year_Term,0,BenefitsB!S31) -> 0 | Y31: =IF($A31>Year_Term,0,BenefitsB!T31) -> 0 | Z31: 0 | AA31: =IF($A31>Year_Term,0,BenefitsB!U31) -> 0 | AB31: =IF($A31>Year_Term,0,BenefitsB!V31) -> 0 | AC31: =IF($A31>Year_Term,0,BenefitsB!W31) -> 0 | AD31: 0 | AE31: =IF($A31>Year_Term,0,BenefitsB!X31) -> 0 | AF31: =IF($A31>Year_Term,0,BenefitsB!Y31) -> 0 | AG31: =IF($A31>Year_Term,0,BenefitsB!Z31) -> 0 | AH31: 0 | AI31: =IF($A31>Year_Term,0,BenefitsB!AA31) -> 0 | AJ31: =IF($A31>Year_Term,0,BenefitsB!AB31) -> 0 | AK31: =IF($A31>Year_Term,0,BenefitsB!AC31) -> 0 | AL31: 0 | AM31: =IF($A31>Year_Term,0,BenefitsB!AD31) -> 0 | AN31: =IF($A31>Year_Term,0,BenefitsB!AE31) -> 0 | AO31: =IF($A31>Year_Term,0,BenefitsB!AF31) -> 0 | AP31: 0
A32: 29 | B32: 2054 | C32: =IF($A32>Year_Term,0,BenefitsB!C32) -> 0 | D32: =IF($A32>Year_Term,0,BenefitsB!D32) -> 0 | E32: =IF($A32>Year_Term,0,BenefitsB!E32) -> 0 | F32: 0 | G32: =IF($A32>Year_Term,0,BenefitsB!F32) -> 0 | H32: =IF($A32>Year_Term,0,BenefitsB!G32) -> 0 | I32: =IF($A32>Year_Term,0,BenefitsB!H32) -> 0 | J32: 0 | K32: =IF($A32>Year_Term,0,BenefitsB!I32) -> 0 | L32: =IF($A32>Year_Term,0,BenefitsB!J32) -> 0 | M32: =IF($A32>Year_Term,0,BenefitsB!K32) -> 0 | N32: 0 | O32: =IF($A32>Year_Term,0,BenefitsB!L32) -> 0 | P32: =IF($A32>Year_Term,0,BenefitsB!M32) -> 0 | Q32: =IF($A32>Year_Term,0,BenefitsB!N32) -> 0 | R32: 0 | S32: =IF($A32>Year_Term,0,BenefitsB!O32) -> 0 | T32: =IF($A32>Year_Term,0,BenefitsB!P32) -> 0 | U32: =IF($A32>Year_Term,0,BenefitsB!Q32) -> 0 | V32: 0 | W32: =IF($A32>Year_Term,0,BenefitsB!R32) -> 0 | X32: =IF($A32>Year_Term,0,BenefitsB!S32) -> 0 | Y32: =IF($A32>Year_Term,0,BenefitsB!T32) -> 0 | Z32: 0 | AA32: =IF($A32>Year_Term,0,BenefitsB!U32) -> 0 | AB32: =IF($A32>Year_Term,0,BenefitsB!V32) -> 0 | AC32: =IF($A32>Year_Term,0,BenefitsB!W32) -> 0 | AD32: 0 | AE32: =IF($A32>Year_Term,0,BenefitsB!X32) -> 0 | AF32: =IF($A32>Year_Term,0,BenefitsB!Y32) -> 0 | AG32: =IF($A32>Year_Term,0,BenefitsB!Z32) -> 0 | AH32: 0 | AI32: =IF($A32>Year_Term,0,BenefitsB!AA32) -> 0 | AJ32: =IF($A32>Year_Term,0,BenefitsB!AB32) -> 0 | AK32: =IF($A32>Year_Term,0,BenefitsB!AC32) -> 0 | AL32: 0 | AM32: =IF($A32>Year_Term,0,BenefitsB!AD32) -> 0 | AN32: =IF($A32>Year_Term,0,BenefitsB!AE32) -> 0 | AO32: =IF($A32>Year_Term,0,BenefitsB!AF32) -> 0 | AP32: 0
A33: 30 | B33: 2055 | C33: =IF($A33>Year_Term,0,BenefitsB!C33) -> 0 | D33: =IF($A33>Year_Term,0,BenefitsB!D33) -> 0 | E33: =IF($A33>Year_Term,0,BenefitsB!E33) -> 0 | F33: 0 | G33: =IF($A33>Year_Term,0,BenefitsB!F33) -> 0 | H33: =IF($A33>Year_Term,0,BenefitsB!G33) -> 0 | I33: =IF($A33>Year_Term,0,BenefitsB!H33) -> 0 | J33: 0 | K33: =IF($A33>Year_Term,0,BenefitsB!I33) -> 0 | L33: =IF($A33>Year_Term,0,BenefitsB!J33) -> 0 | M33: =IF($A33>Year_Term,0,BenefitsB!K33) -> 0 | N33: 0 | O33: =IF($A33>Year_Term,0,BenefitsB!L33) -> 0 | P33: =IF($A33>Year_Term,0,BenefitsB!M33) -> 0 | Q33: =IF($A33>Year_Term,0,BenefitsB!N33) -> 0 | R33: 0 | S33: =IF($A33>Year_Term,0,BenefitsB!O33) -> 0 | T33: =IF($A33>Year_Term,0,BenefitsB!P33) -> 0 | U33: =IF($A33>Year_Term,0,BenefitsB!Q33) -> 0 | V33: 0 | W33: =IF($A33>Year_Term,0,BenefitsB!R33) -> 0 | X33: =IF($A33>Year_Term,0,BenefitsB!S33) -> 0 | Y33: =IF($A33>Year_Term,0,BenefitsB!T33) -> 0 | Z33: 0 | AA33: =IF($A33>Year_Term,0,BenefitsB!U33) -> 0 | AB33: =IF($A33>Year_Term,0,BenefitsB!V33) -> 0 | AC33: =IF($A33>Year_Term,0,BenefitsB!W33) -> 0 | AD33: 0 | AE33: =IF($A33>Year_Term,0,BenefitsB!X33) -> 0 | AF33: =IF($A33>Year_Term,0,BenefitsB!Y33) -> 0 | AG33: =IF($A33>Year_Term,0,BenefitsB!Z33) -> 0 | AH33: 0 | AI33: =IF($A33>Year_Term,0,BenefitsB!AA33) -> 0 | AJ33: =IF($A33>Year_Term,0,BenefitsB!AB33) -> 0 | AK33: =IF($A33>Year_Term,0,BenefitsB!AC33) -> 0 | AL33: 0 | AM33: =IF($A33>Year_Term,0,BenefitsB!AD33) -> 0 | AN33: =IF($A33>Year_Term,0,BenefitsB!AE33) -> 0 | AO33: =IF($A33>Year_Term,0,BenefitsB!AF33) -> 0 | AP33: 0
A34: 31 | B34: 2056 | C34: =IF($A34>Year_Term,0,BenefitsB!C34) -> 0 | D34: =IF($A34>Year_Term,0,BenefitsB!D34) -> 0 | E34: =IF($A34>Year_Term,0,BenefitsB!E34) -> 0 | F34: 0 | G34: =IF($A34>Year_Term,0,BenefitsB!F34) -> 0 | H34: =IF($A34>Year_Term,0,BenefitsB!G34) -> 0 | I34: =IF($A34>Year_Term,0,BenefitsB!H34) -> 0 | J34: 0 | K34: =IF($A34>Year_Term,0,BenefitsB!I34) -> 0 | L34: =IF($A34>Year_Term,0,BenefitsB!J34) -> 0 | M34: =IF($A34>Year_Term,0,BenefitsB!K34) -> 0 | N34: 0 | O34: =IF($A34>Year_Term,0,BenefitsB!L34) -> 0 | P34: =IF($A34>Year_Term,0,BenefitsB!M34) -> 0 | Q34: =IF($A34>Year_Term,0,BenefitsB!N34) -> 0 | R34: 0 | S34: =IF($A34>Year_Term,0,BenefitsB!O34) -> 0 | T34: =IF($A34>Year_Term,0,BenefitsB!P34) -> 0 | U34: =IF($A34>Year_Term,0,BenefitsB!Q34) -> 0 | V34: 0 | W34: =IF($A34>Year_Term,0,BenefitsB!R34) -> 0 | X34: =IF($A34>Year_Term,0,BenefitsB!S34) -> 0 | Y34: =IF($A34>Year_Term,0,BenefitsB!T34) -> 0 | Z34: 0 | AA34: =IF($A34>Year_Term,0,BenefitsB!U34) -> 0 | AB34: =IF($A34>Year_Term,0,BenefitsB!V34) -> 0 | AC34: =IF($A34>Year_Term,0,BenefitsB!W34) -> 0 | AD34: 0 | AE34: =IF($A34>Year_Term,0,BenefitsB!X34) -> 0 | AF34: =IF($A34>Year_Term,0,BenefitsB!Y34) -> 0 | AG34: =IF($A34>Year_Term,0,BenefitsB!Z34) -> 0 | AH34: 0 | AI34: =IF($A34>Year_Term,0,BenefitsB!AA34) -> 0 | AJ34: =IF($A34>Year_Term,0,BenefitsB!AB34) -> 0 | AK34: =IF($A34>Year_Term,0,BenefitsB!AC34) -> 0 | AL34: 0 | AM34: =IF($A34>Year_Term,0,BenefitsB!AD34) -> 0 | AN34: =IF($A34>Year_Term,0,BenefitsB!AE34) -> 0 | AO34: =IF($A34>Year_Term,0,BenefitsB!AF34) -> 0 | AP34: 0
A35: 32 | B35: 2057 | C35: =IF($A35>Year_Term,0,BenefitsB!C35) -> 0 | D35: =IF($A35>Year_Term,0,BenefitsB!D35) -> 0 | E35: =IF($A35>Year_Term,0,BenefitsB!E35) -> 0 | F35: 0 | G35: =IF($A35>Year_Term,0,BenefitsB!F35) -> 0 | H35: =IF($A35>Year_Term,0,BenefitsB!G35) -> 0 | I35: =IF($A35>Year_Term,0,BenefitsB!H35) -> 0 | J35: 0 | K35: =IF($A35>Year_Term,0,BenefitsB!I35) -> 0 | L35: =IF($A35>Year_Term,0,BenefitsB!J35) -> 0 | M35: =IF($A35>Year_Term,0,BenefitsB!K35) -> 0 | N35: 0 | O35: =IF($A35>Year_Term,0,BenefitsB!L35) -> 0 | P35: =IF($A35>Year_Term,0,BenefitsB!M35) -> 0 | Q35: =IF($A35>Year_Term,0,BenefitsB!N35) -> 0 | R35: 0 | S35: =IF($A35>Year_Term,0,BenefitsB!O35) -> 0 | T35: =IF($A35>Year_Term,0,BenefitsB!P35) -> 0 | U35: =IF($A35>Year_Term,0,BenefitsB!Q35) -> 0 | V35: 0 | W35: =IF($A35>Year_Term,0,BenefitsB!R35) -> 0 | X35: =IF($A35>Year_Term,0,BenefitsB!S35) -> 0 | Y35: =IF($A35>Year_Term,0,BenefitsB!T35) -> 0 | Z35: 0 | AA35: =IF($A35>Year_Term,0,BenefitsB!U35) -> 0 | AB35: =IF($A35>Year_Term,0,BenefitsB!V35) -> 0 | AC35: =IF($A35>Year_Term,0,BenefitsB!W35) -> 0 | AD35: 0 | AE35: =IF($A35>Year_Term,0,BenefitsB!X35) -> 0 | AF35: =IF($A35>Year_Term,0,BenefitsB!Y35) -> 0 | AG35: =IF($A35>Year_Term,0,BenefitsB!Z35) -> 0 | AH35: 0 | AI35: =IF($A35>Year_Term,0,BenefitsB!AA35) -> 0 | AJ35: =IF($A35>Year_Term,0,BenefitsB!AB35) -> 0 | AK35: =IF($A35>Year_Term,0,BenefitsB!AC35) -> 0 | AL35: 0 | AM35: =IF($A35>Year_Term,0,BenefitsB!AD35) -> 0 | AN35: =IF($A35>Year_Term,0,BenefitsB!AE35) -> 0 | AO35: =IF($A35>Year_Term,0,BenefitsB!AF35) -> 0 | AP35: 0
A36: 33 | B36: 2058 | C36: =IF($A36>Year_Term,0,BenefitsB!C36) -> 0 | D36: =IF($A36>Year_Term,0,BenefitsB!D36) -> 0 | E36: =IF($A36>Year_Term,0,BenefitsB!E36) -> 0 | F36: 0 | G36: =IF($A36>Year_Term,0,BenefitsB!F36) -> 0 | H36: =IF($A36>Year_Term,0,BenefitsB!G36) -> 0 | I36: =IF($A36>Year_Term,0,BenefitsB!H36) -> 0 | J36: 0 | K36: =IF($A36>Year_Term,0,BenefitsB!I36) -> 0 | L36: =IF($A36>Year_Term,0,BenefitsB!J36) -> 0 | M36: =IF($A36>Year_Term,0,BenefitsB!K36) -> 0 | N36: 0 | O36: =IF($A36>Year_Term,0,BenefitsB!L36) -> 0 | P36: =IF($A36>Year_Term,0,BenefitsB!M36) -> 0 | Q36: =IF($A36>Year_Term,0,BenefitsB!N36) -> 0 | R36: 0 | S36: =IF($A36>Year_Term,0,BenefitsB!O36) -> 0 | T36: =IF($A36>Year_Term,0,BenefitsB!P36) -> 0 | U36: =IF($A36>Year_Term,0,BenefitsB!Q36) -> 0 | V36: 0 | W36: =IF($A36>Year_Term,0,BenefitsB!R36) -> 0 | X36: =IF($A36>Year_Term,0,BenefitsB!S36) -> 0 | Y36: =IF($A36>Year_Term,0,BenefitsB!T36) -> 0 | Z36: 0 | AA36: =IF($A36>Year_Term,0,BenefitsB!U36) -> 0 | AB36: =IF($A36>Year_Term,0,BenefitsB!V36) -> 0 | AC36: =IF($A36>Year_Term,0,BenefitsB!W36) -> 0 | AD36: 0 | AE36: =IF($A36>Year_Term,0,BenefitsB!X36) -> 0 | AF36: =IF($A36>Year_Term,0,BenefitsB!Y36) -> 0 | AG36: =IF($A36>Year_Term,0,BenefitsB!Z36) -> 0 | AH36: 0 | AI36: =IF($A36>Year_Term,0,BenefitsB!AA36) -> 0 | AJ36: =IF($A36>Year_Term,0,BenefitsB!AB36) -> 0 | AK36: =IF($A36>Year_Term,0,BenefitsB!AC36) -> 0 | AL36: 0 | AM36: =IF($A36>Year_Term,0,BenefitsB!AD36) -> 0 | AN36: =IF($A36>Year_Term,0,BenefitsB!AE36) -> 0 | AO36: =IF($A36>Year_Term,0,BenefitsB!AF36) -> 0 | AP36: 0
A37: 34 | B37: 2059 | C37: =IF($A37>Year_Term,0,BenefitsB!C37) -> 0 | D37: =IF($A37>Year_Term,0,BenefitsB!D37) -> 0 | E37: =IF($A37>Year_Term,0,BenefitsB!E37) -> 0 | F37: 0 | G37: =IF($A37>Year_Term,0,BenefitsB!F37) -> 0 | H37: =IF($A37>Year_Term,0,BenefitsB!G37) -> 0 | I37: =IF($A37>Year_Term,0,BenefitsB!H37) -> 0 | J37: 0 | K37: =IF($A37>Year_Term,0,BenefitsB!I37) -> 0 | L37: =IF($A37>Year_Term,0,BenefitsB!J37) -> 0 | M37: =IF($A37>Year_Term,0,BenefitsB!K37) -> 0 | N37: 0 | O37: =IF($A37>Year_Term,0,BenefitsB!L37) -> 0 | P37: =IF($A37>Year_Term,0,BenefitsB!M37) -> 0 | Q37: =IF($A37>Year_Term,0,BenefitsB!N37) -> 0 | R37: 0 | S37: =IF($A37>Year_Term,0,BenefitsB!O37) -> 0 | T37: =IF($A37>Year_Term,0,BenefitsB!P37) -> 0 | U37: =IF($A37>Year_Term,0,BenefitsB!Q37) -> 0 | V37: 0 | W37: =IF($A37>Year_Term,0,BenefitsB!R37) -> 0 | X37: =IF($A37>Year_Term,0,BenefitsB!S37) -> 0 | Y37: =IF($A37>Year_Term,0,BenefitsB!T37) -> 0 | Z37: 0 | AA37: =IF($A37>Year_Term,0,BenefitsB!U37) -> 0 | AB37: =IF($A37>Year_Term,0,BenefitsB!V37) -> 0 | AC37: =IF($A37>Year_Term,0,BenefitsB!W37) -> 0 | AD37: 0 | AE37: =IF($A37>Year_Term,0,BenefitsB!X37) -> 0 | AF37: =IF($A37>Year_Term,0,BenefitsB!Y37) -> 0 | AG37: =IF($A37>Year_Term,0,BenefitsB!Z37) -> 0 | AH37: 0 | AI37: =IF($A37>Year_Term,0,BenefitsB!AA37) -> 0 | AJ37: =IF($A37>Year_Term,0,BenefitsB!AB37) -> 0 | AK37: =IF($A37>Year_Term,0,BenefitsB!AC37) -> 0 | AL37: 0 | AM37: =IF($A37>Year_Term,0,BenefitsB!AD37) -> 0 | AN37: =IF($A37>Year_Term,0,BenefitsB!AE37) -> 0 | AO37: =IF($A37>Year_Term,0,BenefitsB!AF37) -> 0 | AP37: 0
A38: 35 | B38: =B37+1 -> 2060 | C38: =IF($A38>Year_Term,0,BenefitsB!C38) -> 0 | D38: =IF($A38>Year_Term,0,BenefitsB!D38) -> 0 | E38: =IF($A38>Year_Term,0,BenefitsB!E38) -> 0 | F38: 0 | G38: =IF($A38>Year_Term,0,BenefitsB!F38) -> 0 | H38: =IF($A38>Year_Term,0,BenefitsB!G38) -> 0 | I38: =IF($A38>Year_Term,0,BenefitsB!H38) -> 0 | J38: 0 | K38: =IF($A38>Year_Term,0,BenefitsB!I38) -> 0 | L38: =IF($A38>Year_Term,0,BenefitsB!J38) -> 0 | M38: =IF($A38>Year_Term,0,BenefitsB!K38) -> 0 | N38: 0 | O38: =IF($A38>Year_Term,0,BenefitsB!L38) -> 0 | P38: =IF($A38>Year_Term,0,BenefitsB!M38) -> 0 | Q38: =IF($A38>Year_Term,0,BenefitsB!N38) -> 0 | R38: 0 | S38: =IF($A38>Year_Term,0,BenefitsB!O38) -> 0 | T38: =IF($A38>Year_Term,0,BenefitsB!P38) -> 0 | U38: =IF($A38>Year_Term,0,BenefitsB!Q38) -> 0 | V38: 0 | W38: =IF($A38>Year_Term,0,BenefitsB!R38) -> 0 | X38: =IF($A38>Year_Term,0,BenefitsB!S38) -> 0 | Y38: =IF($A38>Year_Term,0,BenefitsB!T38) -> 0 | Z38: 0 | AA38: =IF($A38>Year_Term,0,BenefitsB!U38) -> 0 | AB38: =IF($A38>Year_Term,0,BenefitsB!V38) -> 0 | AC38: =IF($A38>Year_Term,0,BenefitsB!W38) -> 0 | AD38: 0 | AE38: =IF($A38>Year_Term,0,BenefitsB!X38) -> 0 | AF38: =IF($A38>Year_Term,0,BenefitsB!Y38) -> 0 | AG38: =IF($A38>Year_Term,0,BenefitsB!Z38) -> 0 | AH38: 0 | AI38: =IF($A38>Year_Term,0,BenefitsB!AA38) -> 0 | AJ38: =IF($A38>Year_Term,0,BenefitsB!AB38) -> 0 | AK38: =IF($A38>Year_Term,0,BenefitsB!AC38) -> 0 | AL38: 0 | AM38: =IF($A38>Year_Term,0,BenefitsB!AD38) -> 0 | AN38: =IF($A38>Year_Term,0,BenefitsB!AE38) -> 0 | AO38: =IF($A38>Year_Term,0,BenefitsB!AF38) -> 0 | AP38: 0
A39: 36 | B39: 2061 | C39: =IF($A39>Year_Term,0,BenefitsB!C39) -> 0 | D39: =IF($A39>Year_Term,0,BenefitsB!D39) -> 0 | E39: =IF($A39>Year_Term,0,BenefitsB!E39) -> 0 | F39: 0 | G39: =IF($A39>Year_Term,0,BenefitsB!F39) -> 0 | H39: =IF($A39>Year_Term,0,BenefitsB!G39) -> 0 | I39: =IF($A39>Year_Term,0,BenefitsB!H39) -> 0 | J39: 0 | K39: =IF($A39>Year_Term,0,BenefitsB!I39) -> 0 | L39: =IF($A39>Year_Term,0,BenefitsB!J39) -> 0 | M39: =IF($A39>Year_Term,0,BenefitsB!K39) -> 0 | N39: 0 | O39: =IF($A39>Year_Term,0,BenefitsB!L39) -> 0 | P39: =IF($A39>Year_Term,0,BenefitsB!M39) -> 0 | Q39: =IF($A39>Year_Term,0,BenefitsB!N39) -> 0 | R39: 0 | S39: =IF($A39>Year_Term,0,BenefitsB!O39) -> 0 | T39: =IF($A39>Year_Term,0,BenefitsB!P39) -> 0 | U39: =IF($A39>Year_Term,0,BenefitsB!Q39) -> 0 | V39: 0 | W39: =IF($A39>Year_Term,0,BenefitsB!R39) -> 0 | X39: =IF($A39>Year_Term,0,BenefitsB!S39) -> 0 | Y39: =IF($A39>Year_Term,0,BenefitsB!T39) -> 0 | Z39: 0 | AA39: =IF($A39>Year_Term,0,BenefitsB!U39) -> 0 | AB39: =IF($A39>Year_Term,0,BenefitsB!V39) -> 0 | AC39: =IF($A39>Year_Term,0,BenefitsB!W39) -> 0 | AD39: 0 | AE39: =IF($A39>Year_Term,0,BenefitsB!X39) -> 0 | AF39: =IF($A39>Year_Term,0,BenefitsB!Y39) -> 0 | AG39: =IF($A39>Year_Term,0,BenefitsB!Z39) -> 0 | AH39: 0 | AI39: =IF($A39>Year_Term,0,BenefitsB!AA39) -> 0 | AJ39: =IF($A39>Year_Term,0,BenefitsB!AB39) -> 0 | AK39: =IF($A39>Year_Term,0,BenefitsB!AC39) -> 0 | AL39: 0 | AM39: =IF($A39>Year_Term,0,BenefitsB!AD39) -> 0 | AN39: =IF($A39>Year_Term,0,BenefitsB!AE39) -> 0 | AO39: =IF($A39>Year_Term,0,BenefitsB!AF39) -> 0 | AP39: 0
A40: 37 | B40: 2062 | C40: =IF($A40>Year_Term,0,BenefitsB!C40) -> 0 | D40: =IF($A40>Year_Term,0,BenefitsB!D40) -> 0 | E40: =IF($A40>Year_Term,0,BenefitsB!E40) -> 0 | F40: 0 | G40: =IF($A40>Year_Term,0,BenefitsB!F40) -> 0 | H40: =IF($A40>Year_Term,0,BenefitsB!G40) -> 0 | I40: =IF($A40>Year_Term,0,BenefitsB!H40) -> 0 | J40: 0 | K40: =IF($A40>Year_Term,0,BenefitsB!I40) -> 0 | L40: =IF($A40>Year_Term,0,BenefitsB!J40) -> 0 | M40: =IF($A40>Year_Term,0,BenefitsB!K40) -> 0 | N40: 0 | O40: =IF($A40>Year_Term,0,BenefitsB!L40) -> 0 | P40: =IF($A40>Year_Term,0,BenefitsB!M40) -> 0 | Q40: =IF($A40>Year_Term,0,BenefitsB!N40) -> 0 | R40: 0 | S40: =IF($A40>Year_Term,0,BenefitsB!O40) -> 0 | T40: =IF($A40>Year_Term,0,BenefitsB!P40) -> 0 | U40: =IF($A40>Year_Term,0,BenefitsB!Q40) -> 0 | V40: 0 | W40: =IF($A40>Year_Term,0,BenefitsB!R40) -> 0 | X40: =IF($A40>Year_Term,0,BenefitsB!S40) -> 0 | Y40: =IF($A40>Year_Term,0,BenefitsB!T40) -> 0 | Z40: 0 | AA40: =IF($A40>Year_Term,0,BenefitsB!U40) -> 0 | AB40: =IF($A40>Year_Term,0,BenefitsB!V40) -> 0 | AC40: =IF($A40>Year_Term,0,BenefitsB!W40) -> 0 | AD40: 0 | AE40: =IF($A40>Year_Term,0,BenefitsB!X40) -> 0 | AF40: =IF($A40>Year_Term,0,BenefitsB!Y40) -> 0 | AG40: =IF($A40>Year_Term,0,BenefitsB!Z40) -> 0 | AH40: 0 | AI40: =IF($A40>Year_Term,0,BenefitsB!AA40) -> 0 | AJ40: =IF($A40>Year_Term,0,BenefitsB!AB40) -> 0 | AK40: =IF($A40>Year_Term,0,BenefitsB!AC40) -> 0 | AL40: 0 | AM40: =IF($A40>Year_Term,0,BenefitsB!AD40) -> 0 | AN40: =IF($A40>Year_Term,0,BenefitsB!AE40) -> 0 | AO40: =IF($A40>Year_Term,0,BenefitsB!AF40) -> 0 | AP40: 0
A41: 38 | B41: 2063 | C41: =IF($A41>Year_Term,0,BenefitsB!C41) -> 0 | D41: =IF($A41>Year_Term,0,BenefitsB!D41) -> 0 | E41: =IF($A41>Year_Term,0,BenefitsB!E41) -> 0 | F41: 0 | G41: =IF($A41>Year_Term,0,BenefitsB!F41) -> 0 | H41: =IF($A41>Year_Term,0,BenefitsB!G41) -> 0 | I41: =IF($A41>Year_Term,0,BenefitsB!H41) -> 0 | J41: 0 | K41: =IF($A41>Year_Term,0,BenefitsB!I41) -> 0 | L41: =IF($A41>Year_Term,0,BenefitsB!J41) -> 0 | M41: =IF($A41>Year_Term,0,BenefitsB!K41) -> 0 | N41: 0 | O41: =IF($A41>Year_Term,0,BenefitsB!L41) -> 0 | P41: =IF($A41>Year_Term,0,BenefitsB!M41) -> 0 | Q41: =IF($A41>Year_Term,0,BenefitsB!N41) -> 0 | R41: 0 | S41: =IF($A41>Year_Term,0,BenefitsB!O41) -> 0 | T41: =IF($A41>Year_Term,0,BenefitsB!P41) -> 0 | U41: =IF($A41>Year_Term,0,BenefitsB!Q41) -> 0 | V41: 0 | W41: =IF($A41>Year_Term,0,BenefitsB!R41) -> 0 | X41: =IF($A41>Year_Term,0,BenefitsB!S41) -> 0 | Y41: =IF($A41>Year_Term,0,BenefitsB!T41) -> 0 | Z41: 0 | AA41: =IF($A41>Year_Term,0,BenefitsB!U41) -> 0 | AB41: =IF($A41>Year_Term,0,BenefitsB!V41) -> 0 | AC41: =IF($A41>Year_Term,0,BenefitsB!W41) -> 0 | AD41: 0 | AE41: =IF($A41>Year_Term,0,BenefitsB!X41) -> 0 | AF41: =IF($A41>Year_Term,0,BenefitsB!Y41) -> 0 | AG41: =IF($A41>Year_Term,0,BenefitsB!Z41) -> 0 | AH41: 0 | AI41: =IF($A41>Year_Term,0,BenefitsB!AA41) -> 0 | AJ41: =IF($A41>Year_Term,0,BenefitsB!AB41) -> 0 | AK41: =IF($A41>Year_Term,0,BenefitsB!AC41) -> 0 | AL41: 0 | AM41: =IF($A41>Year_Term,0,BenefitsB!AD41) -> 0 | AN41: =IF($A41>Year_Term,0,BenefitsB!AE41) -> 0 | AO41: =IF($A41>Year_Term,0,BenefitsB!AF41) -> 0 | AP41: 0
A42: 39 | B42: 2064 | C42: =IF($A42>Year_Term,0,BenefitsB!C42) -> 0 | D42: =IF($A42>Year_Term,0,BenefitsB!D42) -> 0 | E42: =IF($A42>Year_Term,0,BenefitsB!E42) -> 0 | F42: 0 | G42: =IF($A42>Year_Term,0,BenefitsB!F42) -> 0 | H42: =IF($A42>Year_Term,0,BenefitsB!G42) -> 0 | I42: =IF($A42>Year_Term,0,BenefitsB!H42) -> 0 | J42: 0 | K42: =IF($A42>Year_Term,0,BenefitsB!I42) -> 0 | L42: =IF($A42>Year_Term,0,BenefitsB!J42) -> 0 | M42: =IF($A42>Year_Term,0,BenefitsB!K42) -> 0 | N42: 0 | O42: =IF($A42>Year_Term,0,BenefitsB!L42) -> 0 | P42: =IF($A42>Year_Term,0,BenefitsB!M42) -> 0 | Q42: =IF($A42>Year_Term,0,BenefitsB!N42) -> 0 | R42: 0 | S42: =IF($A42>Year_Term,0,BenefitsB!O42) -> 0 | T42: =IF($A42>Year_Term,0,BenefitsB!P42) -> 0 | U42: =IF($A42>Year_Term,0,BenefitsB!Q42) -> 0 | V42: 0 | W42: =IF($A42>Year_Term,0,BenefitsB!R42) -> 0 | X42: =IF($A42>Year_Term,0,BenefitsB!S42) -> 0 | Y42: =IF($A42>Year_Term,0,BenefitsB!T42) -> 0 | Z42: 0 | AA42: =IF($A42>Year_Term,0,BenefitsB!U42) -> 0 | AB42: =IF($A42>Year_Term,0,BenefitsB!V42) -> 0 | AC42: =IF($A42>Year_Term,0,BenefitsB!W42) -> 0 | AD42: 0 | AE42: =IF($A42>Year_Term,0,BenefitsB!X42) -> 0 | AF42: =IF($A42>Year_Term,0,BenefitsB!Y42) -> 0 | AG42: =IF($A42>Year_Term,0,BenefitsB!Z42) -> 0 | AH42: 0 | AI42: =IF($A42>Year_Term,0,BenefitsB!AA42) -> 0 | AJ42: =IF($A42>Year_Term,0,BenefitsB!AB42) -> 0 | AK42: =IF($A42>Year_Term,0,BenefitsB!AC42) -> 0 | AL42: 0 | AM42: =IF($A42>Year_Term,0,BenefitsB!AD42) -> 0 | AN42: =IF($A42>Year_Term,0,BenefitsB!AE42) -> 0 | AO42: =IF($A42>Year_Term,0,BenefitsB!AF42) -> 0 | AP42: 0
A43: 40 | B43: 2065 | C43: =IF($A43>Year_Term,0,BenefitsB!C43) -> 0 | D43: =IF($A43>Year_Term,0,BenefitsB!D43) -> 0 | E43: =IF($A43>Year_Term,0,BenefitsB!E43) -> 0 | F43: 0 | G43: =IF($A43>Year_Term,0,BenefitsB!F43) -> 0 | H43: =IF($A43>Year_Term,0,BenefitsB!G43) -> 0 | I43: =IF($A43>Year_Term,0,BenefitsB!H43) -> 0 | J43: 0 | K43: =IF($A43>Year_Term,0,BenefitsB!I43) -> 0 | L43: =IF($A43>Year_Term,0,BenefitsB!J43) -> 0 | M43: =IF($A43>Year_Term,0,BenefitsB!K43) -> 0 | N43: 0 | O43: =IF($A43>Year_Term,0,BenefitsB!L43) -> 0 | P43: =IF($A43>Year_Term,0,BenefitsB!M43) -> 0 | Q43: =IF($A43>Year_Term,0,BenefitsB!N43) -> 0 | R43: 0 | S43: =IF($A43>Year_Term,0,BenefitsB!O43) -> 0 | T43: =IF($A43>Year_Term,0,BenefitsB!P43) -> 0 | U43: =IF($A43>Year_Term,0,BenefitsB!Q43) -> 0 | V43: 0 | W43: =IF($A43>Year_Term,0,BenefitsB!R43) -> 0 | X43: =IF($A43>Year_Term,0,BenefitsB!S43) -> 0 | Y43: =IF($A43>Year_Term,0,BenefitsB!T43) -> 0 | Z43: 0 | AA43: =IF($A43>Year_Term,0,BenefitsB!U43) -> 0 | AB43: =IF($A43>Year_Term,0,BenefitsB!V43) -> 0 | AC43: =IF($A43>Year_Term,0,BenefitsB!W43) -> 0 | AD43: 0 | AE43: =IF($A43>Year_Term,0,BenefitsB!X43) -> 0 | AF43: =IF($A43>Year_Term,0,BenefitsB!Y43) -> 0 | AG43: =IF($A43>Year_Term,0,BenefitsB!Z43) -> 0 | AH43: 0 | AI43: =IF($A43>Year_Term,0,BenefitsB!AA43) -> 0 | AJ43: =IF($A43>Year_Term,0,BenefitsB!AB43) -> 0 | AK43: =IF($A43>Year_Term,0,BenefitsB!AC43) -> 0 | AL43: 0 | AM43: =IF($A43>Year_Term,0,BenefitsB!AD43) -> 0 | AN43: =IF($A43>Year_Term,0,BenefitsB!AE43) -> 0 | AO43: =IF($A43>Year_Term,0,BenefitsB!AF43) -> 0 | AP43: 0
A44: 41 | B44: 2066 | C44: =IF($A44>Year_Term,0,BenefitsB!C44) -> 0 | D44: =IF($A44>Year_Term,0,BenefitsB!D44) -> 0 | E44: =IF($A44>Year_Term,0,BenefitsB!E44) -> 0 | F44: 0 | G44: =IF($A44>Year_Term,0,BenefitsB!F44) -> 0 | H44: =IF($A44>Year_Term,0,BenefitsB!G44) -> 0 | I44: =IF($A44>Year_Term,0,BenefitsB!H44) -> 0 | J44: 0 | K44: =IF($A44>Year_Term,0,BenefitsB!I44) -> 0 | L44: =IF($A44>Year_Term,0,BenefitsB!J44) -> 0 | M44: =IF($A44>Year_Term,0,BenefitsB!K44) -> 0 | N44: 0 | O44: =IF($A44>Year_Term,0,BenefitsB!L44) -> 0 | P44: =IF($A44>Year_Term,0,BenefitsB!M44) -> 0 | Q44: =IF($A44>Year_Term,0,BenefitsB!N44) -> 0 | R44: 0 | S44: =IF($A44>Year_Term,0,BenefitsB!O44) -> 0 | T44: =IF($A44>Year_Term,0,BenefitsB!P44) -> 0 | U44: =IF($A44>Year_Term,0,BenefitsB!Q44) -> 0 | V44: 0 | W44: =IF($A44>Year_Term,0,BenefitsB!R44) -> 0 | X44: =IF($A44>Year_Term,0,BenefitsB!S44) -> 0 | Y44: =IF($A44>Year_Term,0,BenefitsB!T44) -> 0 | Z44: 0 | AA44: =IF($A44>Year_Term,0,BenefitsB!U44) -> 0 | AB44: =IF($A44>Year_Term,0,BenefitsB!V44) -> 0 | AC44: =IF($A44>Year_Term,0,BenefitsB!W44) -> 0 | AD44: 0 | AE44: =IF($A44>Year_Term,0,BenefitsB!X44) -> 0 | AF44: =IF($A44>Year_Term,0,BenefitsB!Y44) -> 0 | AG44: =IF($A44>Year_Term,0,BenefitsB!Z44) -> 0 | AH44: 0 | AI44: =IF($A44>Year_Term,0,BenefitsB!AA44) -> 0 | AJ44: =IF($A44>Year_Term,0,BenefitsB!AB44) -> 0 | AK44: =IF($A44>Year_Term,0,BenefitsB!AC44) -> 0 | AL44: 0 | AM44: =IF($A44>Year_Term,0,BenefitsB!AD44) -> 0 | AN44: =IF($A44>Year_Term,0,BenefitsB!AE44) -> 0 | AO44: =IF($A44>Year_Term,0,BenefitsB!AF44) -> 0 | AP44: 0
A45: 42 | B45: 2067 | C45: =IF($A45>Year_Term,0,BenefitsB!C45) -> 0 | D45: =IF($A45>Year_Term,0,BenefitsB!D45) -> 0 | E45: =IF($A45>Year_Term,0,BenefitsB!E45) -> 0 | F45: 0 | G45: =IF($A45>Year_Term,0,BenefitsB!F45) -> 0 | H45: =IF($A45>Year_Term,0,BenefitsB!G45) -> 0 | I45: =IF($A45>Year_Term,0,BenefitsB!H45) -> 0 | J45: 0 | K45: =IF($A45>Year_Term,0,BenefitsB!I45) -> 0 | L45: =IF($A45>Year_Term,0,BenefitsB!J45) -> 0 | M45: =IF($A45>Year_Term,0,BenefitsB!K45) -> 0 | N45: 0 | O45: =IF($A45>Year_Term,0,BenefitsB!L45) -> 0 | P45: =IF($A45>Year_Term,0,BenefitsB!M45) -> 0 | Q45: =IF($A45>Year_Term,0,BenefitsB!N45) -> 0 | R45: 0 | S45: =IF($A45>Year_Term,0,BenefitsB!O45) -> 0 | T45: =IF($A45>Year_Term,0,BenefitsB!P45) -> 0 | U45: =IF($A45>Year_Term,0,BenefitsB!Q45) -> 0 | V45: 0 | W45: =IF($A45>Year_Term,0,BenefitsB!R45) -> 0 | X45: =IF($A45>Year_Term,0,BenefitsB!S45) -> 0 | Y45: =IF($A45>Year_Term,0,BenefitsB!T45) -> 0 | Z45: 0 | AA45: =IF($A45>Year_Term,0,BenefitsB!U45) -> 0 | AB45: =IF($A45>Year_Term,0,BenefitsB!V45) -> 0 | AC45: =IF($A45>Year_Term,0,BenefitsB!W45) -> 0 | AD45: 0 | AE45: =IF($A45>Year_Term,0,BenefitsB!X45) -> 0 | AF45: =IF($A45>Year_Term,0,BenefitsB!Y45) -> 0 | AG45: =IF($A45>Year_Term,0,BenefitsB!Z45) -> 0 | AH45: 0 | AI45: =IF($A45>Year_Term,0,BenefitsB!AA45) -> 0 | AJ45: =IF($A45>Year_Term,0,BenefitsB!AB45) -> 0 | AK45: =IF($A45>Year_Term,0,BenefitsB!AC45) -> 0 | AL45: 0 | AM45: =IF($A45>Year_Term,0,BenefitsB!AD45) -> 0 | AN45: =IF($A45>Year_Term,0,BenefitsB!AE45) -> 0 | AO45: =IF($A45>Year_Term,0,BenefitsB!AF45) -> 0 | AP45: 0
A46: 43 | B46: 2068 | C46: =IF($A46>Year_Term,0,BenefitsB!C46) -> 0 | D46: =IF($A46>Year_Term,0,BenefitsB!D46) -> 0 | E46: =IF($A46>Year_Term,0,BenefitsB!E46) -> 0 | F46: 0 | G46: =IF($A46>Year_Term,0,BenefitsB!F46) -> 0 | H46: =IF($A46>Year_Term,0,BenefitsB!G46) -> 0 | I46: =IF($A46>Year_Term,0,BenefitsB!H46) -> 0 | J46: 0 | K46: =IF($A46>Year_Term,0,BenefitsB!I46) -> 0 | L46: =IF($A46>Year_Term,0,BenefitsB!J46) -> 0 | M46: =IF($A46>Year_Term,0,BenefitsB!K46) -> 0 | N46: 0 | O46: =IF($A46>Year_Term,0,BenefitsB!L46) -> 0 | P46: =IF($A46>Year_Term,0,BenefitsB!M46) -> 0 | Q46: =IF($A46>Year_Term,0,BenefitsB!N46) -> 0 | R46: 0 | S46: =IF($A46>Year_Term,0,BenefitsB!O46) -> 0 | T46: =IF($A46>Year_Term,0,BenefitsB!P46) -> 0 | U46: =IF($A46>Year_Term,0,BenefitsB!Q46) -> 0 | V46: 0 | W46: =IF($A46>Year_Term,0,BenefitsB!R46) -> 0 | X46: =IF($A46>Year_Term,0,BenefitsB!S46) -> 0 | Y46: =IF($A46>Year_Term,0,BenefitsB!T46) -> 0 | Z46: 0 | AA46: =IF($A46>Year_Term,0,BenefitsB!U46) -> 0 | AB46: =IF($A46>Year_Term,0,BenefitsB!V46) -> 0 | AC46: =IF($A46>Year_Term,0,BenefitsB!W46) -> 0 | AD46: 0 | AE46: =IF($A46>Year_Term,0,BenefitsB!X46) -> 0 | AF46: =IF($A46>Year_Term,0,BenefitsB!Y46) -> 0 | AG46: =IF($A46>Year_Term,0,BenefitsB!Z46) -> 0 | AH46: 0 | AI46: =IF($A46>Year_Term,0,BenefitsB!AA46) -> 0 | AJ46: =IF($A46>Year_Term,0,BenefitsB!AB46) -> 0 | AK46: =IF($A46>Year_Term,0,BenefitsB!AC46) -> 0 | AL46: 0 | AM46: =IF($A46>Year_Term,0,BenefitsB!AD46) -> 0 | AN46: =IF($A46>Year_Term,0,BenefitsB!AE46) -> 0 | AO46: =IF($A46>Year_Term,0,BenefitsB!AF46) -> 0 | AP46: 0
A47: 44 | B47: 2069 | C47: =IF($A47>Year_Term,0,BenefitsB!C47) -> 0 | D47: =IF($A47>Year_Term,0,BenefitsB!D47) -> 0 | E47: =IF($A47>Year_Term,0,BenefitsB!E47) -> 0 | F47: 0 | G47: =IF($A47>Year_Term,0,BenefitsB!F47) -> 0 | H47: =IF($A47>Year_Term,0,BenefitsB!G47) -> 0 | I47: =IF($A47>Year_Term,0,BenefitsB!H47) -> 0 | J47: 0 | K47: =IF($A47>Year_Term,0,BenefitsB!I47) -> 0 | L47: =IF($A47>Year_Term,0,BenefitsB!J47) -> 0 | M47: =IF($A47>Year_Term,0,BenefitsB!K47) -> 0 | N47: 0 | O47: =IF($A47>Year_Term,0,BenefitsB!L47) -> 0 | P47: =IF($A47>Year_Term,0,BenefitsB!M47) -> 0 | Q47: =IF($A47>Year_Term,0,BenefitsB!N47) -> 0 | R47: 0 | S47: =IF($A47>Year_Term,0,BenefitsB!O47) -> 0 | T47: =IF($A47>Year_Term,0,BenefitsB!P47) -> 0 | U47: =IF($A47>Year_Term,0,BenefitsB!Q47) -> 0 | V47: 0 | W47: =IF($A47>Year_Term,0,BenefitsB!R47) -> 0 | X47: =IF($A47>Year_Term,0,BenefitsB!S47) -> 0 | Y47: =IF($A47>Year_Term,0,BenefitsB!T47) -> 0 | Z47: 0 | AA47: =IF($A47>Year_Term,0,BenefitsB!U47) -> 0 | AB47: =IF($A47>Year_Term,0,BenefitsB!V47) -> 0 | AC47: =IF($A47>Year_Term,0,BenefitsB!W47) -> 0 | AD47: 0 | AE47: =IF($A47>Year_Term,0,BenefitsB!X47) -> 0 | AF47: =IF($A47>Year_Term,0,BenefitsB!Y47) -> 0 | AG47: =IF($A47>Year_Term,0,BenefitsB!Z47) -> 0 | AH47: 0 | AI47: =IF($A47>Year_Term,0,BenefitsB!AA47) -> 0 | AJ47: =IF($A47>Year_Term,0,BenefitsB!AB47) -> 0 | AK47: =IF($A47>Year_Term,0,BenefitsB!AC47) -> 0 | AL47: 0 | AM47: =IF($A47>Year_Term,0,BenefitsB!AD47) -> 0 | AN47: =IF($A47>Year_Term,0,BenefitsB!AE47) -> 0 | AO47: =IF($A47>Year_Term,0,BenefitsB!AF47) -> 0 | AP47: 0
A48: 45 | B48: 2070 | C48: =IF($A48>Year_Term,0,BenefitsB!C48) -> 0 | D48: =IF($A48>Year_Term,0,BenefitsB!D48) -> 0 | E48: =IF($A48>Year_Term,0,BenefitsB!E48) -> 0 | F48: 0 | G48: =IF($A48>Year_Term,0,BenefitsB!F48) -> 0 | H48: =IF($A48>Year_Term,0,BenefitsB!G48) -> 0 | I48: =IF($A48>Year_Term,0,BenefitsB!H48) -> 0 | J48: 0 | K48: =IF($A48>Year_Term,0,BenefitsB!I48) -> 0 | L48: =IF($A48>Year_Term,0,BenefitsB!J48) -> 0 | M48: =IF($A48>Year_Term,0,BenefitsB!K48) -> 0 | N48: 0 | O48: =IF($A48>Year_Term,0,BenefitsB!L48) -> 0 | P48: =IF($A48>Year_Term,0,BenefitsB!M48) -> 0 | Q48: =IF($A48>Year_Term,0,BenefitsB!N48) -> 0 | R48: 0 | S48: =IF($A48>Year_Term,0,BenefitsB!O48) -> 0 | T48: =IF($A48>Year_Term,0,BenefitsB!P48) -> 0 | U48: =IF($A48>Year_Term,0,BenefitsB!Q48) -> 0 | V48: 0 | W48: =IF($A48>Year_Term,0,BenefitsB!R48) -> 0 | X48: =IF($A48>Year_Term,0,BenefitsB!S48) -> 0 | Y48: =IF($A48>Year_Term,0,BenefitsB!T48) -> 0 | Z48: 0 | AA48: =IF($A48>Year_Term,0,BenefitsB!U48) -> 0 | AB48: =IF($A48>Year_Term,0,BenefitsB!V48) -> 0 | AC48: =IF($A48>Year_Term,0,BenefitsB!W48) -> 0 | AD48: 0 | AE48: =IF($A48>Year_Term,0,BenefitsB!X48) -> 0 | AF48: =IF($A48>Year_Term,0,BenefitsB!Y48) -> 0 | AG48: =IF($A48>Year_Term,0,BenefitsB!Z48) -> 0 | AH48: 0 | AI48: =IF($A48>Year_Term,0,BenefitsB!AA48) -> 0 | AJ48: =IF($A48>Year_Term,0,BenefitsB!AB48) -> 0 | AK48: =IF($A48>Year_Term,0,BenefitsB!AC48) -> 0 | AL48: 0 | AM48: =IF($A48>Year_Term,0,BenefitsB!AD48) -> 0 | AN48: =IF($A48>Year_Term,0,BenefitsB!AE48) -> 0 | AO48: =IF($A48>Year_Term,0,BenefitsB!AF48) -> 0 | AP48: 0
A49: 46 | B49: 2071 | C49: =IF($A49>Year_Term,0,BenefitsB!C49) -> 0 | D49: =IF($A49>Year_Term,0,BenefitsB!D49) -> 0 | E49: =IF($A49>Year_Term,0,BenefitsB!E49) -> 0 | F49: 0 | G49: =IF($A49>Year_Term,0,BenefitsB!F49) -> 0 | H49: =IF($A49>Year_Term,0,BenefitsB!G49) -> 0 | I49: =IF($A49>Year_Term,0,BenefitsB!H49) -> 0 | J49: 0 | K49: =IF($A49>Year_Term,0,BenefitsB!I49) -> 0 | L49: =IF($A49>Year_Term,0,BenefitsB!J49) -> 0 | M49: =IF($A49>Year_Term,0,BenefitsB!K49) -> 0 | N49: 0 | O49: =IF($A49>Year_Term,0,BenefitsB!L49) -> 0 | P49: =IF($A49>Year_Term,0,BenefitsB!M49) -> 0 | Q49: =IF($A49>Year_Term,0,BenefitsB!N49) -> 0 | R49: 0 | S49: =IF($A49>Year_Term,0,BenefitsB!O49) -> 0 | T49: =IF($A49>Year_Term,0,BenefitsB!P49) -> 0 | U49: =IF($A49>Year_Term,0,BenefitsB!Q49) -> 0 | V49: 0 | W49: =IF($A49>Year_Term,0,BenefitsB!R49) -> 0 | X49: =IF($A49>Year_Term,0,BenefitsB!S49) -> 0 | Y49: =IF($A49>Year_Term,0,BenefitsB!T49) -> 0 | Z49: 0 | AA49: =IF($A49>Year_Term,0,BenefitsB!U49) -> 0 | AB49: =IF($A49>Year_Term,0,BenefitsB!V49) -> 0 | AC49: =IF($A49>Year_Term,0,BenefitsB!W49) -> 0 | AD49: 0 | AE49: =IF($A49>Year_Term,0,BenefitsB!X49) -> 0 | AF49: =IF($A49>Year_Term,0,BenefitsB!Y49) -> 0 | AG49: =IF($A49>Year_Term,0,BenefitsB!Z49) -> 0 | AH49: 0 | AI49: =IF($A49>Year_Term,0,BenefitsB!AA49) -> 0 | AJ49: =IF($A49>Year_Term,0,BenefitsB!AB49) -> 0 | AK49: =IF($A49>Year_Term,0,BenefitsB!AC49) -> 0 | AL49: 0 | AM49: =IF($A49>Year_Term,0,BenefitsB!AD49) -> 0 | AN49: =IF($A49>Year_Term,0,BenefitsB!AE49) -> 0 | AO49: =IF($A49>Year_Term,0,BenefitsB!AF49) -> 0 | AP49: 0
A50: 47 | B50: 2072 | C50: =IF($A50>Year_Term,0,BenefitsB!C50) -> 0 | D50: =IF($A50>Year_Term,0,BenefitsB!D50) -> 0 | E50: =IF($A50>Year_Term,0,BenefitsB!E50) -> 0 | F50: 0 | G50: =IF($A50>Year_Term,0,BenefitsB!F50) -> 0 | H50: =IF($A50>Year_Term,0,BenefitsB!G50) -> 0 | I50: =IF($A50>Year_Term,0,BenefitsB!H50) -> 0 | J50: 0 | K50: =IF($A50>Year_Term,0,BenefitsB!I50) -> 0 | L50: =IF($A50>Year_Term,0,BenefitsB!J50) -> 0 | M50: =IF($A50>Year_Term,0,BenefitsB!K50) -> 0 | N50: 0 | O50: =IF($A50>Year_Term,0,BenefitsB!L50) -> 0 | P50: =IF($A50>Year_Term,0,BenefitsB!M50) -> 0 | Q50: =IF($A50>Year_Term,0,BenefitsB!N50) -> 0 | R50: 0 | S50: =IF($A50>Year_Term,0,BenefitsB!O50) -> 0 | T50: =IF($A50>Year_Term,0,BenefitsB!P50) -> 0 | U50: =IF($A50>Year_Term,0,BenefitsB!Q50) -> 0 | V50: 0 | W50: =IF($A50>Year_Term,0,BenefitsB!R50) -> 0 | X50: =IF($A50>Year_Term,0,BenefitsB!S50) -> 0 | Y50: =IF($A50>Year_Term,0,BenefitsB!T50) -> 0 | Z50: 0 | AA50: =IF($A50>Year_Term,0,BenefitsB!U50) -> 0 | AB50: =IF($A50>Year_Term,0,BenefitsB!V50) -> 0 | AC50: =IF($A50>Year_Term,0,BenefitsB!W50) -> 0 | AD50: 0 | AE50: =IF($A50>Year_Term,0,BenefitsB!X50) -> 0 | AF50: =IF($A50>Year_Term,0,BenefitsB!Y50) -> 0 | AG50: =IF($A50>Year_Term,0,BenefitsB!Z50) -> 0 | AH50: 0 | AI50: =IF($A50>Year_Term,0,BenefitsB!AA50) -> 0 | AJ50: =IF($A50>Year_Term,0,BenefitsB!AB50) -> 0 | AK50: =IF($A50>Year_Term,0,BenefitsB!AC50) -> 0 | AL50: 0 | AM50: =IF($A50>Year_Term,0,BenefitsB!AD50) -> 0 | AN50: =IF($A50>Year_Term,0,BenefitsB!AE50) -> 0 | AO50: =IF($A50>Year_Term,0,BenefitsB!AF50) -> 0 | AP50: 0
A51: 48 | B51: 2073 | C51: =IF($A51>Year_Term,0,BenefitsB!C51) -> 0 | D51: =IF($A51>Year_Term,0,BenefitsB!D51) -> 0 | E51: =IF($A51>Year_Term,0,BenefitsB!E51) -> 0 | F51: 0 | G51: =IF($A51>Year_Term,0,BenefitsB!F51) -> 0 | H51: =IF($A51>Year_Term,0,BenefitsB!G51) -> 0 | I51: =IF($A51>Year_Term,0,BenefitsB!H51) -> 0 | J51: 0 | K51: =IF($A51>Year_Term,0,BenefitsB!I51) -> 0 | L51: =IF($A51>Year_Term,0,BenefitsB!J51) -> 0 | M51: =IF($A51>Year_Term,0,BenefitsB!K51) -> 0 | N51: 0 | O51: =IF($A51>Year_Term,0,BenefitsB!L51) -> 0 | P51: =IF($A51>Year_Term,0,BenefitsB!M51) -> 0 | Q51: =IF($A51>Year_Term,0,BenefitsB!N51) -> 0 | R51: 0 | S51: =IF($A51>Year_Term,0,BenefitsB!O51) -> 0 | T51: =IF($A51>Year_Term,0,BenefitsB!P51) -> 0 | U51: =IF($A51>Year_Term,0,BenefitsB!Q51) -> 0 | V51: 0 | W51: =IF($A51>Year_Term,0,BenefitsB!R51) -> 0 | X51: =IF($A51>Year_Term,0,BenefitsB!S51) -> 0 | Y51: =IF($A51>Year_Term,0,BenefitsB!T51) -> 0 | Z51: 0 | AA51: =IF($A51>Year_Term,0,BenefitsB!U51) -> 0 | AB51: =IF($A51>Year_Term,0,BenefitsB!V51) -> 0 | AC51: =IF($A51>Year_Term,0,BenefitsB!W51) -> 0 | AD51: 0 | AE51: =IF($A51>Year_Term,0,BenefitsB!X51) -> 0 | AF51: =IF($A51>Year_Term,0,BenefitsB!Y51) -> 0 | AG51: =IF($A51>Year_Term,0,BenefitsB!Z51) -> 0 | AH51: 0 | AI51: =IF($A51>Year_Term,0,BenefitsB!AA51) -> 0 | AJ51: =IF($A51>Year_Term,0,BenefitsB!AB51) -> 0 | AK51: =IF($A51>Year_Term,0,BenefitsB!AC51) -> 0 | AL51: 0 | AM51: =IF($A51>Year_Term,0,BenefitsB!AD51) -> 0 | AN51: =IF($A51>Year_Term,0,BenefitsB!AE51) -> 0 | AO51: =IF($A51>Year_Term,0,BenefitsB!AF51) -> 0 | AP51: 0
A52: 49 | B52: 2074 | C52: =IF($A52>Year_Term,0,BenefitsB!C52) -> 0 | D52: =IF($A52>Year_Term,0,BenefitsB!D52) -> 0 | E52: =IF($A52>Year_Term,0,BenefitsB!E52) -> 0 | F52: 0 | G52: =IF($A52>Year_Term,0,BenefitsB!F52) -> 0 | H52: =IF($A52>Year_Term,0,BenefitsB!G52) -> 0 | I52: =IF($A52>Year_Term,0,BenefitsB!H52) -> 0 | J52: 0 | K52: =IF($A52>Year_Term,0,BenefitsB!I52) -> 0 | L52: =IF($A52>Year_Term,0,BenefitsB!J52) -> 0 | M52: =IF($A52>Year_Term,0,BenefitsB!K52) -> 0 | N52: 0 | O52: =IF($A52>Year_Term,0,BenefitsB!L52) -> 0 | P52: =IF($A52>Year_Term,0,BenefitsB!M52) -> 0 | Q52: =IF($A52>Year_Term,0,BenefitsB!N52) -> 0 | R52: 0 | S52: =IF($A52>Year_Term,0,BenefitsB!O52) -> 0 | T52: =IF($A52>Year_Term,0,BenefitsB!P52) -> 0 | U52: =IF($A52>Year_Term,0,BenefitsB!Q52) -> 0 | V52: 0 | W52: =IF($A52>Year_Term,0,BenefitsB!R52) -> 0 | X52: =IF($A52>Year_Term,0,BenefitsB!S52) -> 0 | Y52: =IF($A52>Year_Term,0,BenefitsB!T52) -> 0 | Z52: 0 | AA52: =IF($A52>Year_Term,0,BenefitsB!U52) -> 0 | AB52: =IF($A52>Year_Term,0,BenefitsB!V52) -> 0 | AC52: =IF($A52>Year_Term,0,BenefitsB!W52) -> 0 | AD52: 0 | AE52: =IF($A52>Year_Term,0,BenefitsB!X52) -> 0 | AF52: =IF($A52>Year_Term,0,BenefitsB!Y52) -> 0 | AG52: =IF($A52>Year_Term,0,BenefitsB!Z52) -> 0 | AH52: 0 | AI52: =IF($A52>Year_Term,0,BenefitsB!AA52) -> 0 | AJ52: =IF($A52>Year_Term,0,BenefitsB!AB52) -> 0 | AK52: =IF($A52>Year_Term,0,BenefitsB!AC52) -> 0 | AL52: 0 | AM52: =IF($A52>Year_Term,0,BenefitsB!AD52) -> 0 | AN52: =IF($A52>Year_Term,0,BenefitsB!AE52) -> 0 | AO52: =IF($A52>Year_Term,0,BenefitsB!AF52) -> 0 | AP52: 0
A53: 50 | B53: 2075 | C53: =IF($A53>Year_Term,0,BenefitsB!C53) -> 0 | D53: =IF($A53>Year_Term,0,BenefitsB!D53) -> 0 | E53: =IF($A53>Year_Term,0,BenefitsB!E53) -> 0 | F53: 0 | G53: =IF($A53>Year_Term,0,BenefitsB!F53) -> 0 | H53: =IF($A53>Year_Term,0,BenefitsB!G53) -> 0 | I53: =IF($A53>Year_Term,0,BenefitsB!H53) -> 0 | J53: 0 | K53: =IF($A53>Year_Term,0,BenefitsB!I53) -> 0 | L53: =IF($A53>Year_Term,0,BenefitsB!J53) -> 0 | M53: =IF($A53>Year_Term,0,BenefitsB!K53) -> 0 | N53: 0 | O53: =IF($A53>Year_Term,0,BenefitsB!L53) -> 0 | P53: =IF($A53>Year_Term,0,BenefitsB!M53) -> 0 | Q53: =IF($A53>Year_Term,0,BenefitsB!N53) -> 0 | R53: 0 | S53: =IF($A53>Year_Term,0,BenefitsB!O53) -> 0 | T53: =IF($A53>Year_Term,0,BenefitsB!P53) -> 0 | U53: =IF($A53>Year_Term,0,BenefitsB!Q53) -> 0 | V53: 0 | W53: =IF($A53>Year_Term,0,BenefitsB!R53) -> 0 | X53: =IF($A53>Year_Term,0,BenefitsB!S53) -> 0 | Y53: =IF($A53>Year_Term,0,BenefitsB!T53) -> 0 | Z53: 0 | AA53: =IF($A53>Year_Term,0,BenefitsB!U53) -> 0 | AB53: =IF($A53>Year_Term,0,BenefitsB!V53) -> 0 | AC53: =IF($A53>Year_Term,0,BenefitsB!W53) -> 0 | AD53: 0 | AE53: =IF($A53>Year_Term,0,BenefitsB!X53) -> 0 | AF53: =IF($A53>Year_Term,0,BenefitsB!Y53) -> 0 | AG53: =IF($A53>Year_Term,0,BenefitsB!Z53) -> 0 | AH53: 0 | AI53: =IF($A53>Year_Term,0,BenefitsB!AA53) -> 0 | AJ53: =IF($A53>Year_Term,0,BenefitsB!AB53) -> 0 | AK53: =IF($A53>Year_Term,0,BenefitsB!AC53) -> 0 | AL53: 0 | AM53: =IF($A53>Year_Term,0,BenefitsB!AD53) -> 0 | AN53: =IF($A53>Year_Term,0,BenefitsB!AE53) -> 0 | AO53: =IF($A53>Year_Term,0,BenefitsB!AF53) -> 0 | AP53: 0
A54: 51 | B54: 2076 | C54: =IF($A54>Year_Term,0,BenefitsB!C54) -> 0 | D54: =IF($A54>Year_Term,0,BenefitsB!D54) -> 0 | E54: =IF($A54>Year_Term,0,BenefitsB!E54) -> 0 | F54: 0 | G54: =IF($A54>Year_Term,0,BenefitsB!F54) -> 0 | H54: =IF($A54>Year_Term,0,BenefitsB!G54) -> 0 | I54: =IF($A54>Year_Term,0,BenefitsB!H54) -> 0 | J54: 0 | K54: =IF($A54>Year_Term,0,BenefitsB!I54) -> 0 | L54: =IF($A54>Year_Term,0,BenefitsB!J54) -> 0 | M54: =IF($A54>Year_Term,0,BenefitsB!K54) -> 0 | N54: 0 | O54: =IF($A54>Year_Term,0,BenefitsB!L54) -> 0 | P54: =IF($A54>Year_Term,0,BenefitsB!M54) -> 0 | Q54: =IF($A54>Year_Term,0,BenefitsB!N54) -> 0 | R54: 0 | S54: =IF($A54>Year_Term,0,BenefitsB!O54) -> 0 | T54: =IF($A54>Year_Term,0,BenefitsB!P54) -> 0 | U54: =IF($A54>Year_Term,0,BenefitsB!Q54) -> 0 | V54: 0 | W54: =IF($A54>Year_Term,0,BenefitsB!R54) -> 0 | X54: =IF($A54>Year_Term,0,BenefitsB!S54) -> 0 | Y54: =IF($A54>Year_Term,0,BenefitsB!T54) -> 0 | Z54: 0 | AA54: =IF($A54>Year_Term,0,BenefitsB!U54) -> 0 | AB54: =IF($A54>Year_Term,0,BenefitsB!V54) -> 0 | AC54: =IF($A54>Year_Term,0,BenefitsB!W54) -> 0 | AD54: 0 | AE54: =IF($A54>Year_Term,0,BenefitsB!X54) -> 0 | AF54: =IF($A54>Year_Term,0,BenefitsB!Y54) -> 0 | AG54: =IF($A54>Year_Term,0,BenefitsB!Z54) -> 0 | AH54: 0 | AI54: =IF($A54>Year_Term,0,BenefitsB!AA54) -> 0 | AJ54: =IF($A54>Year_Term,0,BenefitsB!AB54) -> 0 | AK54: =IF($A54>Year_Term,0,BenefitsB!AC54) -> 0 | AL54: 0 | AM54: =IF($A54>Year_Term,0,BenefitsB!AD54) -> 0 | AN54: =IF($A54>Year_Term,0,BenefitsB!AE54) -> 0 | AO54: =IF($A54>Year_Term,0,BenefitsB!AF54) -> 0 | AP54: 0
A55: 52 | B55: 2077 | C55: =IF($A55>Year_Term,0,BenefitsB!C55) -> 0 | D55: =IF($A55>Year_Term,0,BenefitsB!D55) -> 0 | E55: =IF($A55>Year_Term,0,BenefitsB!E55) -> 0 | F55: 0 | G55: =IF($A55>Year_Term,0,BenefitsB!F55) -> 0 | H55: =IF($A55>Year_Term,0,BenefitsB!G55) -> 0 | I55: =IF($A55>Year_Term,0,BenefitsB!H55) -> 0 | J55: 0 | K55: =IF($A55>Year_Term,0,BenefitsB!I55) -> 0 | L55: =IF($A55>Year_Term,0,BenefitsB!J55) -> 0 | M55: =IF($A55>Year_Term,0,BenefitsB!K55) -> 0 | N55: 0 | O55: =IF($A55>Year_Term,0,BenefitsB!L55) -> 0 | P55: =IF($A55>Year_Term,0,BenefitsB!M55) -> 0 | Q55: =IF($A55>Year_Term,0,BenefitsB!N55) -> 0 | R55: 0 | S55: =IF($A55>Year_Term,0,BenefitsB!O55) -> 0 | T55: =IF($A55>Year_Term,0,BenefitsB!P55) -> 0 | U55: =IF($A55>Year_Term,0,BenefitsB!Q55) -> 0 | V55: 0 | W55: =IF($A55>Year_Term,0,BenefitsB!R55) -> 0 | X55: =IF($A55>Year_Term,0,BenefitsB!S55) -> 0 | Y55: =IF($A55>Year_Term,0,BenefitsB!T55) -> 0 | Z55: 0 | AA55: =IF($A55>Year_Term,0,BenefitsB!U55) -> 0 | AB55: =IF($A55>Year_Term,0,BenefitsB!V55) -> 0 | AC55: =IF($A55>Year_Term,0,BenefitsB!W55) -> 0 | AD55: 0 | AE55: =IF($A55>Year_Term,0,BenefitsB!X55) -> 0 | AF55: =IF($A55>Year_Term,0,BenefitsB!Y55) -> 0 | AG55: =IF($A55>Year_Term,0,BenefitsB!Z55) -> 0 | AH55: 0 | AI55: =IF($A55>Year_Term,0,BenefitsB!AA55) -> 0 | AJ55: =IF($A55>Year_Term,0,BenefitsB!AB55) -> 0 | AK55: =IF($A55>Year_Term,0,BenefitsB!AC55) -> 0 | AL55: 0 | AM55: =IF($A55>Year_Term,0,BenefitsB!AD55) -> 0 | AN55: =IF($A55>Year_Term,0,BenefitsB!AE55) -> 0 | AO55: =IF($A55>Year_Term,0,BenefitsB!AF55) -> 0 | AP55: 0
